{"text_format":"1","workbook":"xlsx","n_sheets":8,"sheets":["Data","Overview","Filters 1-12 Sum","Filters 13-24 Sum","Filters 25-26 Sum","Filters 36-48 Sum","Data Sort","95th"],"not_rendered":{"charts":3,"images":0,"macros":1,"external_links":1,"defined_names":144,"comments":1,"pivot_tables":0},"unopened":[],"bounds":{"document_bytes":16777216,"sheet_cells":100000,"rows_first":2000,"rows_last":500,"rows_between":2000,"halvings":0,"cell_chars":16384,"cell_head_chars":4096},"cells_cut":0,"cells_raw":0,"read":"whole","date_system":"1900"}

{"sheet":"Data","index":0,"n_rows":380,"n_cols":75,"rows_kept":380,"cut":false,"hidden":false,"merged":[[1,9,1,10],[1,1,1,2],[2,1,2,2],[3,1,3,2],[1,3,1,7],[2,3,2,7],[3,3,3,7],[2,9,2,10]]}
[]
[null,"System Name:",null,"Test System",null,null,null,null,null,"Settled Goal"]
[null,"Plant Name",null,"Test Western WTP",null,null,null,null,null,{"$f":"IF(SUM(RAW)=0,\"\",IF(AVERAGE(C7:C372)>10,2.05,1.05))","v":""}]
[null,"PWS-ID #",null,"AL0004000"]
[]
[null,"Date","Raw","Basin 1","Basin 2","Basin 3","Basin 4","Basin 5","Basin 6","Basin 7","Basin 8","Basin 9","Basin 10","Basin 11","Basin 12","Basin 13","Basin 14","Basin 15","Basin 16","Basin 17","Basin 18","Basin 19","Basin 20","Filter 1","Filter 2","Filter 3","Filter 4","Filter 5","Filter 6","Filter 7","Filter 8","Filter 9","Filter 10","Filter 11","Filter 12","Filter 13","Filter 14","Filter 15","Filter 16","Filter 17","Filter 18","Filter 19","Filter 20","Filter 21","Filter 22","Filter 23","Filter 24","Filter 25","Filter 26","Filter 27","Filter 28","Filter 29","Filter 30","Filter 31","Filter 32","Filter 33","Filter 34","Filter 35","Filter 36","Filter 37","Filter 38","Filter 39","Filter 40","Filter 41","Filter 42","Filter 43","Filter 44","Filter 45","Filter 46","Filter 47","Filter 48","Average Filter","Max Basin","Average Basin","Max Filtered"]
[null,"2016-01-01",null,null,null,null,null,null,null,null,null,null,null,null,null,null,null,null,null,null,null,null,null,null,null,null,null,null,null,null,null,null,null,null,null,null,null,null,null,null,null,null,null,null,null,null,null,null,null,null,null,null,null,null,null,null,null,null,null,null,null,null,null,null,null,null,null,null,null,null,null,{"$f":"IF(SUM(X7:BS7)=0,\"\",AVERAGE(X7:BS7))","v":""},{"$f":"IF(MAX(D7:W7)=0,\"\",MAX(D7:W7))","v":""},{"$f":"IF(SUM(D7:W7)=0,\"\",AVERAGE(D7:W7))","v":""},{"$f":"IF(MAX(X7:BS7)=0,\"\",MAX(X7:BS7))","v":""}]
[null,{"$f":"B7+1","v":"2016-01-02"},null,null,null,null,null,null,null,null,null,null,null,null,null,null,null,null,null,null,null,null,null,null,null,null,null,null,null,null,null,null,null,null,null,null,null,null,null,null,null,null,null,null,null,null,null,null,null,null,null,null,null,null,null,null,null,null,null,null,null,null,null,null,null,null,null,null,null,null,null,{"$f":"IF(SUM(X8:BS8)=0,\"\",AVERAGE(X8:BS8))","v":""},{"$f":"IF(MAX(D8:W8)=0,\"\",MAX(D8:W8))","v":""},{"$f":"IF(SUM(D8:W8)=0,\"\",AVERAGE(D8:W8))","v":""},{"$f":"IF(MAX(X8:BS8)=0,\"\",MAX(X8:BS8))","v":""}]
[null,{"$f":"B8+1","v":"2016-01-03"},null,null,null,null,null,null,null,null,null,null,null,null,null,null,null,null,null,null,null,null,null,null,null,null,null,null,null,null,null,null,null,null,null,null,null,null,null,null,null,null,null,null,null,null,null,null,null,null,null,null,null,null,null,null,null,null,null,null,null,null,null,null,null,null,null,null,null,null,null,"","","",""]
[null,"2016-01-04",null,null,null,null,null,null,null,null,null,null,null,null,null,null,null,null,null,null,null,null,null,null,null,null,null,null,null,null,null,null,null,null,null,null,null,null,null,null,null,null,null,null,null,null,null,null,null,null,null,null,null,null,null,null,null,null,null,null,null,null,null,null,null,null,null,null,null,null,null,"","","",""]
[null,"2016-01-05",null,null,null,null,null,null,null,null,null,null,null,null,null,null,null,null,null,null,null,null,null,null,null,null,null,null,null,null,null,null,null,null,null,null,null,null,null,null,null,null,null,null,null,null,null,null,null,null,null,null,null,null,null,null,null,null,null,null,null,null,null,null,null,null,null,null,null,null,null,"","","",""]
[null,"2016-01-06",null,null,null,null,null,null,null,null,null,null,null,null,null,null,null,null,null,null,null,null,null,null,null,null,null,null,null,null,null,null,null,null,null,null,null,null,null,null,null,null,null,null,null,null,null,null,null,null,null,null,null,null,null,null,null,null,null,null,null,null,null,null,null,null,null,null,null,null,null,"","","",""]
[null,"2016-01-07",null,null,null,null,null,null,null,null,null,null,null,null,null,null,null,null,null,null,null,null,null,null,null,null,null,null,null,null,null,null,null,null,null,null,null,null,null,null,null,null,null,null,null,null,null,null,null,null,null,null,null,null,null,null,null,null,null,null,null,null,null,null,null,null,null,null,null,null,null,"","","",""]
[null,"2016-01-08",null,null,null,null,null,null,null,null,null,null,null,null,null,null,null,null,null,null,null,null,null,null,null,null,null,null,null,null,null,null,null,null,null,null,null,null,null,null,null,null,null,null,null,null,null,null,null,null,null,null,null,null,null,null,null,null,null,null,null,null,null,null,null,null,null,null,null,null,null,"","","",""]
[null,"2016-01-09",null,null,null,null,null,null,null,null,null,null,null,null,null,null,null,null,null,null,null,null,null,null,null,null,null,null,null,null,null,null,null,null,null,null,null,null,null,null,null,null,null,null,null,null,null,null,null,null,null,null,null,null,null,null,null,null,null,null,null,null,null,null,null,null,null,null,null,null,null,"","","",""]
[null,"2016-01-10",null,null,null,null,null,null,null,null,null,null,null,null,null,null,null,null,null,null,null,null,null,null,null,null,null,null,null,null,null,null,null,null,null,null,null,null,null,null,null,null,null,null,null,null,null,null,null,null,null,null,null,null,null,null,null,null,null,null,null,null,null,null,null,null,null,null,null,null,null,"","","",""]
[null,"2016-01-11",null,null,null,null,null,null,null,null,null,null,null,null,null,null,null,null,null,null,null,null,null,null,null,null,null,null,null,null,null,null,null,null,null,null,null,null,null,null,null,null,null,null,null,null,null,null,null,null,null,null,null,null,null,null,null,null,null,null,null,null,null,null,null,null,null,null,null,null,null,"","","",""]
[null,"2016-01-12",null,null,null,null,null,null,null,null,null,null,null,null,null,null,null,null,null,null,null,null,null,null,null,null,null,null,null,null,null,null,null,null,null,null,null,null,null,null,null,null,null,null,null,null,null,null,null,null,null,null,null,null,null,null,null,null,null,null,null,null,null,null,null,null,null,null,null,null,null,"","","",""]
[null,"2016-01-13",null,null,null,null,null,null,null,null,null,null,null,null,null,null,null,null,null,null,null,null,null,null,null,null,null,null,null,null,null,null,null,null,null,null,null,null,null,null,null,null,null,null,null,null,null,null,null,null,null,null,null,null,null,null,null,null,null,null,null,null,null,null,null,null,null,null,null,null,null,"","","",""]
[null,"2016-01-14",null,null,null,null,null,null,null,null,null,null,null,null,null,null,null,null,null,null,null,null,null,null,null,null,null,null,null,null,null,null,null,null,null,null,null,null,null,null,null,null,null,null,null,null,null,null,null,null,null,null,null,null,null,null,null,null,null,null,null,null,null,null,null,null,null,null,null,null,null,"","","",""]
[null,"2016-01-15",null,null,null,null,null,null,null,null,null,null,null,null,null,null,null,null,null,null,null,null,null,null,null,null,null,null,null,null,null,null,null,null,null,null,null,null,null,null,null,null,null,null,null,null,null,null,null,null,null,null,null,null,null,null,null,null,null,null,null,null,null,null,null,null,null,null,null,null,null,"","","",""]
[null,"2016-01-16",null,null,null,null,null,null,null,null,null,null,null,null,null,null,null,null,null,null,null,null,null,null,null,null,null,null,null,null,null,null,null,null,null,null,null,null,null,null,null,null,null,null,null,null,null,null,null,null,null,null,null,null,null,null,null,null,null,null,null,null,null,null,null,null,null,null,null,null,null,"","","",""]
[null,"2016-01-17",null,null,null,null,null,null,null,null,null,null,null,null,null,null,null,null,null,null,null,null,null,null,null,null,null,null,null,null,null,null,null,null,null,null,null,null,null,null,null,null,null,null,null,null,null,null,null,null,null,null,null,null,null,null,null,null,null,null,null,null,null,null,null,null,null,null,null,null,null,"","","",""]
[null,"2016-01-18",null,null,null,null,null,null,null,null,null,null,null,null,null,null,null,null,null,null,null,null,null,null,null,null,null,null,null,null,null,null,null,null,null,null,null,null,null,null,null,null,null,null,null,null,null,null,null,null,null,null,null,null,null,null,null,null,null,null,null,null,null,null,null,null,null,null,null,null,null,"","","",""]
[null,"2016-01-19",null,null,null,null,null,null,null,null,null,null,null,null,null,null,null,null,null,null,null,null,null,null,null,null,null,null,null,null,null,null,null,null,null,null,null,null,null,null,null,null,null,null,null,null,null,null,null,null,null,null,null,null,null,null,null,null,null,null,null,null,null,null,null,null,null,null,null,null,null,"","","",""]
[null,"2016-01-20",null,null,null,null,null,null,null,null,null,null,null,null,null,null,null,null,null,null,null,null,null,null,null,null,null,null,null,null,null,null,null,null,null,null,null,null,null,null,null,null,null,null,null,null,null,null,null,null,null,null,null,null,null,null,null,null,null,null,null,null,null,null,null,null,null,null,null,null,null,"","","",""]
[null,"2016-01-21",null,null,null,null,null,null,null,null,null,null,null,null,null,null,null,null,null,null,null,null,null,null,null,null,null,null,null,null,null,null,null,null,null,null,null,null,null,null,null,null,null,null,null,null,null,null,null,null,null,null,null,null,null,null,null,null,null,null,null,null,null,null,null,null,null,null,null,null,null,"","","",""]
[null,"2016-01-22",null,null,null,null,null,null,null,null,null,null,null,null,null,null,null,null,null,null,null,null,null,null,null,null,null,null,null,null,null,null,null,null,null,null,null,null,null,null,null,null,null,null,null,null,null,null,null,null,null,null,null,null,null,null,null,null,null,null,null,null,null,null,null,null,null,null,null,null,null,"","","",""]
[null,"2016-01-23",null,null,null,null,null,null,null,null,null,null,null,null,null,null,null,null,null,null,null,null,null,null,null,null,null,null,null,null,null,null,null,null,null,null,null,null,null,null,null,null,null,null,null,null,null,null,null,null,null,null,null,null,null,null,null,null,null,null,null,null,null,null,null,null,null,null,null,null,null,"","","",""]
[null,"2016-01-24",null,null,null,null,null,null,null,null,null,null,null,null,null,null,null,null,null,null,null,null,null,null,null,null,null,null,null,null,null,null,null,null,null,null,null,null,null,null,null,null,null,null,null,null,null,null,null,null,null,null,null,null,null,null,null,null,null,null,null,null,null,null,null,null,null,null,null,null,null,"","","",""]
[null,"2016-01-25",null,null,null,null,null,null,null,null,null,null,null,null,null,null,null,null,null,null,null,null,null,null,null,null,null,null,null,null,null,null,null,null,null,null,null,null,null,null,null,null,null,null,null,null,null,null,null,null,null,null,null,null,null,null,null,null,null,null,null,null,null,null,null,null,null,null,null,null,null,"","","",""]
[null,"2016-01-26",null,null,null,null,null,null,null,null,null,null,null,null,null,null,null,null,null,null,null,null,null,null,null,null,null,null,null,null,null,null,null,null,null,null,null,null,null,null,null,null,null,null,null,null,null,null,null,null,null,null,null,null,null,null,null,null,null,null,null,null,null,null,null,null,null,null,null,null,null,"","","",""]
[null,"2016-01-27",null,null,null,null,null,null,null,null,null,null,null,null,null,null,null,null,null,null,null,null,null,null,null,null,null,null,null,null,null,null,null,null,null,null,null,null,null,null,null,null,null,null,null,null,null,null,null,null,null,null,null,null,null,null,null,null,null,null,null,null,null,null,null,null,null,null,null,null,null,"","","",""]
[null,"2016-01-28",null,null,null,null,null,null,null,null,null,null,null,null,null,null,null,null,null,null,null,null,null,null,null,null,null,null,null,null,null,null,null,null,null,null,null,null,null,null,null,null,null,null,null,null,null,null,null,null,null,null,null,null,null,null,null,null,null,null,null,null,null,null,null,null,null,null,null,null,null,"","","",""]
[null,"2016-01-29",null,null,null,null,null,null,null,null,null,null,null,null,null,null,null,null,null,null,null,null,null,null,null,null,null,null,null,null,null,null,null,null,null,null,null,null,null,null,null,null,null,null,null,null,null,null,null,null,null,null,null,null,null,null,null,null,null,null,null,null,null,null,null,null,null,null,null,null,null,"","","",""]
[null,"2016-01-30",null,null,null,null,null,null,null,null,null,null,null,null,null,null,null,null,null,null,null,null,null,null,null,null,null,null,null,null,null,null,null,null,null,null,null,null,null,null,null,null,null,null,null,null,null,null,null,null,null,null,null,null,null,null,null,null,null,null,null,null,null,null,null,null,null,null,null,null,null,"","","",""]
[null,"2016-01-31",null,null,null,null,null,null,null,null,null,null,null,null,null,null,null,null,null,null,null,null,null,null,null,null,null,null,null,null,null,null,null,null,null,null,null,null,null,null,null,null,null,null,null,null,null,null,null,null,null,null,null,null,null,null,null,null,null,null,null,null,null,null,null,null,null,null,null,null,null,"","","",""]
[null,"2016-02-01",null,null,null,null,null,null,null,null,null,null,null,null,null,null,null,null,null,null,null,null,null,null,null,null,null,null,null,null,null,null,null,null,null,null,null,null,null,null,null,null,null,null,null,null,null,null,null,null,null,null,null,null,null,null,null,null,null,null,null,null,null,null,null,null,null,null,null,null,null,"","","",""]
[null,"2016-02-02",null,null,null,null,null,null,null,null,null,null,null,null,null,null,null,null,null,null,null,null,null,null,null,null,null,null,null,null,null,null,null,null,null,null,null,null,null,null,null,null,null,null,null,null,null,null,null,null,null,null,null,null,null,null,null,null,null,null,null,null,null,null,null,null,null,null,null,null,null,"","","",""]
[null,"2016-02-03",null,null,null,null,null,null,null,null,null,null,null,null,null,null,null,null,null,null,null,null,null,null,null,null,null,null,null,null,null,null,null,null,null,null,null,null,null,null,null,null,null,null,null,null,null,null,null,null,null,null,null,null,null,null,null,null,null,null,null,null,null,null,null,null,null,null,null,null,null,"","","",""]
[null,"2016-02-04",null,null,null,null,null,null,null,null,null,null,null,null,null,null,null,null,null,null,null,null,null,null,null,null,null,null,null,null,null,null,null,null,null,null,null,null,null,null,null,null,null,null,null,null,null,null,null,null,null,null,null,null,null,null,null,null,null,null,null,null,null,null,null,null,null,null,null,null,null,"","","",""]
[null,"2016-02-05",null,null,null,null,null,null,null,null,null,null,null,null,null,null,null,null,null,null,null,null,null,null,null,null,null,null,null,null,null,null,null,null,null,null,null,null,null,null,null,null,null,null,null,null,null,null,null,null,null,null,null,null,null,null,null,null,null,null,null,null,null,null,null,null,null,null,null,null,null,"","","",""]
[null,"2016-02-06",null,null,null,null,null,null,null,null,null,null,null,null,null,null,null,null,null,null,null,null,null,null,null,null,null,null,null,null,null,null,null,null,null,null,null,null,null,null,null,null,null,null,null,null,null,null,null,null,null,null,null,null,null,null,null,null,null,null,null,null,null,null,null,null,null,null,null,null,null,"","","",""]
[null,"2016-02-07",null,null,null,null,null,null,null,null,null,null,null,null,null,null,null,null,null,null,null,null,null,null,null,null,null,null,null,null,null,null,null,null,null,null,null,null,null,null,null,null,null,null,null,null,null,null,null,null,null,null,null,null,null,null,null,null,null,null,null,null,null,null,null,null,null,null,null,null,null,"","","",""]
[null,"2016-02-08",null,null,null,null,null,null,null,null,null,null,null,null,null,null,null,null,null,null,null,null,null,null,null,null,null,null,null,null,null,null,null,null,null,null,null,null,null,null,null,null,null,null,null,null,null,null,null,null,null,null,null,null,null,null,null,null,null,null,null,null,null,null,null,null,null,null,null,null,null,"","","",""]
[null,"2016-02-09",null,null,null,null,null,null,null,null,null,null,null,null,null,null,null,null,null,null,null,null,null,null,null,null,null,null,null,null,null,null,null,null,null,null,null,null,null,null,null,null,null,null,null,null,null,null,null,null,null,null,null,null,null,null,null,null,null,null,null,null,null,null,null,null,null,null,null,null,null,"","","",""]
[null,"2016-02-10",null,null,null,null,null,null,null,null,null,null,null,null,null,null,null,null,null,null,null,null,null,null,null,null,null,null,null,null,null,null,null,null,null,null,null,null,null,null,null,null,null,null,null,null,null,null,null,null,null,null,null,null,null,null,null,null,null,null,null,null,null,null,null,null,null,null,null,null,null,"","","",""]
[null,"2016-02-11",null,null,null,null,null,null,null,null,null,null,null,null,null,null,null,null,null,null,null,null,null,null,null,null,null,null,null,null,null,null,null,null,null,null,null,null,null,null,null,null,null,null,null,null,null,null,null,null,null,null,null,null,null,null,null,null,null,null,null,null,null,null,null,null,null,null,null,null,null,"","","",""]
[null,"2016-02-12",null,null,null,null,null,null,null,null,null,null,null,null,null,null,null,null,null,null,null,null,null,null,null,null,null,null,null,null,null,null,null,null,null,null,null,null,null,null,null,null,null,null,null,null,null,null,null,null,null,null,null,null,null,null,null,null,null,null,null,null,null,null,null,null,null,null,null,null,null,"","","",""]
[null,"2016-02-13",null,null,null,null,null,null,null,null,null,null,null,null,null,null,null,null,null,null,null,null,null,null,null,null,null,null,null,null,null,null,null,null,null,null,null,null,null,null,null,null,null,null,null,null,null,null,null,null,null,null,null,null,null,null,null,null,null,null,null,null,null,null,null,null,null,null,null,null,null,"","","",""]
[null,"2016-02-14",null,null,null,null,null,null,null,null,null,null,null,null,null,null,null,null,null,null,null,null,null,null,null,null,null,null,null,null,null,null,null,null,null,null,null,null,null,null,null,null,null,null,null,null,null,null,null,null,null,null,null,null,null,null,null,null,null,null,null,null,null,null,null,null,null,null,null,null,null,"","","",""]
[null,"2016-02-15",null,null,null,null,null,null,null,null,null,null,null,null,null,null,null,null,null,null,null,null,null,null,null,null,null,null,null,null,null,null,null,null,null,null,null,null,null,null,null,null,null,null,null,null,null,null,null,null,null,null,null,null,null,null,null,null,null,null,null,null,null,null,null,null,null,null,null,null,null,"","","",""]
[null,"2016-02-16",null,null,null,null,null,null,null,null,null,null,null,null,null,null,null,null,null,null,null,null,null,null,null,null,null,null,null,null,null,null,null,null,null,null,null,null,null,null,null,null,null,null,null,null,null,null,null,null,null,null,null,null,null,null,null,null,null,null,null,null,null,null,null,null,null,null,null,null,null,"","","",""]
[null,"2016-02-17",null,null,null,null,null,null,null,null,null,null,null,null,null,null,null,null,null,null,null,null,null,null,null,null,null,null,null,null,null,null,null,null,null,null,null,null,null,null,null,null,null,null,null,null,null,null,null,null,null,null,null,null,null,null,null,null,null,null,null,null,null,null,null,null,null,null,null,null,null,"","","",""]
[null,"2016-02-18",null,null,null,null,null,null,null,null,null,null,null,null,null,null,null,null,null,null,null,null,null,null,null,null,null,null,null,null,null,null,null,null,null,null,null,null,null,null,null,null,null,null,null,null,null,null,null,null,null,null,null,null,null,null,null,null,null,null,null,null,null,null,null,null,null,null,null,null,null,"","","",""]
[null,"2016-02-19",null,null,null,null,null,null,null,null,null,null,null,null,null,null,null,null,null,null,null,null,null,null,null,null,null,null,null,null,null,null,null,null,null,null,null,null,null,null,null,null,null,null,null,null,null,null,null,null,null,null,null,null,null,null,null,null,null,null,null,null,null,null,null,null,null,null,null,null,null,"","","",""]
[null,"2016-02-20",null,null,null,null,null,null,null,null,null,null,null,null,null,null,null,null,null,null,null,null,null,null,null,null,null,null,null,null,null,null,null,null,null,null,null,null,null,null,null,null,null,null,null,null,null,null,null,null,null,null,null,null,null,null,null,null,null,null,null,null,null,null,null,null,null,null,null,null,null,"","","",""]
[null,"2016-02-21",null,null,null,null,null,null,null,null,null,null,null,null,null,null,null,null,null,null,null,null,null,null,null,null,null,null,null,null,null,null,null,null,null,null,null,null,null,null,null,null,null,null,null,null,null,null,null,null,null,null,null,null,null,null,null,null,null,null,null,null,null,null,null,null,null,null,null,null,null,"","","",""]
[null,"2016-02-22",null,null,null,null,null,null,null,null,null,null,null,null,null,null,null,null,null,null,null,null,null,null,null,null,null,null,null,null,null,null,null,null,null,null,null,null,null,null,null,null,null,null,null,null,null,null,null,null,null,null,null,null,null,null,null,null,null,null,null,null,null,null,null,null,null,null,null,null,null,"","","",""]
[null,"2016-02-23",null,null,null,null,null,null,null,null,null,null,null,null,null,null,null,null,null,null,null,null,null,null,null,null,null,null,null,null,null,null,null,null,null,null,null,null,null,null,null,null,null,null,null,null,null,null,null,null,null,null,null,null,null,null,null,null,null,null,null,null,null,null,null,null,null,null,null,null,null,"","","",""]
[null,"2016-02-24",null,null,null,null,null,null,null,null,null,null,null,null,null,null,null,null,null,null,null,null,null,null,null,null,null,null,null,null,null,null,null,null,null,null,null,null,null,null,null,null,null,null,null,null,null,null,null,null,null,null,null,null,null,null,null,null,null,null,null,null,null,null,null,null,null,null,null,null,null,"","","",""]
[null,"2016-02-25",null,null,null,null,null,null,null,null,null,null,null,null,null,null,null,null,null,null,null,null,null,null,null,null,null,null,null,null,null,null,null,null,null,null,null,null,null,null,null,null,null,null,null,null,null,null,null,null,null,null,null,null,null,null,null,null,null,null,null,null,null,null,null,null,null,null,null,null,null,"","","",""]
[null,"2016-02-26",null,null,null,null,null,null,null,null,null,null,null,null,null,null,null,null,null,null,null,null,null,null,null,null,null,null,null,null,null,null,null,null,null,null,null,null,null,null,null,null,null,null,null,null,null,null,null,null,null,null,null,null,null,null,null,null,null,null,null,null,null,null,null,null,null,null,null,null,null,"","","",""]
[null,"2016-02-27",null,null,null,null,null,null,null,null,null,null,null,null,null,null,null,null,null,null,null,null,null,null,null,null,null,null,null,null,null,null,null,null,null,null,null,null,null,null,null,null,null,null,null,null,null,null,null,null,null,null,null,null,null,null,null,null,null,null,null,null,null,null,null,null,null,null,null,null,null,"","","",""]
[null,"2016-02-28",null,null,null,null,null,null,null,null,null,null,null,null,null,null,null,null,null,null,null,null,null,null,null,null,null,null,null,null,null,null,null,null,null,null,null,null,null,null,null,null,null,null,null,null,null,null,null,null,null,null,null,null,null,null,null,null,null,null,null,null,null,null,null,null,null,null,null,null,null,"","","",""]
[null,"2016-02-29",null,null,null,null,null,null,null,null,null,null,null,null,null,null,null,null,null,null,null,null,null,null,null,null,null,null,null,null,null,null,null,null,null,null,null,null,null,null,null,null,null,null,null,null,null,null,null,null,null,null,null,null,null,null,null,null,null,null,null,null,null,null,null,null,null,null,null,null,null,"","","",""]
[null,"2016-03-01",null,null,null,null,null,null,null,null,null,null,null,null,null,null,null,null,null,null,null,null,null,null,null,null,null,null,null,null,null,null,null,null,null,null,null,null,null,null,null,null,null,null,null,null,null,null,null,null,null,null,null,null,null,null,null,null,null,null,null,null,null,null,null,null,null,null,null,null,null,"","","",""]
[null,"2016-03-02",null,null,null,null,null,null,null,null,null,null,null,null,null,null,null,null,null,null,null,null,null,null,null,null,null,null,null,null,null,null,null,null,null,null,null,null,null,null,null,null,null,null,null,null,null,null,null,null,null,null,null,null,null,null,null,null,null,null,null,null,null,null,null,null,null,null,null,null,null,"","","",""]
[null,"2016-03-03",null,null,null,null,null,null,null,null,null,null,null,null,null,null,null,null,null,null,null,null,null,null,null,null,null,null,null,null,null,null,null,null,null,null,null,null,null,null,null,null,null,null,null,null,null,null,null,null,null,null,null,null,null,null,null,null,null,null,null,null,null,null,null,null,null,null,null,null,null,"","","",""]
[null,"2016-03-04",null,null,null,null,null,null,null,null,null,null,null,null,null,null,null,null,null,null,null,null,null,null,null,null,null,null,null,null,null,null,null,null,null,null,null,null,null,null,null,null,null,null,null,null,null,null,null,null,null,null,null,null,null,null,null,null,null,null,null,null,null,null,null,null,null,null,null,null,null,"","","",""]
[null,"2016-03-05",null,null,null,null,null,null,null,null,null,null,null,null,null,null,null,null,null,null,null,null,null,null,null,null,null,null,null,null,null,null,null,null,null,null,null,null,null,null,null,null,null,null,null,null,null,null,null,null,null,null,null,null,null,null,null,null,null,null,null,null,null,null,null,null,null,null,null,null,null,"","","",""]
[null,"2016-03-06",null,null,null,null,null,null,null,null,null,null,null,null,null,null,null,null,null,null,null,null,null,null,null,null,null,null,null,null,null,null,null,null,null,null,null,null,null,null,null,null,null,null,null,null,null,null,null,null,null,null,null,null,null,null,null,null,null,null,null,null,null,null,null,null,null,null,null,null,null,{"$f":"IF(SUM(X72:BS72)=0,\"\",AVERAGE(X72:BS72))","v":""},{"$f":"IF(MAX(D72:W72)=0,\"\",MAX(D72:W72))","v":""},{"$f":"IF(SUM(D72:W72)=0,\"\",AVERAGE(D72:W72))","v":""},{"$f":"IF(MAX(X72:BS72)=0,\"\",MAX(X72:BS72))","v":""}]
[null,{"$f":"B72+1","v":"2016-03-07"},null,null,null,null,null,null,null,null,null,null,null,null,null,null,null,null,null,null,null,null,null,null,null,null,null,null,null,null,null,null,null,null,null,null,null,null,null,null,null,null,null,null,null,null,null,null,null,null,null,null,null,null,null,null,null,null,null,null,null,null,null,null,null,null,null,null,null,null,null,"","","",""]
[null,"2016-03-08",null,null,null,null,null,null,null,null,null,null,null,null,null,null,null,null,null,null,null,null,null,null,null,null,null,null,null,null,null,null,null,null,null,null,null,null,null,null,null,null,null,null,null,null,null,null,null,null,null,null,null,null,null,null,null,null,null,null,null,null,null,null,null,null,null,null,null,null,null,"","","",""]
[null,"2016-03-09",null,null,null,null,null,null,null,null,null,null,null,null,null,null,null,null,null,null,null,null,null,null,null,null,null,null,null,null,null,null,null,null,null,null,null,null,null,null,null,null,null,null,null,null,null,null,null,null,null,null,null,null,null,null,null,null,null,null,null,null,null,null,null,null,null,null,null,null,null,"","","",""]
[null,"2016-03-10",null,null,null,null,null,null,null,null,null,null,null,null,null,null,null,null,null,null,null,null,null,null,null,null,null,null,null,null,null,null,null,null,null,null,null,null,null,null,null,null,null,null,null,null,null,null,null,null,null,null,null,null,null,null,null,null,null,null,null,null,null,null,null,null,null,null,null,null,null,"","","",""]
[null,"2016-03-11",null,null,null,null,null,null,null,null,null,null,null,null,null,null,null,null,null,null,null,null,null,null,null,null,null,null,null,null,null,null,null,null,null,null,null,null,null,null,null,null,null,null,null,null,null,null,null,null,null,null,null,null,null,null,null,null,null,null,null,null,null,null,null,null,null,null,null,null,null,"","","",""]
[null,"2016-03-12",null,null,null,null,null,null,null,null,null,null,null,null,null,null,null,null,null,null,null,null,null,null,null,null,null,null,null,null,null,null,null,null,null,null,null,null,null,null,null,null,null,null,null,null,null,null,null,null,null,null,null,null,null,null,null,null,null,null,null,null,null,null,null,null,null,null,null,null,null,"","","",""]
[null,"2016-03-13",null,null,null,null,null,null,null,null,null,null,null,null,null,null,null,null,null,null,null,null,null,null,null,null,null,null,null,null,null,null,null,null,null,null,null,null,null,null,null,null,null,null,null,null,null,null,null,null,null,null,null,null,null,null,null,null,null,null,null,null,null,null,null,null,null,null,null,null,null,"","","",""]
[null,"2016-03-14",null,null,null,null,null,null,null,null,null,null,null,null,null,null,null,null,null,null,null,null,null,null,null,null,null,null,null,null,null,null,null,null,null,null,null,null,null,null,null,null,null,null,null,null,null,null,null,null,null,null,null,null,null,null,null,null,null,null,null,null,null,null,null,null,null,null,null,null,null,"","","",""]
[null,"2016-03-15",null,null,null,null,null,null,null,null,null,null,null,null,null,null,null,null,null,null,null,null,null,null,null,null,null,null,null,null,null,null,null,null,null,null,null,null,null,null,null,null,null,null,null,null,null,null,null,null,null,null,null,null,null,null,null,null,null,null,null,null,null,null,null,null,null,null,null,null,null,"","","",""]
[null,"2016-03-16",null,null,null,null,null,null,null,null,null,null,null,null,null,null,null,null,null,null,null,null,null,null,null,null,null,null,null,null,null,null,null,null,null,null,null,null,null,null,null,null,null,null,null,null,null,null,null,null,null,null,null,null,null,null,null,null,null,null,null,null,null,null,null,null,null,null,null,null,null,"","","",""]
[null,"2016-03-17",null,null,null,null,null,null,null,null,null,null,null,null,null,null,null,null,null,null,null,null,null,null,null,null,null,null,null,null,null,null,null,null,null,null,null,null,null,null,null,null,null,null,null,null,null,null,null,null,null,null,null,null,null,null,null,null,null,null,null,null,null,null,null,null,null,null,null,null,null,"","","",""]
[null,"2016-03-18",null,null,null,null,null,null,null,null,null,null,null,null,null,null,null,null,null,null,null,null,null,null,null,null,null,null,null,null,null,null,null,null,null,null,null,null,null,null,null,null,null,null,null,null,null,null,null,null,null,null,null,null,null,null,null,null,null,null,null,null,null,null,null,null,null,null,null,null,null,"","","",""]
[null,"2016-03-19",null,null,null,null,null,null,null,null,null,null,null,null,null,null,null,null,null,null,null,null,null,null,null,null,null,null,null,null,null,null,null,null,null,null,null,null,null,null,null,null,null,null,null,null,null,null,null,null,null,null,null,null,null,null,null,null,null,null,null,null,null,null,null,null,null,null,null,null,null,"","","",""]
[null,"2016-03-20",null,null,null,null,null,null,null,null,null,null,null,null,null,null,null,null,null,null,null,null,null,null,null,null,null,null,null,null,null,null,null,null,null,null,null,null,null,null,null,null,null,null,null,null,null,null,null,null,null,null,null,null,null,null,null,null,null,null,null,null,null,null,null,null,null,null,null,null,null,"","","",""]
[null,"2016-03-21",null,null,null,null,null,null,null,null,null,null,null,null,null,null,null,null,null,null,null,null,null,null,null,null,null,null,null,null,null,null,null,null,null,null,null,null,null,null,null,null,null,null,null,null,null,null,null,null,null,null,null,null,null,null,null,null,null,null,null,null,null,null,null,null,null,null,null,null,null,"","","",""]
[null,"2016-03-22",null,null,null,null,null,null,null,null,null,null,null,null,null,null,null,null,null,null,null,null,null,null,null,null,null,null,null,null,null,null,null,null,null,null,null,null,null,null,null,null,null,null,null,null,null,null,null,null,null,null,null,null,null,null,null,null,null,null,null,null,null,null,null,null,null,null,null,null,null,"","","",""]
[null,"2016-03-23",null,null,null,null,null,null,null,null,null,null,null,null,null,null,null,null,null,null,null,null,null,null,null,null,null,null,null,null,null,null,null,null,null,null,null,null,null,null,null,null,null,null,null,null,null,null,null,null,null,null,null,null,null,null,null,null,null,null,null,null,null,null,null,null,null,null,null,null,null,"","","",""]
[null,"2016-03-24",null,null,null,null,null,null,null,null,null,null,null,null,null,null,null,null,null,null,null,null,null,null,null,null,null,null,null,null,null,null,null,null,null,null,null,null,null,null,null,null,null,null,null,null,null,null,null,null,null,null,null,null,null,null,null,null,null,null,null,null,null,null,null,null,null,null,null,null,null,"","","",""]
[null,"2016-03-25",null,null,null,null,null,null,null,null,null,null,null,null,null,null,null,null,null,null,null,null,null,null,null,null,null,null,null,null,null,null,null,null,null,null,null,null,null,null,null,null,null,null,null,null,null,null,null,null,null,null,null,null,null,null,null,null,null,null,null,null,null,null,null,null,null,null,null,null,null,"","","",""]
[null,"2016-03-26",null,null,null,null,null,null,null,null,null,null,null,null,null,null,null,null,null,null,null,null,null,null,null,null,null,null,null,null,null,null,null,null,null,null,null,null,null,null,null,null,null,null,null,null,null,null,null,null,null,null,null,null,null,null,null,null,null,null,null,null,null,null,null,null,null,null,null,null,null,"","","",""]
[null,"2016-03-27",null,null,null,null,null,null,null,null,null,null,null,null,null,null,null,null,null,null,null,null,null,null,null,null,null,null,null,null,null,null,null,null,null,null,null,null,null,null,null,null,null,null,null,null,null,null,null,null,null,null,null,null,null,null,null,null,null,null,null,null,null,null,null,null,null,null,null,null,null,"","","",""]
[null,"2016-03-28",null,null,null,null,null,null,null,null,null,null,null,null,null,null,null,null,null,null,null,null,null,null,null,null,null,null,null,null,null,null,null,null,null,null,null,null,null,null,null,null,null,null,null,null,null,null,null,null,null,null,null,null,null,null,null,null,null,null,null,null,null,null,null,null,null,null,null,null,null,"","","",""]
[null,"2016-03-29",null,null,null,null,null,null,null,null,null,null,null,null,null,null,null,null,null,null,null,null,null,null,null,null,null,null,null,null,null,null,null,null,null,null,null,null,null,null,null,null,null,null,null,null,null,null,null,null,null,null,null,null,null,null,null,null,null,null,null,null,null,null,null,null,null,null,null,null,null,"","","",""]
[null,"2016-03-30",null,null,null,null,null,null,null,null,null,null,null,null,null,null,null,null,null,null,null,null,null,null,null,null,null,null,null,null,null,null,null,null,null,null,null,null,null,null,null,null,null,null,null,null,null,null,null,null,null,null,null,null,null,null,null,null,null,null,null,null,null,null,null,null,null,null,null,null,null,"","","",""]
[null,"2016-03-31",null,null,null,null,null,null,null,null,null,null,null,null,null,null,null,null,null,null,null,null,null,null,null,null,null,null,null,null,null,null,null,null,null,null,null,null,null,null,null,null,null,null,null,null,null,null,null,null,null,null,null,null,null,null,null,null,null,null,null,null,null,null,null,null,null,null,null,null,null,"","","",""]
[null,"2016-04-01",null,null,null,null,null,null,null,null,null,null,null,null,null,null,null,null,null,null,null,null,null,null,null,null,null,null,null,null,null,null,null,null,null,null,null,null,null,null,null,null,null,null,null,null,null,null,null,null,null,null,null,null,null,null,null,null,null,null,null,null,null,null,null,null,null,null,null,null,null,"","","",""]
[null,"2016-04-02",null,null,null,null,null,null,null,null,null,null,null,null,null,null,null,null,null,null,null,null,null,null,null,null,null,null,null,null,null,null,null,null,null,null,null,null,null,null,null,null,null,null,null,null,null,null,null,null,null,null,null,null,null,null,null,null,null,null,null,null,null,null,null,null,null,null,null,null,null,"","","",""]
[null,"2016-04-03",null,null,null,null,null,null,null,null,null,null,null,null,null,null,null,null,null,null,null,null,null,null,null,null,null,null,null,null,null,null,null,null,null,null,null,null,null,null,null,null,null,null,null,null,null,null,null,null,null,null,null,null,null,null,null,null,null,null,null,null,null,null,null,null,null,null,null,null,null,"","","",""]
[null,"2016-04-04",null,null,null,null,null,null,null,null,null,null,null,null,null,null,null,null,null,null,null,null,null,null,null,null,null,null,null,null,null,null,null,null,null,null,null,null,null,null,null,null,null,null,null,null,null,null,null,null,null,null,null,null,null,null,null,null,null,null,null,null,null,null,null,null,null,null,null,null,null,"","","",""]
[null,"2016-04-05",null,null,null,null,null,null,null,null,null,null,null,null,null,null,null,null,null,null,null,null,null,null,null,null,null,null,null,null,null,null,null,null,null,null,null,null,null,null,null,null,null,null,null,null,null,null,null,null,null,null,null,null,null,null,null,null,null,null,null,null,null,null,null,null,null,null,null,null,null,"","","",""]
[null,"2016-04-06",null,null,null,null,null,null,null,null,null,null,null,null,null,null,null,null,null,null,null,null,null,null,null,null,null,null,null,null,null,null,null,null,null,null,null,null,null,null,null,null,null,null,null,null,null,null,null,null,null,null,null,null,null,null,null,null,null,null,null,null,null,null,null,null,null,null,null,null,null,"","","",""]
[null,"2016-04-07",null,null,null,null,null,null,null,null,null,null,null,null,null,null,null,null,null,null,null,null,null,null,null,null,null,null,null,null,null,null,null,null,null,null,null,null,null,null,null,null,null,null,null,null,null,null,null,null,null,null,null,null,null,null,null,null,null,null,null,null,null,null,null,null,null,null,null,null,null,"","","",""]
[null,"2016-04-08",null,null,null,null,null,null,null,null,null,null,null,null,null,null,null,null,null,null,null,null,null,null,null,null,null,null,null,null,null,null,null,null,null,null,null,null,null,null,null,null,null,null,null,null,null,null,null,null,null,null,null,null,null,null,null,null,null,null,null,null,null,null,null,null,null,null,null,null,null,"","","",""]
[null,"2016-04-09",null,null,null,null,null,null,null,null,null,null,null,null,null,null,null,null,null,null,null,null,null,null,null,null,null,null,null,null,null,null,null,null,null,null,null,null,null,null,null,null,null,null,null,null,null,null,null,null,null,null,null,null,null,null,null,null,null,null,null,null,null,null,null,null,null,null,null,null,null,"","","",""]
[null,"2016-04-10",null,null,null,null,null,null,null,null,null,null,null,null,null,null,null,null,null,null,null,null,null,null,null,null,null,null,null,null,null,null,null,null,null,null,null,null,null,null,null,null,null,null,null,null,null,null,null,null,null,null,null,null,null,null,null,null,null,null,null,null,null,null,null,null,null,null,null,null,null,"","","",""]
[null,"2016-04-11",null,null,null,null,null,null,null,null,null,null,null,null,null,null,null,null,null,null,null,null,null,null,null,null,null,null,null,null,null,null,null,null,null,null,null,null,null,null,null,null,null,null,null,null,null,null,null,null,null,null,null,null,null,null,null,null,null,null,null,null,null,null,null,null,null,null,null,null,null,"","","",""]
[null,"2016-04-12",null,null,null,null,null,null,null,null,null,null,null,null,null,null,null,null,null,null,null,null,null,null,null,null,null,null,null,null,null,null,null,null,null,null,null,null,null,null,null,null,null,null,null,null,null,null,null,null,null,null,null,null,null,null,null,null,null,null,null,null,null,null,null,null,null,null,null,null,null,"","","",""]
[null,"2016-04-13",null,null,null,null,null,null,null,null,null,null,null,null,null,null,null,null,null,null,null,null,null,null,null,null,null,null,null,null,null,null,null,null,null,null,null,null,null,null,null,null,null,null,null,null,null,null,null,null,null,null,null,null,null,null,null,null,null,null,null,null,null,null,null,null,null,null,null,null,null,"","","",""]
[null,"2016-04-14",null,null,null,null,null,null,null,null,null,null,null,null,null,null,null,null,null,null,null,null,null,null,null,null,null,null,null,null,null,null,null,null,null,null,null,null,null,null,null,null,null,null,null,null,null,null,null,null,null,null,null,null,null,null,null,null,null,null,null,null,null,null,null,null,null,null,null,null,null,"","","",""]
[null,"2016-04-15",null,null,null,null,null,null,null,null,null,null,null,null,null,null,null,null,null,null,null,null,null,null,null,null,null,null,null,null,null,null,null,null,null,null,null,null,null,null,null,null,null,null,null,null,null,null,null,null,null,null,null,null,null,null,null,null,null,null,null,null,null,null,null,null,null,null,null,null,null,"","","",""]
[null,"2016-04-16",null,null,null,null,null,null,null,null,null,null,null,null,null,null,null,null,null,null,null,null,null,null,null,null,null,null,null,null,null,null,null,null,null,null,null,null,null,null,null,null,null,null,null,null,null,null,null,null,null,null,null,null,null,null,null,null,null,null,null,null,null,null,null,null,null,null,null,null,null,"","","",""]
[null,"2016-04-17",null,null,null,null,null,null,null,null,null,null,null,null,null,null,null,null,null,null,null,null,null,null,null,null,null,null,null,null,null,null,null,null,null,null,null,null,null,null,null,null,null,null,null,null,null,null,null,null,null,null,null,null,null,null,null,null,null,null,null,null,null,null,null,null,null,null,null,null,null,"","","",""]
[null,"2016-04-18",null,null,null,null,null,null,null,null,null,null,null,null,null,null,null,null,null,null,null,null,null,null,null,null,null,null,null,null,null,null,null,null,null,null,null,null,null,null,null,null,null,null,null,null,null,null,null,null,null,null,null,null,null,null,null,null,null,null,null,null,null,null,null,null,null,null,null,null,null,"","","",""]
[null,"2016-04-19",null,null,null,null,null,null,null,null,null,null,null,null,null,null,null,null,null,null,null,null,null,null,null,null,null,null,null,null,null,null,null,null,null,null,null,null,null,null,null,null,null,null,null,null,null,null,null,null,null,null,null,null,null,null,null,null,null,null,null,null,null,null,null,null,null,null,null,null,null,"","","",""]
[null,"2016-04-20",null,null,null,null,null,null,null,null,null,null,null,null,null,null,null,null,null,null,null,null,null,null,null,null,null,null,null,null,null,null,null,null,null,null,null,null,null,null,null,null,null,null,null,null,null,null,null,null,null,null,null,null,null,null,null,null,null,null,null,null,null,null,null,null,null,null,null,null,null,"","","",""]
[null,"2016-04-21",null,null,null,null,null,null,null,null,null,null,null,null,null,null,null,null,null,null,null,null,null,null,null,null,null,null,null,null,null,null,null,null,null,null,null,null,null,null,null,null,null,null,null,null,null,null,null,null,null,null,null,null,null,null,null,null,null,null,null,null,null,null,null,null,null,null,null,null,null,"","","",""]
[null,"2016-04-22",null,null,null,null,null,null,null,null,null,null,null,null,null,null,null,null,null,null,null,null,null,null,null,null,null,null,null,null,null,null,null,null,null,null,null,null,null,null,null,null,null,null,null,null,null,null,null,null,null,null,null,null,null,null,null,null,null,null,null,null,null,null,null,null,null,null,null,null,null,"","","",""]
[null,"2016-04-23",null,null,null,null,null,null,null,null,null,null,null,null,null,null,null,null,null,null,null,null,null,null,null,null,null,null,null,null,null,null,null,null,null,null,null,null,null,null,null,null,null,null,null,null,null,null,null,null,null,null,null,null,null,null,null,null,null,null,null,null,null,null,null,null,null,null,null,null,null,"","","",""]
[null,"2016-04-24",null,null,null,null,null,null,null,null,null,null,null,null,null,null,null,null,null,null,null,null,null,null,null,null,null,null,null,null,null,null,null,null,null,null,null,null,null,null,null,null,null,null,null,null,null,null,null,null,null,null,null,null,null,null,null,null,null,null,null,null,null,null,null,null,null,null,null,null,null,"","","",""]
[null,"2016-04-25",null,null,null,null,null,null,null,null,null,null,null,null,null,null,null,null,null,null,null,null,null,null,null,null,null,null,null,null,null,null,null,null,null,null,null,null,null,null,null,null,null,null,null,null,null,null,null,null,null,null,null,null,null,null,null,null,null,null,null,null,null,null,null,null,null,null,null,null,null,"","","",""]
[null,"2016-04-26",null,null,null,null,null,null,null,null,null,null,null,null,null,null,null,null,null,null,null,null,null,null,null,null,null,null,null,null,null,null,null,null,null,null,null,null,null,null,null,null,null,null,null,null,null,null,null,null,null,null,null,null,null,null,null,null,null,null,null,null,null,null,null,null,null,null,null,null,null,"","","",""]
[null,"2016-04-27",null,null,null,null,null,null,null,null,null,null,null,null,null,null,null,null,null,null,null,null,null,null,null,null,null,null,null,null,null,null,null,null,null,null,null,null,null,null,null,null,null,null,null,null,null,null,null,null,null,null,null,null,null,null,null,null,null,null,null,null,null,null,null,null,null,null,null,null,null,"","","",""]
[null,"2016-04-28",null,null,null,null,null,null,null,null,null,null,null,null,null,null,null,null,null,null,null,null,null,null,null,null,null,null,null,null,null,null,null,null,null,null,null,null,null,null,null,null,null,null,null,null,null,null,null,null,null,null,null,null,null,null,null,null,null,null,null,null,null,null,null,null,null,null,null,null,null,"","","",""]
[null,"2016-04-29",null,null,null,null,null,null,null,null,null,null,null,null,null,null,null,null,null,null,null,null,null,null,null,null,null,null,null,null,null,null,null,null,null,null,null,null,null,null,null,null,null,null,null,null,null,null,null,null,null,null,null,null,null,null,null,null,null,null,null,null,null,null,null,null,null,null,null,null,null,"","","",""]
[null,"2016-04-30",null,null,null,null,null,null,null,null,null,null,null,null,null,null,null,null,null,null,null,null,null,null,null,null,null,null,null,null,null,null,null,null,null,null,null,null,null,null,null,null,null,null,null,null,null,null,null,null,null,null,null,null,null,null,null,null,null,null,null,null,null,null,null,null,null,null,null,null,null,"","","",""]
[null,"2016-05-01",null,null,null,null,null,null,null,null,null,null,null,null,null,null,null,null,null,null,null,null,null,null,null,null,null,null,null,null,null,null,null,null,null,null,null,null,null,null,null,null,null,null,null,null,null,null,null,null,null,null,null,null,null,null,null,null,null,null,null,null,null,null,null,null,null,null,null,null,null,"","","",""]
[null,"2016-05-02",null,null,null,null,null,null,null,null,null,null,null,null,null,null,null,null,null,null,null,null,null,null,null,null,null,null,null,null,null,null,null,null,null,null,null,null,null,null,null,null,null,null,null,null,null,null,null,null,null,null,null,null,null,null,null,null,null,null,null,null,null,null,null,null,null,null,null,null,null,"","","",""]
[null,"2016-05-03",null,null,null,null,null,null,null,null,null,null,null,null,null,null,null,null,null,null,null,null,null,null,null,null,null,null,null,null,null,null,null,null,null,null,null,null,null,null,null,null,null,null,null,null,null,null,null,null,null,null,null,null,null,null,null,null,null,null,null,null,null,null,null,null,null,null,null,null,null,"","","",""]
[null,"2016-05-04",null,null,null,null,null,null,null,null,null,null,null,null,null,null,null,null,null,null,null,null,null,null,null,null,null,null,null,null,null,null,null,null,null,null,null,null,null,null,null,null,null,null,null,null,null,null,null,null,null,null,null,null,null,null,null,null,null,null,null,null,null,null,null,null,null,null,null,null,null,"","","",""]
[null,"2016-05-05",null,null,null,null,null,null,null,null,null,null,null,null,null,null,null,null,null,null,null,null,null,null,null,null,null,null,null,null,null,null,null,null,null,null,null,null,null,null,null,null,null,null,null,null,null,null,null,null,null,null,null,null,null,null,null,null,null,null,null,null,null,null,null,null,null,null,null,null,null,"","","",""]
[null,"2016-05-06",null,null,null,null,null,null,null,null,null,null,null,null,null,null,null,null,null,null,null,null,null,null,null,null,null,null,null,null,null,null,null,null,null,null,null,null,null,null,null,null,null,null,null,null,null,null,null,null,null,null,null,null,null,null,null,null,null,null,null,null,null,null,null,null,null,null,null,null,null,"","","",""]
[null,"2016-05-07",null,null,null,null,null,null,null,null,null,null,null,null,null,null,null,null,null,null,null,null,null,null,null,null,null,null,null,null,null,null,null,null,null,null,null,null,null,null,null,null,null,null,null,null,null,null,null,null,null,null,null,null,null,null,null,null,null,null,null,null,null,null,null,null,null,null,null,null,null,"","","",""]
[null,"2016-05-08",null,null,null,null,null,null,null,null,null,null,null,null,null,null,null,null,null,null,null,null,null,null,null,null,null,null,null,null,null,null,null,null,null,null,null,null,null,null,null,null,null,null,null,null,null,null,null,null,null,null,null,null,null,null,null,null,null,null,null,null,null,null,null,null,null,null,null,null,null,"","","",""]
[null,"2016-05-09",null,null,null,null,null,null,null,null,null,null,null,null,null,null,null,null,null,null,null,null,null,null,null,null,null,null,null,null,null,null,null,null,null,null,null,null,null,null,null,null,null,null,null,null,null,null,null,null,null,null,null,null,null,null,null,null,null,null,null,null,null,null,null,null,null,null,null,null,null,{"$f":"IF(SUM(X136:BS136)=0,\"\",AVERAGE(X136:BS136))","v":""},{"$f":"IF(MAX(D136:W136)=0,\"\",MAX(D136:W136))","v":""},{"$f":"IF(SUM(D136:W136)=0,\"\",AVERAGE(D136:W136))","v":""},{"$f":"IF(MAX(X136:BS136)=0,\"\",MAX(X136:BS136))","v":""}]
[null,{"$f":"B136+1","v":"2016-05-10"},null,null,null,null,null,null,null,null,null,null,null,null,null,null,null,null,null,null,null,null,null,null,null,null,null,null,null,null,null,null,null,null,null,null,null,null,null,null,null,null,null,null,null,null,null,null,null,null,null,null,null,null,null,null,null,null,null,null,null,null,null,null,null,null,null,null,null,null,null,"","","",""]
[null,"2016-05-11",null,null,null,null,null,null,null,null,null,null,null,null,null,null,null,null,null,null,null,null,null,null,null,null,null,null,null,null,null,null,null,null,null,null,null,null,null,null,null,null,null,null,null,null,null,null,null,null,null,null,null,null,null,null,null,null,null,null,null,null,null,null,null,null,null,null,null,null,null,"","","",""]
[null,"2016-05-12",null,null,null,null,null,null,null,null,null,null,null,null,null,null,null,null,null,null,null,null,null,null,null,null,null,null,null,null,null,null,null,null,null,null,null,null,null,null,null,null,null,null,null,null,null,null,null,null,null,null,null,null,null,null,null,null,null,null,null,null,null,null,null,null,null,null,null,null,null,"","","",""]
[null,"2016-05-13",null,null,null,null,null,null,null,null,null,null,null,null,null,null,null,null,null,null,null,null,null,null,null,null,null,null,null,null,null,null,null,null,null,null,null,null,null,null,null,null,null,null,null,null,null,null,null,null,null,null,null,null,null,null,null,null,null,null,null,null,null,null,null,null,null,null,null,null,null,"","","",""]
[null,"2016-05-14",null,null,null,null,null,null,null,null,null,null,null,null,null,null,null,null,null,null,null,null,null,null,null,null,null,null,null,null,null,null,null,null,null,null,null,null,null,null,null,null,null,null,null,null,null,null,null,null,null,null,null,null,null,null,null,null,null,null,null,null,null,null,null,null,null,null,null,null,null,"","","",""]
[null,"2016-05-15",null,null,null,null,null,null,null,null,null,null,null,null,null,null,null,null,null,null,null,null,null,null,null,null,null,null,null,null,null,null,null,null,null,null,null,null,null,null,null,null,null,null,null,null,null,null,null,null,null,null,null,null,null,null,null,null,null,null,null,null,null,null,null,null,null,null,null,null,null,"","","",""]
[null,"2016-05-16",null,null,null,null,null,null,null,null,null,null,null,null,null,null,null,null,null,null,null,null,null,null,null,null,null,null,null,null,null,null,null,null,null,null,null,null,null,null,null,null,null,null,null,null,null,null,null,null,null,null,null,null,null,null,null,null,null,null,null,null,null,null,null,null,null,null,null,null,null,"","","",""]
[null,"2016-05-17",null,null,null,null,null,null,null,null,null,null,null,null,null,null,null,null,null,null,null,null,null,null,null,null,null,null,null,null,null,null,null,null,null,null,null,null,null,null,null,null,null,null,null,null,null,null,null,null,null,null,null,null,null,null,null,null,null,null,null,null,null,null,null,null,null,null,null,null,null,"","","",""]
[null,"2016-05-18",null,null,null,null,null,null,null,null,null,null,null,null,null,null,null,null,null,null,null,null,null,null,null,null,null,null,null,null,null,null,null,null,null,null,null,null,null,null,null,null,null,null,null,null,null,null,null,null,null,null,null,null,null,null,null,null,null,null,null,null,null,null,null,null,null,null,null,null,null,"","","",""]
[null,"2016-05-19",null,null,null,null,null,null,null,null,null,null,null,null,null,null,null,null,null,null,null,null,null,null,null,null,null,null,null,null,null,null,null,null,null,null,null,null,null,null,null,null,null,null,null,null,null,null,null,null,null,null,null,null,null,null,null,null,null,null,null,null,null,null,null,null,null,null,null,null,null,"","","",""]
[null,"2016-05-20",null,null,null,null,null,null,null,null,null,null,null,null,null,null,null,null,null,null,null,null,null,null,null,null,null,null,null,null,null,null,null,null,null,null,null,null,null,null,null,null,null,null,null,null,null,null,null,null,null,null,null,null,null,null,null,null,null,null,null,null,null,null,null,null,null,null,null,null,null,"","","",""]
[null,"2016-05-21",null,null,null,null,null,null,null,null,null,null,null,null,null,null,null,null,null,null,null,null,null,null,null,null,null,null,null,null,null,null,null,null,null,null,null,null,null,null,null,null,null,null,null,null,null,null,null,null,null,null,null,null,null,null,null,null,null,null,null,null,null,null,null,null,null,null,null,null,null,"","","",""]
[null,"2016-05-22",null,null,null,null,null,null,null,null,null,null,null,null,null,null,null,null,null,null,null,null,null,null,null,null,null,null,null,null,null,null,null,null,null,null,null,null,null,null,null,null,null,null,null,null,null,null,null,null,null,null,null,null,null,null,null,null,null,null,null,null,null,null,null,null,null,null,null,null,null,"","","",""]
[null,"2016-05-23",null,null,null,null,null,null,null,null,null,null,null,null,null,null,null,null,null,null,null,null,null,null,null,null,null,null,null,null,null,null,null,null,null,null,null,null,null,null,null,null,null,null,null,null,null,null,null,null,null,null,null,null,null,null,null,null,null,null,null,null,null,null,null,null,null,null,null,null,null,"","","",""]
[null,"2016-05-24",null,null,null,null,null,null,null,null,null,null,null,null,null,null,null,null,null,null,null,null,null,null,null,null,null,null,null,null,null,null,null,null,null,null,null,null,null,null,null,null,null,null,null,null,null,null,null,null,null,null,null,null,null,null,null,null,null,null,null,null,null,null,null,null,null,null,null,null,null,"","","",""]
[null,"2016-05-25",null,null,null,null,null,null,null,null,null,null,null,null,null,null,null,null,null,null,null,null,null,null,null,null,null,null,null,null,null,null,null,null,null,null,null,null,null,null,null,null,null,null,null,null,null,null,null,null,null,null,null,null,null,null,null,null,null,null,null,null,null,null,null,null,null,null,null,null,null,"","","",""]
[null,"2016-05-26",null,null,null,null,null,null,null,null,null,null,null,null,null,null,null,null,null,null,null,null,null,null,null,null,null,null,null,null,null,null,null,null,null,null,null,null,null,null,null,null,null,null,null,null,null,null,null,null,null,null,null,null,null,null,null,null,null,null,null,null,null,null,null,null,null,null,null,null,null,"","","",""]
[null,"2016-05-27",null,null,null,null,null,null,null,null,null,null,null,null,null,null,null,null,null,null,null,null,null,null,null,null,null,null,null,null,null,null,null,null,null,null,null,null,null,null,null,null,null,null,null,null,null,null,null,null,null,null,null,null,null,null,null,null,null,null,null,null,null,null,null,null,null,null,null,null,null,"","","",""]
[null,"2016-05-28",null,null,null,null,null,null,null,null,null,null,null,null,null,null,null,null,null,null,null,null,null,null,null,null,null,null,null,null,null,null,null,null,null,null,null,null,null,null,null,null,null,null,null,null,null,null,null,null,null,null,null,null,null,null,null,null,null,null,null,null,null,null,null,null,null,null,null,null,null,"","","",""]
[null,"2016-05-29",null,null,null,null,null,null,null,null,null,null,null,null,null,null,null,null,null,null,null,null,null,null,null,null,null,null,null,null,null,null,null,null,null,null,null,null,null,null,null,null,null,null,null,null,null,null,null,null,null,null,null,null,null,null,null,null,null,null,null,null,null,null,null,null,null,null,null,null,null,"","","",""]
[null,"2016-05-30",null,null,null,null,null,null,null,null,null,null,null,null,null,null,null,null,null,null,null,null,null,null,null,null,null,null,null,null,null,null,null,null,null,null,null,null,null,null,null,null,null,null,null,null,null,null,null,null,null,null,null,null,null,null,null,null,null,null,null,null,null,null,null,null,null,null,null,null,null,"","","",""]
[null,"2016-05-31",null,null,null,null,null,null,null,null,null,null,null,null,null,null,null,null,null,null,null,null,null,null,null,null,null,null,null,null,null,null,null,null,null,null,null,null,null,null,null,null,null,null,null,null,null,null,null,null,null,null,null,null,null,null,null,null,null,null,null,null,null,null,null,null,null,null,null,null,null,"","","",""]
[null,"2016-06-01",null,null,null,null,null,null,null,null,null,null,null,null,null,null,null,null,null,null,null,null,null,null,null,null,null,null,null,null,null,null,null,null,null,null,null,null,null,null,null,null,null,null,null,null,null,null,null,null,null,null,null,null,null,null,null,null,null,null,null,null,null,null,null,null,null,null,null,null,null,"","","",""]
[null,"2016-06-02",null,null,null,null,null,null,null,null,null,null,null,null,null,null,null,null,null,null,null,null,null,null,null,null,null,null,null,null,null,null,null,null,null,null,null,null,null,null,null,null,null,null,null,null,null,null,null,null,null,null,null,null,null,null,null,null,null,null,null,null,null,null,null,null,null,null,null,null,null,"","","",""]
[null,"2016-06-03",null,null,null,null,null,null,null,null,null,null,null,null,null,null,null,null,null,null,null,null,null,null,null,null,null,null,null,null,null,null,null,null,null,null,null,null,null,null,null,null,null,null,null,null,null,null,null,null,null,null,null,null,null,null,null,null,null,null,null,null,null,null,null,null,null,null,null,null,null,"","","",""]
[null,"2016-06-04",null,null,null,null,null,null,null,null,null,null,null,null,null,null,null,null,null,null,null,null,null,null,null,null,null,null,null,null,null,null,null,null,null,null,null,null,null,null,null,null,null,null,null,null,null,null,null,null,null,null,null,null,null,null,null,null,null,null,null,null,null,null,null,null,null,null,null,null,null,"","","",""]
[null,"2016-06-05",null,null,null,null,null,null,null,null,null,null,null,null,null,null,null,null,null,null,null,null,null,null,null,null,null,null,null,null,null,null,null,null,null,null,null,null,null,null,null,null,null,null,null,null,null,null,null,null,null,null,null,null,null,null,null,null,null,null,null,null,null,null,null,null,null,null,null,null,null,"","","",""]
[null,"2016-06-06",null,null,null,null,null,null,null,null,null,null,null,null,null,null,null,null,null,null,null,null,null,null,null,null,null,null,null,null,null,null,null,null,null,null,null,null,null,null,null,null,null,null,null,null,null,null,null,null,null,null,null,null,null,null,null,null,null,null,null,null,null,null,null,null,null,null,null,null,null,"","","",""]
[null,"2016-06-07",null,null,null,null,null,null,null,null,null,null,null,null,null,null,null,null,null,null,null,null,null,null,null,null,null,null,null,null,null,null,null,null,null,null,null,null,null,null,null,null,null,null,null,null,null,null,null,null,null,null,null,null,null,null,null,null,null,null,null,null,null,null,null,null,null,null,null,null,null,"","","",""]
[null,"2016-06-08",null,null,null,null,null,null,null,null,null,null,null,null,null,null,null,null,null,null,null,null,null,null,null,null,null,null,null,null,null,null,null,null,null,null,null,null,null,null,null,null,null,null,null,null,null,null,null,null,null,null,null,null,null,null,null,null,null,null,null,null,null,null,null,null,null,null,null,null,null,"","","",""]
[null,"2016-06-09",null,null,null,null,null,null,null,null,null,null,null,null,null,null,null,null,null,null,null,null,null,null,null,null,null,null,null,null,null,null,null,null,null,null,null,null,null,null,null,null,null,null,null,null,null,null,null,null,null,null,null,null,null,null,null,null,null,null,null,null,null,null,null,null,null,null,null,null,null,"","","",""]
[null,"2016-06-10",null,null,null,null,null,null,null,null,null,null,null,null,null,null,null,null,null,null,null,null,null,null,null,null,null,null,null,null,null,null,null,null,null,null,null,null,null,null,null,null,null,null,null,null,null,null,null,null,null,null,null,null,null,null,null,null,null,null,null,null,null,null,null,null,null,null,null,null,null,"","","",""]
[null,"2016-06-11",null,null,null,null,null,null,null,null,null,null,null,null,null,null,null,null,null,null,null,null,null,null,null,null,null,null,null,null,null,null,null,null,null,null,null,null,null,null,null,null,null,null,null,null,null,null,null,null,null,null,null,null,null,null,null,null,null,null,null,null,null,null,null,null,null,null,null,null,null,"","","",""]
[null,"2016-06-12",null,null,null,null,null,null,null,null,null,null,null,null,null,null,null,null,null,null,null,null,null,null,null,null,null,null,null,null,null,null,null,null,null,null,null,null,null,null,null,null,null,null,null,null,null,null,null,null,null,null,null,null,null,null,null,null,null,null,null,null,null,null,null,null,null,null,null,null,null,"","","",""]
[null,"2016-06-13",null,null,null,null,null,null,null,null,null,null,null,null,null,null,null,null,null,null,null,null,null,null,null,null,null,null,null,null,null,null,null,null,null,null,null,null,null,null,null,null,null,null,null,null,null,null,null,null,null,null,null,null,null,null,null,null,null,null,null,null,null,null,null,null,null,null,null,null,null,"","","",""]
[null,"2016-06-14",null,null,null,null,null,null,null,null,null,null,null,null,null,null,null,null,null,null,null,null,null,null,null,null,null,null,null,null,null,null,null,null,null,null,null,null,null,null,null,null,null,null,null,null,null,null,null,null,null,null,null,null,null,null,null,null,null,null,null,null,null,null,null,null,null,null,null,null,null,"","","",""]
[null,"2016-06-15",null,null,null,null,null,null,null,null,null,null,null,null,null,null,null,null,null,null,null,null,null,null,null,null,null,null,null,null,null,null,null,null,null,null,null,null,null,null,null,null,null,null,null,null,null,null,null,null,null,null,null,null,null,null,null,null,null,null,null,null,null,null,null,null,null,null,null,null,null,"","","",""]
[null,"2016-06-16",null,null,null,null,null,null,null,null,null,null,null,null,null,null,null,null,null,null,null,null,null,null,null,null,null,null,null,null,null,null,null,null,null,null,null,null,null,null,null,null,null,null,null,null,null,null,null,null,null,null,null,null,null,null,null,null,null,null,null,null,null,null,null,null,null,null,null,null,null,"","","",""]
[null,"2016-06-17",null,null,null,null,null,null,null,null,null,null,null,null,null,null,null,null,null,null,null,null,null,null,null,null,null,null,null,null,null,null,null,null,null,null,null,null,null,null,null,null,null,null,null,null,null,null,null,null,null,null,null,null,null,null,null,null,null,null,null,null,null,null,null,null,null,null,null,null,null,"","","",""]
[null,"2016-06-18",null,null,null,null,null,null,null,null,null,null,null,null,null,null,null,null,null,null,null,null,null,null,null,null,null,null,null,null,null,null,null,null,null,null,null,null,null,null,null,null,null,null,null,null,null,null,null,null,null,null,null,null,null,null,null,null,null,null,null,null,null,null,null,null,null,null,null,null,null,"","","",""]
[null,"2016-06-19",null,null,null,null,null,null,null,null,null,null,null,null,null,null,null,null,null,null,null,null,null,null,null,null,null,null,null,null,null,null,null,null,null,null,null,null,null,null,null,null,null,null,null,null,null,null,null,null,null,null,null,null,null,null,null,null,null,null,null,null,null,null,null,null,null,null,null,null,null,"","","",""]
[null,"2016-06-20",null,null,null,null,null,null,null,null,null,null,null,null,null,null,null,null,null,null,null,null,null,null,null,null,null,null,null,null,null,null,null,null,null,null,null,null,null,null,null,null,null,null,null,null,null,null,null,null,null,null,null,null,null,null,null,null,null,null,null,null,null,null,null,null,null,null,null,null,null,"","","",""]
[null,"2016-06-21",null,null,null,null,null,null,null,null,null,null,null,null,null,null,null,null,null,null,null,null,null,null,null,null,null,null,null,null,null,null,null,null,null,null,null,null,null,null,null,null,null,null,null,null,null,null,null,null,null,null,null,null,null,null,null,null,null,null,null,null,null,null,null,null,null,null,null,null,null,"","","",""]
[null,"2016-06-22",null,null,null,null,null,null,null,null,null,null,null,null,null,null,null,null,null,null,null,null,null,null,null,null,null,null,null,null,null,null,null,null,null,null,null,null,null,null,null,null,null,null,null,null,null,null,null,null,null,null,null,null,null,null,null,null,null,null,null,null,null,null,null,null,null,null,null,null,null,"","","",""]
[null,"2016-06-23",null,null,null,null,null,null,null,null,null,null,null,null,null,null,null,null,null,null,null,null,null,null,null,null,null,null,null,null,null,null,null,null,null,null,null,null,null,null,null,null,null,null,null,null,null,null,null,null,null,null,null,null,null,null,null,null,null,null,null,null,null,null,null,null,null,null,null,null,null,"","","",""]
[null,"2016-06-24",null,null,null,null,null,null,null,null,null,null,null,null,null,null,null,null,null,null,null,null,null,null,null,null,null,null,null,null,null,null,null,null,null,null,null,null,null,null,null,null,null,null,null,null,null,null,null,null,null,null,null,null,null,null,null,null,null,null,null,null,null,null,null,null,null,null,null,null,null,"","","",""]
[null,"2016-06-25",null,null,null,null,null,null,null,null,null,null,null,null,null,null,null,null,null,null,null,null,null,null,null,null,null,null,null,null,null,null,null,null,null,null,null,null,null,null,null,null,null,null,null,null,null,null,null,null,null,null,null,null,null,null,null,null,null,null,null,null,null,null,null,null,null,null,null,null,null,"","","",""]
[null,"2016-06-26",null,null,null,null,null,null,null,null,null,null,null,null,null,null,null,null,null,null,null,null,null,null,null,null,null,null,null,null,null,null,null,null,null,null,null,null,null,null,null,null,null,null,null,null,null,null,null,null,null,null,null,null,null,null,null,null,null,null,null,null,null,null,null,null,null,null,null,null,null,"","","",""]
[null,"2016-06-27",null,null,null,null,null,null,null,null,null,null,null,null,null,null,null,null,null,null,null,null,null,null,null,null,null,null,null,null,null,null,null,null,null,null,null,null,null,null,null,null,null,null,null,null,null,null,null,null,null,null,null,null,null,null,null,null,null,null,null,null,null,null,null,null,null,null,null,null,null,"","","",""]
[null,"2016-06-28",null,null,null,null,null,null,null,null,null,null,null,null,null,null,null,null,null,null,null,null,null,null,null,null,null,null,null,null,null,null,null,null,null,null,null,null,null,null,null,null,null,null,null,null,null,null,null,null,null,null,null,null,null,null,null,null,null,null,null,null,null,null,null,null,null,null,null,null,null,"","","",""]
[null,"2016-06-29",null,null,null,null,null,null,null,null,null,null,null,null,null,null,null,null,null,null,null,null,null,null,null,null,null,null,null,null,null,null,null,null,null,null,null,null,null,null,null,null,null,null,null,null,null,null,null,null,null,null,null,null,null,null,null,null,null,null,null,null,null,null,null,null,null,null,null,null,null,"","","",""]
[null,"2016-06-30",null,null,null,null,null,null,null,null,null,null,null,null,null,null,null,null,null,null,null,null,null,null,null,null,null,null,null,null,null,null,null,null,null,null,null,null,null,null,null,null,null,null,null,null,null,null,null,null,null,null,null,null,null,null,null,null,null,null,null,null,null,null,null,null,null,null,null,null,null,"","","",""]
[null,"2016-07-01",null,null,null,null,null,null,null,null,null,null,null,null,null,null,null,null,null,null,null,null,null,null,null,null,null,null,null,null,null,null,null,null,null,null,null,null,null,null,null,null,null,null,null,null,null,null,null,null,null,null,null,null,null,null,null,null,null,null,null,null,null,null,null,null,null,null,null,null,null,"","","",""]
[null,"2016-07-02",null,null,null,null,null,null,null,null,null,null,null,null,null,null,null,null,null,null,null,null,null,null,null,null,null,null,null,null,null,null,null,null,null,null,null,null,null,null,null,null,null,null,null,null,null,null,null,null,null,null,null,null,null,null,null,null,null,null,null,null,null,null,null,null,null,null,null,null,null,"","","",""]
[null,"2016-07-03",null,null,null,null,null,null,null,null,null,null,null,null,null,null,null,null,null,null,null,null,null,null,null,null,null,null,null,null,null,null,null,null,null,null,null,null,null,null,null,null,null,null,null,null,null,null,null,null,null,null,null,null,null,null,null,null,null,null,null,null,null,null,null,null,null,null,null,null,null,"","","",""]
[null,"2016-07-04",null,null,null,null,null,null,null,null,null,null,null,null,null,null,null,null,null,null,null,null,null,null,null,null,null,null,null,null,null,null,null,null,null,null,null,null,null,null,null,null,null,null,null,null,null,null,null,null,null,null,null,null,null,null,null,null,null,null,null,null,null,null,null,null,null,null,null,null,null,"","","",""]
[null,"2016-07-05",null,null,null,null,null,null,null,null,null,null,null,null,null,null,null,null,null,null,null,null,null,null,null,null,null,null,null,null,null,null,null,null,null,null,null,null,null,null,null,null,null,null,null,null,null,null,null,null,null,null,null,null,null,null,null,null,null,null,null,null,null,null,null,null,null,null,null,null,null,"","","",""]
[null,"2016-07-06",null,null,null,null,null,null,null,null,null,null,null,null,null,null,null,null,null,null,null,null,null,null,null,null,null,null,null,null,null,null,null,null,null,null,null,null,null,null,null,null,null,null,null,null,null,null,null,null,null,null,null,null,null,null,null,null,null,null,null,null,null,null,null,null,null,null,null,null,null,"","","",""]
[null,"2016-07-07",null,null,null,null,null,null,null,null,null,null,null,null,null,null,null,null,null,null,null,null,null,null,null,null,null,null,null,null,null,null,null,null,null,null,null,null,null,null,null,null,null,null,null,null,null,null,null,null,null,null,null,null,null,null,null,null,null,null,null,null,null,null,null,null,null,null,null,null,null,"","","",""]
[null,"2016-07-08",null,null,null,null,null,null,null,null,null,null,null,null,null,null,null,null,null,null,null,null,null,null,null,null,null,null,null,null,null,null,null,null,null,null,null,null,null,null,null,null,null,null,null,null,null,null,null,null,null,null,null,null,null,null,null,null,null,null,null,null,null,null,null,null,null,null,null,null,null,"","","",""]
[null,"2016-07-09",null,null,null,null,null,null,null,null,null,null,null,null,null,null,null,null,null,null,null,null,null,null,null,null,null,null,null,null,null,null,null,null,null,null,null,null,null,null,null,null,null,null,null,null,null,null,null,null,null,null,null,null,null,null,null,null,null,null,null,null,null,null,null,null,null,null,null,null,null,"","","",""]
[null,"2016-07-10",null,null,null,null,null,null,null,null,null,null,null,null,null,null,null,null,null,null,null,null,null,null,null,null,null,null,null,null,null,null,null,null,null,null,null,null,null,null,null,null,null,null,null,null,null,null,null,null,null,null,null,null,null,null,null,null,null,null,null,null,null,null,null,null,null,null,null,null,null,"","","",""]
[null,"2016-07-11",null,null,null,null,null,null,null,null,null,null,null,null,null,null,null,null,null,null,null,null,null,null,null,null,null,null,null,null,null,null,null,null,null,null,null,null,null,null,null,null,null,null,null,null,null,null,null,null,null,null,null,null,null,null,null,null,null,null,null,null,null,null,null,null,null,null,null,null,null,"","","",""]
[null,"2016-07-12",null,null,null,null,null,null,null,null,null,null,null,null,null,null,null,null,null,null,null,null,null,null,null,null,null,null,null,null,null,null,null,null,null,null,null,null,null,null,null,null,null,null,null,null,null,null,null,null,null,null,null,null,null,null,null,null,null,null,null,null,null,null,null,null,null,null,null,null,null,{"$f":"IF(SUM(X200:BS200)=0,\"\",AVERAGE(X200:BS200))","v":""},{"$f":"IF(MAX(D200:W200)=0,\"\",MAX(D200:W200))","v":""},{"$f":"IF(SUM(D200:W200)=0,\"\",AVERAGE(D200:W200))","v":""},{"$f":"IF(MAX(X200:BS200)=0,\"\",MAX(X200:BS200))","v":""}]
[null,{"$f":"B200+1","v":"2016-07-13"},null,null,null,null,null,null,null,null,null,null,null,null,null,null,null,null,null,null,null,null,null,null,null,null,null,null,null,null,null,null,null,null,null,null,null,null,null,null,null,null,null,null,null,null,null,null,null,null,null,null,null,null,null,null,null,null,null,null,null,null,null,null,null,null,null,null,null,null,null,"","","",""]
[null,"2016-07-14",null,null,null,null,null,null,null,null,null,null,null,null,null,null,null,null,null,null,null,null,null,null,null,null,null,null,null,null,null,null,null,null,null,null,null,null,null,null,null,null,null,null,null,null,null,null,null,null,null,null,null,null,null,null,null,null,null,null,null,null,null,null,null,null,null,null,null,null,null,"","","",""]
[null,"2016-07-15",null,null,null,null,null,null,null,null,null,null,null,null,null,null,null,null,null,null,null,null,null,null,null,null,null,null,null,null,null,null,null,null,null,null,null,null,null,null,null,null,null,null,null,null,null,null,null,null,null,null,null,null,null,null,null,null,null,null,null,null,null,null,null,null,null,null,null,null,null,"","","",""]
[null,"2016-07-16",null,null,null,null,null,null,null,null,null,null,null,null,null,null,null,null,null,null,null,null,null,null,null,null,null,null,null,null,null,null,null,null,null,null,null,null,null,null,null,null,null,null,null,null,null,null,null,null,null,null,null,null,null,null,null,null,null,null,null,null,null,null,null,null,null,null,null,null,null,"","","",""]
[null,"2016-07-17",null,null,null,null,null,null,null,null,null,null,null,null,null,null,null,null,null,null,null,null,null,null,null,null,null,null,null,null,null,null,null,null,null,null,null,null,null,null,null,null,null,null,null,null,null,null,null,null,null,null,null,null,null,null,null,null,null,null,null,null,null,null,null,null,null,null,null,null,null,"","","",""]
[null,"2016-07-18",null,null,null,null,null,null,null,null,null,null,null,null,null,null,null,null,null,null,null,null,null,null,null,null,null,null,null,null,null,null,null,null,null,null,null,null,null,null,null,null,null,null,null,null,null,null,null,null,null,null,null,null,null,null,null,null,null,null,null,null,null,null,null,null,null,null,null,null,null,"","","",""]
[null,"2016-07-19",null,null,null,null,null,null,null,null,null,null,null,null,null,null,null,null,null,null,null,null,null,null,null,null,null,null,null,null,null,null,null,null,null,null,null,null,null,null,null,null,null,null,null,null,null,null,null,null,null,null,null,null,null,null,null,null,null,null,null,null,null,null,null,null,null,null,null,null,null,"","","",""]
[null,"2016-07-20",null,null,null,null,null,null,null,null,null,null,null,null,null,null,null,null,null,null,null,null,null,null,null,null,null,null,null,null,null,null,null,null,null,null,null,null,null,null,null,null,null,null,null,null,null,null,null,null,null,null,null,null,null,null,null,null,null,null,null,null,null,null,null,null,null,null,null,null,null,"","","",""]
[null,"2016-07-21",null,null,null,null,null,null,null,null,null,null,null,null,null,null,null,null,null,null,null,null,null,null,null,null,null,null,null,null,null,null,null,null,null,null,null,null,null,null,null,null,null,null,null,null,null,null,null,null,null,null,null,null,null,null,null,null,null,null,null,null,null,null,null,null,null,null,null,null,null,"","","",""]
[null,"2016-07-22",null,null,null,null,null,null,null,null,null,null,null,null,null,null,null,null,null,null,null,null,null,null,null,null,null,null,null,null,null,null,null,null,null,null,null,null,null,null,null,null,null,null,null,null,null,null,null,null,null,null,null,null,null,null,null,null,null,null,null,null,null,null,null,null,null,null,null,null,null,"","","",""]
[null,"2016-07-23",null,null,null,null,null,null,null,null,null,null,null,null,null,null,null,null,null,null,null,null,null,null,null,null,null,null,null,null,null,null,null,null,null,null,null,null,null,null,null,null,null,null,null,null,null,null,null,null,null,null,null,null,null,null,null,null,null,null,null,null,null,null,null,null,null,null,null,null,null,"","","",""]
[null,"2016-07-24",null,null,null,null,null,null,null,null,null,null,null,null,null,null,null,null,null,null,null,null,null,null,null,null,null,null,null,null,null,null,null,null,null,null,null,null,null,null,null,null,null,null,null,null,null,null,null,null,null,null,null,null,null,null,null,null,null,null,null,null,null,null,null,null,null,null,null,null,null,"","","",""]
[null,"2016-07-25",null,null,null,null,null,null,null,null,null,null,null,null,null,null,null,null,null,null,null,null,null,null,null,null,null,null,null,null,null,null,null,null,null,null,null,null,null,null,null,null,null,null,null,null,null,null,null,null,null,null,null,null,null,null,null,null,null,null,null,null,null,null,null,null,null,null,null,null,null,"","","",""]
[null,"2016-07-26",null,null,null,null,null,null,null,null,null,null,null,null,null,null,null,null,null,null,null,null,null,null,null,null,null,null,null,null,null,null,null,null,null,null,null,null,null,null,null,null,null,null,null,null,null,null,null,null,null,null,null,null,null,null,null,null,null,null,null,null,null,null,null,null,null,null,null,null,null,"","","",""]
[null,"2016-07-27",null,null,null,null,null,null,null,null,null,null,null,null,null,null,null,null,null,null,null,null,null,null,null,null,null,null,null,null,null,null,null,null,null,null,null,null,null,null,null,null,null,null,null,null,null,null,null,null,null,null,null,null,null,null,null,null,null,null,null,null,null,null,null,null,null,null,null,null,null,"","","",""]
[null,"2016-07-28",null,null,null,null,null,null,null,null,null,null,null,null,null,null,null,null,null,null,null,null,null,null,null,null,null,null,null,null,null,null,null,null,null,null,null,null,null,null,null,null,null,null,null,null,null,null,null,null,null,null,null,null,null,null,null,null,null,null,null,null,null,null,null,null,null,null,null,null,null,"","","",""]
[null,"2016-07-29",null,null,null,null,null,null,null,null,null,null,null,null,null,null,null,null,null,null,null,null,null,null,null,null,null,null,null,null,null,null,null,null,null,null,null,null,null,null,null,null,null,null,null,null,null,null,null,null,null,null,null,null,null,null,null,null,null,null,null,null,null,null,null,null,null,null,null,null,null,"","","",""]
[null,"2016-07-30",null,null,null,null,null,null,null,null,null,null,null,null,null,null,null,null,null,null,null,null,null,null,null,null,null,null,null,null,null,null,null,null,null,null,null,null,null,null,null,null,null,null,null,null,null,null,null,null,null,null,null,null,null,null,null,null,null,null,null,null,null,null,null,null,null,null,null,null,null,"","","",""]
[null,"2016-07-31",null,null,null,null,null,null,null,null,null,null,null,null,null,null,null,null,null,null,null,null,null,null,null,null,null,null,null,null,null,null,null,null,null,null,null,null,null,null,null,null,null,null,null,null,null,null,null,null,null,null,null,null,null,null,null,null,null,null,null,null,null,null,null,null,null,null,null,null,null,"","","",""]
[null,"2016-08-01",null,null,null,null,null,null,null,null,null,null,null,null,null,null,null,null,null,null,null,null,null,null,null,null,null,null,null,null,null,null,null,null,null,null,null,null,null,null,null,null,null,null,null,null,null,null,null,null,null,null,null,null,null,null,null,null,null,null,null,null,null,null,null,null,null,null,null,null,null,"","","",""]
[null,"2016-08-02",null,null,null,null,null,null,null,null,null,null,null,null,null,null,null,null,null,null,null,null,null,null,null,null,null,null,null,null,null,null,null,null,null,null,null,null,null,null,null,null,null,null,null,null,null,null,null,null,null,null,null,null,null,null,null,null,null,null,null,null,null,null,null,null,null,null,null,null,null,"","","",""]
[null,"2016-08-03",null,null,null,null,null,null,null,null,null,null,null,null,null,null,null,null,null,null,null,null,null,null,null,null,null,null,null,null,null,null,null,null,null,null,null,null,null,null,null,null,null,null,null,null,null,null,null,null,null,null,null,null,null,null,null,null,null,null,null,null,null,null,null,null,null,null,null,null,null,"","","",""]
[null,"2016-08-04",null,null,null,null,null,null,null,null,null,null,null,null,null,null,null,null,null,null,null,null,null,null,null,null,null,null,null,null,null,null,null,null,null,null,null,null,null,null,null,null,null,null,null,null,null,null,null,null,null,null,null,null,null,null,null,null,null,null,null,null,null,null,null,null,null,null,null,null,null,"","","",""]
[null,"2016-08-05",null,null,null,null,null,null,null,null,null,null,null,null,null,null,null,null,null,null,null,null,null,null,null,null,null,null,null,null,null,null,null,null,null,null,null,null,null,null,null,null,null,null,null,null,null,null,null,null,null,null,null,null,null,null,null,null,null,null,null,null,null,null,null,null,null,null,null,null,null,"","","",""]
[null,"2016-08-06",null,null,null,null,null,null,null,null,null,null,null,null,null,null,null,null,null,null,null,null,null,null,null,null,null,null,null,null,null,null,null,null,null,null,null,null,null,null,null,null,null,null,null,null,null,null,null,null,null,null,null,null,null,null,null,null,null,null,null,null,null,null,null,null,null,null,null,null,null,"","","",""]
[null,"2016-08-07",null,null,null,null,null,null,null,null,null,null,null,null,null,null,null,null,null,null,null,null,null,null,null,null,null,null,null,null,null,null,null,null,null,null,null,null,null,null,null,null,null,null,null,null,null,null,null,null,null,null,null,null,null,null,null,null,null,null,null,null,null,null,null,null,null,null,null,null,null,"","","",""]
[null,"2016-08-08",null,null,null,null,null,null,null,null,null,null,null,null,null,null,null,null,null,null,null,null,null,null,null,null,null,null,null,null,null,null,null,null,null,null,null,null,null,null,null,null,null,null,null,null,null,null,null,null,null,null,null,null,null,null,null,null,null,null,null,null,null,null,null,null,null,null,null,null,null,"","","",""]
[null,"2016-08-09",null,null,null,null,null,null,null,null,null,null,null,null,null,null,null,null,null,null,null,null,null,null,null,null,null,null,null,null,null,null,null,null,null,null,null,null,null,null,null,null,null,null,null,null,null,null,null,null,null,null,null,null,null,null,null,null,null,null,null,null,null,null,null,null,null,null,null,null,null,"","","",""]
[null,"2016-08-10",null,null,null,null,null,null,null,null,null,null,null,null,null,null,null,null,null,null,null,null,null,null,null,null,null,null,null,null,null,null,null,null,null,null,null,null,null,null,null,null,null,null,null,null,null,null,null,null,null,null,null,null,null,null,null,null,null,null,null,null,null,null,null,null,null,null,null,null,null,"","","",""]
[null,"2016-08-11",null,null,null,null,null,null,null,null,null,null,null,null,null,null,null,null,null,null,null,null,null,null,null,null,null,null,null,null,null,null,null,null,null,null,null,null,null,null,null,null,null,null,null,null,null,null,null,null,null,null,null,null,null,null,null,null,null,null,null,null,null,null,null,null,null,null,null,null,null,"","","",""]
[null,"2016-08-12",null,null,null,null,null,null,null,null,null,null,null,null,null,null,null,null,null,null,null,null,null,null,null,null,null,null,null,null,null,null,null,null,null,null,null,null,null,null,null,null,null,null,null,null,null,null,null,null,null,null,null,null,null,null,null,null,null,null,null,null,null,null,null,null,null,null,null,null,null,"","","",""]
[null,"2016-08-13",null,null,null,null,null,null,null,null,null,null,null,null,null,null,null,null,null,null,null,null,null,null,null,null,null,null,null,null,null,null,null,null,null,null,null,null,null,null,null,null,null,null,null,null,null,null,null,null,null,null,null,null,null,null,null,null,null,null,null,null,null,null,null,null,null,null,null,null,null,"","","",""]
[null,"2016-08-14",null,null,null,null,null,null,null,null,null,null,null,null,null,null,null,null,null,null,null,null,null,null,null,null,null,null,null,null,null,null,null,null,null,null,null,null,null,null,null,null,null,null,null,null,null,null,null,null,null,null,null,null,null,null,null,null,null,null,null,null,null,null,null,null,null,null,null,null,null,"","","",""]
[null,"2016-08-15",null,null,null,null,null,null,null,null,null,null,null,null,null,null,null,null,null,null,null,null,null,null,null,null,null,null,null,null,null,null,null,null,null,null,null,null,null,null,null,null,null,null,null,null,null,null,null,null,null,null,null,null,null,null,null,null,null,null,null,null,null,null,null,null,null,null,null,null,null,"","","",""]
[null,"2016-08-16",null,null,null,null,null,null,null,null,null,null,null,null,null,null,null,null,null,null,null,null,null,null,null,null,null,null,null,null,null,null,null,null,null,null,null,null,null,null,null,null,null,null,null,null,null,null,null,null,null,null,null,null,null,null,null,null,null,null,null,null,null,null,null,null,null,null,null,null,null,"","","",""]
[null,"2016-08-17",null,null,null,null,null,null,null,null,null,null,null,null,null,null,null,null,null,null,null,null,null,null,null,null,null,null,null,null,null,null,null,null,null,null,null,null,null,null,null,null,null,null,null,null,null,null,null,null,null,null,null,null,null,null,null,null,null,null,null,null,null,null,null,null,null,null,null,null,null,"","","",""]
[null,"2016-08-18",null,null,null,null,null,null,null,null,null,null,null,null,null,null,null,null,null,null,null,null,null,null,null,null,null,null,null,null,null,null,null,null,null,null,null,null,null,null,null,null,null,null,null,null,null,null,null,null,null,null,null,null,null,null,null,null,null,null,null,null,null,null,null,null,null,null,null,null,null,"","","",""]
[null,"2016-08-19",null,null,null,null,null,null,null,null,null,null,null,null,null,null,null,null,null,null,null,null,null,null,null,null,null,null,null,null,null,null,null,null,null,null,null,null,null,null,null,null,null,null,null,null,null,null,null,null,null,null,null,null,null,null,null,null,null,null,null,null,null,null,null,null,null,null,null,null,null,"","","",""]
[null,"2016-08-20",null,null,null,null,null,null,null,null,null,null,null,null,null,null,null,null,null,null,null,null,null,null,null,null,null,null,null,null,null,null,null,null,null,null,null,null,null,null,null,null,null,null,null,null,null,null,null,null,null,null,null,null,null,null,null,null,null,null,null,null,null,null,null,null,null,null,null,null,null,"","","",""]
[null,"2016-08-21",null,null,null,null,null,null,null,null,null,null,null,null,null,null,null,null,null,null,null,null,null,null,null,null,null,null,null,null,null,null,null,null,null,null,null,null,null,null,null,null,null,null,null,null,null,null,null,null,null,null,null,null,null,null,null,null,null,null,null,null,null,null,null,null,null,null,null,null,null,"","","",""]
[null,"2016-08-22",null,null,null,null,null,null,null,null,null,null,null,null,null,null,null,null,null,null,null,null,null,null,null,null,null,null,null,null,null,null,null,null,null,null,null,null,null,null,null,null,null,null,null,null,null,null,null,null,null,null,null,null,null,null,null,null,null,null,null,null,null,null,null,null,null,null,null,null,null,"","","",""]
[null,"2016-08-23",null,null,null,null,null,null,null,null,null,null,null,null,null,null,null,null,null,null,null,null,null,null,null,null,null,null,null,null,null,null,null,null,null,null,null,null,null,null,null,null,null,null,null,null,null,null,null,null,null,null,null,null,null,null,null,null,null,null,null,null,null,null,null,null,null,null,null,null,null,"","","",""]
[null,"2016-08-24",null,null,null,null,null,null,null,null,null,null,null,null,null,null,null,null,null,null,null,null,null,null,null,null,null,null,null,null,null,null,null,null,null,null,null,null,null,null,null,null,null,null,null,null,null,null,null,null,null,null,null,null,null,null,null,null,null,null,null,null,null,null,null,null,null,null,null,null,null,"","","",""]
[null,"2016-08-25",null,null,null,null,null,null,null,null,null,null,null,null,null,null,null,null,null,null,null,null,null,null,null,null,null,null,null,null,null,null,null,null,null,null,null,null,null,null,null,null,null,null,null,null,null,null,null,null,null,null,null,null,null,null,null,null,null,null,null,null,null,null,null,null,null,null,null,null,null,"","","",""]
[null,"2016-08-26",null,null,null,null,null,null,null,null,null,null,null,null,null,null,null,null,null,null,null,null,null,null,null,null,null,null,null,null,null,null,null,null,null,null,null,null,null,null,null,null,null,null,null,null,null,null,null,null,null,null,null,null,null,null,null,null,null,null,null,null,null,null,null,null,null,null,null,null,null,"","","",""]
[null,"2016-08-27",null,null,null,null,null,null,null,null,null,null,null,null,null,null,null,null,null,null,null,null,null,null,null,null,null,null,null,null,null,null,null,null,null,null,null,null,null,null,null,null,null,null,null,null,null,null,null,null,null,null,null,null,null,null,null,null,null,null,null,null,null,null,null,null,null,null,null,null,null,"","","",""]
[null,"2016-08-28",null,null,null,null,null,null,null,null,null,null,null,null,null,null,null,null,null,null,null,null,null,null,null,null,null,null,null,null,null,null,null,null,null,null,null,null,null,null,null,null,null,null,null,null,null,null,null,null,null,null,null,null,null,null,null,null,null,null,null,null,null,null,null,null,null,null,null,null,null,"","","",""]
[null,"2016-08-29",null,null,null,null,null,null,null,null,null,null,null,null,null,null,null,null,null,null,null,null,null,null,null,null,null,null,null,null,null,null,null,null,null,null,null,null,null,null,null,null,null,null,null,null,null,null,null,null,null,null,null,null,null,null,null,null,null,null,null,null,null,null,null,null,null,null,null,null,null,"","","",""]
[null,"2016-08-30",null,null,null,null,null,null,null,null,null,null,null,null,null,null,null,null,null,null,null,null,null,null,null,null,null,null,null,null,null,null,null,null,null,null,null,null,null,null,null,null,null,null,null,null,null,null,null,null,null,null,null,null,null,null,null,null,null,null,null,null,null,null,null,null,null,null,null,null,null,"","","",""]
[null,"2016-08-31",null,null,null,null,null,null,null,null,null,null,null,null,null,null,null,null,null,null,null,null,null,null,null,null,null,null,null,null,null,null,null,null,null,null,null,null,null,null,null,null,null,null,null,null,null,null,null,null,null,null,null,null,null,null,null,null,null,null,null,null,null,null,null,null,null,null,null,null,null,"","","",""]
[null,"2016-09-01",null,null,null,null,null,null,null,null,null,null,null,null,null,null,null,null,null,null,null,null,null,null,null,null,null,null,null,null,null,null,null,null,null,null,null,null,null,null,null,null,null,null,null,null,null,null,null,null,null,null,null,null,null,null,null,null,null,null,null,null,null,null,null,null,null,null,null,null,null,"","","",""]
[null,"2016-09-02",null,null,null,null,null,null,null,null,null,null,null,null,null,null,null,null,null,null,null,null,null,null,null,null,null,null,null,null,null,null,null,null,null,null,null,null,null,null,null,null,null,null,null,null,null,null,null,null,null,null,null,null,null,null,null,null,null,null,null,null,null,null,null,null,null,null,null,null,null,"","","",""]
[null,"2016-09-03",null,null,null,null,null,null,null,null,null,null,null,null,null,null,null,null,null,null,null,null,null,null,null,null,null,null,null,null,null,null,null,null,null,null,null,null,null,null,null,null,null,null,null,null,null,null,null,null,null,null,null,null,null,null,null,null,null,null,null,null,null,null,null,null,null,null,null,null,null,"","","",""]
[null,"2016-09-04",null,null,null,null,null,null,null,null,null,null,null,null,null,null,null,null,null,null,null,null,null,null,null,null,null,null,null,null,null,null,null,null,null,null,null,null,null,null,null,null,null,null,null,null,null,null,null,null,null,null,null,null,null,null,null,null,null,null,null,null,null,null,null,null,null,null,null,null,null,"","","",""]
[null,"2016-09-05",null,null,null,null,null,null,null,null,null,null,null,null,null,null,null,null,null,null,null,null,null,null,null,null,null,null,null,null,null,null,null,null,null,null,null,null,null,null,null,null,null,null,null,null,null,null,null,null,null,null,null,null,null,null,null,null,null,null,null,null,null,null,null,null,null,null,null,null,null,"","","",""]
[null,"2016-09-06",null,null,null,null,null,null,null,null,null,null,null,null,null,null,null,null,null,null,null,null,null,null,null,null,null,null,null,null,null,null,null,null,null,null,null,null,null,null,null,null,null,null,null,null,null,null,null,null,null,null,null,null,null,null,null,null,null,null,null,null,null,null,null,null,null,null,null,null,null,"","","",""]
[null,"2016-09-07",null,null,null,null,null,null,null,null,null,null,null,null,null,null,null,null,null,null,null,null,null,null,null,null,null,null,null,null,null,null,null,null,null,null,null,null,null,null,null,null,null,null,null,null,null,null,null,null,null,null,null,null,null,null,null,null,null,null,null,null,null,null,null,null,null,null,null,null,null,"","","",""]
[null,"2016-09-08",null,null,null,null,null,null,null,null,null,null,null,null,null,null,null,null,null,null,null,null,null,null,null,null,null,null,null,null,null,null,null,null,null,null,null,null,null,null,null,null,null,null,null,null,null,null,null,null,null,null,null,null,null,null,null,null,null,null,null,null,null,null,null,null,null,null,null,null,null,"","","",""]
[null,"2016-09-09",null,null,null,null,null,null,null,null,null,null,null,null,null,null,null,null,null,null,null,null,null,null,null,null,null,null,null,null,null,null,null,null,null,null,null,null,null,null,null,null,null,null,null,null,null,null,null,null,null,null,null,null,null,null,null,null,null,null,null,null,null,null,null,null,null,null,null,null,null,"","","",""]
[null,"2016-09-10",null,null,null,null,null,null,null,null,null,null,null,null,null,null,null,null,null,null,null,null,null,null,null,null,null,null,null,null,null,null,null,null,null,null,null,null,null,null,null,null,null,null,null,null,null,null,null,null,null,null,null,null,null,null,null,null,null,null,null,null,null,null,null,null,null,null,null,null,null,"","","",""]
[null,"2016-09-11",null,null,null,null,null,null,null,null,null,null,null,null,null,null,null,null,null,null,null,null,null,null,null,null,null,null,null,null,null,null,null,null,null,null,null,null,null,null,null,null,null,null,null,null,null,null,null,null,null,null,null,null,null,null,null,null,null,null,null,null,null,null,null,null,null,null,null,null,null,"","","",""]
[null,"2016-09-12",null,null,null,null,null,null,null,null,null,null,null,null,null,null,null,null,null,null,null,null,null,null,null,null,null,null,null,null,null,null,null,null,null,null,null,null,null,null,null,null,null,null,null,null,null,null,null,null,null,null,null,null,null,null,null,null,null,null,null,null,null,null,null,null,null,null,null,null,null,"","","",""]
[null,"2016-09-13",null,null,null,null,null,null,null,null,null,null,null,null,null,null,null,null,null,null,null,null,null,null,null,null,null,null,null,null,null,null,null,null,null,null,null,null,null,null,null,null,null,null,null,null,null,null,null,null,null,null,null,null,null,null,null,null,null,null,null,null,null,null,null,null,null,null,null,null,null,"","","",""]
[null,"2016-09-14",null,null,null,null,null,null,null,null,null,null,null,null,null,null,null,null,null,null,null,null,null,null,null,null,null,null,null,null,null,null,null,null,null,null,null,null,null,null,null,null,null,null,null,null,null,null,null,null,null,null,null,null,null,null,null,null,null,null,null,null,null,null,null,null,null,null,null,null,null,{"$f":"IF(SUM(X264:BS264)=0,\"\",AVERAGE(X264:BS264))","v":""},{"$f":"IF(MAX(D264:W264)=0,\"\",MAX(D264:W264))","v":""},{"$f":"IF(SUM(D264:W264)=0,\"\",AVERAGE(D264:W264))","v":""},{"$f":"IF(MAX(X264:BS264)=0,\"\",MAX(X264:BS264))","v":""}]
[null,{"$f":"B264+1","v":"2016-09-15"},null,null,null,null,null,null,null,null,null,null,null,null,null,null,null,null,null,null,null,null,null,null,null,null,null,null,null,null,null,null,null,null,null,null,null,null,null,null,null,null,null,null,null,null,null,null,null,null,null,null,null,null,null,null,null,null,null,null,null,null,null,null,null,null,null,null,null,null,null,"","","",""]
[null,"2016-09-16",null,null,null,null,null,null,null,null,null,null,null,null,null,null,null,null,null,null,null,null,null,null,null,null,null,null,null,null,null,null,null,null,null,null,null,null,null,null,null,null,null,null,null,null,null,null,null,null,null,null,null,null,null,null,null,null,null,null,null,null,null,null,null,null,null,null,null,null,null,"","","",""]
[null,"2016-09-17",null,null,null,null,null,null,null,null,null,null,null,null,null,null,null,null,null,null,null,null,null,null,null,null,null,null,null,null,null,null,null,null,null,null,null,null,null,null,null,null,null,null,null,null,null,null,null,null,null,null,null,null,null,null,null,null,null,null,null,null,null,null,null,null,null,null,null,null,null,"","","",""]
[null,"2016-09-18",null,null,null,null,null,null,null,null,null,null,null,null,null,null,null,null,null,null,null,null,null,null,null,null,null,null,null,null,null,null,null,null,null,null,null,null,null,null,null,null,null,null,null,null,null,null,null,null,null,null,null,null,null,null,null,null,null,null,null,null,null,null,null,null,null,null,null,null,null,"","","",""]
[null,"2016-09-19",null,null,null,null,null,null,null,null,null,null,null,null,null,null,null,null,null,null,null,null,null,null,null,null,null,null,null,null,null,null,null,null,null,null,null,null,null,null,null,null,null,null,null,null,null,null,null,null,null,null,null,null,null,null,null,null,null,null,null,null,null,null,null,null,null,null,null,null,null,"","","",""]
[null,"2016-09-20",null,null,null,null,null,null,null,null,null,null,null,null,null,null,null,null,null,null,null,null,null,null,null,null,null,null,null,null,null,null,null,null,null,null,null,null,null,null,null,null,null,null,null,null,null,null,null,null,null,null,null,null,null,null,null,null,null,null,null,null,null,null,null,null,null,null,null,null,null,"","","",""]
[null,"2016-09-21",null,null,null,null,null,null,null,null,null,null,null,null,null,null,null,null,null,null,null,null,null,null,null,null,null,null,null,null,null,null,null,null,null,null,null,null,null,null,null,null,null,null,null,null,null,null,null,null,null,null,null,null,null,null,null,null,null,null,null,null,null,null,null,null,null,null,null,null,null,"","","",""]
[null,"2016-09-22",null,null,null,null,null,null,null,null,null,null,null,null,null,null,null,null,null,null,null,null,null,null,null,null,null,null,null,null,null,null,null,null,null,null,null,null,null,null,null,null,null,null,null,null,null,null,null,null,null,null,null,null,null,null,null,null,null,null,null,null,null,null,null,null,null,null,null,null,null,"","","",""]
[null,"2016-09-23",null,null,null,null,null,null,null,null,null,null,null,null,null,null,null,null,null,null,null,null,null,null,null,null,null,null,null,null,null,null,null,null,null,null,null,null,null,null,null,null,null,null,null,null,null,null,null,null,null,null,null,null,null,null,null,null,null,null,null,null,null,null,null,null,null,null,null,null,null,"","","",""]
[null,"2016-09-24",null,null,null,null,null,null,null,null,null,null,null,null,null,null,null,null,null,null,null,null,null,null,null,null,null,null,null,null,null,null,null,null,null,null,null,null,null,null,null,null,null,null,null,null,null,null,null,null,null,null,null,null,null,null,null,null,null,null,null,null,null,null,null,null,null,null,null,null,null,"","","",""]
[null,"2016-09-25",null,null,null,null,null,null,null,null,null,null,null,null,null,null,null,null,null,null,null,null,null,null,null,null,null,null,null,null,null,null,null,null,null,null,null,null,null,null,null,null,null,null,null,null,null,null,null,null,null,null,null,null,null,null,null,null,null,null,null,null,null,null,null,null,null,null,null,null,null,"","","",""]
[null,"2016-09-26",null,null,null,null,null,null,null,null,null,null,null,null,null,null,null,null,null,null,null,null,null,null,null,null,null,null,null,null,null,null,null,null,null,null,null,null,null,null,null,null,null,null,null,null,null,null,null,null,null,null,null,null,null,null,null,null,null,null,null,null,null,null,null,null,null,null,null,null,null,"","","",""]
[null,"2016-09-27",null,null,null,null,null,null,null,null,null,null,null,null,null,null,null,null,null,null,null,null,null,null,null,null,null,null,null,null,null,null,null,null,null,null,null,null,null,null,null,null,null,null,null,null,null,null,null,null,null,null,null,null,null,null,null,null,null,null,null,null,null,null,null,null,null,null,null,null,null,"","","",""]
[null,"2016-09-28",null,null,null,null,null,null,null,null,null,null,null,null,null,null,null,null,null,null,null,null,null,null,null,null,null,null,null,null,null,null,null,null,null,null,null,null,null,null,null,null,null,null,null,null,null,null,null,null,null,null,null,null,null,null,null,null,null,null,null,null,null,null,null,null,null,null,null,null,null,"","","",""]
[null,"2016-09-29",null,null,null,null,null,null,null,null,null,null,null,null,null,null,null,null,null,null,null,null,null,null,null,null,null,null,null,null,null,null,null,null,null,null,null,null,null,null,null,null,null,null,null,null,null,null,null,null,null,null,null,null,null,null,null,null,null,null,null,null,null,null,null,null,null,null,null,null,null,"","","",""]
[null,"2016-09-30",null,null,null,null,null,null,null,null,null,null,null,null,null,null,null,null,null,null,null,null,null,null,null,null,null,null,null,null,null,null,null,null,null,null,null,null,null,null,null,null,null,null,null,null,null,null,null,null,null,null,null,null,null,null,null,null,null,null,null,null,null,null,null,null,null,null,null,null,null,"","","",""]
[null,"2016-10-01",null,null,null,null,null,null,null,null,null,null,null,null,null,null,null,null,null,null,null,null,null,null,null,null,null,null,null,null,null,null,null,null,null,null,null,null,null,null,null,null,null,null,null,null,null,null,null,null,null,null,null,null,null,null,null,null,null,null,null,null,null,null,null,null,null,null,null,null,null,"","","",""]
[null,"2016-10-02",null,null,null,null,null,null,null,null,null,null,null,null,null,null,null,null,null,null,null,null,null,null,null,null,null,null,null,null,null,null,null,null,null,null,null,null,null,null,null,null,null,null,null,null,null,null,null,null,null,null,null,null,null,null,null,null,null,null,null,null,null,null,null,null,null,null,null,null,null,"","","",""]
[null,"2016-10-03",null,null,null,null,null,null,null,null,null,null,null,null,null,null,null,null,null,null,null,null,null,null,null,null,null,null,null,null,null,null,null,null,null,null,null,null,null,null,null,null,null,null,null,null,null,null,null,null,null,null,null,null,null,null,null,null,null,null,null,null,null,null,null,null,null,null,null,null,null,"","","",""]
[null,"2016-10-04",null,null,null,null,null,null,null,null,null,null,null,null,null,null,null,null,null,null,null,null,null,null,null,null,null,null,null,null,null,null,null,null,null,null,null,null,null,null,null,null,null,null,null,null,null,null,null,null,null,null,null,null,null,null,null,null,null,null,null,null,null,null,null,null,null,null,null,null,null,"","","",""]
[null,"2016-10-05",null,null,null,null,null,null,null,null,null,null,null,null,null,null,null,null,null,null,null,null,null,null,null,null,null,null,null,null,null,null,null,null,null,null,null,null,null,null,null,null,null,null,null,null,null,null,null,null,null,null,null,null,null,null,null,null,null,null,null,null,null,null,null,null,null,null,null,null,null,"","","",""]
[null,"2016-10-06",null,null,null,null,null,null,null,null,null,null,null,null,null,null,null,null,null,null,null,null,null,null,null,null,null,null,null,null,null,null,null,null,null,null,null,null,null,null,null,null,null,null,null,null,null,null,null,null,null,null,null,null,null,null,null,null,null,null,null,null,null,null,null,null,null,null,null,null,null,"","","",""]
[null,"2016-10-07",null,null,null,null,null,null,null,null,null,null,null,null,null,null,null,null,null,null,null,null,null,null,null,null,null,null,null,null,null,null,null,null,null,null,null,null,null,null,null,null,null,null,null,null,null,null,null,null,null,null,null,null,null,null,null,null,null,null,null,null,null,null,null,null,null,null,null,null,null,"","","",""]
[null,"2016-10-08",null,null,null,null,null,null,null,null,null,null,null,null,null,null,null,null,null,null,null,null,null,null,null,null,null,null,null,null,null,null,null,null,null,null,null,null,null,null,null,null,null,null,null,null,null,null,null,null,null,null,null,null,null,null,null,null,null,null,null,null,null,null,null,null,null,null,null,null,null,"","","",""]
[null,"2016-10-09",null,null,null,null,null,null,null,null,null,null,null,null,null,null,null,null,null,null,null,null,null,null,null,null,null,null,null,null,null,null,null,null,null,null,null,null,null,null,null,null,null,null,null,null,null,null,null,null,null,null,null,null,null,null,null,null,null,null,null,null,null,null,null,null,null,null,null,null,null,"","","",""]
[null,"2016-10-10",null,null,null,null,null,null,null,null,null,null,null,null,null,null,null,null,null,null,null,null,null,null,null,null,null,null,null,null,null,null,null,null,null,null,null,null,null,null,null,null,null,null,null,null,null,null,null,null,null,null,null,null,null,null,null,null,null,null,null,null,null,null,null,null,null,null,null,null,null,"","","",""]
[null,"2016-10-11",null,null,null,null,null,null,null,null,null,null,null,null,null,null,null,null,null,null,null,null,null,null,null,null,null,null,null,null,null,null,null,null,null,null,null,null,null,null,null,null,null,null,null,null,null,null,null,null,null,null,null,null,null,null,null,null,null,null,null,null,null,null,null,null,null,null,null,null,null,"","","",""]
[null,"2016-10-12",null,null,null,null,null,null,null,null,null,null,null,null,null,null,null,null,null,null,null,null,null,null,null,null,null,null,null,null,null,null,null,null,null,null,null,null,null,null,null,null,null,null,null,null,null,null,null,null,null,null,null,null,null,null,null,null,null,null,null,null,null,null,null,null,null,null,null,null,null,"","","",""]
[null,"2016-10-13",null,null,null,null,null,null,null,null,null,null,null,null,null,null,null,null,null,null,null,null,null,null,null,null,null,null,null,null,null,null,null,null,null,null,null,null,null,null,null,null,null,null,null,null,null,null,null,null,null,null,null,null,null,null,null,null,null,null,null,null,null,null,null,null,null,null,null,null,null,"","","",""]
[null,"2016-10-14",null,null,null,null,null,null,null,null,null,null,null,null,null,null,null,null,null,null,null,null,null,null,null,null,null,null,null,null,null,null,null,null,null,null,null,null,null,null,null,null,null,null,null,null,null,null,null,null,null,null,null,null,null,null,null,null,null,null,null,null,null,null,null,null,null,null,null,null,null,"","","",""]
[null,"2016-10-15",null,null,null,null,null,null,null,null,null,null,null,null,null,null,null,null,null,null,null,null,null,null,null,null,null,null,null,null,null,null,null,null,null,null,null,null,null,null,null,null,null,null,null,null,null,null,null,null,null,null,null,null,null,null,null,null,null,null,null,null,null,null,null,null,null,null,null,null,null,"","","",""]
[null,"2016-10-16",null,null,null,null,null,null,null,null,null,null,null,null,null,null,null,null,null,null,null,null,null,null,null,null,null,null,null,null,null,null,null,null,null,null,null,null,null,null,null,null,null,null,null,null,null,null,null,null,null,null,null,null,null,null,null,null,null,null,null,null,null,null,null,null,null,null,null,null,null,"","","",""]
[null,"2016-10-17",null,null,null,null,null,null,null,null,null,null,null,null,null,null,null,null,null,null,null,null,null,null,null,null,null,null,null,null,null,null,null,null,null,null,null,null,null,null,null,null,null,null,null,null,null,null,null,null,null,null,null,null,null,null,null,null,null,null,null,null,null,null,null,null,null,null,null,null,null,"","","",""]
[null,"2016-10-18",null,null,null,null,null,null,null,null,null,null,null,null,null,null,null,null,null,null,null,null,null,null,null,null,null,null,null,null,null,null,null,null,null,null,null,null,null,null,null,null,null,null,null,null,null,null,null,null,null,null,null,null,null,null,null,null,null,null,null,null,null,null,null,null,null,null,null,null,null,"","","",""]
[null,"2016-10-19",null,null,null,null,null,null,null,null,null,null,null,null,null,null,null,null,null,null,null,null,null,null,null,null,null,null,null,null,null,null,null,null,null,null,null,null,null,null,null,null,null,null,null,null,null,null,null,null,null,null,null,null,null,null,null,null,null,null,null,null,null,null,null,null,null,null,null,null,null,"","","",""]
[null,"2016-10-20",null,null,null,null,null,null,null,null,null,null,null,null,null,null,null,null,null,null,null,null,null,null,null,null,null,null,null,null,null,null,null,null,null,null,null,null,null,null,null,null,null,null,null,null,null,null,null,null,null,null,null,null,null,null,null,null,null,null,null,null,null,null,null,null,null,null,null,null,null,"","","",""]
[null,"2016-10-21",null,null,null,null,null,null,null,null,null,null,null,null,null,null,null,null,null,null,null,null,null,null,null,null,null,null,null,null,null,null,null,null,null,null,null,null,null,null,null,null,null,null,null,null,null,null,null,null,null,null,null,null,null,null,null,null,null,null,null,null,null,null,null,null,null,null,null,null,null,"","","",""]
[null,"2016-10-22",null,null,null,null,null,null,null,null,null,null,null,null,null,null,null,null,null,null,null,null,null,null,null,null,null,null,null,null,null,null,null,null,null,null,null,null,null,null,null,null,null,null,null,null,null,null,null,null,null,null,null,null,null,null,null,null,null,null,null,null,null,null,null,null,null,null,null,null,null,"","","",""]
[null,"2016-10-23",null,null,null,null,null,null,null,null,null,null,null,null,null,null,null,null,null,null,null,null,null,null,null,null,null,null,null,null,null,null,null,null,null,null,null,null,null,null,null,null,null,null,null,null,null,null,null,null,null,null,null,null,null,null,null,null,null,null,null,null,null,null,null,null,null,null,null,null,null,"","","",""]
[null,"2016-10-24",null,null,null,null,null,null,null,null,null,null,null,null,null,null,null,null,null,null,null,null,null,null,null,null,null,null,null,null,null,null,null,null,null,null,null,null,null,null,null,null,null,null,null,null,null,null,null,null,null,null,null,null,null,null,null,null,null,null,null,null,null,null,null,null,null,null,null,null,null,"","","",""]
[null,"2016-10-25",null,null,null,null,null,null,null,null,null,null,null,null,null,null,null,null,null,null,null,null,null,null,null,null,null,null,null,null,null,null,null,null,null,null,null,null,null,null,null,null,null,null,null,null,null,null,null,null,null,null,null,null,null,null,null,null,null,null,null,null,null,null,null,null,null,null,null,null,null,"","","",""]
[null,"2016-10-26",null,null,null,null,null,null,null,null,null,null,null,null,null,null,null,null,null,null,null,null,null,null,null,null,null,null,null,null,null,null,null,null,null,null,null,null,null,null,null,null,null,null,null,null,null,null,null,null,null,null,null,null,null,null,null,null,null,null,null,null,null,null,null,null,null,null,null,null,null,"","","",""]
[null,"2016-10-27",null,null,null,null,null,null,null,null,null,null,null,null,null,null,null,null,null,null,null,null,null,null,null,null,null,null,null,null,null,null,null,null,null,null,null,null,null,null,null,null,null,null,null,null,null,null,null,null,null,null,null,null,null,null,null,null,null,null,null,null,null,null,null,null,null,null,null,null,null,"","","",""]
[null,"2016-10-28",null,null,null,null,null,null,null,null,null,null,null,null,null,null,null,null,null,null,null,null,null,null,null,null,null,null,null,null,null,null,null,null,null,null,null,null,null,null,null,null,null,null,null,null,null,null,null,null,null,null,null,null,null,null,null,null,null,null,null,null,null,null,null,null,null,null,null,null,null,"","","",""]
[null,"2016-10-29",null,null,null,null,null,null,null,null,null,null,null,null,null,null,null,null,null,null,null,null,null,null,null,null,null,null,null,null,null,null,null,null,null,null,null,null,null,null,null,null,null,null,null,null,null,null,null,null,null,null,null,null,null,null,null,null,null,null,null,null,null,null,null,null,null,null,null,null,null,"","","",""]
[null,"2016-10-30",null,null,null,null,null,null,null,null,null,null,null,null,null,null,null,null,null,null,null,null,null,null,null,null,null,null,null,null,null,null,null,null,null,null,null,null,null,null,null,null,null,null,null,null,null,null,null,null,null,null,null,null,null,null,null,null,null,null,null,null,null,null,null,null,null,null,null,null,null,"","","",""]
[null,"2016-10-31",null,null,null,null,null,null,null,null,null,null,null,null,null,null,null,null,null,null,null,null,null,null,null,null,null,null,null,null,null,null,null,null,null,null,null,null,null,null,null,null,null,null,null,null,null,null,null,null,null,null,null,null,null,null,null,null,null,null,null,null,null,null,null,null,null,null,null,null,null,"","","",""]
[null,"2016-11-01",null,null,null,null,null,null,null,null,null,null,null,null,null,null,null,null,null,null,null,null,null,null,null,null,null,null,null,null,null,null,null,null,null,null,null,null,null,null,null,null,null,null,null,null,null,null,null,null,null,null,null,null,null,null,null,null,null,null,null,null,null,null,null,null,null,null,null,null,null,"","","",""]
[null,"2016-11-02",null,null,null,null,null,null,null,null,null,null,null,null,null,null,null,null,null,null,null,null,null,null,null,null,null,null,null,null,null,null,null,null,null,null,null,null,null,null,null,null,null,null,null,null,null,null,null,null,null,null,null,null,null,null,null,null,null,null,null,null,null,null,null,null,null,null,null,null,null,"","","",""]
[null,"2016-11-03",null,null,null,null,null,null,null,null,null,null,null,null,null,null,null,null,null,null,null,null,null,null,null,null,null,null,null,null,null,null,null,null,null,null,null,null,null,null,null,null,null,null,null,null,null,null,null,null,null,null,null,null,null,null,null,null,null,null,null,null,null,null,null,null,null,null,null,null,null,"","","",""]
[null,"2016-11-04",null,null,null,null,null,null,null,null,null,null,null,null,null,null,null,null,null,null,null,null,null,null,null,null,null,null,null,null,null,null,null,null,null,null,null,null,null,null,null,null,null,null,null,null,null,null,null,null,null,null,null,null,null,null,null,null,null,null,null,null,null,null,null,null,null,null,null,null,null,"","","",""]
[null,"2016-11-05",null,null,null,null,null,null,null,null,null,null,null,null,null,null,null,null,null,null,null,null,null,null,null,null,null,null,null,null,null,null,null,null,null,null,null,null,null,null,null,null,null,null,null,null,null,null,null,null,null,null,null,null,null,null,null,null,null,null,null,null,null,null,null,null,null,null,null,null,null,"","","",""]
[null,"2016-11-06",null,null,null,null,null,null,null,null,null,null,null,null,null,null,null,null,null,null,null,null,null,null,null,null,null,null,null,null,null,null,null,null,null,null,null,null,null,null,null,null,null,null,null,null,null,null,null,null,null,null,null,null,null,null,null,null,null,null,null,null,null,null,null,null,null,null,null,null,null,"","","",""]
[null,"2016-11-07",null,null,null,null,null,null,null,null,null,null,null,null,null,null,null,null,null,null,null,null,null,null,null,null,null,null,null,null,null,null,null,null,null,null,null,null,null,null,null,null,null,null,null,null,null,null,null,null,null,null,null,null,null,null,null,null,null,null,null,null,null,null,null,null,null,null,null,null,null,"","","",""]
[null,"2016-11-08",null,null,null,null,null,null,null,null,null,null,null,null,null,null,null,null,null,null,null,null,null,null,null,null,null,null,null,null,null,null,null,null,null,null,null,null,null,null,null,null,null,null,null,null,null,null,null,null,null,null,null,null,null,null,null,null,null,null,null,null,null,null,null,null,null,null,null,null,null,"","","",""]
[null,"2016-11-09",null,null,null,null,null,null,null,null,null,null,null,null,null,null,null,null,null,null,null,null,null,null,null,null,null,null,null,null,null,null,null,null,null,null,null,null,null,null,null,null,null,null,null,null,null,null,null,null,null,null,null,null,null,null,null,null,null,null,null,null,null,null,null,null,null,null,null,null,null,"","","",""]
[null,"2016-11-10",null,null,null,null,null,null,null,null,null,null,null,null,null,null,null,null,null,null,null,null,null,null,null,null,null,null,null,null,null,null,null,null,null,null,null,null,null,null,null,null,null,null,null,null,null,null,null,null,null,null,null,null,null,null,null,null,null,null,null,null,null,null,null,null,null,null,null,null,null,"","","",""]
[null,"2016-11-11",null,null,null,null,null,null,null,null,null,null,null,null,null,null,null,null,null,null,null,null,null,null,null,null,null,null,null,null,null,null,null,null,null,null,null,null,null,null,null,null,null,null,null,null,null,null,null,null,null,null,null,null,null,null,null,null,null,null,null,null,null,null,null,null,null,null,null,null,null,"","","",""]
[null,"2016-11-12",null,null,null,null,null,null,null,null,null,null,null,null,null,null,null,null,null,null,null,null,null,null,null,null,null,null,null,null,null,null,null,null,null,null,null,null,null,null,null,null,null,null,null,null,null,null,null,null,null,null,null,null,null,null,null,null,null,null,null,null,null,null,null,null,null,null,null,null,null,"","","",""]
[null,"2016-11-13",null,null,null,null,null,null,null,null,null,null,null,null,null,null,null,null,null,null,null,null,null,null,null,null,null,null,null,null,null,null,null,null,null,null,null,null,null,null,null,null,null,null,null,null,null,null,null,null,null,null,null,null,null,null,null,null,null,null,null,null,null,null,null,null,null,null,null,null,null,"","","",""]
[null,"2016-11-14",null,null,null,null,null,null,null,null,null,null,null,null,null,null,null,null,null,null,null,null,null,null,null,null,null,null,null,null,null,null,null,null,null,null,null,null,null,null,null,null,null,null,null,null,null,null,null,null,null,null,null,null,null,null,null,null,null,null,null,null,null,null,null,null,null,null,null,null,null,"","","",""]
[null,"2016-11-15",null,null,null,null,null,null,null,null,null,null,null,null,null,null,null,null,null,null,null,null,null,null,null,null,null,null,null,null,null,null,null,null,null,null,null,null,null,null,null,null,null,null,null,null,null,null,null,null,null,null,null,null,null,null,null,null,null,null,null,null,null,null,null,null,null,null,null,null,null,"","","",""]
[null,"2016-11-16",null,null,null,null,null,null,null,null,null,null,null,null,null,null,null,null,null,null,null,null,null,null,null,null,null,null,null,null,null,null,null,null,null,null,null,null,null,null,null,null,null,null,null,null,null,null,null,null,null,null,null,null,null,null,null,null,null,null,null,null,null,null,null,null,null,null,null,null,null,"","","",""]
[null,"2016-11-17",null,null,null,null,null,null,null,null,null,null,null,null,null,null,null,null,null,null,null,null,null,null,null,null,null,null,null,null,null,null,null,null,null,null,null,null,null,null,null,null,null,null,null,null,null,null,null,null,null,null,null,null,null,null,null,null,null,null,null,null,null,null,null,null,null,null,null,null,null,{"$f":"IF(SUM(X328:BS328)=0,\"\",AVERAGE(X328:BS328))","v":""},{"$f":"IF(MAX(D328:W328)=0,\"\",MAX(D328:W328))","v":""},{"$f":"IF(SUM(D328:W328)=0,\"\",AVERAGE(D328:W328))","v":""},{"$f":"IF(MAX(X328:BS328)=0,\"\",MAX(X328:BS328))","v":""}]
[null,{"$f":"B328+1","v":"2016-11-18"},null,null,null,null,null,null,null,null,null,null,null,null,null,null,null,null,null,null,null,null,null,null,null,null,null,null,null,null,null,null,null,null,null,null,null,null,null,null,null,null,null,null,null,null,null,null,null,null,null,null,null,null,null,null,null,null,null,null,null,null,null,null,null,null,null,null,null,null,null,"","","",""]
[null,"2016-11-19",null,null,null,null,null,null,null,null,null,null,null,null,null,null,null,null,null,null,null,null,null,null,null,null,null,null,null,null,null,null,null,null,null,null,null,null,null,null,null,null,null,null,null,null,null,null,null,null,null,null,null,null,null,null,null,null,null,null,null,null,null,null,null,null,null,null,null,null,null,"","","",""]
[null,"2016-11-20",null,null,null,null,null,null,null,null,null,null,null,null,null,null,null,null,null,null,null,null,null,null,null,null,null,null,null,null,null,null,null,null,null,null,null,null,null,null,null,null,null,null,null,null,null,null,null,null,null,null,null,null,null,null,null,null,null,null,null,null,null,null,null,null,null,null,null,null,null,"","","",""]
[null,"2016-11-21",null,null,null,null,null,null,null,null,null,null,null,null,null,null,null,null,null,null,null,null,null,null,null,null,null,null,null,null,null,null,null,null,null,null,null,null,null,null,null,null,null,null,null,null,null,null,null,null,null,null,null,null,null,null,null,null,null,null,null,null,null,null,null,null,null,null,null,null,null,"","","",""]
[null,"2016-11-22",null,null,null,null,null,null,null,null,null,null,null,null,null,null,null,null,null,null,null,null,null,null,null,null,null,null,null,null,null,null,null,null,null,null,null,null,null,null,null,null,null,null,null,null,null,null,null,null,null,null,null,null,null,null,null,null,null,null,null,null,null,null,null,null,null,null,null,null,null,"","","",""]
[null,"2016-11-23",null,null,null,null,null,null,null,null,null,null,null,null,null,null,null,null,null,null,null,null,null,null,null,null,null,null,null,null,null,null,null,null,null,null,null,null,null,null,null,null,null,null,null,null,null,null,null,null,null,null,null,null,null,null,null,null,null,null,null,null,null,null,null,null,null,null,null,null,null,"","","",""]
[null,"2016-11-24",null,null,null,null,null,null,null,null,null,null,null,null,null,null,null,null,null,null,null,null,null,null,null,null,null,null,null,null,null,null,null,null,null,null,null,null,null,null,null,null,null,null,null,null,null,null,null,null,null,null,null,null,null,null,null,null,null,null,null,null,null,null,null,null,null,null,null,null,null,"","","",""]
[null,"2016-11-25",null,null,null,null,null,null,null,null,null,null,null,null,null,null,null,null,null,null,null,null,null,null,null,null,null,null,null,null,null,null,null,null,null,null,null,null,null,null,null,null,null,null,null,null,null,null,null,null,null,null,null,null,null,null,null,null,null,null,null,null,null,null,null,null,null,null,null,null,null,"","","",""]
[null,"2016-11-26",null,null,null,null,null,null,null,null,null,null,null,null,null,null,null,null,null,null,null,null,null,null,null,null,null,null,null,null,null,null,null,null,null,null,null,null,null,null,null,null,null,null,null,null,null,null,null,null,null,null,null,null,null,null,null,null,null,null,null,null,null,null,null,null,null,null,null,null,null,"","","",""]
[null,"2016-11-27",null,null,null,null,null,null,null,null,null,null,null,null,null,null,null,null,null,null,null,null,null,null,null,null,null,null,null,null,null,null,null,null,null,null,null,null,null,null,null,null,null,null,null,null,null,null,null,null,null,null,null,null,null,null,null,null,null,null,null,null,null,null,null,null,null,null,null,null,null,"","","",""]
[null,"2016-11-28",null,null,null,null,null,null,null,null,null,null,null,null,null,null,null,null,null,null,null,null,null,null,null,null,null,null,null,null,null,null,null,null,null,null,null,null,null,null,null,null,null,null,null,null,null,null,null,null,null,null,null,null,null,null,null,null,null,null,null,null,null,null,null,null,null,null,null,null,null,"","","",""]
[null,"2016-11-29",null,null,null,null,null,null,null,null,null,null,null,null,null,null,null,null,null,null,null,null,null,null,null,null,null,null,null,null,null,null,null,null,null,null,null,null,null,null,null,null,null,null,null,null,null,null,null,null,null,null,null,null,null,null,null,null,null,null,null,null,null,null,null,null,null,null,null,null,null,"","","",""]
[null,"2016-11-30",null,null,null,null,null,null,null,null,null,null,null,null,null,null,null,null,null,null,null,null,null,null,null,null,null,null,null,null,null,null,null,null,null,null,null,null,null,null,null,null,null,null,null,null,null,null,null,null,null,null,null,null,null,null,null,null,null,null,null,null,null,null,null,null,null,null,null,null,null,"","","",""]
[null,"2016-12-01",null,null,null,null,null,null,null,null,null,null,null,null,null,null,null,null,null,null,null,null,null,null,null,null,null,null,null,null,null,null,null,null,null,null,null,null,null,null,null,null,null,null,null,null,null,null,null,null,null,null,null,null,null,null,null,null,null,null,null,null,null,null,null,null,null,null,null,null,null,"","","",""]
[null,"2016-12-02",null,null,null,null,null,null,null,null,null,null,null,null,null,null,null,null,null,null,null,null,null,null,null,null,null,null,null,null,null,null,null,null,null,null,null,null,null,null,null,null,null,null,null,null,null,null,null,null,null,null,null,null,null,null,null,null,null,null,null,null,null,null,null,null,null,null,null,null,null,"","","",""]
[null,"2016-12-03",null,null,null,null,null,null,null,null,null,null,null,null,null,null,null,null,null,null,null,null,null,null,null,null,null,null,null,null,null,null,null,null,null,null,null,null,null,null,null,null,null,null,null,null,null,null,null,null,null,null,null,null,null,null,null,null,null,null,null,null,null,null,null,null,null,null,null,null,null,"","","",""]
[null,"2016-12-04",null,null,null,null,null,null,null,null,null,null,null,null,null,null,null,null,null,null,null,null,null,null,null,null,null,null,null,null,null,null,null,null,null,null,null,null,null,null,null,null,null,null,null,null,null,null,null,null,null,null,null,null,null,null,null,null,null,null,null,null,null,null,null,null,null,null,null,null,null,"","","",""]
[null,"2016-12-05",null,null,null,null,null,null,null,null,null,null,null,null,null,null,null,null,null,null,null,null,null,null,null,null,null,null,null,null,null,null,null,null,null,null,null,null,null,null,null,null,null,null,null,null,null,null,null,null,null,null,null,null,null,null,null,null,null,null,null,null,null,null,null,null,null,null,null,null,null,"","","",""]
[null,"2016-12-06",null,null,null,null,null,null,null,null,null,null,null,null,null,null,null,null,null,null,null,null,null,null,null,null,null,null,null,null,null,null,null,null,null,null,null,null,null,null,null,null,null,null,null,null,null,null,null,null,null,null,null,null,null,null,null,null,null,null,null,null,null,null,null,null,null,null,null,null,null,"","","",""]
[null,"2016-12-07",null,null,null,null,null,null,null,null,null,null,null,null,null,null,null,null,null,null,null,null,null,null,null,null,null,null,null,null,null,null,null,null,null,null,null,null,null,null,null,null,null,null,null,null,null,null,null,null,null,null,null,null,null,null,null,null,null,null,null,null,null,null,null,null,null,null,null,null,null,"","","",""]
[null,"2016-12-08",null,null,null,null,null,null,null,null,null,null,null,null,null,null,null,null,null,null,null,null,null,null,null,null,null,null,null,null,null,null,null,null,null,null,null,null,null,null,null,null,null,null,null,null,null,null,null,null,null,null,null,null,null,null,null,null,null,null,null,null,null,null,null,null,null,null,null,null,null,"","","",""]
[null,"2016-12-09",null,null,null,null,null,null,null,null,null,null,null,null,null,null,null,null,null,null,null,null,null,null,null,null,null,null,null,null,null,null,null,null,null,null,null,null,null,null,null,null,null,null,null,null,null,null,null,null,null,null,null,null,null,null,null,null,null,null,null,null,null,null,null,null,null,null,null,null,null,"","","",""]
[null,"2016-12-10",null,null,null,null,null,null,null,null,null,null,null,null,null,null,null,null,null,null,null,null,null,null,null,null,null,null,null,null,null,null,null,null,null,null,null,null,null,null,null,null,null,null,null,null,null,null,null,null,null,null,null,null,null,null,null,null,null,null,null,null,null,null,null,null,null,null,null,null,null,"","","",""]
[null,"2016-12-11",null,null,null,null,null,null,null,null,null,null,null,null,null,null,null,null,null,null,null,null,null,null,null,null,null,null,null,null,null,null,null,null,null,null,null,null,null,null,null,null,null,null,null,null,null,null,null,null,null,null,null,null,null,null,null,null,null,null,null,null,null,null,null,null,null,null,null,null,null,"","","",""]
[null,"2016-12-12",null,null,null,null,null,null,null,null,null,null,null,null,null,null,null,null,null,null,null,null,null,null,null,null,null,null,null,null,null,null,null,null,null,null,null,null,null,null,null,null,null,null,null,null,null,null,null,null,null,null,null,null,null,null,null,null,null,null,null,null,null,null,null,null,null,null,null,null,null,"","","",""]
[null,"2016-12-13",null,null,null,null,null,null,null,null,null,null,null,null,null,null,null,null,null,null,null,null,null,null,null,null,null,null,null,null,null,null,null,null,null,null,null,null,null,null,null,null,null,null,null,null,null,null,null,null,null,null,null,null,null,null,null,null,null,null,null,null,null,null,null,null,null,null,null,null,null,"","","",""]
[null,"2016-12-14",null,null,null,null,null,null,null,null,null,null,null,null,null,null,null,null,null,null,null,null,null,null,null,null,null,null,null,null,null,null,null,null,null,null,null,null,null,null,null,null,null,null,null,null,null,null,null,null,null,null,null,null,null,null,null,null,null,null,null,null,null,null,null,null,null,null,null,null,null,"","","",""]
[null,"2016-12-15",null,null,null,null,null,null,null,null,null,null,null,null,null,null,null,null,null,null,null,null,null,null,null,null,null,null,null,null,null,null,null,null,null,null,null,null,null,null,null,null,null,null,null,null,null,null,null,null,null,null,null,null,null,null,null,null,null,null,null,null,null,null,null,null,null,null,null,null,null,"","","",""]
[null,"2016-12-16",null,null,null,null,null,null,null,null,null,null,null,null,null,null,null,null,null,null,null,null,null,null,null,null,null,null,null,null,null,null,null,null,null,null,null,null,null,null,null,null,null,null,null,null,null,null,null,null,null,null,null,null,null,null,null,null,null,null,null,null,null,null,null,null,null,null,null,null,null,"","","",""]
[null,"2016-12-17",null,null,null,null,null,null,null,null,null,null,null,null,null,null,null,null,null,null,null,null,null,null,null,null,null,null,null,null,null,null,null,null,null,null,null,null,null,null,null,null,null,null,null,null,null,null,null,null,null,null,null,null,null,null,null,null,null,null,null,null,null,null,null,null,null,null,null,null,null,"","","",""]
[null,"2016-12-18",null,null,null,null,null,null,null,null,null,null,null,null,null,null,null,null,null,null,null,null,null,null,null,null,null,null,null,null,null,null,null,null,null,null,null,null,null,null,null,null,null,null,null,null,null,null,null,null,null,null,null,null,null,null,null,null,null,null,null,null,null,null,null,null,null,null,null,null,null,"","","",""]
[null,"2016-12-19",null,null,null,null,null,null,null,null,null,null,null,null,null,null,null,null,null,null,null,null,null,null,null,null,null,null,null,null,null,null,null,null,null,null,null,null,null,null,null,null,null,null,null,null,null,null,null,null,null,null,null,null,null,null,null,null,null,null,null,null,null,null,null,null,null,null,null,null,null,"","","",""]
[null,"2016-12-20",null,null,null,null,null,null,null,null,null,null,null,null,null,null,null,null,null,null,null,null,null,null,null,null,null,null,null,null,null,null,null,null,null,null,null,null,null,null,null,null,null,null,null,null,null,null,null,null,null,null,null,null,null,null,null,null,null,null,null,null,null,null,null,null,null,null,null,null,null,"","","",""]
[null,"2016-12-21",null,null,null,null,null,null,null,null,null,null,null,null,null,null,null,null,null,null,null,null,null,null,null,null,null,null,null,null,null,null,null,null,null,null,null,null,null,null,null,null,null,null,null,null,null,null,null,null,null,null,null,null,null,null,null,null,null,null,null,null,null,null,null,null,null,null,null,null,null,"","","",""]
[null,"2016-12-22",null,null,null,null,null,null,null,null,null,null,null,null,null,null,null,null,null,null,null,null,null,null,null,null,null,null,null,null,null,null,null,null,null,null,null,null,null,null,null,null,null,null,null,null,null,null,null,null,null,null,null,null,null,null,null,null,null,null,null,null,null,null,null,null,null,null,null,null,null,"","","",""]
[null,"2016-12-23",null,null,null,null,null,null,null,null,null,null,null,null,null,null,null,null,null,null,null,null,null,null,null,null,null,null,null,null,null,null,null,null,null,null,null,null,null,null,null,null,null,null,null,null,null,null,null,null,null,null,null,null,null,null,null,null,null,null,null,null,null,null,null,null,null,null,null,null,null,"","","",""]
[null,"2016-12-24",null,null,null,null,null,null,null,null,null,null,null,null,null,null,null,null,null,null,null,null,null,null,null,null,null,null,null,null,null,null,null,null,null,null,null,null,null,null,null,null,null,null,null,null,null,null,null,null,null,null,null,null,null,null,null,null,null,null,null,null,null,null,null,null,null,null,null,null,null,"","","",""]
[null,"2016-12-25",null,null,null,null,null,null,null,null,null,null,null,null,null,null,null,null,null,null,null,null,null,null,null,null,null,null,null,null,null,null,null,null,null,null,null,null,null,null,null,null,null,null,null,null,null,null,null,null,null,null,null,null,null,null,null,null,null,null,null,null,null,null,null,null,null,null,null,null,null,"","","",""]
[null,"2016-12-26",null,null,null,null,null,null,null,null,null,null,null,null,null,null,null,null,null,null,null,null,null,null,null,null,null,null,null,null,null,null,null,null,null,null,null,null,null,null,null,null,null,null,null,null,null,null,null,null,null,null,null,null,null,null,null,null,null,null,null,null,null,null,null,null,null,null,null,null,null,"","","",""]
[null,"2016-12-27",null,null,null,null,null,null,null,null,null,null,null,null,null,null,null,null,null,null,null,null,null,null,null,null,null,null,null,null,null,null,null,null,null,null,null,null,null,null,null,null,null,null,null,null,null,null,null,null,null,null,null,null,null,null,null,null,null,null,null,null,null,null,null,null,null,null,null,null,null,"","","",""]
[null,"2016-12-28",null,null,null,null,null,null,null,null,null,null,null,null,null,null,null,null,null,null,null,null,null,null,null,null,null,null,null,null,null,null,null,null,null,null,null,null,null,null,null,null,null,null,null,null,null,null,null,null,null,null,null,null,null,null,null,null,null,null,null,null,null,null,null,null,null,null,null,null,null,"","","",""]
[null,"2016-12-29",null,null,null,null,null,null,null,null,null,null,null,null,null,null,null,null,null,null,null,null,null,null,null,null,null,null,null,null,null,null,null,null,null,null,null,null,null,null,null,null,null,null,null,null,null,null,null,null,null,null,null,null,null,null,null,null,null,null,null,null,null,null,null,null,null,null,null,null,null,"","","",""]
[null,"2016-12-30",null,null,null,null,null,null,null,null,null,null,null,null,null,null,null,null,null,null,null,null,null,null,null,null,null,null,null,null,null,null,null,null,null,null,null,null,null,null,null,null,null,null,null,null,null,null,null,null,null,null,null,null,null,null,null,null,null,null,null,null,null,null,null,null,null,null,null,null,null,"","","",""]
[null,"2016-12-31",null,null,null,null,null,null,null,null,null,null,null,null,null,null,null,null,null,null,null,null,null,null,null,null,null,null,null,null,null,null,null,null,null,null,null,null,null,null,null,null,null,null,null,null,null,null,null,null,null,null,null,null,null,null,null,null,null,null,null,null,null,null,null,null,null,null,null,null,null,"","","",""]
[]
[null,50,{"$f":"PERCENTILE(C7:C372,0.5)","v":{"$error":"#NUM!"}},{"$f":"PERCENTILE(D7:D372,0.5)","v":{"$error":"#NUM!"}},{"$f":"PERCENTILE(E7:E372,0.5)","v":{"$error":"#NUM!"}},{"$error":"#NUM!"},{"$error":"#NUM!"},{"$error":"#NUM!"},{"$error":"#NUM!"},{"$error":"#NUM!"},{"$error":"#NUM!"},{"$error":"#NUM!"},{"$error":"#NUM!"},{"$error":"#NUM!"},{"$error":"#NUM!"},{"$error":"#NUM!"},{"$error":"#NUM!"},{"$error":"#NUM!"},{"$error":"#NUM!"},{"$error":"#NUM!"},{"$error":"#NUM!"},{"$error":"#NUM!"},{"$error":"#NUM!"},{"$error":"#NUM!"},{"$error":"#NUM!"},{"$error":"#NUM!"},{"$error":"#NUM!"},{"$error":"#NUM!"},{"$error":"#NUM!"},{"$error":"#NUM!"},{"$error":"#NUM!"},{"$error":"#NUM!"},{"$error":"#NUM!"},{"$error":"#NUM!"},{"$error":"#NUM!"},{"$error":"#NUM!"},{"$error":"#NUM!"},{"$error":"#NUM!"},{"$error":"#NUM!"},{"$error":"#NUM!"},{"$error":"#NUM!"},{"$error":"#NUM!"},{"$error":"#NUM!"},{"$error":"#NUM!"},{"$error":"#NUM!"},{"$error":"#NUM!"},{"$error":"#NUM!"},{"$error":"#NUM!"},{"$error":"#NUM!"},{"$error":"#NUM!"},{"$error":"#NUM!"},{"$error":"#NUM!"},{"$error":"#NUM!"},{"$error":"#NUM!"},{"$error":"#NUM!"},{"$error":"#NUM!"},{"$error":"#NUM!"},{"$error":"#NUM!"},{"$error":"#NUM!"},{"$error":"#NUM!"},{"$error":"#NUM!"},{"$error":"#NUM!"},{"$error":"#NUM!"},{"$error":"#NUM!"},{"$error":"#NUM!"},{"$error":"#NUM!"},{"$error":"#NUM!"},{"$error":"#NUM!"},{"$f":"PERCENTILE(BQ7:BQ372,0.5)","v":{"$error":"#NUM!"}},{"$error":"#NUM!"},{"$error":"#NUM!"},{"$error":"#NUM!"},{"$error":"#NUM!"},{"$error":"#NUM!"},{"$error":"#NUM!"}]
[null,75,{"$f":"PERCENTILE(C8:C372,0.75)","v":{"$error":"#NUM!"}},{"$f":"PERCENTILE(D8:D372,0.75)","v":{"$error":"#NUM!"}},{"$f":"PERCENTILE(E8:E372,0.75)","v":{"$error":"#NUM!"}},{"$error":"#NUM!"},{"$error":"#NUM!"},{"$error":"#NUM!"},{"$error":"#NUM!"},{"$error":"#NUM!"},{"$error":"#NUM!"},{"$error":"#NUM!"},{"$error":"#NUM!"},{"$error":"#NUM!"},{"$error":"#NUM!"},{"$error":"#NUM!"},{"$error":"#NUM!"},{"$error":"#NUM!"},{"$error":"#NUM!"},{"$error":"#NUM!"},{"$error":"#NUM!"},{"$error":"#NUM!"},{"$error":"#NUM!"},{"$error":"#NUM!"},{"$error":"#NUM!"},{"$error":"#NUM!"},{"$error":"#NUM!"},{"$error":"#NUM!"},{"$error":"#NUM!"},{"$error":"#NUM!"},{"$error":"#NUM!"},{"$error":"#NUM!"},{"$error":"#NUM!"},{"$error":"#NUM!"},{"$error":"#NUM!"},{"$error":"#NUM!"},{"$error":"#NUM!"},{"$error":"#NUM!"},{"$error":"#NUM!"},{"$error":"#NUM!"},{"$error":"#NUM!"},{"$error":"#NUM!"},{"$error":"#NUM!"},{"$error":"#NUM!"},{"$error":"#NUM!"},{"$error":"#NUM!"},{"$error":"#NUM!"},{"$error":"#NUM!"},{"$error":"#NUM!"},{"$error":"#NUM!"},{"$error":"#NUM!"},{"$error":"#NUM!"},{"$error":"#NUM!"},{"$error":"#NUM!"},{"$error":"#NUM!"},{"$error":"#NUM!"},{"$error":"#NUM!"},{"$error":"#NUM!"},{"$error":"#NUM!"},{"$error":"#NUM!"},{"$error":"#NUM!"},{"$error":"#NUM!"},{"$error":"#NUM!"},{"$error":"#NUM!"},{"$error":"#NUM!"},{"$error":"#NUM!"},{"$error":"#NUM!"},{"$error":"#NUM!"},{"$f":"PERCENTILE(BQ8:BQ372,0.75)","v":{"$error":"#NUM!"}},{"$error":"#NUM!"},{"$error":"#NUM!"},{"$error":"#NUM!"},{"$error":"#NUM!"},{"$error":"#NUM!"},{"$error":"#NUM!"}]
[null,90,{"$f":"PERCENTILE(C9:C372,0.9)","v":{"$error":"#NUM!"}},{"$f":"PERCENTILE(D9:D372,0.9)","v":{"$error":"#NUM!"}},{"$f":"PERCENTILE(E9:E372,0.9)","v":{"$error":"#NUM!"}},{"$error":"#NUM!"},{"$error":"#NUM!"},{"$error":"#NUM!"},{"$error":"#NUM!"},{"$error":"#NUM!"},{"$error":"#NUM!"},{"$error":"#NUM!"},{"$error":"#NUM!"},{"$error":"#NUM!"},{"$error":"#NUM!"},{"$error":"#NUM!"},{"$error":"#NUM!"},{"$error":"#NUM!"},{"$error":"#NUM!"},{"$error":"#NUM!"},{"$error":"#NUM!"},{"$error":"#NUM!"},{"$error":"#NUM!"},{"$error":"#NUM!"},{"$error":"#NUM!"},{"$error":"#NUM!"},{"$error":"#NUM!"},{"$error":"#NUM!"},{"$error":"#NUM!"},{"$error":"#NUM!"},{"$error":"#NUM!"},{"$error":"#NUM!"},{"$error":"#NUM!"},{"$error":"#NUM!"},{"$error":"#NUM!"},{"$error":"#NUM!"},{"$error":"#NUM!"},{"$error":"#NUM!"},{"$error":"#NUM!"},{"$error":"#NUM!"},{"$error":"#NUM!"},{"$error":"#NUM!"},{"$error":"#NUM!"},{"$error":"#NUM!"},{"$error":"#NUM!"},{"$error":"#NUM!"},{"$error":"#NUM!"},{"$error":"#NUM!"},{"$error":"#NUM!"},{"$error":"#NUM!"},{"$error":"#NUM!"},{"$error":"#NUM!"},{"$error":"#NUM!"},{"$error":"#NUM!"},{"$error":"#NUM!"},{"$error":"#NUM!"},{"$error":"#NUM!"},{"$error":"#NUM!"},{"$error":"#NUM!"},{"$error":"#NUM!"},{"$error":"#NUM!"},{"$error":"#NUM!"},{"$error":"#NUM!"},{"$error":"#NUM!"},{"$error":"#NUM!"},{"$error":"#NUM!"},{"$error":"#NUM!"},{"$error":"#NUM!"},{"$f":"PERCENTILE(BQ9:BQ372,0.9)","v":{"$error":"#NUM!"}},{"$error":"#NUM!"},{"$error":"#NUM!"},{"$error":"#NUM!"},{"$error":"#NUM!"},{"$error":"#NUM!"},{"$error":"#NUM!"}]
[null,95,{"$f":"PERCENTILE(C10:C372,0.95)","v":{"$error":"#NUM!"}},{"$f":"IF(SUM(D10:D372)=0,\"\",PERCENTILE(D10:D372,0.95))","v":""},{"$f":"IF(SUM(E10:E372)=0,\"\",PERCENTILE(E10:E372,0.95))","v":""},"","","","","","","","","","","","","","","","","","","","","","","","","","","","","","","","","","","","","","","","","","","","","","","","","","","","","","","","","","","","","","","",{"$f":"IF(SUM(BQ10:BQ372)=0,\"\",PERCENTILE(BQ10:BQ372,0.95))","v":""},"","","","","",""]
[null,"Average",{"$f":"AVERAGE(C7:C372)","v":{"$error":"#DIV/0!"}},{"$f":"AVERAGE(D7:D372)","v":{"$error":"#DIV/0!"}},{"$f":"AVERAGE(E7:E372)","v":{"$error":"#DIV/0!"}},{"$error":"#DIV/0!"},{"$error":"#DIV/0!"},{"$error":"#DIV/0!"},{"$error":"#DIV/0!"},{"$error":"#DIV/0!"},{"$error":"#DIV/0!"},{"$error":"#DIV/0!"},{"$error":"#DIV/0!"},{"$error":"#DIV/0!"},{"$error":"#DIV/0!"},{"$error":"#DIV/0!"},{"$error":"#DIV/0!"},{"$error":"#DIV/0!"},{"$error":"#DIV/0!"},{"$error":"#DIV/0!"},{"$error":"#DIV/0!"},{"$error":"#DIV/0!"},{"$error":"#DIV/0!"},{"$error":"#DIV/0!"},{"$error":"#DIV/0!"},{"$error":"#DIV/0!"},{"$error":"#DIV/0!"},{"$error":"#DIV/0!"},{"$error":"#DIV/0!"},{"$error":"#DIV/0!"},{"$error":"#DIV/0!"},{"$error":"#DIV/0!"},{"$error":"#DIV/0!"},{"$error":"#DIV/0!"},{"$error":"#DIV/0!"},{"$error":"#DIV/0!"},{"$error":"#DIV/0!"},{"$error":"#DIV/0!"},{"$error":"#DIV/0!"},{"$error":"#DIV/0!"},{"$error":"#DIV/0!"},{"$error":"#DIV/0!"},{"$error":"#DIV/0!"},{"$error":"#DIV/0!"},{"$error":"#DIV/0!"},{"$error":"#DIV/0!"},{"$error":"#DIV/0!"},{"$error":"#DIV/0!"},{"$error":"#DIV/0!"},{"$error":"#DIV/0!"},{"$error":"#DIV/0!"},{"$error":"#DIV/0!"},{"$error":"#DIV/0!"},{"$error":"#DIV/0!"},{"$error":"#DIV/0!"},{"$error":"#DIV/0!"},{"$error":"#DIV/0!"},{"$error":"#DIV/0!"},{"$error":"#DIV/0!"},{"$error":"#DIV/0!"},{"$error":"#DIV/0!"},{"$error":"#DIV/0!"},{"$error":"#DIV/0!"},{"$error":"#DIV/0!"},{"$error":"#DIV/0!"},{"$error":"#DIV/0!"},{"$error":"#DIV/0!"},{"$error":"#DIV/0!"},{"$f":"AVERAGE(BQ7:BQ372)","v":{"$error":"#DIV/0!"}},{"$error":"#DIV/0!"},{"$error":"#DIV/0!"},{"$error":"#DIV/0!"},{"$error":"#DIV/0!"},{"$error":"#DIV/0!"},{"$error":"#DIV/0!"}]
[null,"Minimum",{"$f":"MIN(C7:C372)","v":0},{"$f":"MIN(D7:D372)","v":0},{"$f":"MIN(E7:E372)","v":0},0,0,0,0,0,0,0,0,0,0,0,0,0,0,0,0,0,0,0,0,0,0,0,0,0,0,0,0,0,0,0,0,0,0,0,0,0,0,0,0,0,0,0,0,0,0,0,0,0,0,0,0,0,0,0,0,0,0,0,0,0,0,0,{"$f":"MIN(BQ7:BQ372)","v":0},0,0,0,0,0,0]
[null,"Maximum",{"$f":"MAX(C7:C372)","v":0},{"$f":"MAX(D7:D372)","v":0},{"$f":"MAX(E7:E372)","v":0},0,0,0,0,0,0,0,0,0,0,0,0,0,0,0,0,0,0,0,0,0,0,0,0,0,0,0,0,0,0,0,0,0,0,0,0,0,0,0,0,0,0,0,0,0,0,0,0,0,0,0,0,0,0,0,0,0,0,0,0,0,0,0,{"$f":"MAX(BQ7:BQ372)","v":0},0,0,0,0,0,0]

{"sheet":"Overview","index":1,"n_rows":24,"n_cols":10,"rows_kept":24,"cut":false,"hidden":false,"merged":[[17,1,18,3],[9,1,10,3],[11,1,12,3],[9,4,10,4],[11,4,12,4],[9,6,10,7],[9,8,10,9],[7,6,8,9],[11,8,12,8],[11,9,12,9],[2,1,2,5],[3,1,3,5],[4,1,4,5],[13,1,14,3],[13,4,14,4],[7,1,8,4]]}
[]
[]
[null,{"$f":"Data!D2","v":"Test System"}]
[null,{"$f":"Data!D3","v":"Test Western WTP"}]
[null,{"$f":"Data!D4","v":"AL0004000"}]
[]
[]
[null,"Optimization Status"]
[]
[null,"Sedimentation Meet",null,null,{"$f":"IF(MAX(Data!D377:W377)>=Data!J3,\"No\",\"Yes\")","v":"Yes"}]
[]
[null,"Filtration Meet",null,null,{"$f":"IF(AND(IF(G12 = \"Good\",TRUE),IF(H12 = \"Good\",TRUE)),\"Yes\",\"No\")","v":"No"},null,{"$f":"IF(G23>0.305,\"BAD\", \"GOOD\")","v":"BAD"},{"$f":"IF(MAX(Data!X377:BS377)>0.105,\"BAD\",\"GOOD\")","v":"GOOD"}]
[]
[null,"Optimization Goals Achieved",null,null,{"$f":"IF(AND(E10=\"Yes\",E12=\"Yes\")=TRUE,\"Yes\",\"No\")","v":"No"}]
[]
[]
[]
[null,"ANNUAL DATA",null,null,"Avg","Min","Max",0.95,"Opt. Goal","Reg."]
[null,null,null,null,"NTU","NTU","NTU","NTU","% Values","% Values"]
[null,"Raw Turbidity",null,null,{"$f":"IF(SUM(Data!C7:C372)=0,\"\",AVERAGE(Data!C7:C372))","v":""},{"$f":"IF(MIN(RAW)=0,\"\",MIN(RAW))","v":""},{"$f":"IF(MAX(RAW)=0,\"\",MAX(RAW))","v":""},{"$f":"IF(SUM(RAW)=0,\"\",PERCENTILE(RAW,0.95))","v":""},"N/A","N/A"]
[null,"Max. Settled Turbidity",null,null,{"$f":"IF(SUM(MAXBASIN)=0,\"\",AVERAGE(MAXBASIN))","v":""},{"$f":"IF(SUM(MAXBASIN)=0,\"\",MIN(MAXBASIN))","v":""},{"$f":"IF(SUM(MAXBASIN)=0,\"\",MAX(MAXBASIN))","v":""},{"$f":"IF(SUM(MAXBASIN)=0,\"\",PERCENTILE(MAXBASIN,0.95))","v":""},{"$f":"IF(SUM(MAXBASIN)=0,\"\",FREQUENCY(MAXBASIN,Data!J3)/(COUNT(MAXBASIN)))","v":""},"N/A"]
[null,"Average Settled Turbidity",null,null,{"$f":"IF(ISERROR(AVEBASIN),\"\",AVERAGE(AVEBASIN))","v":{"$error":"#DIV/0!"}},{"$f":"IF(SUM(AVEBASIN)=0,\"\",MIN(AVEBASIN))","v":""},{"$f":"IF(SUM(AVEBASIN)=0,\"\",MAX(AVEBASIN))","v":""},{"$f":"IF(SUM(AVEBASIN)=0,\"\",PERCENTILE(AVEBASIN,0.95))","v":""},{"$f":"IF(SUM(AVEBASIN)=0,\"\",FREQUENCY(AVEBASIN,Data!J3)/(COUNT(AVEBASIN)))","v":""},"N/A"]
[null,"Max. Filtered Turbidity",null,null,{"$f":"IF(SUM(MAXFILTER)=0,\"\",AVERAGE(MAXFILTER))","v":""},{"$f":"IF(SUM(MAXFILTER)=0,\"\",MIN(MAXFILTER))","v":""},{"$f":"IF(SUM(MAXFILTER)=0,\"\",MAX(MAXFILTER))","v":""},{"$f":"IF(SUM(MAXFILTER)=0,\"\",PERCENTILE(MAXFILTER,0.95))","v":""},{"$f":"IF(SUM(MAXFILTER)=0,\"\",FREQUENCY(MAXFILTER,0.1)/(COUNT(MAXFILTER)))","v":""},{"$f":"IF(SUM(MAXFILTER)=0,\"\",FREQUENCY(MAXFILTER,0.3)/(COUNT(MAXFILTER)))","v":""}]
[null,"Average Filtered Turbidity",null,null,{"$f":"IF(ISERROR(AVEFILTER),\"\",AVERAGE(AVEFILTER))","v":{"$error":"#DIV/0!"}},{"$f":"IF(ISERROR(AVEFILTER),\"\",MIN(AVEFILTER))","v":0},{"$f":"IF(ISERROR(AVEFILTER),\"\",MAX(AVEFILTER))","v":0},{"$f":"IF(ISERROR(AVEFILTER),\"\",PERCENTILE(AVEFILTER,0.95))","v":{"$error":"#NUM!"}},{"$f":"IF(ISERROR(AVEFILTER),\"\",FREQUENCY(AVEFILTER,0.1)/(COUNT(AVEFILTER)))","v":{"$error":"#DIV/0!"}},{"$f":"IF(ISERROR(AVEFILTER),\"\",FREQUENCY(AVEFILTER,0.3)/(COUNT(AVEFILTER)))","v":{"$error":"#DIV/0!"}}]

{"sheet":"Filters 1-12 Sum","index":2,"n_rows":29,"n_cols":20,"rows_kept":29,"cut":false,"hidden":false,"merged":[[6,3,6,7],[6,8,6,19],[1,1,1,9],[2,1,2,9],[3,1,3,9],[5,3,5,7],[5,8,5,19],[5,2,6,2]]}
[]
[null,{"$f":"Data!D2","v":"Test System"}]
[null,{"$f":"Data!D3","v":"Test Western WTP"}]
[null,{"$f":"Data!D4","v":"AL0004000"}]
[]
[null,null,null,"Settled Water Turbidity",null,null,null,null,"Filtered Water Turbidity"]
[null,null,null,null,null,null,null,null,"95th Percentile Values (NTU)"]
[null,null,"Raw",{"$f":"Data!D6","v":"Basin 1"},{"$f":"Data!E6","v":"Basin 2"},{"$f":"Data!F6","v":"Basin 3"},{"$f":"Data!G6","v":"Basin 4"},{"$f":"Data!H6","v":"Basin 5"},{"$f":"Data!X6","v":"Filter 1"},{"$f":"Data!Y6","v":"Filter 2"},{"$f":"Data!Z6","v":"Filter 3"},{"$f":"Data!AA6","v":"Filter 4"},{"$f":"Data!AB6","v":"Filter 5"},{"$f":"Data!AC6","v":"Filter 6"},{"$f":"Data!AD6","v":"Filter 7"},{"$f":"Data!AE6","v":"Filter 8"},{"$f":"Data!AF6","v":"Filter 9"},{"$f":"Data!AG6","v":"Filter 10"},{"$f":"Data!AH6","v":"Filter 11"},{"$f":"Data!AI6","v":"Filter 12"}]
[null,{"$f":"'95th'!B4","v":"00:00:00"},{"$f":"IF(ISERROR('95th'!D4=0),\"\",'95th'!D4)","v":""},{"$f":"IF(ISERROR('95th'!E4=0),\"\",'95th'!E4)","v":""},{"$f":"IF(ISERROR('95th'!F4=0),\"\",'95th'!F4)","v":""},{"$f":"IF(ISERROR('95th'!G4=0),\"\",'95th'!G4)","v":""},{"$f":"IF(ISERROR('95th'!H4=0),\"\",'95th'!H4)","v":""},{"$f":"IF(ISERROR('95th'!I4=0),\"\",'95th'!I4)","v":""},{"$f":"IF(ISERROR('95th'!Y4),\"\",'95th'!Y4)","v":""},{"$f":"IF(ISERROR('95th'!Z4),\"\",'95th'!Z4)","v":""},{"$f":"IF(ISERROR('95th'!AA4),\"\",'95th'!AA4)","v":""},{"$f":"IF(ISERROR('95th'!AB4),\"\",'95th'!AB4)","v":""},{"$f":"IF(ISERROR('95th'!AC4),\"\",'95th'!AC4)","v":""},{"$f":"IF(ISERROR('95th'!AD4),\"\",'95th'!AD4)","v":""},{"$f":"IF(ISERROR('95th'!AE4),\"\",'95th'!AE4)","v":""},{"$f":"IF(ISERROR('95th'!AF4),\"\",'95th'!AF4)","v":""},{"$f":"IF(ISERROR('95th'!AG4),\"\",'95th'!AG4)","v":""},{"$f":"IF(ISERROR('95th'!AH4),\"\",'95th'!AH4)","v":""},{"$f":"IF(ISERROR('95th'!AI4),\"\",'95th'!AI4)","v":""},{"$f":"IF(ISERROR('95th'!AJ4),\"\",'95th'!AJ4)","v":""}]
[null,{"$f":"'95th'!B5","v":"00:00:00"},{"$f":"IF(ISERROR('95th'!D5=0),\"\",'95th'!D5)","v":""},{"$f":"IF(ISERROR('95th'!E5=0),\"\",'95th'!E5)","v":""},{"$f":"IF(ISERROR('95th'!F5=0),\"\",'95th'!F5)","v":""},{"$f":"IF(ISERROR('95th'!G5=0),\"\",'95th'!G5)","v":""},{"$f":"IF(ISERROR('95th'!H5=0),\"\",'95th'!H5)","v":""},{"$f":"IF(ISERROR('95th'!I5=0),\"\",'95th'!I5)","v":""},{"$f":"IF(ISERROR('95th'!Y5),\"\",'95th'!Y5)","v":""},{"$f":"IF(ISERROR('95th'!Z5),\"\",'95th'!Z5)","v":""},{"$f":"IF(ISERROR('95th'!AA5),\"\",'95th'!AA5)","v":""},{"$f":"IF(ISERROR('95th'!AB5),\"\",'95th'!AB5)","v":""},{"$f":"IF(ISERROR('95th'!AC5),\"\",'95th'!AC5)","v":""},{"$f":"IF(ISERROR('95th'!AD5),\"\",'95th'!AD5)","v":""},{"$f":"IF(ISERROR('95th'!AE5),\"\",'95th'!AE5)","v":""},{"$f":"IF(ISERROR('95th'!AF5),\"\",'95th'!AF5)","v":""},{"$f":"IF(ISERROR('95th'!AG5),\"\",'95th'!AG5)","v":""},{"$f":"IF(ISERROR('95th'!AH5),\"\",'95th'!AH5)","v":""},{"$f":"IF(ISERROR('95th'!AI5),\"\",'95th'!AI5)","v":""},{"$f":"IF(ISERROR('95th'!AJ5),\"\",'95th'!AJ5)","v":""}]
[null,{"$f":"'95th'!B6","v":"00:00:00"},{"$f":"IF(ISERROR('95th'!D6=0),\"\",'95th'!D6)","v":""},{"$f":"IF(ISERROR('95th'!E6=0),\"\",'95th'!E6)","v":""},{"$f":"IF(ISERROR('95th'!F6=0),\"\",'95th'!F6)","v":""},{"$f":"IF(ISERROR('95th'!G6=0),\"\",'95th'!G6)","v":""},{"$f":"IF(ISERROR('95th'!H6=0),\"\",'95th'!H6)","v":""},{"$f":"IF(ISERROR('95th'!I6=0),\"\",'95th'!I6)","v":""},{"$f":"IF(ISERROR('95th'!Y6),\"\",'95th'!Y6)","v":""},{"$f":"IF(ISERROR('95th'!Z6),\"\",'95th'!Z6)","v":""},{"$f":"IF(ISERROR('95th'!AA6),\"\",'95th'!AA6)","v":""},{"$f":"IF(ISERROR('95th'!AB6),\"\",'95th'!AB6)","v":""},{"$f":"IF(ISERROR('95th'!AC6),\"\",'95th'!AC6)","v":""},{"$f":"IF(ISERROR('95th'!AD6),\"\",'95th'!AD6)","v":""},{"$f":"IF(ISERROR('95th'!AE6),\"\",'95th'!AE6)","v":""},{"$f":"IF(ISERROR('95th'!AF6),\"\",'95th'!AF6)","v":""},{"$f":"IF(ISERROR('95th'!AG6),\"\",'95th'!AG6)","v":""},{"$f":"IF(ISERROR('95th'!AH6),\"\",'95th'!AH6)","v":""},{"$f":"IF(ISERROR('95th'!AI6),\"\",'95th'!AI6)","v":""},{"$f":"IF(ISERROR('95th'!AJ6),\"\",'95th'!AJ6)","v":""}]
[null,{"$f":"'95th'!B7","v":"00:00:00"},{"$f":"IF(ISERROR('95th'!D7=0),\"\",'95th'!D7)","v":""},{"$f":"IF(ISERROR('95th'!E7=0),\"\",'95th'!E7)","v":""},{"$f":"IF(ISERROR('95th'!F7=0),\"\",'95th'!F7)","v":""},{"$f":"IF(ISERROR('95th'!G7=0),\"\",'95th'!G7)","v":""},{"$f":"IF(ISERROR('95th'!H7=0),\"\",'95th'!H7)","v":""},{"$f":"IF(ISERROR('95th'!I7=0),\"\",'95th'!I7)","v":""},{"$f":"IF(ISERROR('95th'!Y7),\"\",'95th'!Y7)","v":""},{"$f":"IF(ISERROR('95th'!Z7),\"\",'95th'!Z7)","v":""},{"$f":"IF(ISERROR('95th'!AA7),\"\",'95th'!AA7)","v":""},{"$f":"IF(ISERROR('95th'!AB7),\"\",'95th'!AB7)","v":""},{"$f":"IF(ISERROR('95th'!AC7),\"\",'95th'!AC7)","v":""},{"$f":"IF(ISERROR('95th'!AD7),\"\",'95th'!AD7)","v":""},{"$f":"IF(ISERROR('95th'!AE7),\"\",'95th'!AE7)","v":""},{"$f":"IF(ISERROR('95th'!AF7),\"\",'95th'!AF7)","v":""},{"$f":"IF(ISERROR('95th'!AG7),\"\",'95th'!AG7)","v":""},{"$f":"IF(ISERROR('95th'!AH7),\"\",'95th'!AH7)","v":""},{"$f":"IF(ISERROR('95th'!AI7),\"\",'95th'!AI7)","v":""},{"$f":"IF(ISERROR('95th'!AJ7),\"\",'95th'!AJ7)","v":""}]
[null,{"$f":"'95th'!B8","v":"00:00:00"},{"$f":"IF(ISERROR('95th'!D8=0),\"\",'95th'!D8)","v":""},{"$f":"IF(ISERROR('95th'!E8=0),\"\",'95th'!E8)","v":""},{"$f":"IF(ISERROR('95th'!F8=0),\"\",'95th'!F8)","v":""},{"$f":"IF(ISERROR('95th'!G8=0),\"\",'95th'!G8)","v":""},{"$f":"IF(ISERROR('95th'!H8=0),\"\",'95th'!H8)","v":""},{"$f":"IF(ISERROR('95th'!I8=0),\"\",'95th'!I8)","v":""},{"$f":"IF(ISERROR('95th'!Y8),\"\",'95th'!Y8)","v":""},{"$f":"IF(ISERROR('95th'!Z8),\"\",'95th'!Z8)","v":""},{"$f":"IF(ISERROR('95th'!AA8),\"\",'95th'!AA8)","v":""},{"$f":"IF(ISERROR('95th'!AB8),\"\",'95th'!AB8)","v":""},{"$f":"IF(ISERROR('95th'!AC8),\"\",'95th'!AC8)","v":""},{"$f":"IF(ISERROR('95th'!AD8),\"\",'95th'!AD8)","v":""},{"$f":"IF(ISERROR('95th'!AE8),\"\",'95th'!AE8)","v":""},{"$f":"IF(ISERROR('95th'!AF8),\"\",'95th'!AF8)","v":""},{"$f":"IF(ISERROR('95th'!AG8),\"\",'95th'!AG8)","v":""},{"$f":"IF(ISERROR('95th'!AH8),\"\",'95th'!AH8)","v":""},{"$f":"IF(ISERROR('95th'!AI8),\"\",'95th'!AI8)","v":""},{"$f":"IF(ISERROR('95th'!AJ8),\"\",'95th'!AJ8)","v":""}]
[null,{"$f":"'95th'!B9","v":"00:00:00"},{"$f":"IF(ISERROR('95th'!D9=0),\"\",'95th'!D9)","v":""},{"$f":"IF(ISERROR('95th'!E9=0),\"\",'95th'!E9)","v":""},{"$f":"IF(ISERROR('95th'!F9=0),\"\",'95th'!F9)","v":""},{"$f":"IF(ISERROR('95th'!G9=0),\"\",'95th'!G9)","v":""},{"$f":"IF(ISERROR('95th'!H9=0),\"\",'95th'!H9)","v":""},{"$f":"IF(ISERROR('95th'!I9=0),\"\",'95th'!I9)","v":""},{"$f":"IF(ISERROR('95th'!Y9),\"\",'95th'!Y9)","v":""},{"$f":"IF(ISERROR('95th'!Z9),\"\",'95th'!Z9)","v":""},{"$f":"IF(ISERROR('95th'!AA9),\"\",'95th'!AA9)","v":""},{"$f":"IF(ISERROR('95th'!AB9),\"\",'95th'!AB9)","v":""},{"$f":"IF(ISERROR('95th'!AC9),\"\",'95th'!AC9)","v":""},{"$f":"IF(ISERROR('95th'!AD9),\"\",'95th'!AD9)","v":""},{"$f":"IF(ISERROR('95th'!AE9),\"\",'95th'!AE9)","v":""},{"$f":"IF(ISERROR('95th'!AF9),\"\",'95th'!AF9)","v":""},{"$f":"IF(ISERROR('95th'!AG9),\"\",'95th'!AG9)","v":""},{"$f":"IF(ISERROR('95th'!AH9),\"\",'95th'!AH9)","v":""},{"$f":"IF(ISERROR('95th'!AI9),\"\",'95th'!AI9)","v":""},{"$f":"IF(ISERROR('95th'!AJ9),\"\",'95th'!AJ9)","v":""}]
[null,{"$f":"'95th'!B10","v":"00:00:00"},{"$f":"IF(ISERROR('95th'!D10=0),\"\",'95th'!D10)","v":""},{"$f":"IF(ISERROR('95th'!E10=0),\"\",'95th'!E10)","v":""},{"$f":"IF(ISERROR('95th'!F10=0),\"\",'95th'!F10)","v":""},{"$f":"IF(ISERROR('95th'!G10=0),\"\",'95th'!G10)","v":""},{"$f":"IF(ISERROR('95th'!H10=0),\"\",'95th'!H10)","v":""},{"$f":"IF(ISERROR('95th'!I10=0),\"\",'95th'!I10)","v":""},{"$f":"IF(ISERROR('95th'!Y10),\"\",'95th'!Y10)","v":""},{"$f":"IF(ISERROR('95th'!Z10),\"\",'95th'!Z10)","v":""},{"$f":"IF(ISERROR('95th'!AA10),\"\",'95th'!AA10)","v":""},{"$f":"IF(ISERROR('95th'!AB10),\"\",'95th'!AB10)","v":""},{"$f":"IF(ISERROR('95th'!AC10),\"\",'95th'!AC10)","v":""},{"$f":"IF(ISERROR('95th'!AD10),\"\",'95th'!AD10)","v":""},{"$f":"IF(ISERROR('95th'!AE10),\"\",'95th'!AE10)","v":""},{"$f":"IF(ISERROR('95th'!AF10),\"\",'95th'!AF10)","v":""},{"$f":"IF(ISERROR('95th'!AG10),\"\",'95th'!AG10)","v":""},{"$f":"IF(ISERROR('95th'!AH10),\"\",'95th'!AH10)","v":""},{"$f":"IF(ISERROR('95th'!AI10),\"\",'95th'!AI10)","v":""},{"$f":"IF(ISERROR('95th'!AJ10),\"\",'95th'!AJ10)","v":""}]
[null,{"$f":"'95th'!B11","v":"00:00:00"},{"$f":"IF(ISERROR('95th'!D11=0),\"\",'95th'!D11)","v":""},{"$f":"IF(ISERROR('95th'!E11=0),\"\",'95th'!E11)","v":""},{"$f":"IF(ISERROR('95th'!F11=0),\"\",'95th'!F11)","v":""},{"$f":"IF(ISERROR('95th'!G11=0),\"\",'95th'!G11)","v":""},{"$f":"IF(ISERROR('95th'!H11=0),\"\",'95th'!H11)","v":""},{"$f":"IF(ISERROR('95th'!I11=0),\"\",'95th'!I11)","v":""},{"$f":"IF(ISERROR('95th'!Y11),\"\",'95th'!Y11)","v":""},{"$f":"IF(ISERROR('95th'!Z11),\"\",'95th'!Z11)","v":""},{"$f":"IF(ISERROR('95th'!AA11),\"\",'95th'!AA11)","v":""},{"$f":"IF(ISERROR('95th'!AB11),\"\",'95th'!AB11)","v":""},{"$f":"IF(ISERROR('95th'!AC11),\"\",'95th'!AC11)","v":""},{"$f":"IF(ISERROR('95th'!AD11),\"\",'95th'!AD11)","v":""},{"$f":"IF(ISERROR('95th'!AE11),\"\",'95th'!AE11)","v":""},{"$f":"IF(ISERROR('95th'!AF11),\"\",'95th'!AF11)","v":""},{"$f":"IF(ISERROR('95th'!AG11),\"\",'95th'!AG11)","v":""},{"$f":"IF(ISERROR('95th'!AH11),\"\",'95th'!AH11)","v":""},{"$f":"IF(ISERROR('95th'!AI11),\"\",'95th'!AI11)","v":""},{"$f":"IF(ISERROR('95th'!AJ11),\"\",'95th'!AJ11)","v":""}]
[null,{"$f":"'95th'!B12","v":"00:00:00"},{"$f":"IF(ISERROR('95th'!D12=0),\"\",'95th'!D12)","v":""},{"$f":"IF(ISERROR('95th'!E12=0),\"\",'95th'!E12)","v":""},{"$f":"IF(ISERROR('95th'!F12=0),\"\",'95th'!F12)","v":""},{"$f":"IF(ISERROR('95th'!G12=0),\"\",'95th'!G12)","v":""},{"$f":"IF(ISERROR('95th'!H12=0),\"\",'95th'!H12)","v":""},{"$f":"IF(ISERROR('95th'!I12=0),\"\",'95th'!I12)","v":""},{"$f":"IF(ISERROR('95th'!Y12),\"\",'95th'!Y12)","v":""},{"$f":"IF(ISERROR('95th'!Z12),\"\",'95th'!Z12)","v":""},{"$f":"IF(ISERROR('95th'!AA12),\"\",'95th'!AA12)","v":""},{"$f":"IF(ISERROR('95th'!AB12),\"\",'95th'!AB12)","v":""},{"$f":"IF(ISERROR('95th'!AC12),\"\",'95th'!AC12)","v":""},{"$f":"IF(ISERROR('95th'!AD12),\"\",'95th'!AD12)","v":""},{"$f":"IF(ISERROR('95th'!AE12),\"\",'95th'!AE12)","v":""},{"$f":"IF(ISERROR('95th'!AF12),\"\",'95th'!AF12)","v":""},{"$f":"IF(ISERROR('95th'!AG12),\"\",'95th'!AG12)","v":""},{"$f":"IF(ISERROR('95th'!AH12),\"\",'95th'!AH12)","v":""},{"$f":"IF(ISERROR('95th'!AI12),\"\",'95th'!AI12)","v":""},{"$f":"IF(ISERROR('95th'!AJ12),\"\",'95th'!AJ12)","v":""}]
[null,{"$f":"'95th'!B13","v":"00:00:00"},{"$f":"IF(ISERROR('95th'!D13=0),\"\",'95th'!D13)","v":""},{"$f":"IF(ISERROR('95th'!E13=0),\"\",'95th'!E13)","v":""},{"$f":"IF(ISERROR('95th'!F13=0),\"\",'95th'!F13)","v":""},{"$f":"IF(ISERROR('95th'!G13=0),\"\",'95th'!G13)","v":""},{"$f":"IF(ISERROR('95th'!H13=0),\"\",'95th'!H13)","v":""},{"$f":"IF(ISERROR('95th'!I13=0),\"\",'95th'!I13)","v":""},{"$f":"IF(ISERROR('95th'!Y13),\"\",'95th'!Y13)","v":""},{"$f":"IF(ISERROR('95th'!Z13),\"\",'95th'!Z13)","v":""},{"$f":"IF(ISERROR('95th'!AA13),\"\",'95th'!AA13)","v":""},{"$f":"IF(ISERROR('95th'!AB13),\"\",'95th'!AB13)","v":""},{"$f":"IF(ISERROR('95th'!AC13),\"\",'95th'!AC13)","v":""},{"$f":"IF(ISERROR('95th'!AD13),\"\",'95th'!AD13)","v":""},{"$f":"IF(ISERROR('95th'!AE13),\"\",'95th'!AE13)","v":""},{"$f":"IF(ISERROR('95th'!AF13),\"\",'95th'!AF13)","v":""},{"$f":"IF(ISERROR('95th'!AG13),\"\",'95th'!AG13)","v":""},{"$f":"IF(ISERROR('95th'!AH13),\"\",'95th'!AH13)","v":""},{"$f":"IF(ISERROR('95th'!AI13),\"\",'95th'!AI13)","v":""},{"$f":"IF(ISERROR('95th'!AJ13),\"\",'95th'!AJ13)","v":""}]
[null,{"$f":"'95th'!B14","v":"00:00:00"},{"$f":"IF(ISERROR('95th'!D14=0),\"\",'95th'!D14)","v":""},{"$f":"IF(ISERROR('95th'!E14=0),\"\",'95th'!E14)","v":""},{"$f":"IF(ISERROR('95th'!F14=0),\"\",'95th'!F14)","v":""},{"$f":"IF(ISERROR('95th'!G14=0),\"\",'95th'!G14)","v":""},{"$f":"IF(ISERROR('95th'!H14=0),\"\",'95th'!H14)","v":""},{"$f":"IF(ISERROR('95th'!I14=0),\"\",'95th'!I14)","v":""},{"$f":"IF(ISERROR('95th'!Y14),\"\",'95th'!Y14)","v":""},{"$f":"IF(ISERROR('95th'!Z14),\"\",'95th'!Z14)","v":""},{"$f":"IF(ISERROR('95th'!AA14),\"\",'95th'!AA14)","v":""},{"$f":"IF(ISERROR('95th'!AB14),\"\",'95th'!AB14)","v":""},{"$f":"IF(ISERROR('95th'!AC14),\"\",'95th'!AC14)","v":""},{"$f":"IF(ISERROR('95th'!AD14),\"\",'95th'!AD14)","v":""},{"$f":"IF(ISERROR('95th'!AE14),\"\",'95th'!AE14)","v":""},{"$f":"IF(ISERROR('95th'!AF14),\"\",'95th'!AF14)","v":""},{"$f":"IF(ISERROR('95th'!AG14),\"\",'95th'!AG14)","v":""},{"$f":"IF(ISERROR('95th'!AH14),\"\",'95th'!AH14)","v":""},{"$f":"IF(ISERROR('95th'!AI14),\"\",'95th'!AI14)","v":""},{"$f":"IF(ISERROR('95th'!AJ14),\"\",'95th'!AJ14)","v":""}]
[null,{"$f":"'95th'!B15","v":"00:00:00"},{"$f":"IF(ISERROR('95th'!D15=0),\"\",'95th'!D15)","v":""},{"$f":"IF(ISERROR('95th'!E15=0),\"\",'95th'!E15)","v":""},{"$f":"IF(ISERROR('95th'!F15=0),\"\",'95th'!F15)","v":""},{"$f":"IF(ISERROR('95th'!G15=0),\"\",'95th'!G15)","v":""},{"$f":"IF(ISERROR('95th'!H15=0),\"\",'95th'!H15)","v":""},{"$f":"IF(ISERROR('95th'!I15=0),\"\",'95th'!I15)","v":""},{"$f":"IF(ISERROR('95th'!Y15),\"\",'95th'!Y15)","v":""},{"$f":"IF(ISERROR('95th'!Z15),\"\",'95th'!Z15)","v":""},{"$f":"IF(ISERROR('95th'!AA15),\"\",'95th'!AA15)","v":""},{"$f":"IF(ISERROR('95th'!AB15),\"\",'95th'!AB15)","v":""},{"$f":"IF(ISERROR('95th'!AC15),\"\",'95th'!AC15)","v":""},{"$f":"IF(ISERROR('95th'!AD15),\"\",'95th'!AD15)","v":""},{"$f":"IF(ISERROR('95th'!AE15),\"\",'95th'!AE15)","v":""},{"$f":"IF(ISERROR('95th'!AF15),\"\",'95th'!AF15)","v":""},{"$f":"IF(ISERROR('95th'!AG15),\"\",'95th'!AG15)","v":""},{"$f":"IF(ISERROR('95th'!AH15),\"\",'95th'!AH15)","v":""},{"$f":"IF(ISERROR('95th'!AI15),\"\",'95th'!AI15)","v":""},{"$f":"IF(ISERROR('95th'!AJ15),\"\",'95th'!AJ15)","v":""}]
[]
[null,0.5,{"$f":"IF(SUM(Data!C$7:C$372)=0,\"\",PERCENTILE(Data!C$7:C$372,0.5))","v":""},{"$f":"IF(SUM(Data!D$7:D$372)=0,\"\",PERCENTILE(Data!D$7:D$372,0.5))","v":""},{"$f":"IF(SUM(Data!E$7:E$372)=0,\"\",PERCENTILE(Data!E$7:E$372,0.5))","v":""},{"$f":"IF(SUM(Data!F$7:F$372)=0,\"\",PERCENTILE(Data!F$7:F$372,0.5))","v":""},{"$f":"IF(SUM(Data!G$7:G$372)=0,\"\",PERCENTILE(Data!G$7:G$372,0.5))","v":""},{"$f":"IF(SUM(Data!H$7:H$372)=0,\"\",PERCENTILE(Data!H$7:H$372,0.5))","v":""},{"$f":"IF(SUM(Data!X$7:X$372)=0,\"\",PERCENTILE(Data!X$7:X$372,0.5))","v":""},{"$f":"IF(SUM(Data!Y$7:Y$372)=0,\"\",PERCENTILE(Data!Y$7:Y$372,0.5))","v":""},{"$f":"IF(SUM(Data!Z$7:Z$372)=0,\"\",PERCENTILE(Data!Z$7:Z$372,0.5))","v":""},{"$f":"IF(SUM(Data!AA$7:AA$372)=0,\"\",PERCENTILE(Data!AA$7:AA$372,0.5))","v":""},{"$f":"IF(SUM(Data!AB$7:AB$372)=0,\"\",PERCENTILE(Data!AB$7:AB$372,0.5))","v":""},{"$f":"IF(SUM(Data!AC$7:AC$372)=0,\"\",PERCENTILE(Data!AC$7:AC$372,0.5))","v":""},{"$f":"IF(SUM(Data!AD$7:AD$372)=0,\"\",PERCENTILE(Data!AD$7:AD$372,0.5))","v":""},{"$f":"IF(SUM(Data!AE$7:AE$372)=0,\"\",PERCENTILE(Data!AE$7:AE$372,0.5))","v":""},{"$f":"IF(SUM(Data!AF$7:AF$372)=0,\"\",PERCENTILE(Data!AF$7:AF$372,0.5))","v":""},{"$f":"IF(SUM(Data!AG$7:AG$372)=0,\"\",PERCENTILE(Data!AG$7:AG$372,0.5))","v":""},{"$f":"IF(SUM(Data!AH$7:AH$372)=0,\"\",PERCENTILE(Data!AH$7:AH$372,0.5))","v":""},{"$f":"IF(SUM(Data!AI$7:AI$372)=0,\"\",PERCENTILE(Data!AI$7:AI$372,0.5))","v":""}]
[null,0.75,{"$f":"IF(SUM(Data!C$7:C$372)=0,\"\",PERCENTILE(Data!C$7:C$372,0.75))","v":""},{"$f":"IF(SUM(Data!D$7:D$372)=0,\"\",PERCENTILE(Data!D$7:D$372,0.75))","v":""},{"$f":"IF(SUM(Data!E$7:E$372)=0,\"\",PERCENTILE(Data!E$7:E$372,0.75))","v":""},{"$f":"IF(SUM(Data!F$7:F$372)=0,\"\",PERCENTILE(Data!F$7:F$372,0.75))","v":""},{"$f":"IF(SUM(Data!G$7:G$372)=0,\"\",PERCENTILE(Data!G$7:G$372,0.75))","v":""},{"$f":"IF(SUM(Data!H$7:H$372)=0,\"\",PERCENTILE(Data!H$7:H$372,0.75))","v":""},{"$f":"IF(SUM(Data!X$7:X$372)=0,\"\",PERCENTILE(Data!X$7:X$372,0.75))","v":""},{"$f":"IF(SUM(Data!Y$7:Y$372)=0,\"\",PERCENTILE(Data!Y$7:Y$372,0.75))","v":""},{"$f":"IF(SUM(Data!Z$7:Z$372)=0,\"\",PERCENTILE(Data!Z$7:Z$372,0.75))","v":""},{"$f":"IF(SUM(Data!AA$7:AA$372)=0,\"\",PERCENTILE(Data!AA$7:AA$372,0.75))","v":""},{"$f":"IF(SUM(Data!AB$7:AB$372)=0,\"\",PERCENTILE(Data!AB$7:AB$372,0.75))","v":""},{"$f":"IF(SUM(Data!AC$7:AC$372)=0,\"\",PERCENTILE(Data!AC$7:AC$372,0.75))","v":""},{"$f":"IF(SUM(Data!AD$7:AD$372)=0,\"\",PERCENTILE(Data!AD$7:AD$372,0.75))","v":""},{"$f":"IF(SUM(Data!AE$7:AE$372)=0,\"\",PERCENTILE(Data!AE$7:AE$372,0.75))","v":""},{"$f":"IF(SUM(Data!AF$7:AF$372)=0,\"\",PERCENTILE(Data!AF$7:AF$372,0.75))","v":""},{"$f":"IF(SUM(Data!AG$7:AG$372)=0,\"\",PERCENTILE(Data!AG$7:AG$372,0.75))","v":""},{"$f":"IF(SUM(Data!AH$7:AH$372)=0,\"\",PERCENTILE(Data!AH$7:AH$372,0.75))","v":""},{"$f":"IF(SUM(Data!AI$7:AI$372)=0,\"\",PERCENTILE(Data!AI$7:AI$372,0.75))","v":""}]
[null,0.9,{"$f":"IF(SUM(Data!C$7:C$372)=0,\"\",PERCENTILE(Data!C$7:C$372,0.9))","v":""},{"$f":"IF(SUM(Data!D$7:D$372)=0,\"\",PERCENTILE(Data!D$7:D$372,0.9))","v":""},{"$f":"IF(SUM(Data!E$7:E$372)=0,\"\",PERCENTILE(Data!E$7:E$372,0.9))","v":""},{"$f":"IF(SUM(Data!F$7:F$372)=0,\"\",PERCENTILE(Data!F$7:F$372,0.9))","v":""},{"$f":"IF(SUM(Data!G$7:G$372)=0,\"\",PERCENTILE(Data!G$7:G$372,0.9))","v":""},{"$f":"IF(SUM(Data!H$7:H$372)=0,\"\",PERCENTILE(Data!H$7:H$372,0.9))","v":""},{"$f":"IF(SUM(Data!X$7:X$372)=0,\"\",PERCENTILE(Data!X$7:X$372,0.9))","v":""},{"$f":"IF(SUM(Data!Y$7:Y$372)=0,\"\",PERCENTILE(Data!Y$7:Y$372,0.9))","v":""},{"$f":"IF(SUM(Data!Z$7:Z$372)=0,\"\",PERCENTILE(Data!Z$7:Z$372,0.9))","v":""},{"$f":"IF(SUM(Data!AA$7:AA$372)=0,\"\",PERCENTILE(Data!AA$7:AA$372,0.9))","v":""},{"$f":"IF(SUM(Data!AB$7:AB$372)=0,\"\",PERCENTILE(Data!AB$7:AB$372,0.9))","v":""},{"$f":"IF(SUM(Data!AC$7:AC$372)=0,\"\",PERCENTILE(Data!AC$7:AC$372,0.9))","v":""},{"$f":"IF(SUM(Data!AD$7:AD$372)=0,\"\",PERCENTILE(Data!AD$7:AD$372,0.9))","v":""},{"$f":"IF(SUM(Data!AE$7:AE$372)=0,\"\",PERCENTILE(Data!AE$7:AE$372,0.9))","v":""},{"$f":"IF(SUM(Data!AF$7:AF$372)=0,\"\",PERCENTILE(Data!AF$7:AF$372,0.9))","v":""},{"$f":"IF(SUM(Data!AG$7:AG$372)=0,\"\",PERCENTILE(Data!AG$7:AG$372,0.9))","v":""},{"$f":"IF(SUM(Data!AH$7:AH$372)=0,\"\",PERCENTILE(Data!AH$7:AH$372,0.9))","v":""},{"$f":"IF(SUM(Data!AI$7:AI$372)=0,\"\",PERCENTILE(Data!AI$7:AI$372,0.9))","v":""}]
[null,0.95,{"$f":"IF(SUM(Data!C$7:C$372)=0,\"\",PERCENTILE(Data!C$7:C$372,0.95))","v":""},{"$f":"IF(SUM(Data!D$7:D$372)=0,\"\",PERCENTILE(Data!D$7:D$372,0.95))","v":""},{"$f":"IF(SUM(Data!E$7:E$372)=0,\"\",PERCENTILE(Data!E$7:E$372,0.95))","v":""},{"$f":"IF(SUM(Data!F$7:F$372)=0,\"\",PERCENTILE(Data!F$7:F$372,0.95))","v":""},{"$f":"IF(SUM(Data!G$7:G$372)=0,\"\",PERCENTILE(Data!G$7:G$372,0.95))","v":""},{"$f":"IF(SUM(Data!H$7:H$372)=0,\"\",PERCENTILE(Data!H$7:H$372,0.95))","v":""},{"$f":"IF(SUM(Data!X7:X372)=0,\"\",PERCENTILE(Data!X7:X372,0.95))","v":""},{"$f":"IF(SUM(Data!Y7:Y372)=0,\"\",PERCENTILE(Data!Y7:Y372,0.95))","v":""},{"$f":"IF(SUM(Data!Z7:Z372)=0,\"\",PERCENTILE(Data!Z7:Z372,0.95))","v":""},{"$f":"IF(SUM(Data!AA7:AA372)=0,\"\",PERCENTILE(Data!AA7:AA372,0.95))","v":""},{"$f":"IF(SUM(Data!AB7:AB372)=0,\"\",PERCENTILE(Data!AB7:AB372,0.95))","v":""},{"$f":"IF(SUM(Data!AC7:AC372)=0,\"\",PERCENTILE(Data!AC7:AC372,0.95))","v":""},{"$f":"IF(SUM(Data!AD7:AD372)=0,\"\",PERCENTILE(Data!AD7:AD372,0.95))","v":""},{"$f":"IF(SUM(Data!AE7:AE372)=0,\"\",PERCENTILE(Data!AE7:AE372,0.95))","v":""},{"$f":"IF(SUM(Data!AF7:AF372)=0,\"\",PERCENTILE(Data!AF7:AF372,0.95))","v":""},{"$f":"IF(SUM(Data!AG7:AG372)=0,\"\",PERCENTILE(Data!AG7:AG372,0.95))","v":""},{"$f":"IF(SUM(Data!AH7:AH372)=0,\"\",PERCENTILE(Data!AH7:AH372,0.95))","v":""},{"$f":"IF(SUM(Data!AI7:AI372)=0,\"\",PERCENTILE(Data!AI7:AI372,0.95))","v":""}]
[null,"Min",{"$f":"IF(SUM(Data!C$7:C$372)=0,\"\",MIN(Data!C$7:C$372))","v":""},{"$f":"IF(SUM(Data!D$7:D$372)=0,\"\",MIN(Data!D$7:D$372))","v":""},{"$f":"IF(SUM(Data!E$7:E$372)=0,\"\",MIN(Data!E$7:E$372))","v":""},{"$f":"IF(SUM(Data!F$7:F$372)=0,\"\",MIN(Data!F$7:F$372))","v":""},{"$f":"IF(SUM(Data!G$7:G$372)=0,\"\",MIN(Data!G$7:G$372))","v":""},{"$f":"IF(SUM(Data!H$7:H$372)=0,\"\",MIN(Data!H$7:H$372))","v":""},{"$f":"IF(SUM(Data!X$7:X$372)=0,\"\",MIN(Data!X$7:X$372))","v":""},{"$f":"IF(SUM(Data!Y$7:Y$372)=0,\"\",MIN(Data!Y$7:Y$372))","v":""},{"$f":"IF(SUM(Data!Z$7:Z$372)=0,\"\",MIN(Data!Z$7:Z$372))","v":""},{"$f":"IF(SUM(Data!AA$7:AA$372)=0,\"\",MIN(Data!AA$7:AA$372))","v":""},{"$f":"IF(SUM(Data!AB$7:AB$372)=0,\"\",MIN(Data!AB$7:AB$372))","v":""},{"$f":"IF(SUM(Data!AC$7:AC$372)=0,\"\",MIN(Data!AC$7:AC$372))","v":""},{"$f":"IF(SUM(Data!AD$7:AD$372)=0,\"\",MIN(Data!AD$7:AD$372))","v":""},{"$f":"IF(SUM(Data!AE$7:AE$372)=0,\"\",MIN(Data!AE$7:AE$372))","v":""},{"$f":"IF(SUM(Data!AF$7:AF$372)=0,\"\",MIN(Data!AF$7:AF$372))","v":""},{"$f":"IF(SUM(Data!AG$7:AG$372)=0,\"\",MIN(Data!AG$7:AG$372))","v":""},{"$f":"IF(SUM(Data!AH$7:AH$372)=0,\"\",MIN(Data!AH$7:AH$372))","v":""},{"$f":"IF(SUM(Data!AI$7:AI$372)=0,\"\",MIN(Data!AI$7:AI$372))","v":""}]
[null,"Ave",{"$f":"IF(SUM(Data!C$7:C$372)=0,\"\",AVERAGE(Data!C$7:C$372))","v":""},{"$f":"IF(SUM(Data!D$7:D$372)=0,\"\",AVERAGE(Data!D$7:D$372))","v":""},{"$f":"IF(SUM(Data!E$7:E$372)=0,\"\",AVERAGE(Data!E$7:E$372))","v":""},{"$f":"IF(SUM(Data!F$7:F$372)=0,\"\",AVERAGE(Data!F$7:F$372))","v":""},{"$f":"IF(SUM(Data!G$7:G$372)=0,\"\",AVERAGE(Data!G$7:G$372))","v":""},{"$f":"IF(SUM(Data!H$7:H$372)=0,\"\",AVERAGE(Data!H$7:H$372))","v":""},{"$f":"IF(SUM(Data!X$7:X$372)=0,\"\",AVERAGE(Data!X$7:X$372))","v":""},{"$f":"IF(SUM(Data!Y$7:Y$372)=0,\"\",AVERAGE(Data!Y$7:Y$372))","v":""},{"$f":"IF(SUM(Data!Z$7:Z$372)=0,\"\",AVERAGE(Data!Z$7:Z$372))","v":""},{"$f":"IF(SUM(Data!AA$7:AA$372)=0,\"\",AVERAGE(Data!AA$7:AA$372))","v":""},{"$f":"IF(SUM(Data!AB$7:AB$372)=0,\"\",AVERAGE(Data!AB$7:AB$372))","v":""},{"$f":"IF(SUM(Data!AC$7:AC$372)=0,\"\",AVERAGE(Data!AC$7:AC$372))","v":""},{"$f":"IF(SUM(Data!AD$7:AD$372)=0,\"\",AVERAGE(Data!AD$7:AD$372))","v":""},{"$f":"IF(SUM(Data!AE$7:AE$372)=0,\"\",AVERAGE(Data!AE$7:AE$372))","v":""},{"$f":"IF(SUM(Data!AF$7:AF$372)=0,\"\",AVERAGE(Data!AF$7:AF$372))","v":""},{"$f":"IF(SUM(Data!AG$7:AG$372)=0,\"\",AVERAGE(Data!AG$7:AG$372))","v":""},{"$f":"IF(SUM(Data!AH$7:AH$372)=0,\"\",AVERAGE(Data!AH$7:AH$372))","v":""},{"$f":"IF(SUM(Data!AI$7:AI$372)=0,\"\",AVERAGE(Data!AI$7:AI$372))","v":""}]
[null,"Max",{"$f":"IF(SUM(Data!C$7:C$372)=0,\"\",MAX(Data!C$7:C$372))","v":""},{"$f":"IF(SUM(Data!D$7:D$372)=0,\"\",MAX(Data!D$7:D$372))","v":""},{"$f":"IF(SUM(Data!E$7:E$372)=0,\"\",MAX(Data!E$7:E$372))","v":""},{"$f":"IF(SUM(Data!F$7:F$372)=0,\"\",MAX(Data!F$7:F$372))","v":""},{"$f":"IF(SUM(Data!G$7:G$372)=0,\"\",MAX(Data!G$7:G$372))","v":""},{"$f":"IF(SUM(Data!H$7:H$372)=0,\"\",MAX(Data!H$7:H$372))","v":""},{"$f":"IF(SUM(Data!X$7:X$372)=0,\"\",MAX(Data!X$7:X$372))","v":""},{"$f":"IF(SUM(Data!Y$7:Y$372)=0,\"\",MAX(Data!Y$7:Y$372))","v":""},{"$f":"IF(SUM(Data!Z$7:Z$372)=0,\"\",MAX(Data!Z$7:Z$372))","v":""},{"$f":"IF(SUM(Data!AA$7:AA$372)=0,\"\",MAX(Data!AA$7:AA$372))","v":""},{"$f":"IF(SUM(Data!AB$7:AB$372)=0,\"\",MAX(Data!AB$7:AB$372))","v":""},{"$f":"IF(SUM(Data!AC$7:AC$372)=0,\"\",MAX(Data!AC$7:AC$372))","v":""},{"$f":"IF(SUM(Data!AD$7:AD$372)=0,\"\",MAX(Data!AD$7:AD$372))","v":""},{"$f":"IF(SUM(Data!AE$7:AE$372)=0,\"\",MAX(Data!AE$7:AE$372))","v":""},{"$f":"IF(SUM(Data!AF$7:AF$372)=0,\"\",MAX(Data!AF$7:AF$372))","v":""},{"$f":"IF(SUM(Data!AG$7:AG$372)=0,\"\",MAX(Data!AG$7:AG$372))","v":""},{"$f":"IF(SUM(Data!AH$7:AH$372)=0,\"\",MAX(Data!AH$7:AH$372))","v":""},{"$f":"IF(SUM(Data!AI$7:AI$372)=0,\"\",MAX(Data!AI$7:AI$372))","v":""}]
[null,"Yr. Goal","N/A",{"$f":"IF(SUM(Data!D7:D372)=0,\"\",FREQUENCY(Data!D7:D372,Data!$J$3)/COUNT(Data!D7:D372))","v":""},{"$f":"IF(SUM(Data!E7:E372)=0,\"\",FREQUENCY(Data!E7:E372,Data!$J$3)/COUNT(Data!E7:E372))","v":""},{"$f":"IF(SUM(Data!F7:F372)=0,\"\",FREQUENCY(Data!F7:F372,Data!$J$3)/COUNT(Data!F7:F372))","v":""},{"$f":"IF(SUM(Data!G7:G372)=0,\"\",FREQUENCY(Data!G7:G372,Data!$J$3)/COUNT(Data!G7:G372))","v":""},{"$f":"IF(SUM(Data!H7:H372)=0,\"\",FREQUENCY(Data!H7:H372,Data!$J$3)/COUNT(Data!H7:H372))","v":""},{"$f":"IF(SUM(Data!X7:X372)=0,\"\",FREQUENCY(Data!X7:X372,0.1)/COUNT(Data!X7:X372))","v":""},{"$f":"IF(SUM(Data!Y7:Y372)=0,\"\",FREQUENCY(Data!Y7:Y372,0.1)/COUNT(Data!Y7:Y372))","v":""},{"$f":"IF(SUM(Data!Z7:Z372)=0,\"\",FREQUENCY(Data!Z7:Z372,0.1)/COUNT(Data!Z7:Z372))","v":""},{"$f":"IF(SUM(Data!AA7:AA372)=0,\"\",FREQUENCY(Data!AA7:AA372,0.1)/COUNT(Data!AA7:AA372))","v":""},{"$f":"IF(SUM(Data!AB7:AB372)=0,\"\",FREQUENCY(Data!AB7:AB372,0.1)/COUNT(Data!AB7:AB372))","v":""},{"$f":"IF(SUM(Data!AC7:AC372)=0,\"\",FREQUENCY(Data!AC7:AC372,0.1)/COUNT(Data!AC7:AC372))","v":""},{"$f":"IF(SUM(Data!AD7:AD372)=0,\"\",FREQUENCY(Data!AD7:AD372,0.1)/COUNT(Data!AD7:AD372))","v":""},{"$f":"IF(SUM(Data!AE7:AE372)=0,\"\",FREQUENCY(Data!AE7:AE372,0.1)/COUNT(Data!AE7:AE372))","v":""},{"$f":"IF(SUM(Data!AF7:AF372)=0,\"\",FREQUENCY(Data!AF7:AF372,0.1)/COUNT(Data!AF7:AF372))","v":""},{"$f":"IF(SUM(Data!AG7:AG372)=0,\"\",FREQUENCY(Data!AG7:AG372,0.1)/COUNT(Data!AG7:AG372))","v":""},{"$f":"IF(SUM(Data!AH7:AH372)=0,\"\",FREQUENCY(Data!AH7:AH372,0.1)/COUNT(Data!AH7:AH372))","v":""},{"$f":"IF(SUM(Data!AI7:AI372)=0,\"\",FREQUENCY(Data!AI7:AI372,0.1)/COUNT(Data!AI7:AI372))","v":""}]

{"sheet":"Filters 13-24 Sum","index":3,"n_rows":29,"n_cols":20,"rows_kept":29,"cut":false,"hidden":false,"merged":[[6,3,6,7],[6,8,6,19],[1,2,1,9],[2,2,2,9],[3,2,3,9],[5,3,5,7],[5,8,5,19]]}
[]
[null,null,{"$f":"Data!D2","v":"Test System"}]
[null,null,{"$f":"Data!D3","v":"Test Western WTP"}]
[null,null,{"$f":"Data!D4","v":"AL0004000"}]
[]
[null,null,null,"Settled Water Turbidity",null,null,null,null,"Filtered Water Turbidity"]
[null,null,null,"95th Percentile Values (NTU)",null,null,null,null,"95th Percentile Values (NTU)"]
[null,null,null,{"$f":"Data!I6","v":"Basin 6"},{"$f":"Data!J6","v":"Basin 7"},{"$f":"Data!K6","v":"Basin 8"},{"$f":"Data!L6","v":"Basin 9"},{"$f":"Data!M6","v":"Basin 10"},{"$f":"Data!AJ6","v":"Filter 13"},{"$f":"Data!AK6","v":"Filter 14"},{"$f":"Data!AL6","v":"Filter 15"},{"$f":"Data!AM6","v":"Filter 16"},{"$f":"Data!AN6","v":"Filter 17"},{"$f":"Data!AO6","v":"Filter 18"},{"$f":"Data!AP6","v":"Filter 19"},{"$f":"Data!AQ6","v":"Filter 20"},{"$f":"Data!AR6","v":"Filter 21"},{"$f":"Data!AS6","v":"Filter 22"},{"$f":"Data!AT6","v":"Filter 23"},{"$f":"Data!AU6","v":"Filter 24"}]
[null,null,{"$f":"'95th'!B4","v":"00:00:00"},{"$f":"IF(ISERROR('95th'!J4=0),\"\",'95th'!J4)","v":""},{"$f":"IF(ISERROR('95th'!K4=0),\"\",'95th'!K4)","v":""},{"$f":"IF(ISERROR('95th'!L4=0),\"\",'95th'!L4)","v":""},{"$f":"IF(ISERROR('95th'!M4=0),\"\",'95th'!M4)","v":""},{"$f":"IF(ISERROR('95th'!N4=0),\"\",'95th'!N4)","v":""},{"$f":"IF(ISERROR('95th'!AK4),\"\",'95th'!AK4)","v":""},{"$f":"IF(ISERROR('95th'!AL4),\"\",'95th'!AL4)","v":""},{"$f":"IF(ISERROR('95th'!AM4),\"\",'95th'!AM4)","v":""},{"$f":"IF(ISERROR('95th'!AN4),\"\",'95th'!AN4)","v":""},{"$f":"IF(ISERROR('95th'!AO4),\"\",'95th'!AO4)","v":""},{"$f":"IF(ISERROR('95th'!AP4),\"\",'95th'!AP4)","v":""},{"$f":"IF(ISERROR('95th'!AQ4),\"\",'95th'!AQ4)","v":""},{"$f":"IF(ISERROR('95th'!AR4),\"\",'95th'!AR4)","v":""},{"$f":"IF(ISERROR('95th'!AS4),\"\",'95th'!AS4)","v":""},{"$f":"IF(ISERROR('95th'!AT4),\"\",'95th'!AT4)","v":""},{"$f":"IF(ISERROR('95th'!AU4),\"\",'95th'!AU4)","v":""},{"$f":"IF(ISERROR('95th'!AV4),\"\",'95th'!AV4)","v":""}]
[null,null,{"$f":"'95th'!B5","v":"00:00:00"},{"$f":"IF(ISERROR('95th'!J5=0),\"\",'95th'!J5)","v":""},{"$f":"IF(ISERROR('95th'!K5=0),\"\",'95th'!K5)","v":""},{"$f":"IF(ISERROR('95th'!L5=0),\"\",'95th'!L5)","v":""},{"$f":"IF(ISERROR('95th'!M5=0),\"\",'95th'!M5)","v":""},{"$f":"IF(ISERROR('95th'!N5=0),\"\",'95th'!N5)","v":""},{"$f":"IF(ISERROR('95th'!AK5),\"\",'95th'!AK5)","v":""},{"$f":"IF(ISERROR('95th'!AL5),\"\",'95th'!AL5)","v":""},{"$f":"IF(ISERROR('95th'!AM5),\"\",'95th'!AM5)","v":""},{"$f":"IF(ISERROR('95th'!AN5),\"\",'95th'!AN5)","v":""},{"$f":"IF(ISERROR('95th'!AO5),\"\",'95th'!AO5)","v":""},{"$f":"IF(ISERROR('95th'!AP5),\"\",'95th'!AP5)","v":""},{"$f":"IF(ISERROR('95th'!AQ5),\"\",'95th'!AQ5)","v":""},{"$f":"IF(ISERROR('95th'!AR5),\"\",'95th'!AR5)","v":""},{"$f":"IF(ISERROR('95th'!AS5),\"\",'95th'!AS5)","v":""},{"$f":"IF(ISERROR('95th'!AT5),\"\",'95th'!AT5)","v":""},{"$f":"IF(ISERROR('95th'!AU5),\"\",'95th'!AU5)","v":""},{"$f":"IF(ISERROR('95th'!AV5),\"\",'95th'!AV5)","v":""}]
[null,null,{"$f":"'95th'!B6","v":"00:00:00"},{"$f":"IF(ISERROR('95th'!J6=0),\"\",'95th'!J6)","v":""},{"$f":"IF(ISERROR('95th'!K6=0),\"\",'95th'!K6)","v":""},{"$f":"IF(ISERROR('95th'!L6=0),\"\",'95th'!L6)","v":""},{"$f":"IF(ISERROR('95th'!M6=0),\"\",'95th'!M6)","v":""},{"$f":"IF(ISERROR('95th'!N6=0),\"\",'95th'!N6)","v":""},{"$f":"IF(ISERROR('95th'!AK6),\"\",'95th'!AK6)","v":""},{"$f":"IF(ISERROR('95th'!AL6),\"\",'95th'!AL6)","v":""},{"$f":"IF(ISERROR('95th'!AM6),\"\",'95th'!AM6)","v":""},{"$f":"IF(ISERROR('95th'!AN6),\"\",'95th'!AN6)","v":""},{"$f":"IF(ISERROR('95th'!AO6),\"\",'95th'!AO6)","v":""},{"$f":"IF(ISERROR('95th'!AP6),\"\",'95th'!AP6)","v":""},{"$f":"IF(ISERROR('95th'!AQ6),\"\",'95th'!AQ6)","v":""},{"$f":"IF(ISERROR('95th'!AR6),\"\",'95th'!AR6)","v":""},{"$f":"IF(ISERROR('95th'!AS6),\"\",'95th'!AS6)","v":""},{"$f":"IF(ISERROR('95th'!AT6),\"\",'95th'!AT6)","v":""},{"$f":"IF(ISERROR('95th'!AU6),\"\",'95th'!AU6)","v":""},{"$f":"IF(ISERROR('95th'!AV6),\"\",'95th'!AV6)","v":""}]
[null,null,{"$f":"'95th'!B7","v":"00:00:00"},{"$f":"IF(ISERROR('95th'!J7=0),\"\",'95th'!J7)","v":""},{"$f":"IF(ISERROR('95th'!K7=0),\"\",'95th'!K7)","v":""},{"$f":"IF(ISERROR('95th'!L7=0),\"\",'95th'!L7)","v":""},{"$f":"IF(ISERROR('95th'!M7=0),\"\",'95th'!M7)","v":""},{"$f":"IF(ISERROR('95th'!N7=0),\"\",'95th'!N7)","v":""},{"$f":"IF(ISERROR('95th'!AK7),\"\",'95th'!AK7)","v":""},{"$f":"IF(ISERROR('95th'!AL7),\"\",'95th'!AL7)","v":""},{"$f":"IF(ISERROR('95th'!AM7),\"\",'95th'!AM7)","v":""},{"$f":"IF(ISERROR('95th'!AN7),\"\",'95th'!AN7)","v":""},{"$f":"IF(ISERROR('95th'!AO7),\"\",'95th'!AO7)","v":""},{"$f":"IF(ISERROR('95th'!AP7),\"\",'95th'!AP7)","v":""},{"$f":"IF(ISERROR('95th'!AQ7),\"\",'95th'!AQ7)","v":""},{"$f":"IF(ISERROR('95th'!AR7),\"\",'95th'!AR7)","v":""},{"$f":"IF(ISERROR('95th'!AS7),\"\",'95th'!AS7)","v":""},{"$f":"IF(ISERROR('95th'!AT7),\"\",'95th'!AT7)","v":""},{"$f":"IF(ISERROR('95th'!AU7),\"\",'95th'!AU7)","v":""},{"$f":"IF(ISERROR('95th'!AV7),\"\",'95th'!AV7)","v":""}]
[null,null,{"$f":"'95th'!B8","v":"00:00:00"},{"$f":"IF(ISERROR('95th'!J8=0),\"\",'95th'!J8)","v":""},{"$f":"IF(ISERROR('95th'!K8=0),\"\",'95th'!K8)","v":""},{"$f":"IF(ISERROR('95th'!L8=0),\"\",'95th'!L8)","v":""},{"$f":"IF(ISERROR('95th'!M8=0),\"\",'95th'!M8)","v":""},{"$f":"IF(ISERROR('95th'!N8=0),\"\",'95th'!N8)","v":""},{"$f":"IF(ISERROR('95th'!AK8),\"\",'95th'!AK8)","v":""},{"$f":"IF(ISERROR('95th'!AL8),\"\",'95th'!AL8)","v":""},{"$f":"IF(ISERROR('95th'!AM8),\"\",'95th'!AM8)","v":""},{"$f":"IF(ISERROR('95th'!AN8),\"\",'95th'!AN8)","v":""},{"$f":"IF(ISERROR('95th'!AO8),\"\",'95th'!AO8)","v":""},{"$f":"IF(ISERROR('95th'!AP8),\"\",'95th'!AP8)","v":""},{"$f":"IF(ISERROR('95th'!AQ8),\"\",'95th'!AQ8)","v":""},{"$f":"IF(ISERROR('95th'!AR8),\"\",'95th'!AR8)","v":""},{"$f":"IF(ISERROR('95th'!AS8),\"\",'95th'!AS8)","v":""},{"$f":"IF(ISERROR('95th'!AT8),\"\",'95th'!AT8)","v":""},{"$f":"IF(ISERROR('95th'!AU8),\"\",'95th'!AU8)","v":""},{"$f":"IF(ISERROR('95th'!AV8),\"\",'95th'!AV8)","v":""}]
[null,null,{"$f":"'95th'!B9","v":"00:00:00"},{"$f":"IF(ISERROR('95th'!J9=0),\"\",'95th'!J9)","v":""},{"$f":"IF(ISERROR('95th'!K9=0),\"\",'95th'!K9)","v":""},{"$f":"IF(ISERROR('95th'!L9=0),\"\",'95th'!L9)","v":""},{"$f":"IF(ISERROR('95th'!M9=0),\"\",'95th'!M9)","v":""},{"$f":"IF(ISERROR('95th'!N9=0),\"\",'95th'!N9)","v":""},{"$f":"IF(ISERROR('95th'!AK9),\"\",'95th'!AK9)","v":""},{"$f":"IF(ISERROR('95th'!AL9),\"\",'95th'!AL9)","v":""},{"$f":"IF(ISERROR('95th'!AM9),\"\",'95th'!AM9)","v":""},{"$f":"IF(ISERROR('95th'!AN9),\"\",'95th'!AN9)","v":""},{"$f":"IF(ISERROR('95th'!AO9),\"\",'95th'!AO9)","v":""},{"$f":"IF(ISERROR('95th'!AP9),\"\",'95th'!AP9)","v":""},{"$f":"IF(ISERROR('95th'!AQ9),\"\",'95th'!AQ9)","v":""},{"$f":"IF(ISERROR('95th'!AR9),\"\",'95th'!AR9)","v":""},{"$f":"IF(ISERROR('95th'!AS9),\"\",'95th'!AS9)","v":""},{"$f":"IF(ISERROR('95th'!AT9),\"\",'95th'!AT9)","v":""},{"$f":"IF(ISERROR('95th'!AU9),\"\",'95th'!AU9)","v":""},{"$f":"IF(ISERROR('95th'!AV9),\"\",'95th'!AV9)","v":""}]
[null,null,{"$f":"'95th'!B10","v":"00:00:00"},{"$f":"IF(ISERROR('95th'!J10=0),\"\",'95th'!J10)","v":""},{"$f":"IF(ISERROR('95th'!K10=0),\"\",'95th'!K10)","v":""},{"$f":"IF(ISERROR('95th'!L10=0),\"\",'95th'!L10)","v":""},{"$f":"IF(ISERROR('95th'!M10=0),\"\",'95th'!M10)","v":""},{"$f":"IF(ISERROR('95th'!N10=0),\"\",'95th'!N10)","v":""},{"$f":"IF(ISERROR('95th'!AK10),\"\",'95th'!AK10)","v":""},{"$f":"IF(ISERROR('95th'!AL10),\"\",'95th'!AL10)","v":""},{"$f":"IF(ISERROR('95th'!AM10),\"\",'95th'!AM10)","v":""},{"$f":"IF(ISERROR('95th'!AN10),\"\",'95th'!AN10)","v":""},{"$f":"IF(ISERROR('95th'!AO10),\"\",'95th'!AO10)","v":""},{"$f":"IF(ISERROR('95th'!AP10),\"\",'95th'!AP10)","v":""},{"$f":"IF(ISERROR('95th'!AQ10),\"\",'95th'!AQ10)","v":""},{"$f":"IF(ISERROR('95th'!AR10),\"\",'95th'!AR10)","v":""},{"$f":"IF(ISERROR('95th'!AS10),\"\",'95th'!AS10)","v":""},{"$f":"IF(ISERROR('95th'!AT10),\"\",'95th'!AT10)","v":""},{"$f":"IF(ISERROR('95th'!AU10),\"\",'95th'!AU10)","v":""},{"$f":"IF(ISERROR('95th'!AV10),\"\",'95th'!AV10)","v":""}]
[null,null,{"$f":"'95th'!B11","v":"00:00:00"},{"$f":"IF(ISERROR('95th'!J11=0),\"\",'95th'!J11)","v":""},{"$f":"IF(ISERROR('95th'!K11=0),\"\",'95th'!K11)","v":""},{"$f":"IF(ISERROR('95th'!L11=0),\"\",'95th'!L11)","v":""},{"$f":"IF(ISERROR('95th'!M11=0),\"\",'95th'!M11)","v":""},{"$f":"IF(ISERROR('95th'!N11=0),\"\",'95th'!N11)","v":""},{"$f":"IF(ISERROR('95th'!AK11),\"\",'95th'!AK11)","v":""},{"$f":"IF(ISERROR('95th'!AL11),\"\",'95th'!AL11)","v":""},{"$f":"IF(ISERROR('95th'!AM11),\"\",'95th'!AM11)","v":""},{"$f":"IF(ISERROR('95th'!AN11),\"\",'95th'!AN11)","v":""},{"$f":"IF(ISERROR('95th'!AO11),\"\",'95th'!AO11)","v":""},{"$f":"IF(ISERROR('95th'!AP11),\"\",'95th'!AP11)","v":""},{"$f":"IF(ISERROR('95th'!AQ11),\"\",'95th'!AQ11)","v":""},{"$f":"IF(ISERROR('95th'!AR11),\"\",'95th'!AR11)","v":""},{"$f":"IF(ISERROR('95th'!AS11),\"\",'95th'!AS11)","v":""},{"$f":"IF(ISERROR('95th'!AT11),\"\",'95th'!AT11)","v":""},{"$f":"IF(ISERROR('95th'!AU11),\"\",'95th'!AU11)","v":""},{"$f":"IF(ISERROR('95th'!AV11),\"\",'95th'!AV11)","v":""}]
[null,null,{"$f":"'95th'!B12","v":"00:00:00"},{"$f":"IF(ISERROR('95th'!J12=0),\"\",'95th'!J12)","v":""},{"$f":"IF(ISERROR('95th'!K12=0),\"\",'95th'!K12)","v":""},{"$f":"IF(ISERROR('95th'!L12=0),\"\",'95th'!L12)","v":""},{"$f":"IF(ISERROR('95th'!M12=0),\"\",'95th'!M12)","v":""},{"$f":"IF(ISERROR('95th'!N12=0),\"\",'95th'!N12)","v":""},{"$f":"IF(ISERROR('95th'!AK12),\"\",'95th'!AK12)","v":""},{"$f":"IF(ISERROR('95th'!AL12),\"\",'95th'!AL12)","v":""},{"$f":"IF(ISERROR('95th'!AM12),\"\",'95th'!AM12)","v":""},{"$f":"IF(ISERROR('95th'!AN12),\"\",'95th'!AN12)","v":""},{"$f":"IF(ISERROR('95th'!AO12),\"\",'95th'!AO12)","v":""},{"$f":"IF(ISERROR('95th'!AP12),\"\",'95th'!AP12)","v":""},{"$f":"IF(ISERROR('95th'!AQ12),\"\",'95th'!AQ12)","v":""},{"$f":"IF(ISERROR('95th'!AR12),\"\",'95th'!AR12)","v":""},{"$f":"IF(ISERROR('95th'!AS12),\"\",'95th'!AS12)","v":""},{"$f":"IF(ISERROR('95th'!AT12),\"\",'95th'!AT12)","v":""},{"$f":"IF(ISERROR('95th'!AU12),\"\",'95th'!AU12)","v":""},{"$f":"IF(ISERROR('95th'!AV12),\"\",'95th'!AV12)","v":""}]
[null,null,{"$f":"'95th'!B13","v":"00:00:00"},{"$f":"IF(ISERROR('95th'!J13=0),\"\",'95th'!J13)","v":""},{"$f":"IF(ISERROR('95th'!K13=0),\"\",'95th'!K13)","v":""},{"$f":"IF(ISERROR('95th'!L13=0),\"\",'95th'!L13)","v":""},{"$f":"IF(ISERROR('95th'!M13=0),\"\",'95th'!M13)","v":""},{"$f":"IF(ISERROR('95th'!N13=0),\"\",'95th'!N13)","v":""},{"$f":"IF(ISERROR('95th'!AK13),\"\",'95th'!AK13)","v":""},{"$f":"IF(ISERROR('95th'!AL13),\"\",'95th'!AL13)","v":""},{"$f":"IF(ISERROR('95th'!AM13),\"\",'95th'!AM13)","v":""},{"$f":"IF(ISERROR('95th'!AN13),\"\",'95th'!AN13)","v":""},{"$f":"IF(ISERROR('95th'!AO13),\"\",'95th'!AO13)","v":""},{"$f":"IF(ISERROR('95th'!AP13),\"\",'95th'!AP13)","v":""},{"$f":"IF(ISERROR('95th'!AQ13),\"\",'95th'!AQ13)","v":""},{"$f":"IF(ISERROR('95th'!AR13),\"\",'95th'!AR13)","v":""},{"$f":"IF(ISERROR('95th'!AS13),\"\",'95th'!AS13)","v":""},{"$f":"IF(ISERROR('95th'!AT13),\"\",'95th'!AT13)","v":""},{"$f":"IF(ISERROR('95th'!AU13),\"\",'95th'!AU13)","v":""},{"$f":"IF(ISERROR('95th'!AV13),\"\",'95th'!AV13)","v":""}]
[null,null,{"$f":"'95th'!B14","v":"00:00:00"},{"$f":"IF(ISERROR('95th'!J14=0),\"\",'95th'!J14)","v":""},{"$f":"IF(ISERROR('95th'!K14=0),\"\",'95th'!K14)","v":""},{"$f":"IF(ISERROR('95th'!L14=0),\"\",'95th'!L14)","v":""},{"$f":"IF(ISERROR('95th'!M14=0),\"\",'95th'!M14)","v":""},{"$f":"IF(ISERROR('95th'!N14=0),\"\",'95th'!N14)","v":""},{"$f":"IF(ISERROR('95th'!AK14),\"\",'95th'!AK14)","v":""},{"$f":"IF(ISERROR('95th'!AL14),\"\",'95th'!AL14)","v":""},{"$f":"IF(ISERROR('95th'!AM14),\"\",'95th'!AM14)","v":""},{"$f":"IF(ISERROR('95th'!AN14),\"\",'95th'!AN14)","v":""},{"$f":"IF(ISERROR('95th'!AO14),\"\",'95th'!AO14)","v":""},{"$f":"IF(ISERROR('95th'!AP14),\"\",'95th'!AP14)","v":""},{"$f":"IF(ISERROR('95th'!AQ14),\"\",'95th'!AQ14)","v":""},{"$f":"IF(ISERROR('95th'!AR14),\"\",'95th'!AR14)","v":""},{"$f":"IF(ISERROR('95th'!AS14),\"\",'95th'!AS14)","v":""},{"$f":"IF(ISERROR('95th'!AT14),\"\",'95th'!AT14)","v":""},{"$f":"IF(ISERROR('95th'!AU14),\"\",'95th'!AU14)","v":""},{"$f":"IF(ISERROR('95th'!AV14),\"\",'95th'!AV14)","v":""}]
[null,null,{"$f":"'95th'!B15","v":"00:00:00"},{"$f":"IF(ISERROR('95th'!J15=0),\"\",'95th'!J15)","v":""},{"$f":"IF(ISERROR('95th'!K15=0),\"\",'95th'!K15)","v":""},{"$f":"IF(ISERROR('95th'!L15=0),\"\",'95th'!L15)","v":""},{"$f":"IF(ISERROR('95th'!M15=0),\"\",'95th'!M15)","v":""},{"$f":"IF(ISERROR('95th'!N15=0),\"\",'95th'!N15)","v":""},{"$f":"IF(ISERROR('95th'!AK15),\"\",'95th'!AK15)","v":""},{"$f":"IF(ISERROR('95th'!AL15),\"\",'95th'!AL15)","v":""},{"$f":"IF(ISERROR('95th'!AM15),\"\",'95th'!AM15)","v":""},{"$f":"IF(ISERROR('95th'!AN15),\"\",'95th'!AN15)","v":""},{"$f":"IF(ISERROR('95th'!AO15),\"\",'95th'!AO15)","v":""},{"$f":"IF(ISERROR('95th'!AP15),\"\",'95th'!AP15)","v":""},{"$f":"IF(ISERROR('95th'!AQ15),\"\",'95th'!AQ15)","v":""},{"$f":"IF(ISERROR('95th'!AR15),\"\",'95th'!AR15)","v":""},{"$f":"IF(ISERROR('95th'!AS15),\"\",'95th'!AS15)","v":""},{"$f":"IF(ISERROR('95th'!AT15),\"\",'95th'!AT15)","v":""},{"$f":"IF(ISERROR('95th'!AU15),\"\",'95th'!AU15)","v":""},{"$f":"IF(ISERROR('95th'!AV15),\"\",'95th'!AV15)","v":""}]
[]
[null,null,0.5,{"$f":"IF(SUM(Data!I$7:I$372)=0,\"\",PERCENTILE(Data!I$7:I$372,0.5))","v":""},{"$f":"IF(SUM(Data!J$7:J$372)=0,\"\",PERCENTILE(Data!J$7:J$372,0.5))","v":""},{"$f":"IF(SUM(Data!K$7:K$372)=0,\"\",PERCENTILE(Data!K$7:K$372,0.5))","v":""},{"$f":"IF(SUM(Data!L$7:L$372)=0,\"\",PERCENTILE(Data!L$7:L$372,0.5))","v":""},{"$f":"IF(SUM(Data!M$7:M$372)=0,\"\",PERCENTILE(Data!M$7:M$372,0.5))","v":""},{"$f":"IF(SUM(Data!AJ$7:AJ$372)=0,\"\",PERCENTILE(Data!AJ$7:AJ$372,0.5))","v":""},{"$f":"IF(SUM(Data!AK$7:AK$372)=0,\"\",PERCENTILE(Data!AK$7:AK$372,0.5))","v":""},{"$f":"IF(SUM(Data!AL$7:AL$372)=0,\"\",PERCENTILE(Data!AL$7:AL$372,0.5))","v":""},{"$f":"IF(SUM(Data!AM$7:AM$372)=0,\"\",PERCENTILE(Data!AM$7:AM$372,0.5))","v":""},{"$f":"IF(SUM(Data!AN$7:AN$372)=0,\"\",PERCENTILE(Data!AN$7:AN$372,0.5))","v":""},{"$f":"IF(SUM(Data!AO$7:AO$372)=0,\"\",PERCENTILE(Data!AO$7:AO$372,0.5))","v":""},{"$f":"IF(SUM(Data!AP$7:AP$372)=0,\"\",PERCENTILE(Data!AP$7:AP$372,0.5))","v":""},{"$f":"IF(SUM(Data!AQ$7:AQ$372)=0,\"\",PERCENTILE(Data!AQ$7:AQ$372,0.5))","v":""},{"$f":"IF(SUM(Data!AR$7:AR$372)=0,\"\",PERCENTILE(Data!AR$7:AR$372,0.5))","v":""},{"$f":"IF(SUM(Data!AS$7:AS$372)=0,\"\",PERCENTILE(Data!AS$7:AS$372,0.5))","v":""},{"$f":"IF(SUM(Data!AT$7:AT$372)=0,\"\",PERCENTILE(Data!AT$7:AT$372,0.5))","v":""},{"$f":"IF(SUM(Data!AU$7:AU$372)=0,\"\",PERCENTILE(Data!AU$7:AU$372,0.5))","v":""}]
[null,null,0.75,{"$f":"IF(SUM(Data!I$7:I$372)=0,\"\",PERCENTILE(Data!I$7:I$372,0.75))","v":""},{"$f":"IF(SUM(Data!J$7:J$372)=0,\"\",PERCENTILE(Data!J$7:J$372,0.75))","v":""},{"$f":"IF(SUM(Data!K$7:K$372)=0,\"\",PERCENTILE(Data!K$7:K$372,0.75))","v":""},{"$f":"IF(SUM(Data!L$7:L$372)=0,\"\",PERCENTILE(Data!L$7:L$372,0.75))","v":""},{"$f":"IF(SUM(Data!M$7:M$372)=0,\"\",PERCENTILE(Data!M$7:M$372,0.75))","v":""},{"$f":"IF(SUM(Data!AJ$7:AJ$372)=0,\"\",PERCENTILE(Data!AJ$7:AJ$372,0.75))","v":""},{"$f":"IF(SUM(Data!AK$7:AK$372)=0,\"\",PERCENTILE(Data!AK$7:AK$372,0.75))","v":""},{"$f":"IF(SUM(Data!AL$7:AL$372)=0,\"\",PERCENTILE(Data!AL$7:AL$372,0.75))","v":""},{"$f":"IF(SUM(Data!AM$7:AM$372)=0,\"\",PERCENTILE(Data!AM$7:AM$372,0.75))","v":""},{"$f":"IF(SUM(Data!AN$7:AN$372)=0,\"\",PERCENTILE(Data!AN$7:AN$372,0.75))","v":""},{"$f":"IF(SUM(Data!AO$7:AO$372)=0,\"\",PERCENTILE(Data!AO$7:AO$372,0.75))","v":""},{"$f":"IF(SUM(Data!AP$7:AP$372)=0,\"\",PERCENTILE(Data!AP$7:AP$372,0.75))","v":""},{"$f":"IF(SUM(Data!AQ$7:AQ$372)=0,\"\",PERCENTILE(Data!AQ$7:AQ$372,0.75))","v":""},{"$f":"IF(SUM(Data!AR$7:AR$372)=0,\"\",PERCENTILE(Data!AR$7:AR$372,0.75))","v":""},{"$f":"IF(SUM(Data!AS$7:AS$372)=0,\"\",PERCENTILE(Data!AS$7:AS$372,0.75))","v":""},{"$f":"IF(SUM(Data!AT$7:AT$372)=0,\"\",PERCENTILE(Data!AT$7:AT$372,0.75))","v":""},{"$f":"IF(SUM(Data!AU$7:AU$372)=0,\"\",PERCENTILE(Data!AU$7:AU$372,0.75))","v":""}]
[null,null,0.9,{"$f":"IF(SUM(Data!I$7:I$372)=0,\"\",PERCENTILE(Data!I$7:I$372,0.9))","v":""},{"$f":"IF(SUM(Data!J$7:J$372)=0,\"\",PERCENTILE(Data!J$7:J$372,0.9))","v":""},{"$f":"IF(SUM(Data!K$7:K$372)=0,\"\",PERCENTILE(Data!K$7:K$372,0.9))","v":""},{"$f":"IF(SUM(Data!L$7:L$372)=0,\"\",PERCENTILE(Data!L$7:L$372,0.9))","v":""},{"$f":"IF(SUM(Data!M$7:M$372)=0,\"\",PERCENTILE(Data!M$7:M$372,0.9))","v":""},{"$f":"IF(SUM(Data!AJ$7:AJ$372)=0,\"\",PERCENTILE(Data!AJ$7:AJ$372,0.9))","v":""},{"$f":"IF(SUM(Data!AK$7:AK$372)=0,\"\",PERCENTILE(Data!AK$7:AK$372,0.9))","v":""},{"$f":"IF(SUM(Data!AL$7:AL$372)=0,\"\",PERCENTILE(Data!AL$7:AL$372,0.9))","v":""},{"$f":"IF(SUM(Data!AM$7:AM$372)=0,\"\",PERCENTILE(Data!AM$7:AM$372,0.9))","v":""},{"$f":"IF(SUM(Data!AN$7:AN$372)=0,\"\",PERCENTILE(Data!AN$7:AN$372,0.9))","v":""},{"$f":"IF(SUM(Data!AO$7:AO$372)=0,\"\",PERCENTILE(Data!AO$7:AO$372,0.9))","v":""},{"$f":"IF(SUM(Data!AP$7:AP$372)=0,\"\",PERCENTILE(Data!AP$7:AP$372,0.9))","v":""},{"$f":"IF(SUM(Data!AQ$7:AQ$372)=0,\"\",PERCENTILE(Data!AQ$7:AQ$372,0.9))","v":""},{"$f":"IF(SUM(Data!AR$7:AR$372)=0,\"\",PERCENTILE(Data!AR$7:AR$372,0.9))","v":""},{"$f":"IF(SUM(Data!AS$7:AS$372)=0,\"\",PERCENTILE(Data!AS$7:AS$372,0.9))","v":""},{"$f":"IF(SUM(Data!AT$7:AT$372)=0,\"\",PERCENTILE(Data!AT$7:AT$372,0.9))","v":""},{"$f":"IF(SUM(Data!AU$7:AU$372)=0,\"\",PERCENTILE(Data!AU$7:AU$372,0.9))","v":""}]
[null,null,0.95,{"$f":"IF(SUM(Data!I$7:I$372)=0,\"\",PERCENTILE(Data!I$7:I$372,0.95))","v":""},{"$f":"IF(SUM(Data!J$7:J$372)=0,\"\",PERCENTILE(Data!J$7:J$372,0.95))","v":""},{"$f":"IF(SUM(Data!K$7:K$372)=0,\"\",PERCENTILE(Data!K$7:K$372,0.95))","v":""},{"$f":"IF(SUM(Data!L$7:L$372)=0,\"\",PERCENTILE(Data!L$7:L$372,0.95))","v":""},{"$f":"IF(SUM(Data!M$7:M$372)=0,\"\",PERCENTILE(Data!M$7:M$372,0.95))","v":""},{"$f":"IF(SUM(Data!AJ$7:AJ$372)=0,\"\",PERCENTILE(Data!AJ$7:AJ$372,0.95))","v":""},{"$f":"IF(SUM(Data!AK$7:AK$372)=0,\"\",PERCENTILE(Data!AK$7:AK$372,0.95))","v":""},{"$f":"IF(SUM(Data!AL$7:AL$372)=0,\"\",PERCENTILE(Data!AL$7:AL$372,0.95))","v":""},{"$f":"IF(SUM(Data!AM$7:AM$372)=0,\"\",PERCENTILE(Data!AM$7:AM$372,0.95))","v":""},{"$f":"IF(SUM(Data!AN$7:AN$372)=0,\"\",PERCENTILE(Data!AN$7:AN$372,0.95))","v":""},{"$f":"IF(SUM(Data!AO$7:AO$372)=0,\"\",PERCENTILE(Data!AO$7:AO$372,0.95))","v":""},{"$f":"IF(SUM(Data!AP$7:AP$372)=0,\"\",PERCENTILE(Data!AP$7:AP$372,0.95))","v":""},{"$f":"IF(SUM(Data!AQ$7:AQ$372)=0,\"\",PERCENTILE(Data!AQ$7:AQ$372,0.95))","v":""},{"$f":"IF(SUM(Data!AR$7:AR$372)=0,\"\",PERCENTILE(Data!AR$7:AR$372,0.95))","v":""},{"$f":"IF(SUM(Data!AS$7:AS$372)=0,\"\",PERCENTILE(Data!AS$7:AS$372,0.95))","v":""},{"$f":"IF(SUM(Data!AT$7:AT$372)=0,\"\",PERCENTILE(Data!AT$7:AT$372,0.95))","v":""},{"$f":"IF(SUM(Data!AU$7:AU$372)=0,\"\",PERCENTILE(Data!AU$7:AU$372,0.95))","v":""}]
[null,null,"Min",{"$f":"IF(SUM(Data!I$7:I$372)=0,\"\",MIN(Data!I$7:I$372))","v":""},{"$f":"IF(SUM(Data!J$7:J$372)=0,\"\",MIN(Data!J$7:J$372))","v":""},{"$f":"IF(SUM(Data!K$7:K$372)=0,\"\",MIN(Data!K$7:K$372))","v":""},{"$f":"IF(SUM(Data!L$7:L$372)=0,\"\",MIN(Data!L$7:L$372))","v":""},{"$f":"IF(SUM(Data!M$7:M$372)=0,\"\",MIN(Data!M$7:M$372))","v":""},{"$f":"IF(SUM(Data!AJ$7:AJ$372)=0,\"\",MIN(Data!AJ$7:AJ$372))","v":""},{"$f":"IF(SUM(Data!AK$7:AK$372)=0,\"\",MIN(Data!AK$7:AK$372))","v":""},{"$f":"IF(SUM(Data!AL$7:AL$372)=0,\"\",MIN(Data!AL$7:AL$372))","v":""},{"$f":"IF(SUM(Data!AM$7:AM$372)=0,\"\",MIN(Data!AM$7:AM$372))","v":""},{"$f":"IF(SUM(Data!AN$7:AN$372)=0,\"\",MIN(Data!AN$7:AN$372))","v":""},{"$f":"IF(SUM(Data!AO$7:AO$372)=0,\"\",MIN(Data!AO$7:AO$372))","v":""},{"$f":"IF(SUM(Data!AP$7:AP$372)=0,\"\",MIN(Data!AP$7:AP$372))","v":""},{"$f":"IF(SUM(Data!AQ$7:AQ$372)=0,\"\",MIN(Data!AQ$7:AQ$372))","v":""},{"$f":"IF(SUM(Data!AR$7:AR$372)=0,\"\",MIN(Data!AR$7:AR$372))","v":""},{"$f":"IF(SUM(Data!AS$7:AS$372)=0,\"\",MIN(Data!AS$7:AS$372))","v":""},{"$f":"IF(SUM(Data!AT$7:AT$372)=0,\"\",MIN(Data!AT$7:AT$372))","v":""},{"$f":"IF(SUM(Data!AU$7:AU$372)=0,\"\",MIN(Data!AU$7:AU$372))","v":""}]
[null,null,"Ave",{"$f":"IF(SUM(Data!I$7:I$372)=0,\"\",AVERAGE(Data!I$7:I$372))","v":""},{"$f":"IF(SUM(Data!J$7:J$372)=0,\"\",AVERAGE(Data!J$7:J$372))","v":""},{"$f":"IF(SUM(Data!K$7:K$372)=0,\"\",AVERAGE(Data!K$7:K$372))","v":""},{"$f":"IF(SUM(Data!L$7:L$372)=0,\"\",AVERAGE(Data!L$7:L$372))","v":""},{"$f":"IF(SUM(Data!M$7:M$372)=0,\"\",AVERAGE(Data!M$7:M$372))","v":""},{"$f":"IF(SUM(Data!AJ$7:AJ$372)=0,\"\",AVERAGE(Data!AJ$7:AJ$372))","v":""},{"$f":"IF(SUM(Data!AK$7:AK$372)=0,\"\",AVERAGE(Data!AK$7:AK$372))","v":""},{"$f":"IF(SUM(Data!AL$7:AL$372)=0,\"\",AVERAGE(Data!AL$7:AL$372))","v":""},{"$f":"IF(SUM(Data!AM$7:AM$372)=0,\"\",AVERAGE(Data!AM$7:AM$372))","v":""},{"$f":"IF(SUM(Data!AN$7:AN$372)=0,\"\",AVERAGE(Data!AN$7:AN$372))","v":""},{"$f":"IF(SUM(Data!AO$7:AO$372)=0,\"\",AVERAGE(Data!AO$7:AO$372))","v":""},{"$f":"IF(SUM(Data!AP$7:AP$372)=0,\"\",AVERAGE(Data!AP$7:AP$372))","v":""},{"$f":"IF(SUM(Data!AQ$7:AQ$372)=0,\"\",AVERAGE(Data!AQ$7:AQ$372))","v":""},{"$f":"IF(SUM(Data!AR$7:AR$372)=0,\"\",AVERAGE(Data!AR$7:AR$372))","v":""},{"$f":"IF(SUM(Data!AS$7:AS$372)=0,\"\",AVERAGE(Data!AS$7:AS$372))","v":""},{"$f":"IF(SUM(Data!AT$7:AT$372)=0,\"\",AVERAGE(Data!AT$7:AT$372))","v":""},{"$f":"IF(SUM(Data!AU$7:AU$372)=0,\"\",AVERAGE(Data!AU$7:AU$372))","v":""}]
[null,null,"Max",{"$f":"IF(SUM(Data!I$7:I$372)=0,\"\",MAX(Data!I$7:I$372))","v":""},{"$f":"IF(SUM(Data!J$7:J$372)=0,\"\",MAX(Data!J$7:J$372))","v":""},{"$f":"IF(SUM(Data!K$7:K$372)=0,\"\",MAX(Data!K$7:K$372))","v":""},{"$f":"IF(SUM(Data!L$7:L$372)=0,\"\",MAX(Data!L$7:L$372))","v":""},{"$f":"IF(SUM(Data!M$7:M$372)=0,\"\",MAX(Data!M$7:M$372))","v":""},{"$f":"IF(SUM(Data!AJ$7:AJ$372)=0,\"\",MAX(Data!AJ$7:AJ$372))","v":""},{"$f":"IF(SUM(Data!AK$7:AK$372)=0,\"\",MAX(Data!AK$7:AK$372))","v":""},{"$f":"IF(SUM(Data!AL$7:AL$372)=0,\"\",MAX(Data!AL$7:AL$372))","v":""},{"$f":"IF(SUM(Data!AM$7:AM$372)=0,\"\",MAX(Data!AM$7:AM$372))","v":""},{"$f":"IF(SUM(Data!AN$7:AN$372)=0,\"\",MAX(Data!AN$7:AN$372))","v":""},{"$f":"IF(SUM(Data!AO$7:AO$372)=0,\"\",MAX(Data!AO$7:AO$372))","v":""},{"$f":"IF(SUM(Data!AP$7:AP$372)=0,\"\",MAX(Data!AP$7:AP$372))","v":""},{"$f":"IF(SUM(Data!AQ$7:AQ$372)=0,\"\",MAX(Data!AQ$7:AQ$372))","v":""},{"$f":"IF(SUM(Data!AR$7:AR$372)=0,\"\",MAX(Data!AR$7:AR$372))","v":""},{"$f":"IF(SUM(Data!AS$7:AS$372)=0,\"\",MAX(Data!AS$7:AS$372))","v":""},{"$f":"IF(SUM(Data!AT$7:AT$372)=0,\"\",MAX(Data!AT$7:AT$372))","v":""},{"$f":"IF(SUM(Data!AU$7:AU$372)=0,\"\",MAX(Data!AU$7:AU$372))","v":""}]
[null,null,"Yr. Goal",{"$f":"IF(SUM(Data!I7:I372)=0,\"\",FREQUENCY(Data!I7:I372,Data!$J$3)/COUNT(Data!I7:I372))","v":""},{"$f":"IF(SUM(Data!J7:J372)=0,\"\",FREQUENCY(Data!J7:J372,Data!$J$3)/COUNT(Data!J7:J372))","v":""},{"$f":"IF(SUM(Data!K7:K372)=0,\"\",FREQUENCY(Data!K7:K372,Data!$J$3)/COUNT(Data!K7:K372))","v":""},{"$f":"IF(SUM(Data!L7:L372)=0,\"\",FREQUENCY(Data!L7:L372,Data!$J$3)/COUNT(Data!L7:L372))","v":""},{"$f":"IF(SUM(Data!M7:M372)=0,\"\",FREQUENCY(Data!M7:M372,Data!$J$3)/COUNT(Data!M7:M372))","v":""},{"$f":"IF(SUM(Data!AJ7:AJ372)=0,\"\",FREQUENCY(Data!AJ7:AJ372,0.1)/COUNT(Data!AJ7:AJ372))","v":""},{"$f":"IF(SUM(Data!AK7:AK372)=0,\"\",FREQUENCY(Data!AK7:AK372,0.1)/COUNT(Data!AK7:AK372))","v":""},{"$f":"IF(SUM(Data!AL7:AL372)=0,\"\",FREQUENCY(Data!AL7:AL372,0.1)/COUNT(Data!AL7:AL372))","v":""},{"$f":"IF(SUM(Data!AM7:AM372)=0,\"\",FREQUENCY(Data!AM7:AM372,0.1)/COUNT(Data!AM7:AM372))","v":""},{"$f":"IF(SUM(Data!AN7:AN372)=0,\"\",FREQUENCY(Data!AN7:AN372,0.1)/COUNT(Data!AN7:AN372))","v":""},{"$f":"IF(SUM(Data!AO7:AO372)=0,\"\",FREQUENCY(Data!AO7:AO372,0.1)/COUNT(Data!AO7:AO372))","v":""},{"$f":"IF(SUM(Data!AP7:AP372)=0,\"\",FREQUENCY(Data!AP7:AP372,0.1)/COUNT(Data!AP7:AP372))","v":""},{"$f":"IF(SUM(Data!AQ7:AQ372)=0,\"\",FREQUENCY(Data!AQ7:AQ372,0.1)/COUNT(Data!AQ7:AQ372))","v":""},{"$f":"IF(SUM(Data!AR7:AR372)=0,\"\",FREQUENCY(Data!AR7:AR372,0.1)/COUNT(Data!AR7:AR372))","v":""},{"$f":"IF(SUM(Data!AS7:AS372)=0,\"\",FREQUENCY(Data!AS7:AS372,0.1)/COUNT(Data!AS7:AS372))","v":""},{"$f":"IF(SUM(Data!AT7:AT372)=0,\"\",FREQUENCY(Data!AT7:AT372,0.1)/COUNT(Data!AT7:AT372))","v":""},{"$f":"IF(SUM(Data!AU7:AU372)=0,\"\",FREQUENCY(Data!AU7:AU372,0.1)/COUNT(Data!AU7:AU372))","v":""}]

{"sheet":"Filters 25-26 Sum","index":4,"n_rows":29,"n_cols":20,"rows_kept":29,"cut":false,"hidden":false,"merged":[[6,3,6,7],[6,8,6,19],[1,2,1,9],[2,2,2,9],[3,2,3,9],[5,3,5,7],[5,8,5,19]]}
[]
[null,null,{"$f":"Data!D2","v":"Test System"}]
[null,null,{"$f":"Data!D3","v":"Test Western WTP"}]
[null,null,{"$f":"Data!D4","v":"AL0004000"}]
[]
[null,null,null,"Settled Water Turbidity",null,null,null,null,"Filtered Water Turbidity"]
[null,null,null,"95th Percentile Values (NTU)",null,null,null,null,"95th Percentile Values (NTU)"]
[null,null,null,{"$f":"Data!N6","v":"Basin 11"},{"$f":"Data!O6","v":"Basin 12"},{"$f":"Data!P6","v":"Basin 13"},{"$f":"Data!Q6","v":"Basin 14"},{"$f":"Data!R6","v":"Basin 15"},{"$f":"Data!AV6","v":"Filter 25"},{"$f":"Data!AW6","v":"Filter 26"},{"$f":"Data!AX6","v":"Filter 27"},{"$f":"Data!AY6","v":"Filter 28"},{"$f":"Data!AZ6","v":"Filter 29"},{"$f":"Data!BA6","v":"Filter 30"},{"$f":"Data!BB6","v":"Filter 31"},{"$f":"Data!BC6","v":"Filter 32"},{"$f":"Data!BD6","v":"Filter 33"},{"$f":"Data!BE6","v":"Filter 34"},{"$f":"Data!BF6","v":"Filter 35"},{"$f":"Data!BG6","v":"Filter 36"}]
[null,null,{"$f":"'95th'!B4","v":"00:00:00"},{"$f":"IF(ISERROR('95th'!O4=0),\"\",'95th'!O4)","v":""},{"$f":"IF(ISERROR('95th'!P4=0),\"\",'95th'!P4)","v":""},{"$f":"IF(ISERROR('95th'!Q4=0),\"\",'95th'!Q4)","v":""},{"$f":"IF(ISERROR('95th'!R4=0),\"\",'95th'!R4)","v":""},{"$f":"IF(ISERROR('95th'!S4=0),\"\",'95th'!S4)","v":""},{"$f":"IF(ISERROR('95th'!AW4),\"\",'95th'!AW4)","v":""},{"$f":"IF(ISERROR('95th'!AX4),\"\",'95th'!AX4)","v":""},{"$f":"IF(ISERROR('95th'!AY4),\"\",'95th'!AY4)","v":""},{"$f":"IF(ISERROR('95th'!AZ4),\"\",'95th'!AZ4)","v":""},{"$f":"IF(ISERROR('95th'!BA4),\"\",'95th'!BA4)","v":""},{"$f":"IF(ISERROR('95th'!BB4),\"\",'95th'!BB4)","v":""},{"$f":"IF(ISERROR('95th'!BC4),\"\",'95th'!BC4)","v":""},{"$f":"IF(ISERROR('95th'!BD4),\"\",'95th'!BD4)","v":""},{"$f":"IF(ISERROR('95th'!BE4),\"\",'95th'!BE4)","v":""},{"$f":"IF(ISERROR('95th'!BF4),\"\",'95th'!BF4)","v":""},{"$f":"IF(ISERROR('95th'!BG4),\"\",'95th'!BG4)","v":""},{"$f":"IF(ISERROR('95th'!BH4),\"\",'95th'!BH4)","v":""}]
[null,null,{"$f":"'95th'!B5","v":"00:00:00"},{"$f":"IF(ISERROR('95th'!O5=0),\"\",'95th'!O5)","v":""},{"$f":"IF(ISERROR('95th'!P5=0),\"\",'95th'!P5)","v":""},{"$f":"IF(ISERROR('95th'!Q5=0),\"\",'95th'!Q5)","v":""},{"$f":"IF(ISERROR('95th'!R5=0),\"\",'95th'!R5)","v":""},{"$f":"IF(ISERROR('95th'!S5=0),\"\",'95th'!S5)","v":""},{"$f":"IF(ISERROR('95th'!AW5),\"\",'95th'!AW5)","v":""},{"$f":"IF(ISERROR('95th'!AX5),\"\",'95th'!AX5)","v":""},{"$f":"IF(ISERROR('95th'!AY5),\"\",'95th'!AY5)","v":""},{"$f":"IF(ISERROR('95th'!AZ5),\"\",'95th'!AZ5)","v":""},{"$f":"IF(ISERROR('95th'!BA5),\"\",'95th'!BA5)","v":""},{"$f":"IF(ISERROR('95th'!BB5),\"\",'95th'!BB5)","v":""},{"$f":"IF(ISERROR('95th'!BC5),\"\",'95th'!BC5)","v":""},{"$f":"IF(ISERROR('95th'!BD5),\"\",'95th'!BD5)","v":""},{"$f":"IF(ISERROR('95th'!BE5),\"\",'95th'!BE5)","v":""},{"$f":"IF(ISERROR('95th'!BF5),\"\",'95th'!BF5)","v":""},{"$f":"IF(ISERROR('95th'!BG5),\"\",'95th'!BG5)","v":""},{"$f":"IF(ISERROR('95th'!BH5),\"\",'95th'!BH5)","v":""}]
[null,null,{"$f":"'95th'!B6","v":"00:00:00"},{"$f":"IF(ISERROR('95th'!O6=0),\"\",'95th'!O6)","v":""},{"$f":"IF(ISERROR('95th'!P6=0),\"\",'95th'!P6)","v":""},{"$f":"IF(ISERROR('95th'!Q6=0),\"\",'95th'!Q6)","v":""},{"$f":"IF(ISERROR('95th'!R6=0),\"\",'95th'!R6)","v":""},{"$f":"IF(ISERROR('95th'!S6=0),\"\",'95th'!S6)","v":""},{"$f":"IF(ISERROR('95th'!AW6),\"\",'95th'!AW6)","v":""},{"$f":"IF(ISERROR('95th'!AX6),\"\",'95th'!AX6)","v":""},{"$f":"IF(ISERROR('95th'!AY6),\"\",'95th'!AY6)","v":""},{"$f":"IF(ISERROR('95th'!AZ6),\"\",'95th'!AZ6)","v":""},{"$f":"IF(ISERROR('95th'!BA6),\"\",'95th'!BA6)","v":""},{"$f":"IF(ISERROR('95th'!BB6),\"\",'95th'!BB6)","v":""},{"$f":"IF(ISERROR('95th'!BC6),\"\",'95th'!BC6)","v":""},{"$f":"IF(ISERROR('95th'!BD6),\"\",'95th'!BD6)","v":""},{"$f":"IF(ISERROR('95th'!BE6),\"\",'95th'!BE6)","v":""},{"$f":"IF(ISERROR('95th'!BF6),\"\",'95th'!BF6)","v":""},{"$f":"IF(ISERROR('95th'!BG6),\"\",'95th'!BG6)","v":""},{"$f":"IF(ISERROR('95th'!BH6),\"\",'95th'!BH6)","v":""}]
[null,null,{"$f":"'95th'!B7","v":"00:00:00"},{"$f":"IF(ISERROR('95th'!O7=0),\"\",'95th'!O7)","v":""},{"$f":"IF(ISERROR('95th'!P7=0),\"\",'95th'!P7)","v":""},{"$f":"IF(ISERROR('95th'!Q7=0),\"\",'95th'!Q7)","v":""},{"$f":"IF(ISERROR('95th'!R7=0),\"\",'95th'!R7)","v":""},{"$f":"IF(ISERROR('95th'!S7=0),\"\",'95th'!S7)","v":""},{"$f":"IF(ISERROR('95th'!AW7),\"\",'95th'!AW7)","v":""},{"$f":"IF(ISERROR('95th'!AX7),\"\",'95th'!AX7)","v":""},{"$f":"IF(ISERROR('95th'!AY7),\"\",'95th'!AY7)","v":""},{"$f":"IF(ISERROR('95th'!AZ7),\"\",'95th'!AZ7)","v":""},{"$f":"IF(ISERROR('95th'!BA7),\"\",'95th'!BA7)","v":""},{"$f":"IF(ISERROR('95th'!BB7),\"\",'95th'!BB7)","v":""},{"$f":"IF(ISERROR('95th'!BC7),\"\",'95th'!BC7)","v":""},{"$f":"IF(ISERROR('95th'!BD7),\"\",'95th'!BD7)","v":""},{"$f":"IF(ISERROR('95th'!BE7),\"\",'95th'!BE7)","v":""},{"$f":"IF(ISERROR('95th'!BF7),\"\",'95th'!BF7)","v":""},{"$f":"IF(ISERROR('95th'!BG7),\"\",'95th'!BG7)","v":""},{"$f":"IF(ISERROR('95th'!BH7),\"\",'95th'!BH7)","v":""}]
[null,null,{"$f":"'95th'!B8","v":"00:00:00"},{"$f":"IF(ISERROR('95th'!O8=0),\"\",'95th'!O8)","v":""},{"$f":"IF(ISERROR('95th'!P8=0),\"\",'95th'!P8)","v":""},{"$f":"IF(ISERROR('95th'!Q8=0),\"\",'95th'!Q8)","v":""},{"$f":"IF(ISERROR('95th'!R8=0),\"\",'95th'!R8)","v":""},{"$f":"IF(ISERROR('95th'!S8=0),\"\",'95th'!S8)","v":""},{"$f":"IF(ISERROR('95th'!AW8),\"\",'95th'!AW8)","v":""},{"$f":"IF(ISERROR('95th'!AX8),\"\",'95th'!AX8)","v":""},{"$f":"IF(ISERROR('95th'!AY8),\"\",'95th'!AY8)","v":""},{"$f":"IF(ISERROR('95th'!AZ8),\"\",'95th'!AZ8)","v":""},{"$f":"IF(ISERROR('95th'!BA8),\"\",'95th'!BA8)","v":""},{"$f":"IF(ISERROR('95th'!BB8),\"\",'95th'!BB8)","v":""},{"$f":"IF(ISERROR('95th'!BC8),\"\",'95th'!BC8)","v":""},{"$f":"IF(ISERROR('95th'!BD8),\"\",'95th'!BD8)","v":""},{"$f":"IF(ISERROR('95th'!BE8),\"\",'95th'!BE8)","v":""},{"$f":"IF(ISERROR('95th'!BF8),\"\",'95th'!BF8)","v":""},{"$f":"IF(ISERROR('95th'!BG8),\"\",'95th'!BG8)","v":""},{"$f":"IF(ISERROR('95th'!BH8),\"\",'95th'!BH8)","v":""}]
[null,null,{"$f":"'95th'!B9","v":"00:00:00"},{"$f":"IF(ISERROR('95th'!O9=0),\"\",'95th'!O9)","v":""},{"$f":"IF(ISERROR('95th'!P9=0),\"\",'95th'!P9)","v":""},{"$f":"IF(ISERROR('95th'!Q9=0),\"\",'95th'!Q9)","v":""},{"$f":"IF(ISERROR('95th'!R9=0),\"\",'95th'!R9)","v":""},{"$f":"IF(ISERROR('95th'!S9=0),\"\",'95th'!S9)","v":""},{"$f":"IF(ISERROR('95th'!AW9),\"\",'95th'!AW9)","v":""},{"$f":"IF(ISERROR('95th'!AX9),\"\",'95th'!AX9)","v":""},{"$f":"IF(ISERROR('95th'!AY9),\"\",'95th'!AY9)","v":""},{"$f":"IF(ISERROR('95th'!AZ9),\"\",'95th'!AZ9)","v":""},{"$f":"IF(ISERROR('95th'!BA9),\"\",'95th'!BA9)","v":""},{"$f":"IF(ISERROR('95th'!BB9),\"\",'95th'!BB9)","v":""},{"$f":"IF(ISERROR('95th'!BC9),\"\",'95th'!BC9)","v":""},{"$f":"IF(ISERROR('95th'!BD9),\"\",'95th'!BD9)","v":""},{"$f":"IF(ISERROR('95th'!BE9),\"\",'95th'!BE9)","v":""},{"$f":"IF(ISERROR('95th'!BF9),\"\",'95th'!BF9)","v":""},{"$f":"IF(ISERROR('95th'!BG9),\"\",'95th'!BG9)","v":""},{"$f":"IF(ISERROR('95th'!BH9),\"\",'95th'!BH9)","v":""}]
[null,null,{"$f":"'95th'!B10","v":"00:00:00"},{"$f":"IF(ISERROR('95th'!O10=0),\"\",'95th'!O10)","v":""},{"$f":"IF(ISERROR('95th'!P10=0),\"\",'95th'!P10)","v":""},{"$f":"IF(ISERROR('95th'!Q10=0),\"\",'95th'!Q10)","v":""},{"$f":"IF(ISERROR('95th'!R10=0),\"\",'95th'!R10)","v":""},{"$f":"IF(ISERROR('95th'!S10=0),\"\",'95th'!S10)","v":""},{"$f":"IF(ISERROR('95th'!AW10),\"\",'95th'!AW10)","v":""},{"$f":"IF(ISERROR('95th'!AX10),\"\",'95th'!AX10)","v":""},{"$f":"IF(ISERROR('95th'!AY10),\"\",'95th'!AY10)","v":""},{"$f":"IF(ISERROR('95th'!AZ10),\"\",'95th'!AZ10)","v":""},{"$f":"IF(ISERROR('95th'!BA10),\"\",'95th'!BA10)","v":""},{"$f":"IF(ISERROR('95th'!BB10),\"\",'95th'!BB10)","v":""},{"$f":"IF(ISERROR('95th'!BC10),\"\",'95th'!BC10)","v":""},{"$f":"IF(ISERROR('95th'!BD10),\"\",'95th'!BD10)","v":""},{"$f":"IF(ISERROR('95th'!BE10),\"\",'95th'!BE10)","v":""},{"$f":"IF(ISERROR('95th'!BF10),\"\",'95th'!BF10)","v":""},{"$f":"IF(ISERROR('95th'!BG10),\"\",'95th'!BG10)","v":""},{"$f":"IF(ISERROR('95th'!BH10),\"\",'95th'!BH10)","v":""}]
[null,null,{"$f":"'95th'!B11","v":"00:00:00"},{"$f":"IF(ISERROR('95th'!O11=0),\"\",'95th'!O11)","v":""},{"$f":"IF(ISERROR('95th'!P11=0),\"\",'95th'!P11)","v":""},{"$f":"IF(ISERROR('95th'!Q11=0),\"\",'95th'!Q11)","v":""},{"$f":"IF(ISERROR('95th'!R11=0),\"\",'95th'!R11)","v":""},{"$f":"IF(ISERROR('95th'!S11=0),\"\",'95th'!S11)","v":""},{"$f":"IF(ISERROR('95th'!AW11),\"\",'95th'!AW11)","v":""},{"$f":"IF(ISERROR('95th'!AX11),\"\",'95th'!AX11)","v":""},{"$f":"IF(ISERROR('95th'!AY11),\"\",'95th'!AY11)","v":""},{"$f":"IF(ISERROR('95th'!AZ11),\"\",'95th'!AZ11)","v":""},{"$f":"IF(ISERROR('95th'!BA11),\"\",'95th'!BA11)","v":""},{"$f":"IF(ISERROR('95th'!BB11),\"\",'95th'!BB11)","v":""},{"$f":"IF(ISERROR('95th'!BC11),\"\",'95th'!BC11)","v":""},{"$f":"IF(ISERROR('95th'!BD11),\"\",'95th'!BD11)","v":""},{"$f":"IF(ISERROR('95th'!BE11),\"\",'95th'!BE11)","v":""},{"$f":"IF(ISERROR('95th'!BF11),\"\",'95th'!BF11)","v":""},{"$f":"IF(ISERROR('95th'!BG11),\"\",'95th'!BG11)","v":""},{"$f":"IF(ISERROR('95th'!BH11),\"\",'95th'!BH11)","v":""}]
[null,null,{"$f":"'95th'!B12","v":"00:00:00"},{"$f":"IF(ISERROR('95th'!O12=0),\"\",'95th'!O12)","v":""},{"$f":"IF(ISERROR('95th'!P12=0),\"\",'95th'!P12)","v":""},{"$f":"IF(ISERROR('95th'!Q12=0),\"\",'95th'!Q12)","v":""},{"$f":"IF(ISERROR('95th'!R12=0),\"\",'95th'!R12)","v":""},{"$f":"IF(ISERROR('95th'!S12=0),\"\",'95th'!S12)","v":""},{"$f":"IF(ISERROR('95th'!AW12),\"\",'95th'!AW12)","v":""},{"$f":"IF(ISERROR('95th'!AX12),\"\",'95th'!AX12)","v":""},{"$f":"IF(ISERROR('95th'!AY12),\"\",'95th'!AY12)","v":""},{"$f":"IF(ISERROR('95th'!AZ12),\"\",'95th'!AZ12)","v":""},{"$f":"IF(ISERROR('95th'!BA12),\"\",'95th'!BA12)","v":""},{"$f":"IF(ISERROR('95th'!BB12),\"\",'95th'!BB12)","v":""},{"$f":"IF(ISERROR('95th'!BC12),\"\",'95th'!BC12)","v":""},{"$f":"IF(ISERROR('95th'!BD12),\"\",'95th'!BD12)","v":""},{"$f":"IF(ISERROR('95th'!BE12),\"\",'95th'!BE12)","v":""},{"$f":"IF(ISERROR('95th'!BF12),\"\",'95th'!BF12)","v":""},{"$f":"IF(ISERROR('95th'!BG12),\"\",'95th'!BG12)","v":""},{"$f":"IF(ISERROR('95th'!BH12),\"\",'95th'!BH12)","v":""}]
[null,null,{"$f":"'95th'!B13","v":"00:00:00"},{"$f":"IF(ISERROR('95th'!O13=0),\"\",'95th'!O13)","v":""},{"$f":"IF(ISERROR('95th'!P13=0),\"\",'95th'!P13)","v":""},{"$f":"IF(ISERROR('95th'!Q13=0),\"\",'95th'!Q13)","v":""},{"$f":"IF(ISERROR('95th'!R13=0),\"\",'95th'!R13)","v":""},{"$f":"IF(ISERROR('95th'!S13=0),\"\",'95th'!S13)","v":""},{"$f":"IF(ISERROR('95th'!AW13),\"\",'95th'!AW13)","v":""},{"$f":"IF(ISERROR('95th'!AX13),\"\",'95th'!AX13)","v":""},{"$f":"IF(ISERROR('95th'!AY13),\"\",'95th'!AY13)","v":""},{"$f":"IF(ISERROR('95th'!AZ13),\"\",'95th'!AZ13)","v":""},{"$f":"IF(ISERROR('95th'!BA13),\"\",'95th'!BA13)","v":""},{"$f":"IF(ISERROR('95th'!BB13),\"\",'95th'!BB13)","v":""},{"$f":"IF(ISERROR('95th'!BC13),\"\",'95th'!BC13)","v":""},{"$f":"IF(ISERROR('95th'!BD13),\"\",'95th'!BD13)","v":""},{"$f":"IF(ISERROR('95th'!BE13),\"\",'95th'!BE13)","v":""},{"$f":"IF(ISERROR('95th'!BF13),\"\",'95th'!BF13)","v":""},{"$f":"IF(ISERROR('95th'!BG13),\"\",'95th'!BG13)","v":""},{"$f":"IF(ISERROR('95th'!BH13),\"\",'95th'!BH13)","v":""}]
[null,null,{"$f":"'95th'!B14","v":"00:00:00"},{"$f":"IF(ISERROR('95th'!O14=0),\"\",'95th'!O14)","v":""},{"$f":"IF(ISERROR('95th'!P14=0),\"\",'95th'!P14)","v":""},{"$f":"IF(ISERROR('95th'!Q14=0),\"\",'95th'!Q14)","v":""},{"$f":"IF(ISERROR('95th'!R14=0),\"\",'95th'!R14)","v":""},{"$f":"IF(ISERROR('95th'!S14=0),\"\",'95th'!S14)","v":""},{"$f":"IF(ISERROR('95th'!AW14),\"\",'95th'!AW14)","v":""},{"$f":"IF(ISERROR('95th'!AX14),\"\",'95th'!AX14)","v":""},{"$f":"IF(ISERROR('95th'!AY14),\"\",'95th'!AY14)","v":""},{"$f":"IF(ISERROR('95th'!AZ14),\"\",'95th'!AZ14)","v":""},{"$f":"IF(ISERROR('95th'!BA14),\"\",'95th'!BA14)","v":""},{"$f":"IF(ISERROR('95th'!BB14),\"\",'95th'!BB14)","v":""},{"$f":"IF(ISERROR('95th'!BC14),\"\",'95th'!BC14)","v":""},{"$f":"IF(ISERROR('95th'!BD14),\"\",'95th'!BD14)","v":""},{"$f":"IF(ISERROR('95th'!BE14),\"\",'95th'!BE14)","v":""},{"$f":"IF(ISERROR('95th'!BF14),\"\",'95th'!BF14)","v":""},{"$f":"IF(ISERROR('95th'!BG14),\"\",'95th'!BG14)","v":""},{"$f":"IF(ISERROR('95th'!BH14),\"\",'95th'!BH14)","v":""}]
[null,null,{"$f":"'95th'!B15","v":"00:00:00"},{"$f":"IF(ISERROR('95th'!O15=0),\"\",'95th'!O15)","v":""},{"$f":"IF(ISERROR('95th'!P15=0),\"\",'95th'!P15)","v":""},{"$f":"IF(ISERROR('95th'!Q15=0),\"\",'95th'!Q15)","v":""},{"$f":"IF(ISERROR('95th'!R15=0),\"\",'95th'!R15)","v":""},{"$f":"IF(ISERROR('95th'!S15=0),\"\",'95th'!S15)","v":""},{"$f":"IF(ISERROR('95th'!AW15),\"\",'95th'!AW15)","v":""},{"$f":"IF(ISERROR('95th'!AX15),\"\",'95th'!AX15)","v":""},{"$f":"IF(ISERROR('95th'!AY15),\"\",'95th'!AY15)","v":""},{"$f":"IF(ISERROR('95th'!AZ15),\"\",'95th'!AZ15)","v":""},{"$f":"IF(ISERROR('95th'!BA15),\"\",'95th'!BA15)","v":""},{"$f":"IF(ISERROR('95th'!BB15),\"\",'95th'!BB15)","v":""},{"$f":"IF(ISERROR('95th'!BC15),\"\",'95th'!BC15)","v":""},{"$f":"IF(ISERROR('95th'!BD15),\"\",'95th'!BD15)","v":""},{"$f":"IF(ISERROR('95th'!BE15),\"\",'95th'!BE15)","v":""},{"$f":"IF(ISERROR('95th'!BF15),\"\",'95th'!BF15)","v":""},{"$f":"IF(ISERROR('95th'!BG15),\"\",'95th'!BG15)","v":""},{"$f":"IF(ISERROR('95th'!BH15),\"\",'95th'!BH15)","v":""}]
[]
[null,null,0.5,{"$f":"IF(SUM(Data!N$7:N$372)=0,\"\",PERCENTILE(Data!N$7:N$372,0.5))","v":""},{"$f":"IF(SUM(Data!O$7:O$372)=0,\"\",PERCENTILE(Data!O$7:O$372,0.5))","v":""},{"$f":"IF(SUM(Data!P$7:P$372)=0,\"\",PERCENTILE(Data!P$7:P$372,0.5))","v":""},{"$f":"IF(SUM(Data!Q$7:Q$372)=0,\"\",PERCENTILE(Data!Q$7:Q$372,0.5))","v":""},{"$f":"IF(SUM(Data!R$7:R$372)=0,\"\",PERCENTILE(Data!R$7:R$372,0.5))","v":""},{"$f":"IF(SUM(Data!AV7:AV372)=0,\"\",PERCENTILE(Data!AV7:AV372,0.5))","v":""},{"$f":"IF(SUM(Data!AW7:AW372)=0,\"\",PERCENTILE(Data!AW7:AW372,0.5))","v":""},{"$f":"IF(SUM(Data!AX7:AX372)=0,\"\",PERCENTILE(Data!AX7:AX372,0.5))","v":""},{"$f":"IF(SUM(Data!AY7:AY372)=0,\"\",PERCENTILE(Data!AY7:AY372,0.5))","v":""},{"$f":"IF(SUM(Data!AZ7:AZ372)=0,\"\",PERCENTILE(Data!AZ7:AZ372,0.5))","v":""},{"$f":"IF(SUM(Data!BA7:BA372)=0,\"\",PERCENTILE(Data!BA7:BA372,0.5))","v":""},{"$f":"IF(SUM(Data!BB7:BB372)=0,\"\",PERCENTILE(Data!BB7:BB372,0.5))","v":""},{"$f":"IF(SUM(Data!BC7:BC372)=0,\"\",PERCENTILE(Data!BC7:BC372,0.5))","v":""},{"$f":"IF(SUM(Data!BD7:BD372)=0,\"\",PERCENTILE(Data!BD7:BD372,0.5))","v":""},{"$f":"IF(SUM(Data!BE7:BE372)=0,\"\",PERCENTILE(Data!BE7:BE372,0.5))","v":""},{"$f":"IF(SUM(Data!BF7:BF372)=0,\"\",PERCENTILE(Data!BF7:BF372,0.5))","v":""},{"$f":"IF(SUM(Data!BG7:BG372)=0,\"\",PERCENTILE(Data!BG7:BG372,0.5))","v":""}]
[null,null,0.75,{"$f":"IF(SUM(Data!N$7:N$372)=0,\"\",PERCENTILE(Data!N$7:N$372,0.75))","v":""},{"$f":"IF(SUM(Data!O$7:O$372)=0,\"\",PERCENTILE(Data!O$7:O$372,0.75))","v":""},{"$f":"IF(SUM(Data!P$7:P$372)=0,\"\",PERCENTILE(Data!P$7:P$372,0.75))","v":""},{"$f":"IF(SUM(Data!Q$7:Q$372)=0,\"\",PERCENTILE(Data!Q$7:Q$372,0.75))","v":""},{"$f":"IF(SUM(Data!R$7:R$372)=0,\"\",PERCENTILE(Data!R$7:R$372,0.75))","v":""},{"$f":"IF(SUM(Data!AV7:AV372)=0,\"\",PERCENTILE(Data!AV7:AV372,0.75))","v":""},{"$f":"IF(SUM(Data!AW7:AW372)=0,\"\",PERCENTILE(Data!AW7:AW372,0.75))","v":""},{"$f":"IF(SUM(Data!AX7:AX372)=0,\"\",PERCENTILE(Data!AX7:AX372,0.75))","v":""},{"$f":"IF(SUM(Data!AY7:AY372)=0,\"\",PERCENTILE(Data!AY7:AY372,0.75))","v":""},{"$f":"IF(SUM(Data!AZ7:AZ372)=0,\"\",PERCENTILE(Data!AZ7:AZ372,0.75))","v":""},{"$f":"IF(SUM(Data!BA7:BA372)=0,\"\",PERCENTILE(Data!BA7:BA372,0.75))","v":""},{"$f":"IF(SUM(Data!BB7:BB372)=0,\"\",PERCENTILE(Data!BB7:BB372,0.75))","v":""},{"$f":"IF(SUM(Data!BC7:BC372)=0,\"\",PERCENTILE(Data!BC7:BC372,0.75))","v":""},{"$f":"IF(SUM(Data!BD7:BD372)=0,\"\",PERCENTILE(Data!BD7:BD372,0.75))","v":""},{"$f":"IF(SUM(Data!BE7:BE372)=0,\"\",PERCENTILE(Data!BE7:BE372,0.75))","v":""},{"$f":"IF(SUM(Data!BF7:BF372)=0,\"\",PERCENTILE(Data!BF7:BF372,0.75))","v":""},{"$f":"IF(SUM(Data!BG7:BG372)=0,\"\",PERCENTILE(Data!BG7:BG372,0.75))","v":""}]
[null,null,0.9,{"$f":"IF(SUM(Data!N$7:N$372)=0,\"\",PERCENTILE(Data!N$7:N$372,0.9))","v":""},{"$f":"IF(SUM(Data!O$7:O$372)=0,\"\",PERCENTILE(Data!O$7:O$372,0.9))","v":""},{"$f":"IF(SUM(Data!P$7:P$372)=0,\"\",PERCENTILE(Data!P$7:P$372,0.9))","v":""},{"$f":"IF(SUM(Data!Q$7:Q$372)=0,\"\",PERCENTILE(Data!Q$7:Q$372,0.9))","v":""},{"$f":"IF(SUM(Data!R$7:R$372)=0,\"\",PERCENTILE(Data!R$7:R$372,0.9))","v":""},{"$f":"IF(SUM(Data!AV7:AV372)=0,\"\",PERCENTILE(Data!AV7:AV372,0.9))","v":""},{"$f":"IF(SUM(Data!AW7:AW372)=0,\"\",PERCENTILE(Data!AW7:AW372,0.9))","v":""},{"$f":"IF(SUM(Data!AX7:AX372)=0,\"\",PERCENTILE(Data!AX7:AX372,0.9))","v":""},{"$f":"IF(SUM(Data!AY7:AY372)=0,\"\",PERCENTILE(Data!AY7:AY372,0.9))","v":""},{"$f":"IF(SUM(Data!AZ7:AZ372)=0,\"\",PERCENTILE(Data!AZ7:AZ372,0.9))","v":""},{"$f":"IF(SUM(Data!BA7:BA372)=0,\"\",PERCENTILE(Data!BA7:BA372,0.9))","v":""},{"$f":"IF(SUM(Data!BB7:BB372)=0,\"\",PERCENTILE(Data!BB7:BB372,0.9))","v":""},{"$f":"IF(SUM(Data!BC7:BC372)=0,\"\",PERCENTILE(Data!BC7:BC372,0.9))","v":""},{"$f":"IF(SUM(Data!BD7:BD372)=0,\"\",PERCENTILE(Data!BD7:BD372,0.9))","v":""},{"$f":"IF(SUM(Data!BE7:BE372)=0,\"\",PERCENTILE(Data!BE7:BE372,0.9))","v":""},{"$f":"IF(SUM(Data!BF7:BF372)=0,\"\",PERCENTILE(Data!BF7:BF372,0.9))","v":""},{"$f":"IF(SUM(Data!BG7:BG372)=0,\"\",PERCENTILE(Data!BG7:BG372,0.9))","v":""}]
[null,null,0.95,{"$f":"IF(SUM(Data!N$7:N$372)=0,\"\",PERCENTILE(Data!N$7:N$372,0.95))","v":""},{"$f":"IF(SUM(Data!O$7:O$372)=0,\"\",PERCENTILE(Data!O$7:O$372,0.95))","v":""},{"$f":"IF(SUM(Data!P$7:P$372)=0,\"\",PERCENTILE(Data!P$7:P$372,0.95))","v":""},{"$f":"IF(SUM(Data!Q$7:Q$372)=0,\"\",PERCENTILE(Data!Q$7:Q$372,0.95))","v":""},{"$f":"IF(SUM(Data!R$7:R$372)=0,\"\",PERCENTILE(Data!R$7:R$372,0.95))","v":""},{"$f":"IF(SUM(Data!AV$7:AV$372)=0,\"\",PERCENTILE(Data!AV$7:AV$372,0.95))","v":""},{"$f":"IF(SUM(Data!AW$7:AW$372)=0,\"\",PERCENTILE(Data!AW$7:AW$372,0.95))","v":""},{"$f":"IF(SUM(Data!AX$7:AX$372)=0,\"\",PERCENTILE(Data!AX$7:AX$372,0.95))","v":""},{"$f":"IF(SUM(Data!AY$7:AY$372)=0,\"\",PERCENTILE(Data!AY$7:AY$372,0.95))","v":""},{"$f":"IF(SUM(Data!AZ$7:AZ$372)=0,\"\",PERCENTILE(Data!AZ$7:AZ$372,0.95))","v":""},{"$f":"IF(SUM(Data!BA$7:BA$372)=0,\"\",PERCENTILE(Data!BA$7:BA$372,0.95))","v":""},{"$f":"IF(SUM(Data!BB$7:BB$372)=0,\"\",PERCENTILE(Data!BB$7:BB$372,0.95))","v":""},{"$f":"IF(SUM(Data!BC$7:BC$372)=0,\"\",PERCENTILE(Data!BC$7:BC$372,0.95))","v":""},{"$f":"IF(SUM(Data!BD$7:BD$372)=0,\"\",PERCENTILE(Data!BD$7:BD$372,0.95))","v":""},{"$f":"IF(SUM(Data!BE$7:BE$372)=0,\"\",PERCENTILE(Data!BE$7:BE$372,0.95))","v":""},{"$f":"IF(SUM(Data!BF$7:BF$372)=0,\"\",PERCENTILE(Data!BF$7:BF$372,0.95))","v":""},{"$f":"IF(SUM(Data!BG$7:BG$372)=0,\"\",PERCENTILE(Data!BG$7:BG$372,0.95))","v":""}]
[null,null,"Min",{"$f":"IF(SUM(Data!N$7:N$372)=0,\"\",MIN(Data!N$7:N$372))","v":""},{"$f":"IF(SUM(Data!O$7:O$372)=0,\"\",MIN(Data!O$7:O$372))","v":""},{"$f":"IF(SUM(Data!P$7:P$372)=0,\"\",MIN(Data!P$7:P$372))","v":""},{"$f":"IF(SUM(Data!Q$7:Q$372)=0,\"\",MIN(Data!Q$7:Q$372))","v":""},{"$f":"IF(SUM(Data!R$7:R$372)=0,\"\",MIN(Data!R$7:R$372))","v":""},{"$f":"IF(SUM(Data!AV$7:AV$372)=0,\"\",MIN(Data!AV$7:AV$372))","v":""},{"$f":"IF(SUM(Data!AW$7:AW$372)=0,\"\",MIN(Data!AW$7:AW$372))","v":""},{"$f":"IF(SUM(Data!AX$7:AX$372)=0,\"\",MIN(Data!AX$7:AX$372))","v":""},{"$f":"IF(SUM(Data!AY$7:AY$372)=0,\"\",MIN(Data!AY$7:AY$372))","v":""},{"$f":"IF(SUM(Data!AZ$7:AZ$372)=0,\"\",MIN(Data!AZ$7:AZ$372))","v":""},{"$f":"IF(SUM(Data!BA$7:BA$372)=0,\"\",MIN(Data!BA$7:BA$372))","v":""},{"$f":"IF(SUM(Data!BB$7:BB$372)=0,\"\",MIN(Data!BB$7:BB$372))","v":""},{"$f":"IF(SUM(Data!BC$7:BC$372)=0,\"\",MIN(Data!BC$7:BC$372))","v":""},{"$f":"IF(SUM(Data!BD$7:BD$372)=0,\"\",MIN(Data!BD$7:BD$372))","v":""},{"$f":"IF(SUM(Data!BE$7:BE$372)=0,\"\",MIN(Data!BE$7:BE$372))","v":""},{"$f":"IF(SUM(Data!BF$7:BF$372)=0,\"\",MIN(Data!BF$7:BF$372))","v":""},{"$f":"IF(SUM(Data!BG$7:BG$372)=0,\"\",MIN(Data!BG$7:BG$372))","v":""}]
[null,null,"Ave",{"$f":"IF(SUM(Data!N$7:N$372)=0,\"\",AVERAGE(Data!N$7:N$372,))","v":""},{"$f":"IF(SUM(Data!O$7:O$372)=0,\"\",AVERAGE(Data!O$7:O$372,))","v":""},{"$f":"IF(SUM(Data!P$7:P$372)=0,\"\",AVERAGE(Data!P$7:P$372,))","v":""},{"$f":"IF(SUM(Data!Q$7:Q$372)=0,\"\",AVERAGE(Data!Q$7:Q$372,))","v":""},{"$f":"IF(SUM(Data!R$7:R$372)=0,\"\",AVERAGE(Data!R$7:R$372,))","v":""},{"$f":"IF(SUM(Data!AV$7:AV$372)=0,\"\",AVERAGE(Data!AV$7:AV$372))","v":""},{"$f":"IF(SUM(Data!AW$7:AW$372)=0,\"\",AVERAGE(Data!AW$7:AW$372))","v":""},{"$f":"IF(SUM(Data!AX$7:AX$372)=0,\"\",AVERAGE(Data!AX$7:AX$372))","v":""},{"$f":"IF(SUM(Data!AY$7:AY$372)=0,\"\",AVERAGE(Data!AY$7:AY$372))","v":""},{"$f":"IF(SUM(Data!AZ$7:AZ$372)=0,\"\",AVERAGE(Data!AZ$7:AZ$372))","v":""},{"$f":"IF(SUM(Data!BA$7:BA$372)=0,\"\",AVERAGE(Data!BA$7:BA$372))","v":""},{"$f":"IF(SUM(Data!BB$7:BB$372)=0,\"\",AVERAGE(Data!BB$7:BB$372))","v":""},{"$f":"IF(SUM(Data!BC$7:BC$372)=0,\"\",AVERAGE(Data!BC$7:BC$372))","v":""},{"$f":"IF(SUM(Data!BD$7:BD$372)=0,\"\",AVERAGE(Data!BD$7:BD$372))","v":""},{"$f":"IF(SUM(Data!BE$7:BE$372)=0,\"\",AVERAGE(Data!BE$7:BE$372))","v":""},{"$f":"IF(SUM(Data!BF$7:BF$372)=0,\"\",AVERAGE(Data!BF$7:BF$372))","v":""},{"$f":"IF(SUM(Data!BG$7:BG$372)=0,\"\",AVERAGE(Data!BG$7:BG$372))","v":""}]
[null,null,"Max",{"$f":"IF(SUM(Data!N$7:N$372)=0,\"\",MAX(Data!N$7:N$372))","v":""},{"$f":"IF(SUM(Data!O$7:O$372)=0,\"\",MAX(Data!O$7:O$372))","v":""},{"$f":"IF(SUM(Data!P$7:P$372)=0,\"\",MAX(Data!P$7:P$372))","v":""},{"$f":"IF(SUM(Data!Q$7:Q$372)=0,\"\",MAX(Data!Q$7:Q$372))","v":""},{"$f":"IF(SUM(Data!R$7:R$372)=0,\"\",MAX(Data!R$7:R$372))","v":""},{"$f":"IF(SUM(Data!AV$7:AV$372)=0,\"\",MAX(Data!AV$7:AV$372))","v":""},{"$f":"IF(SUM(Data!AW$7:AW$372)=0,\"\",MAX(Data!AW$7:AW$372))","v":""},{"$f":"IF(SUM(Data!AX$7:AX$372)=0,\"\",MAX(Data!AX$7:AX$372))","v":""},{"$f":"IF(SUM(Data!AY$7:AY$372)=0,\"\",MAX(Data!AY$7:AY$372))","v":""},{"$f":"IF(SUM(Data!AZ$7:AZ$372)=0,\"\",MAX(Data!AZ$7:AZ$372))","v":""},{"$f":"IF(SUM(Data!BA$7:BA$372)=0,\"\",MAX(Data!BA$7:BA$372))","v":""},{"$f":"IF(SUM(Data!BB$7:BB$372)=0,\"\",MAX(Data!BB$7:BB$372))","v":""},{"$f":"IF(SUM(Data!BC$7:BC$372)=0,\"\",MAX(Data!BC$7:BC$372))","v":""},{"$f":"IF(SUM(Data!BD$7:BD$372)=0,\"\",MAX(Data!BD$7:BD$372))","v":""},{"$f":"IF(SUM(Data!BE$7:BE$372)=0,\"\",MAX(Data!BE$7:BE$372))","v":""},{"$f":"IF(SUM(Data!BF$7:BF$372)=0,\"\",MAX(Data!BF$7:BF$372))","v":""},{"$f":"IF(SUM(Data!BG$7:BG$372)=0,\"\",MAX(Data!BG$7:BG$372))","v":""}]
[null,null,"Yr. Goal",{"$f":"IF(SUM(Data!N7:N372)=0,\"\",FREQUENCY(Data!N7:N372,Data!$J$3)/COUNT(Data!N7:N372))","v":""},{"$f":"IF(SUM(Data!O7:O372)=0,\"\",FREQUENCY(Data!O7:O372,Data!$J$3)/COUNT(Data!O7:O372))","v":""},{"$f":"IF(SUM(Data!P7:P372)=0,\"\",FREQUENCY(Data!P7:P372,Data!$J$3)/COUNT(Data!P7:P372))","v":""},{"$f":"IF(SUM(Data!Q7:Q372)=0,\"\",FREQUENCY(Data!Q7:Q372,Data!$J$3)/COUNT(Data!Q7:Q372))","v":""},{"$f":"IF(SUM(Data!R7:R372)=0,\"\",FREQUENCY(Data!R7:R372,Data!$J$3)/COUNT(Data!R7:R372))","v":""},{"$f":"IF(SUM(Data!AV7:AV372)=0,\"\",FREQUENCY(Data!AV7:AV372,0.1)/COUNT(Data!AV7:AV372))","v":""},{"$f":"IF(SUM(Data!AW7:AW372)=0,\"\",FREQUENCY(Data!AW7:AW372,0.1)/COUNT(Data!AW7:AW372))","v":""},{"$f":"IF(SUM(Data!AX7:AX372)=0,\"\",FREQUENCY(Data!AX7:AX372,0.1)/COUNT(Data!AX7:AX372))","v":""},{"$f":"IF(SUM(Data!AY7:AY372)=0,\"\",FREQUENCY(Data!AY7:AY372,0.1)/COUNT(Data!AY7:AY372))","v":""},{"$f":"IF(SUM(Data!AZ7:AZ372)=0,\"\",FREQUENCY(Data!AZ7:AZ372,0.1)/COUNT(Data!AZ7:AZ372))","v":""},{"$f":"IF(SUM(Data!BA7:BA372)=0,\"\",FREQUENCY(Data!BA7:BA372,0.1)/COUNT(Data!BA7:BA372))","v":""},{"$f":"IF(SUM(Data!BB7:BB372)=0,\"\",FREQUENCY(Data!BB7:BB372,0.1)/COUNT(Data!BB7:BB372))","v":""},{"$f":"IF(SUM(Data!BC7:BC372)=0,\"\",FREQUENCY(Data!BC7:BC372,0.1)/COUNT(Data!BC7:BC372))","v":""},{"$f":"IF(SUM(Data!BD7:BD372)=0,\"\",FREQUENCY(Data!BD7:BD372,0.1)/COUNT(Data!BD7:BD372))","v":""},{"$f":"IF(SUM(Data!BE7:BE372)=0,\"\",FREQUENCY(Data!BE7:BE372,0.1)/COUNT(Data!BE7:BE372))","v":""},{"$f":"IF(SUM(Data!BF7:BF372)=0,\"\",FREQUENCY(Data!BF7:BF372,0.1)/COUNT(Data!BF7:BF372))","v":""},{"$f":"IF(SUM(Data!BG7:BG372)=0,\"\",FREQUENCY(Data!BG7:BG372,0.1)/COUNT(Data!BG7:BG372))","v":""}]

{"sheet":"Filters 36-48 Sum","index":5,"n_rows":29,"n_cols":20,"rows_kept":29,"cut":false,"hidden":false,"merged":[[6,3,6,7],[6,8,6,19],[1,2,1,9],[2,2,2,9],[3,2,3,9],[5,3,5,7],[5,8,5,19]]}
[]
[null,null,{"$f":"Data!D2","v":"Test System"}]
[null,null,{"$f":"Data!D3","v":"Test Western WTP"}]
[null,null,{"$f":"Data!D4","v":"AL0004000"}]
[]
[null,null,null,"Settled Water Turbidity",null,null,null,null,"Filtered Water Turbidity"]
[null,null,null,"95th Percentile Values (NTU)",null,null,null,null,"95th Percentile Values (NTU)"]
[null,null,null,{"$f":"Data!S6","v":"Basin 16"},{"$f":"Data!T6","v":"Basin 17"},{"$f":"Data!U6","v":"Basin 18"},{"$f":"Data!V6","v":"Basin 19"},{"$f":"Data!W6","v":"Basin 20"},{"$f":"Data!BH6","v":"Filter 37"},{"$f":"Data!BI6","v":"Filter 38"},{"$f":"Data!BJ6","v":"Filter 39"},{"$f":"Data!BK6","v":"Filter 40"},{"$f":"Data!BL6","v":"Filter 41"},{"$f":"Data!BM6","v":"Filter 42"},{"$f":"Data!BN6","v":"Filter 43"},{"$f":"Data!BO6","v":"Filter 44"},{"$f":"Data!BP6","v":"Filter 45"},{"$f":"Data!BQ6","v":"Filter 46"},{"$f":"Data!BR6","v":"Filter 47"},{"$f":"Data!BS6","v":"Filter 48"}]
[null,null,{"$f":"'95th'!B4","v":"00:00:00"},{"$f":"IF(ISERROR('95th'!T4=0),\"\",'95th'!T4)","v":""},{"$f":"IF(ISERROR('95th'!U4=0),\"\",'95th'!U4)","v":""},{"$f":"IF(ISERROR('95th'!V4=0),\"\",'95th'!V4)","v":""},{"$f":"IF(ISERROR('95th'!W4=0),\"\",'95th'!W4)","v":""},{"$f":"IF(ISERROR('95th'!X4=0),\"\",'95th'!X4)","v":""},{"$f":"IF(ISERROR('95th'!BI4),\"\",'95th'!BI4)","v":""},{"$f":"IF(ISERROR('95th'!BJ4),\"\",'95th'!BJ4)","v":""},{"$f":"IF(ISERROR('95th'!BK4),\"\",'95th'!BK4)","v":""},{"$f":"IF(ISERROR('95th'!BL4),\"\",'95th'!BL4)","v":""},{"$f":"IF(ISERROR('95th'!BM4),\"\",'95th'!BM4)","v":""},{"$f":"IF(ISERROR('95th'!BN4),\"\",'95th'!BN4)","v":""},{"$f":"IF(ISERROR('95th'!BO4),\"\",'95th'!BO4)","v":""},{"$f":"IF(ISERROR('95th'!BP4),\"\",'95th'!BP4)","v":""},{"$f":"IF(ISERROR('95th'!BQ4),\"\",'95th'!BQ4)","v":""},{"$f":"IF(ISERROR('95th'!BR4),\"\",'95th'!BR4)","v":""},{"$f":"IF(ISERROR('95th'!BS4),\"\",'95th'!BS4)","v":""},{"$f":"IF(ISERROR('95th'!BT4),\"\",'95th'!BT4)","v":""}]
[null,null,{"$f":"'95th'!B5","v":"00:00:00"},{"$f":"IF(ISERROR('95th'!T5=0),\"\",'95th'!T5)","v":""},{"$f":"IF(ISERROR('95th'!U5=0),\"\",'95th'!U5)","v":""},{"$f":"IF(ISERROR('95th'!V5=0),\"\",'95th'!V5)","v":""},{"$f":"IF(ISERROR('95th'!W5=0),\"\",'95th'!W5)","v":""},{"$f":"IF(ISERROR('95th'!X5=0),\"\",'95th'!X5)","v":""},{"$f":"IF(ISERROR('95th'!BI5),\"\",'95th'!BI5)","v":""},{"$f":"IF(ISERROR('95th'!BJ5),\"\",'95th'!BJ5)","v":""},{"$f":"IF(ISERROR('95th'!BK5),\"\",'95th'!BK5)","v":""},{"$f":"IF(ISERROR('95th'!BL5),\"\",'95th'!BL5)","v":""},{"$f":"IF(ISERROR('95th'!BM5),\"\",'95th'!BM5)","v":""},{"$f":"IF(ISERROR('95th'!BN5),\"\",'95th'!BN5)","v":""},{"$f":"IF(ISERROR('95th'!BO5),\"\",'95th'!BO5)","v":""},{"$f":"IF(ISERROR('95th'!BP5),\"\",'95th'!BP5)","v":""},{"$f":"IF(ISERROR('95th'!BQ5),\"\",'95th'!BQ5)","v":""},{"$f":"IF(ISERROR('95th'!BR5),\"\",'95th'!BR5)","v":""},{"$f":"IF(ISERROR('95th'!BS5),\"\",'95th'!BS5)","v":""},{"$f":"IF(ISERROR('95th'!BT5),\"\",'95th'!BT5)","v":""}]
[null,null,{"$f":"'95th'!B6","v":"00:00:00"},{"$f":"IF(ISERROR('95th'!T6=0),\"\",'95th'!T6)","v":""},{"$f":"IF(ISERROR('95th'!U6=0),\"\",'95th'!U6)","v":""},{"$f":"IF(ISERROR('95th'!V6=0),\"\",'95th'!V6)","v":""},{"$f":"IF(ISERROR('95th'!W6=0),\"\",'95th'!W6)","v":""},{"$f":"IF(ISERROR('95th'!X6=0),\"\",'95th'!X6)","v":""},{"$f":"IF(ISERROR('95th'!BI6),\"\",'95th'!BI6)","v":""},{"$f":"IF(ISERROR('95th'!BJ6),\"\",'95th'!BJ6)","v":""},{"$f":"IF(ISERROR('95th'!BK6),\"\",'95th'!BK6)","v":""},{"$f":"IF(ISERROR('95th'!BL6),\"\",'95th'!BL6)","v":""},{"$f":"IF(ISERROR('95th'!BM6),\"\",'95th'!BM6)","v":""},{"$f":"IF(ISERROR('95th'!BN6),\"\",'95th'!BN6)","v":""},{"$f":"IF(ISERROR('95th'!BO6),\"\",'95th'!BO6)","v":""},{"$f":"IF(ISERROR('95th'!BP6),\"\",'95th'!BP6)","v":""},{"$f":"IF(ISERROR('95th'!BQ6),\"\",'95th'!BQ6)","v":""},{"$f":"IF(ISERROR('95th'!BR6),\"\",'95th'!BR6)","v":""},{"$f":"IF(ISERROR('95th'!BS6),\"\",'95th'!BS6)","v":""},{"$f":"IF(ISERROR('95th'!BT6),\"\",'95th'!BT6)","v":""}]
[null,null,{"$f":"'95th'!B7","v":"00:00:00"},{"$f":"IF(ISERROR('95th'!T7=0),\"\",'95th'!T7)","v":""},{"$f":"IF(ISERROR('95th'!U7=0),\"\",'95th'!U7)","v":""},{"$f":"IF(ISERROR('95th'!V7=0),\"\",'95th'!V7)","v":""},{"$f":"IF(ISERROR('95th'!W7=0),\"\",'95th'!W7)","v":""},{"$f":"IF(ISERROR('95th'!X7=0),\"\",'95th'!X7)","v":""},{"$f":"IF(ISERROR('95th'!BI7),\"\",'95th'!BI7)","v":""},{"$f":"IF(ISERROR('95th'!BJ7),\"\",'95th'!BJ7)","v":""},{"$f":"IF(ISERROR('95th'!BK7),\"\",'95th'!BK7)","v":""},{"$f":"IF(ISERROR('95th'!BL7),\"\",'95th'!BL7)","v":""},{"$f":"IF(ISERROR('95th'!BM7),\"\",'95th'!BM7)","v":""},{"$f":"IF(ISERROR('95th'!BN7),\"\",'95th'!BN7)","v":""},{"$f":"IF(ISERROR('95th'!BO7),\"\",'95th'!BO7)","v":""},{"$f":"IF(ISERROR('95th'!BP7),\"\",'95th'!BP7)","v":""},{"$f":"IF(ISERROR('95th'!BQ7),\"\",'95th'!BQ7)","v":""},{"$f":"IF(ISERROR('95th'!BR7),\"\",'95th'!BR7)","v":""},{"$f":"IF(ISERROR('95th'!BS7),\"\",'95th'!BS7)","v":""},{"$f":"IF(ISERROR('95th'!BT7),\"\",'95th'!BT7)","v":""}]
[null,null,{"$f":"'95th'!B8","v":"00:00:00"},{"$f":"IF(ISERROR('95th'!T8=0),\"\",'95th'!T8)","v":""},{"$f":"IF(ISERROR('95th'!U8=0),\"\",'95th'!U8)","v":""},{"$f":"IF(ISERROR('95th'!V8=0),\"\",'95th'!V8)","v":""},{"$f":"IF(ISERROR('95th'!W8=0),\"\",'95th'!W8)","v":""},{"$f":"IF(ISERROR('95th'!X8=0),\"\",'95th'!X8)","v":""},{"$f":"IF(ISERROR('95th'!BI8),\"\",'95th'!BI8)","v":""},{"$f":"IF(ISERROR('95th'!BJ8),\"\",'95th'!BJ8)","v":""},{"$f":"IF(ISERROR('95th'!BK8),\"\",'95th'!BK8)","v":""},{"$f":"IF(ISERROR('95th'!BL8),\"\",'95th'!BL8)","v":""},{"$f":"IF(ISERROR('95th'!BM8),\"\",'95th'!BM8)","v":""},{"$f":"IF(ISERROR('95th'!BN8),\"\",'95th'!BN8)","v":""},{"$f":"IF(ISERROR('95th'!BO8),\"\",'95th'!BO8)","v":""},{"$f":"IF(ISERROR('95th'!BP8),\"\",'95th'!BP8)","v":""},{"$f":"IF(ISERROR('95th'!BQ8),\"\",'95th'!BQ8)","v":""},{"$f":"IF(ISERROR('95th'!BR8),\"\",'95th'!BR8)","v":""},{"$f":"IF(ISERROR('95th'!BS8),\"\",'95th'!BS8)","v":""},{"$f":"IF(ISERROR('95th'!BT8),\"\",'95th'!BT8)","v":""}]
[null,null,{"$f":"'95th'!B9","v":"00:00:00"},{"$f":"IF(ISERROR('95th'!T9=0),\"\",'95th'!T9)","v":""},{"$f":"IF(ISERROR('95th'!U9=0),\"\",'95th'!U9)","v":""},{"$f":"IF(ISERROR('95th'!V9=0),\"\",'95th'!V9)","v":""},{"$f":"IF(ISERROR('95th'!W9=0),\"\",'95th'!W9)","v":""},{"$f":"IF(ISERROR('95th'!X9=0),\"\",'95th'!X9)","v":""},{"$f":"IF(ISERROR('95th'!BI9),\"\",'95th'!BI9)","v":""},{"$f":"IF(ISERROR('95th'!BJ9),\"\",'95th'!BJ9)","v":""},{"$f":"IF(ISERROR('95th'!BK9),\"\",'95th'!BK9)","v":""},{"$f":"IF(ISERROR('95th'!BL9),\"\",'95th'!BL9)","v":""},{"$f":"IF(ISERROR('95th'!BM9),\"\",'95th'!BM9)","v":""},{"$f":"IF(ISERROR('95th'!BN9),\"\",'95th'!BN9)","v":""},{"$f":"IF(ISERROR('95th'!BO9),\"\",'95th'!BO9)","v":""},{"$f":"IF(ISERROR('95th'!BP9),\"\",'95th'!BP9)","v":""},{"$f":"IF(ISERROR('95th'!BQ9),\"\",'95th'!BQ9)","v":""},{"$f":"IF(ISERROR('95th'!BR9),\"\",'95th'!BR9)","v":""},{"$f":"IF(ISERROR('95th'!BS9),\"\",'95th'!BS9)","v":""},{"$f":"IF(ISERROR('95th'!BT9),\"\",'95th'!BT9)","v":""}]
[null,null,{"$f":"'95th'!B10","v":"00:00:00"},{"$f":"IF(ISERROR('95th'!T10=0),\"\",'95th'!T10)","v":""},{"$f":"IF(ISERROR('95th'!U10=0),\"\",'95th'!U10)","v":""},{"$f":"IF(ISERROR('95th'!V10=0),\"\",'95th'!V10)","v":""},{"$f":"IF(ISERROR('95th'!W10=0),\"\",'95th'!W10)","v":""},{"$f":"IF(ISERROR('95th'!X10=0),\"\",'95th'!X10)","v":""},{"$f":"IF(ISERROR('95th'!BI10),\"\",'95th'!BI10)","v":""},{"$f":"IF(ISERROR('95th'!BJ10),\"\",'95th'!BJ10)","v":""},{"$f":"IF(ISERROR('95th'!BK10),\"\",'95th'!BK10)","v":""},{"$f":"IF(ISERROR('95th'!BL10),\"\",'95th'!BL10)","v":""},{"$f":"IF(ISERROR('95th'!BM10),\"\",'95th'!BM10)","v":""},{"$f":"IF(ISERROR('95th'!BN10),\"\",'95th'!BN10)","v":""},{"$f":"IF(ISERROR('95th'!BO10),\"\",'95th'!BO10)","v":""},{"$f":"IF(ISERROR('95th'!BP10),\"\",'95th'!BP10)","v":""},{"$f":"IF(ISERROR('95th'!BQ10),\"\",'95th'!BQ10)","v":""},{"$f":"IF(ISERROR('95th'!BR10),\"\",'95th'!BR10)","v":""},{"$f":"IF(ISERROR('95th'!BS10),\"\",'95th'!BS10)","v":""},{"$f":"IF(ISERROR('95th'!BT10),\"\",'95th'!BT10)","v":""}]
[null,null,{"$f":"'95th'!B11","v":"00:00:00"},{"$f":"IF(ISERROR('95th'!T11=0),\"\",'95th'!T11)","v":""},{"$f":"IF(ISERROR('95th'!U11=0),\"\",'95th'!U11)","v":""},{"$f":"IF(ISERROR('95th'!V11=0),\"\",'95th'!V11)","v":""},{"$f":"IF(ISERROR('95th'!W11=0),\"\",'95th'!W11)","v":""},{"$f":"IF(ISERROR('95th'!X11=0),\"\",'95th'!X11)","v":""},{"$f":"IF(ISERROR('95th'!BI11),\"\",'95th'!BI11)","v":""},{"$f":"IF(ISERROR('95th'!BJ11),\"\",'95th'!BJ11)","v":""},{"$f":"IF(ISERROR('95th'!BK11),\"\",'95th'!BK11)","v":""},{"$f":"IF(ISERROR('95th'!BL11),\"\",'95th'!BL11)","v":""},{"$f":"IF(ISERROR('95th'!BM11),\"\",'95th'!BM11)","v":""},{"$f":"IF(ISERROR('95th'!BN11),\"\",'95th'!BN11)","v":""},{"$f":"IF(ISERROR('95th'!BO11),\"\",'95th'!BO11)","v":""},{"$f":"IF(ISERROR('95th'!BP11),\"\",'95th'!BP11)","v":""},{"$f":"IF(ISERROR('95th'!BQ11),\"\",'95th'!BQ11)","v":""},{"$f":"IF(ISERROR('95th'!BR11),\"\",'95th'!BR11)","v":""},{"$f":"IF(ISERROR('95th'!BS11),\"\",'95th'!BS11)","v":""},{"$f":"IF(ISERROR('95th'!BT11),\"\",'95th'!BT11)","v":""}]
[null,null,{"$f":"'95th'!B12","v":"00:00:00"},{"$f":"IF(ISERROR('95th'!T12=0),\"\",'95th'!T12)","v":""},{"$f":"IF(ISERROR('95th'!U12=0),\"\",'95th'!U12)","v":""},{"$f":"IF(ISERROR('95th'!V12=0),\"\",'95th'!V12)","v":""},{"$f":"IF(ISERROR('95th'!W12=0),\"\",'95th'!W12)","v":""},{"$f":"IF(ISERROR('95th'!X12=0),\"\",'95th'!X12)","v":""},{"$f":"IF(ISERROR('95th'!BI12),\"\",'95th'!BI12)","v":""},{"$f":"IF(ISERROR('95th'!BJ12),\"\",'95th'!BJ12)","v":""},{"$f":"IF(ISERROR('95th'!BK12),\"\",'95th'!BK12)","v":""},{"$f":"IF(ISERROR('95th'!BL12),\"\",'95th'!BL12)","v":""},{"$f":"IF(ISERROR('95th'!BM12),\"\",'95th'!BM12)","v":""},{"$f":"IF(ISERROR('95th'!BN12),\"\",'95th'!BN12)","v":""},{"$f":"IF(ISERROR('95th'!BO12),\"\",'95th'!BO12)","v":""},{"$f":"IF(ISERROR('95th'!BP12),\"\",'95th'!BP12)","v":""},{"$f":"IF(ISERROR('95th'!BQ12),\"\",'95th'!BQ12)","v":""},{"$f":"IF(ISERROR('95th'!BR12),\"\",'95th'!BR12)","v":""},{"$f":"IF(ISERROR('95th'!BS12),\"\",'95th'!BS12)","v":""},{"$f":"IF(ISERROR('95th'!BT12),\"\",'95th'!BT12)","v":""}]
[null,null,{"$f":"'95th'!B13","v":"00:00:00"},{"$f":"IF(ISERROR('95th'!T13=0),\"\",'95th'!T13)","v":""},{"$f":"IF(ISERROR('95th'!U13=0),\"\",'95th'!U13)","v":""},{"$f":"IF(ISERROR('95th'!V13=0),\"\",'95th'!V13)","v":""},{"$f":"IF(ISERROR('95th'!W13=0),\"\",'95th'!W13)","v":""},{"$f":"IF(ISERROR('95th'!X13=0),\"\",'95th'!X13)","v":""},{"$f":"IF(ISERROR('95th'!BI13),\"\",'95th'!BI13)","v":""},{"$f":"IF(ISERROR('95th'!BJ13),\"\",'95th'!BJ13)","v":""},{"$f":"IF(ISERROR('95th'!BK13),\"\",'95th'!BK13)","v":""},{"$f":"IF(ISERROR('95th'!BL13),\"\",'95th'!BL13)","v":""},{"$f":"IF(ISERROR('95th'!BM13),\"\",'95th'!BM13)","v":""},{"$f":"IF(ISERROR('95th'!BN13),\"\",'95th'!BN13)","v":""},{"$f":"IF(ISERROR('95th'!BO13),\"\",'95th'!BO13)","v":""},{"$f":"IF(ISERROR('95th'!BP13),\"\",'95th'!BP13)","v":""},{"$f":"IF(ISERROR('95th'!BQ13),\"\",'95th'!BQ13)","v":""},{"$f":"IF(ISERROR('95th'!BR13),\"\",'95th'!BR13)","v":""},{"$f":"IF(ISERROR('95th'!BS13),\"\",'95th'!BS13)","v":""},{"$f":"IF(ISERROR('95th'!BT13),\"\",'95th'!BT13)","v":""}]
[null,null,{"$f":"'95th'!B14","v":"00:00:00"},{"$f":"IF(ISERROR('95th'!T14=0),\"\",'95th'!T14)","v":""},{"$f":"IF(ISERROR('95th'!U14=0),\"\",'95th'!U14)","v":""},{"$f":"IF(ISERROR('95th'!V14=0),\"\",'95th'!V14)","v":""},{"$f":"IF(ISERROR('95th'!W14=0),\"\",'95th'!W14)","v":""},{"$f":"IF(ISERROR('95th'!X14=0),\"\",'95th'!X14)","v":""},{"$f":"IF(ISERROR('95th'!BI14),\"\",'95th'!BI14)","v":""},{"$f":"IF(ISERROR('95th'!BJ14),\"\",'95th'!BJ14)","v":""},{"$f":"IF(ISERROR('95th'!BK14),\"\",'95th'!BK14)","v":""},{"$f":"IF(ISERROR('95th'!BL14),\"\",'95th'!BL14)","v":""},{"$f":"IF(ISERROR('95th'!BM14),\"\",'95th'!BM14)","v":""},{"$f":"IF(ISERROR('95th'!BN14),\"\",'95th'!BN14)","v":""},{"$f":"IF(ISERROR('95th'!BO14),\"\",'95th'!BO14)","v":""},{"$f":"IF(ISERROR('95th'!BP14),\"\",'95th'!BP14)","v":""},{"$f":"IF(ISERROR('95th'!BQ14),\"\",'95th'!BQ14)","v":""},{"$f":"IF(ISERROR('95th'!BR14),\"\",'95th'!BR14)","v":""},{"$f":"IF(ISERROR('95th'!BS14),\"\",'95th'!BS14)","v":""},{"$f":"IF(ISERROR('95th'!BT14),\"\",'95th'!BT14)","v":""}]
[null,null,{"$f":"'95th'!B15","v":"00:00:00"},{"$f":"IF(ISERROR('95th'!T15=0),\"\",'95th'!T15)","v":""},{"$f":"IF(ISERROR('95th'!U15=0),\"\",'95th'!U15)","v":""},{"$f":"IF(ISERROR('95th'!V15=0),\"\",'95th'!V15)","v":""},{"$f":"IF(ISERROR('95th'!W15=0),\"\",'95th'!W15)","v":""},{"$f":"IF(ISERROR('95th'!X15=0),\"\",'95th'!X15)","v":""},{"$f":"IF(ISERROR('95th'!BI15),\"\",'95th'!BI15)","v":""},{"$f":"IF(ISERROR('95th'!BJ15),\"\",'95th'!BJ15)","v":""},{"$f":"IF(ISERROR('95th'!BK15),\"\",'95th'!BK15)","v":""},{"$f":"IF(ISERROR('95th'!BL15),\"\",'95th'!BL15)","v":""},{"$f":"IF(ISERROR('95th'!BM15),\"\",'95th'!BM15)","v":""},{"$f":"IF(ISERROR('95th'!BN15),\"\",'95th'!BN15)","v":""},{"$f":"IF(ISERROR('95th'!BO15),\"\",'95th'!BO15)","v":""},{"$f":"IF(ISERROR('95th'!BP15),\"\",'95th'!BP15)","v":""},{"$f":"IF(ISERROR('95th'!BQ15),\"\",'95th'!BQ15)","v":""},{"$f":"IF(ISERROR('95th'!BR15),\"\",'95th'!BR15)","v":""},{"$f":"IF(ISERROR('95th'!BS15),\"\",'95th'!BS15)","v":""},{"$f":"IF(ISERROR('95th'!BT15),\"\",'95th'!BT15)","v":""}]
[]
[null,null,0.5,{"$f":"IF(SUM(Data!S$7:S$372)=0,\"\",PERCENTILE(Data!S$7:S$372,0.5))","v":""},{"$f":"IF(SUM(Data!T$7:T$372)=0,\"\",PERCENTILE(Data!T$7:T$372,0.5))","v":""},{"$f":"IF(SUM(Data!U$7:U$372)=0,\"\",PERCENTILE(Data!U$7:U$372,0.5))","v":""},{"$f":"IF(SUM(Data!V$7:V$372)=0,\"\",PERCENTILE(Data!V$7:V$372,0.5))","v":""},{"$f":"IF(SUM(Data!W$7:W$372)=0,\"\",PERCENTILE(Data!W$7:W$372,0.5))","v":""},{"$f":"IF(SUM(Data!BH$7:BH$372)=0,\"\",PERCENTILE(Data!BH$7:BH$372,0.5))","v":""},{"$f":"IF(SUM(Data!BI$7:BI$372)=0,\"\",PERCENTILE(Data!BI$7:BI$372,0.5))","v":""},{"$f":"IF(SUM(Data!BJ$7:BJ$372)=0,\"\",PERCENTILE(Data!BJ$7:BJ$372,0.5))","v":""},{"$f":"IF(SUM(Data!BK$7:BK$372)=0,\"\",PERCENTILE(Data!BK$7:BK$372,0.5))","v":""},{"$f":"IF(SUM(Data!BL$7:BL$372)=0,\"\",PERCENTILE(Data!BL$7:BL$372,0.5))","v":""},{"$f":"IF(SUM(Data!BM$7:BM$372)=0,\"\",PERCENTILE(Data!BM$7:BM$372,0.5))","v":""},{"$f":"IF(SUM(Data!BN$7:BN$372)=0,\"\",PERCENTILE(Data!BN$7:BN$372,0.5))","v":""},{"$f":"IF(SUM(Data!BO$7:BO$372)=0,\"\",PERCENTILE(Data!BO$7:BO$372,0.5))","v":""},{"$f":"IF(SUM(Data!BP$7:BP$372)=0,\"\",PERCENTILE(Data!BP$7:BP$372,0.5))","v":""},{"$f":"IF(SUM(Data!BQ$7:BQ$372)=0,\"\",PERCENTILE(Data!BQ$7:BQ$372,0.5))","v":""},{"$f":"IF(SUM(Data!BR$7:BR$372)=0,\"\",PERCENTILE(Data!BR$7:BR$372,0.5))","v":""},{"$f":"IF(SUM(Data!BS$7:BS$372)=0,\"\",PERCENTILE(Data!BS$7:BS$372,0.5))","v":""}]
[null,null,0.75,{"$f":"IF(SUM(Data!S$7:S$372)=0,\"\",PERCENTILE(Data!S$7:S$372,0.75))","v":""},{"$f":"IF(SUM(Data!T$7:T$372)=0,\"\",PERCENTILE(Data!T$7:T$372,0.75))","v":""},{"$f":"IF(SUM(Data!U$7:U$372)=0,\"\",PERCENTILE(Data!U$7:U$372,0.75))","v":""},{"$f":"IF(SUM(Data!V$7:V$372)=0,\"\",PERCENTILE(Data!V$7:V$372,0.75))","v":""},{"$f":"IF(SUM(Data!W$7:W$372)=0,\"\",PERCENTILE(Data!W$7:W$372,0.75))","v":""},{"$f":"IF(SUM(Data!BH$7:BH$372)=0,\"\",PERCENTILE(Data!BH$7:BH$372,0.75))","v":""},{"$f":"IF(SUM(Data!BI$7:BI$372)=0,\"\",PERCENTILE(Data!BI$7:BI$372,0.75))","v":""},{"$f":"IF(SUM(Data!BJ$7:BJ$372)=0,\"\",PERCENTILE(Data!BJ$7:BJ$372,0.75))","v":""},{"$f":"IF(SUM(Data!BK$7:BK$372)=0,\"\",PERCENTILE(Data!BK$7:BK$372,0.75))","v":""},{"$f":"IF(SUM(Data!BL$7:BL$372)=0,\"\",PERCENTILE(Data!BL$7:BL$372,0.75))","v":""},{"$f":"IF(SUM(Data!BM$7:BM$372)=0,\"\",PERCENTILE(Data!BM$7:BM$372,0.75))","v":""},{"$f":"IF(SUM(Data!BN$7:BN$372)=0,\"\",PERCENTILE(Data!BN$7:BN$372,0.75))","v":""},{"$f":"IF(SUM(Data!BO$7:BO$372)=0,\"\",PERCENTILE(Data!BO$7:BO$372,0.75))","v":""},{"$f":"IF(SUM(Data!BP$7:BP$372)=0,\"\",PERCENTILE(Data!BP$7:BP$372,0.75))","v":""},{"$f":"IF(SUM(Data!BQ$7:BQ$372)=0,\"\",PERCENTILE(Data!BQ$7:BQ$372,0.75))","v":""},{"$f":"IF(SUM(Data!BR$7:BR$372)=0,\"\",PERCENTILE(Data!BR$7:BR$372,0.75))","v":""},{"$f":"IF(SUM(Data!BS$7:BS$372)=0,\"\",PERCENTILE(Data!BS$7:BS$372,0.75))","v":""}]
[null,null,0.9,{"$f":"IF(SUM(Data!S$7:S$372)=0,\"\",PERCENTILE(Data!S$7:S$372,0.9))","v":""},{"$f":"IF(SUM(Data!T$7:T$372)=0,\"\",PERCENTILE(Data!T$7:T$372,0.9))","v":""},{"$f":"IF(SUM(Data!U$7:U$372)=0,\"\",PERCENTILE(Data!U$7:U$372,0.9))","v":""},{"$f":"IF(SUM(Data!V$7:V$372)=0,\"\",PERCENTILE(Data!V$7:V$372,0.9))","v":""},{"$f":"IF(SUM(Data!W$7:W$372)=0,\"\",PERCENTILE(Data!W$7:W$372,0.9))","v":""},{"$f":"IF(SUM(Data!BH$7:BH$372)=0,\"\",PERCENTILE(Data!BH$7:BH$372,0.9))","v":""},{"$f":"IF(SUM(Data!BI$7:BI$372)=0,\"\",PERCENTILE(Data!BI$7:BI$372,0.9))","v":""},{"$f":"IF(SUM(Data!BJ$7:BJ$372)=0,\"\",PERCENTILE(Data!BJ$7:BJ$372,0.9))","v":""},{"$f":"IF(SUM(Data!BK$7:BK$372)=0,\"\",PERCENTILE(Data!BK$7:BK$372,0.9))","v":""},{"$f":"IF(SUM(Data!BL$7:BL$372)=0,\"\",PERCENTILE(Data!BL$7:BL$372,0.9))","v":""},{"$f":"IF(SUM(Data!BM$7:BM$372)=0,\"\",PERCENTILE(Data!BM$7:BM$372,0.9))","v":""},{"$f":"IF(SUM(Data!BN$7:BN$372)=0,\"\",PERCENTILE(Data!BN$7:BN$372,0.9))","v":""},{"$f":"IF(SUM(Data!BO$7:BO$372)=0,\"\",PERCENTILE(Data!BO$7:BO$372,0.9))","v":""},{"$f":"IF(SUM(Data!BP$7:BP$372)=0,\"\",PERCENTILE(Data!BP$7:BP$372,0.9))","v":""},{"$f":"IF(SUM(Data!BQ$7:BQ$372)=0,\"\",PERCENTILE(Data!BQ$7:BQ$372,0.9))","v":""},{"$f":"IF(SUM(Data!BR$7:BR$372)=0,\"\",PERCENTILE(Data!BR$7:BR$372,0.9))","v":""},{"$f":"IF(SUM(Data!BS$7:BS$372)=0,\"\",PERCENTILE(Data!BS$7:BS$372,0.9))","v":""}]
[null,null,0.95,{"$f":"IF(SUM(Data!S$7:S$372)=0,\"\",PERCENTILE(Data!S$7:S$372,0.95))","v":""},{"$f":"IF(SUM(Data!T$7:T$372)=0,\"\",PERCENTILE(Data!T$7:T$372,0.95))","v":""},{"$f":"IF(SUM(Data!U$7:U$372)=0,\"\",PERCENTILE(Data!U$7:U$372,0.95))","v":""},{"$f":"IF(SUM(Data!V$7:V$372)=0,\"\",PERCENTILE(Data!V$7:V$372,0.95))","v":""},{"$f":"IF(SUM(Data!W$7:W$372)=0,\"\",PERCENTILE(Data!W$7:W$372,0.95))","v":""},{"$f":"IF(SUM(Data!BH$7:BH$372)=0,\"\",PERCENTILE(Data!BH$7:BH$372,0.95))","v":""},{"$f":"IF(SUM(Data!BI$7:BI$372)=0,\"\",PERCENTILE(Data!BI$7:BI$372,0.95))","v":""},{"$f":"IF(SUM(Data!BJ$7:BJ$372)=0,\"\",PERCENTILE(Data!BJ$7:BJ$372,0.95))","v":""},{"$f":"IF(SUM(Data!BK$7:BK$372)=0,\"\",PERCENTILE(Data!BK$7:BK$372,0.95))","v":""},{"$f":"IF(SUM(Data!BL$7:BL$372)=0,\"\",PERCENTILE(Data!BL$7:BL$372,0.95))","v":""},{"$f":"IF(SUM(Data!BM$7:BM$372)=0,\"\",PERCENTILE(Data!BM$7:BM$372,0.95))","v":""},{"$f":"IF(SUM(Data!BN$7:BN$372)=0,\"\",PERCENTILE(Data!BN$7:BN$372,0.95))","v":""},{"$f":"IF(SUM(Data!BO$7:BO$372)=0,\"\",PERCENTILE(Data!BO$7:BO$372,0.95))","v":""},{"$f":"IF(SUM(Data!BP$7:BP$372)=0,\"\",PERCENTILE(Data!BP$7:BP$372,0.95))","v":""},{"$f":"IF(SUM(Data!BQ$7:BQ$372)=0,\"\",PERCENTILE(Data!BQ$7:BQ$372,0.95))","v":""},{"$f":"IF(SUM(Data!BR$7:BR$372)=0,\"\",PERCENTILE(Data!BR$7:BR$372,0.95))","v":""},{"$f":"IF(SUM(Data!BS$7:BS$372)=0,\"\",PERCENTILE(Data!BS$7:BS$372,0.95))","v":""}]
[null,null,"Min",{"$f":"IF(SUM(Data!S$7:S$372)=0,\"\",MIN(Data!S$7:S$372))","v":""},{"$f":"IF(SUM(Data!T$7:T$372)=0,\"\",MIN(Data!T$7:T$372))","v":""},{"$f":"IF(SUM(Data!U$7:U$372)=0,\"\",MIN(Data!U$7:U$372))","v":""},{"$f":"IF(SUM(Data!V$7:V$372)=0,\"\",MIN(Data!V$7:V$372))","v":""},{"$f":"IF(SUM(Data!W$7:W$372)=0,\"\",MIN(Data!W$7:W$372))","v":""},{"$f":"IF(SUM(Data!BH$7:BH$372)=0,\"\",MIN(Data!BH$7:BH$372))","v":""},{"$f":"IF(SUM(Data!BI$7:BI$372)=0,\"\",MIN(Data!BI$7:BI$372))","v":""},{"$f":"IF(SUM(Data!BJ$7:BJ$372)=0,\"\",MIN(Data!BJ$7:BJ$372))","v":""},{"$f":"IF(SUM(Data!BK$7:BK$372)=0,\"\",MIN(Data!BK$7:BK$372))","v":""},{"$f":"IF(SUM(Data!BL$7:BL$372)=0,\"\",MIN(Data!BL$7:BL$372))","v":""},{"$f":"IF(SUM(Data!BM$7:BM$372)=0,\"\",MIN(Data!BM$7:BM$372))","v":""},{"$f":"IF(SUM(Data!BN$7:BN$372)=0,\"\",MIN(Data!BN$7:BN$372))","v":""},{"$f":"IF(SUM(Data!BO$7:BO$372)=0,\"\",MIN(Data!BO$7:BO$372))","v":""},{"$f":"IF(SUM(Data!BP$7:BP$372)=0,\"\",MIN(Data!BP$7:BP$372))","v":""},{"$f":"IF(SUM(Data!BQ$7:BQ$372)=0,\"\",MIN(Data!BQ$7:BQ$372))","v":""},{"$f":"IF(SUM(Data!BR$7:BR$372)=0,\"\",MIN(Data!BR$7:BR$372))","v":""},{"$f":"IF(SUM(Data!BS$7:BS$372)=0,\"\",MIN(Data!BS$7:BS$372))","v":""}]
[null,null,"Ave",{"$f":"IF(SUM(Data!S$7:S$372)=0,\"\",AVERAGE(Data!S$7:S$372))","v":""},{"$f":"IF(SUM(Data!T$7:T$372)=0,\"\",AVERAGE(Data!T$7:T$372))","v":""},{"$f":"IF(SUM(Data!U$7:U$372)=0,\"\",AVERAGE(Data!U$7:U$372))","v":""},{"$f":"IF(SUM(Data!V$7:V$372)=0,\"\",AVERAGE(Data!V$7:V$372))","v":""},{"$f":"IF(SUM(Data!W$7:W$372)=0,\"\",AVERAGE(Data!W$7:W$372))","v":""},{"$f":"IF(SUM(Data!BH$7:BH$372)=0,\"\",AVERAGE(Data!BH$7:BH$372))","v":""},{"$f":"IF(SUM(Data!BI$7:BI$372)=0,\"\",AVERAGE(Data!BI$7:BI$372))","v":""},{"$f":"IF(SUM(Data!BJ$7:BJ$372)=0,\"\",AVERAGE(Data!BJ$7:BJ$372))","v":""},{"$f":"IF(SUM(Data!BK$7:BK$372)=0,\"\",AVERAGE(Data!BK$7:BK$372))","v":""},{"$f":"IF(SUM(Data!BL$7:BL$372)=0,\"\",AVERAGE(Data!BL$7:BL$372))","v":""},{"$f":"IF(SUM(Data!BM$7:BM$372)=0,\"\",AVERAGE(Data!BM$7:BM$372))","v":""},{"$f":"IF(SUM(Data!BN$7:BN$372)=0,\"\",AVERAGE(Data!BN$7:BN$372))","v":""},{"$f":"IF(SUM(Data!BO$7:BO$372)=0,\"\",AVERAGE(Data!BO$7:BO$372))","v":""},{"$f":"IF(SUM(Data!BP$7:BP$372)=0,\"\",AVERAGE(Data!BP$7:BP$372))","v":""},{"$f":"IF(SUM(Data!BQ$7:BQ$372)=0,\"\",AVERAGE(Data!BQ$7:BQ$372))","v":""},{"$f":"IF(SUM(Data!BR$7:BR$372)=0,\"\",AVERAGE(Data!BR$7:BR$372))","v":""},{"$f":"IF(SUM(Data!BS$7:BS$372)=0,\"\",AVERAGE(Data!BS$7:BS$372))","v":""}]
[null,null,"Max",{"$f":"IF(SUM(Data!S$7:S$372)=0,\"\",MAX(Data!S$7:S$372))","v":""},{"$f":"IF(SUM(Data!T$7:T$372)=0,\"\",MAX(Data!T$7:T$372))","v":""},{"$f":"IF(SUM(Data!U$7:U$372)=0,\"\",MAX(Data!U$7:U$372))","v":""},{"$f":"IF(SUM(Data!V$7:V$372)=0,\"\",MAX(Data!V$7:V$372))","v":""},{"$f":"IF(SUM(Data!W$7:W$372)=0,\"\",MAX(Data!W$7:W$372))","v":""},{"$f":"IF(SUM(Data!BH$7:BH$372)=0,\"\",MAX(Data!BH$7:BH$372))","v":""},{"$f":"IF(SUM(Data!BI$7:BI$372)=0,\"\",MAX(Data!BI$7:BI$372))","v":""},{"$f":"IF(SUM(Data!BJ$7:BJ$372)=0,\"\",MAX(Data!BJ$7:BJ$372))","v":""},{"$f":"IF(SUM(Data!BK$7:BK$372)=0,\"\",MAX(Data!BK$7:BK$372))","v":""},{"$f":"IF(SUM(Data!BL$7:BL$372)=0,\"\",MAX(Data!BL$7:BL$372))","v":""},{"$f":"IF(SUM(Data!BM$7:BM$372)=0,\"\",MAX(Data!BM$7:BM$372))","v":""},{"$f":"IF(SUM(Data!BN$7:BN$372)=0,\"\",MAX(Data!BN$7:BN$372))","v":""},{"$f":"IF(SUM(Data!BO$7:BO$372)=0,\"\",MAX(Data!BO$7:BO$372))","v":""},{"$f":"IF(SUM(Data!BP$7:BP$372)=0,\"\",MAX(Data!BP$7:BP$372))","v":""},{"$f":"IF(SUM(Data!BQ$7:BQ$372)=0,\"\",MAX(Data!BQ$7:BQ$372))","v":""},{"$f":"IF(SUM(Data!BR$7:BR$372)=0,\"\",MAX(Data!BR$7:BR$372))","v":""},{"$f":"IF(SUM(Data!BS$7:BS$372)=0,\"\",MAX(Data!BS$7:BS$372))","v":""}]
[null,null,"Yr. Goal",{"$f":"IF(SUM(Data!S7:S372)=0,\"\",FREQUENCY(Data!S7:S372,Data!$J$3)/COUNT(Data!S7:S372))","v":""},{"$f":"IF(SUM(Data!T7:T372)=0,\"\",FREQUENCY(Data!T7:T372,Data!$J$3)/COUNT(Data!T7:T372))","v":""},{"$f":"IF(SUM(Data!U7:U372)=0,\"\",FREQUENCY(Data!U7:U372,Data!$J$3)/COUNT(Data!U7:U372))","v":""},{"$f":"IF(SUM(Data!V7:V372)=0,\"\",FREQUENCY(Data!V7:V372,Data!$J$3)/COUNT(Data!V7:V372))","v":""},{"$f":"IF(SUM(Data!W7:W372)=0,\"\",FREQUENCY(Data!W7:W372,Data!$J$3)/COUNT(Data!W7:W372))","v":""},{"$f":"IF(SUM(Data!BH7:BH372)=0,\"\",FREQUENCY(Data!BH7:BH372,0.1)/COUNT(Data!BH7:BH372))","v":""},{"$f":"IF(SUM(Data!BI7:BI372)=0,\"\",FREQUENCY(Data!BI7:BI372,0.1)/COUNT(Data!BI7:BI372))","v":""},{"$f":"IF(SUM(Data!BJ7:BJ372)=0,\"\",FREQUENCY(Data!BJ7:BJ372,0.1)/COUNT(Data!BJ7:BJ372))","v":""},{"$f":"IF(SUM(Data!BK7:BK372)=0,\"\",FREQUENCY(Data!BK7:BK372,0.1)/COUNT(Data!BK7:BK372))","v":""},{"$f":"IF(SUM(Data!BL7:BL372)=0,\"\",FREQUENCY(Data!BL7:BL372,0.1)/COUNT(Data!BL7:BL372))","v":""},{"$f":"IF(SUM(Data!BM7:BM372)=0,\"\",FREQUENCY(Data!BM7:BM372,0.1)/COUNT(Data!BM7:BM372))","v":""},{"$f":"IF(SUM(Data!BN7:BN372)=0,\"\",FREQUENCY(Data!BN7:BN372,0.1)/COUNT(Data!BN7:BN372))","v":""},{"$f":"IF(SUM(Data!BO7:BO372)=0,\"\",FREQUENCY(Data!BO7:BO372,0.1)/COUNT(Data!BO7:BO372))","v":""},{"$f":"IF(SUM(Data!BP7:BP372)=0,\"\",FREQUENCY(Data!BP7:BP372,0.1)/COUNT(Data!BP7:BP372))","v":""},{"$f":"IF(SUM(Data!BQ7:BQ372)=0,\"\",FREQUENCY(Data!BQ7:BQ372,0.1)/COUNT(Data!BQ7:BQ372))","v":""},{"$f":"IF(SUM(Data!BR7:BR372)=0,\"\",FREQUENCY(Data!BR7:BR372,0.1)/COUNT(Data!BR7:BR372))","v":""},{"$f":"IF(SUM(Data!BS7:BS372)=0,\"\",FREQUENCY(Data!BS7:BS372,0.1)/COUNT(Data!BS7:BS372))","v":""}]

{"sheet":"Data Sort","index":6,"n_rows":370,"n_cols":77,"rows_kept":370,"cut":false,"hidden":true,"merged":[]}
[]
["Leap Year",{"$f":"IF(INT(B3/4)=B3/4, \"yes\", \"no\")","v":"yes"}]
[null,{"$f":"IF(MONTH(Data!B7)>2, YEAR(Data!B7)+1,YEAR(Data!B7))","v":2016},null,"Date","Raw","Basin 1","Basin 2","Basin 3","Basin 4","Basin 5","Basin 6","Basin 7","Basin 8","Basin 9","Basin 10","Basin 11","Basin 12","Basin 13","Basin 14","Basin 15","Basin 16","Basin 17","Basin 18","Basin 19","Basin 20","Filter 1","Filter 2","Filter 3","Filter 4","Filter 5","Filter 6","Filter 7","Filter 8","Filter 9","Filter 10","Filter 11","Filter 12","Filter 13","Filter 14","Filter 15","Filter 16","Filter 17","Filter 18","Filter 19","Filter 20","Filter 21","Filter 22","Filter 23","Filter 24","Filter 25","Filter 26","Filter 27","Filter 28","Filter 29","Filter 30","Filter 31","Filter 32","Filter 33","Filter 34","Filter 35","Filter 36","Filter 37","Filter 38","Filter 39","Filter 40","Filter 41","Filter 42","Filter 43","Filter 44","Filter 45","Filter 46","Filter 47","Filter 48","Average Filter","Max Basin","Average Basin","Max Filtered"]
[{"$f":"MONTH(D4)","v":1},{"$f":"DAY(D4)","v":1},{"$f":"YEAR(D4)","v":2011},"2011-01-01"]
[1,2,2011,"2011-01-02"]
[1,3,2011,"2011-01-03"]
[1,0]
[1,0]
[1,0]
[1,0]
[1,0]
[1,0]
[1,0]
[1,0]
[1,0]
[1,0]
[1,0]
[1,0]
[1,0]
[1,0]
[1,0]
[1,0]
[1,0]
[1,0]
[1,0]
[1,0]
[1,0]
[1,0]
[1,0]
[1,0]
[1,0]
[1,0]
[1,0]
[1,0]
[1,0]
[1,0]
[1,0]
[1,0]
[1,0]
[1,0]
[1,0]
[1,0]
[1,0]
[1,0]
[1,0]
[1,0]
[1,0]
[1,0]
[1,0]
[1,0]
[1,0]
[1,0]
[1,0]
[1,0]
[1,0]
[1,0]
[1,0]
[1,0]
[1,0]
[1,0]
[1,0]
[1,0]
[1,0]
[1,0]
[1,0]
[1,0]
[1,0]
[{"$f":"MONTH(D68)","v":1},{"$f":"DAY(D68)","v":0}]
[1,0]
[1,0]
[1,0]
[1,0]
[1,0]
[1,0]
[1,0]
[1,0]
[1,0]
[1,0]
[1,0]
[1,0]
[1,0]
[1,0]
[1,0]
[1,0]
[1,0]
[1,0]
[1,0]
[1,0]
[1,0]
[1,0]
[1,0]
[1,0]
[1,0]
[1,0]
[1,0]
[1,0]
[1,0]
[1,0]
[1,0]
[1,0]
[1,0]
[1,0]
[1,0]
[1,0]
[1,0]
[1,0]
[1,0]
[1,0]
[1,0]
[1,0]
[1,0]
[1,0]
[1,0]
[1,0]
[1,0]
[1,0]
[1,0]
[1,0]
[1,0]
[1,0]
[1,0]
[1,0]
[1,0]
[1,0]
[1,0]
[1,0]
[1,0]
[1,0]
[1,0]
[1,0]
[1,0]
[{"$f":"MONTH(D132)","v":1},{"$f":"DAY(D132)","v":0}]
[1,0]
[1,0]
[1,0]
[1,0]
[1,0]
[1,0]
[1,0]
[1,0]
[1,0]
[1,0]
[1,0]
[1,0]
[1,0]
[1,0]
[1,0]
[1,0]
[1,0]
[1,0]
[1,0]
[1,0]
[1,0]
[1,0]
[1,0]
[1,0]
[1,0]
[1,0]
[1,0]
[1,0]
[1,0]
[1,0]
[1,0]
[1,0]
[1,0]
[1,0]
[1,0]
[1,0]
[1,0]
[1,0]
[1,0]
[1,0]
[1,0]
[1,0]
[1,0]
[1,0]
[1,0]
[1,0]
[1,0]
[1,0]
[1,0]
[1,0]
[1,0]
[1,0]
[1,0]
[1,0]
[1,0]
[1,0]
[1,0]
[1,0]
[1,0]
[1,0]
[1,0]
[1,0]
[1,0]
[{"$f":"MONTH(D196)","v":1},{"$f":"DAY(D196)","v":0}]
[1,0]
[1,0]
[1,0]
[1,0]
[1,0]
[1,0]
[1,0]
[1,0]
[1,0]
[1,0]
[1,0]
[1,0]
[1,0]
[1,0]
[1,0]
[1,0]
[1,0]
[1,0]
[1,0]
[1,0]
[1,0]
[1,0]
[1,0]
[1,0]
[1,0]
[1,0]
[1,0]
[1,0]
[1,0]
[1,0]
[1,0]
[1,0]
[1,0]
[1,0]
[1,0]
[1,0]
[1,0]
[1,0]
[1,0]
[1,0]
[1,0]
[1,0]
[1,0]
[1,0]
[1,0]
[1,0]
[1,0]
[1,0]
[1,0]
[1,0]
[1,0]
[1,0]
[1,0]
[1,0]
[1,0]
[1,0]
[1,0]
[1,0]
[1,0]
[1,0]
[1,0]
[1,0]
[1,0]
[{"$f":"MONTH(D260)","v":1},{"$f":"DAY(D260)","v":0}]
[1,0]
[1,0]
[1,0]
[1,0]
[1,0]
[1,0]
[1,0]
[1,0]
[1,0]
[1,0]
[1,0]
[1,0]
[1,0]
[1,0]
[1,0]
[1,0]
[1,0]
[1,0]
[1,0]
[1,0]
[1,0]
[1,0]
[1,0]
[1,0]
[1,0]
[1,0]
[1,0]
[1,0]
[1,0]
[1,0]
[1,0]
[1,0]
[1,0]
[1,0]
[1,0]
[1,0]
[1,0]
[1,0]
[1,0]
[1,0]
[1,0]
[1,0]
[1,0]
[1,0]
[1,0]
[1,0]
[1,0]
[1,0]
[1,0]
[1,0]
[1,0]
[1,0]
[1,0]
[1,0]
[1,0]
[1,0]
[1,0]
[1,0]
[1,0]
[1,0]
[1,0]
[1,0]
[1,0]
[{"$f":"MONTH(D324)","v":1},{"$f":"DAY(D324)","v":0}]
[1,0]
[1,0]
[1,0]
[1,0]
[1,0]
[1,0]
[1,0]
[1,0]
[1,0]
[1,0]
[1,0]
[1,0]
[1,0]
[1,0]
[1,0]
[1,0]
[1,0]
[1,0]
[1,0]
[1,0]
[1,0]
[1,0]
[1,0]
[1,0]
[1,0]
[1,0]
[1,0]
[1,0]
[1,0]
[1,0]
[1,0]
[1,0]
[1,0]
[1,0]
[1,0]
[1,0]
[1,0]
[1,0]
[1,0]
[1,0]
[1,0]
[1,0]
[1,0]
[1,0]
[{"$f":"IF(SUM(E369:BU369)=0,13,MONTH(D369))","v":13},0]
["Month","Day"]

{"sheet":"95th","index":7,"n_rows":31,"n_cols":72,"rows_kept":31,"cut":false,"hidden":true,"merged":[[17,3,17,5],[17,6,17,8],[17,12,17,13],[17,14,17,15]]}
[]
[]
["Restore","Sort","Percentile","Raw","Basin 1","Basin 2","Basin 3","Basin 4","Basin 5","Basin 6","Basin 7","Basin 8","Basin 9","Basin 10","Basin 11","Basin 12","Basin 13","Basin 14","Basin 15","Basin 16","Basin 17","Basin 18","Basin 19","Basin 20","Filter 1","Filter 2","Filter 3","Filter 4","Filter 5","Filter 6","Filter 7","Filter 8","Filter 9","Filter 10","Filter 11","Filter 12","Filter 13","Filter 14","Filter 15","Filter 16","Filter 17","Filter 18","Filter 19","Filter 20","Filter 21","Filter 22","Filter 23","Filter 24","Filter 25","Filter 26","Filter 27","Filter 28","Filter 29","Filter 30","Filter 31","Filter 32","Filter 33","Filter 34","Filter 35","Filter 36","Filter 37","Filter 38","Filter 39","Filter 40","Filter 41","Filter 42","Filter 43","Filter 44","Filter 45","Filter 46","Filter 47","Filter 48"]
[10,{"$f":"'Data Sort'!$D$281","v":"00:00:00"},0.95,{"$f":"IF('Data Sort'!$B$2=\"no\", PERCENTILE('Data Sort'!E$277:E$307,$C4), PERCENTILE('Data Sort'!E$278:E$308,$C4))","v":{"$error":"#NUM!"}},{"$f":"IF('Data Sort'!$B$2=\"no\", PERCENTILE('Data Sort'!F$277:F$307,$C4), PERCENTILE('Data Sort'!F$278:F$308,$C4))","v":{"$error":"#NUM!"}},{"$f":"IF('Data Sort'!$B$2=\"no\", PERCENTILE('Data Sort'!G$277:G$307,$C4), PERCENTILE('Data Sort'!G$278:G$308,$C4))","v":{"$error":"#NUM!"}},{"$f":"IF('Data Sort'!$B$2=\"no\", PERCENTILE('Data Sort'!H$277:H$307,$C4), PERCENTILE('Data Sort'!H$278:H$308,$C4))","v":{"$error":"#NUM!"}},{"$f":"IF('Data Sort'!$B$2=\"no\", PERCENTILE('Data Sort'!I$277:I$307,$C4), PERCENTILE('Data Sort'!I$278:I$308,$C4))","v":{"$error":"#NUM!"}},{"$f":"IF('Data Sort'!$B$2=\"no\", PERCENTILE('Data Sort'!J$277:J$307,$C4), PERCENTILE('Data Sort'!J$278:J$308,$C4))","v":{"$error":"#NUM!"}},{"$f":"IF('Data Sort'!$B$2=\"no\", PERCENTILE('Data Sort'!K$277:K$307,$C4), PERCENTILE('Data Sort'!K$278:K$308,$C4))","v":{"$error":"#NUM!"}},{"$f":"IF('Data Sort'!$B$2=\"no\", PERCENTILE('Data Sort'!L$277:L$307,$C4), PERCENTILE('Data Sort'!L$278:L$308,$C4))","v":{"$error":"#NUM!"}},{"$f":"IF('Data Sort'!$B$2=\"no\", PERCENTILE('Data Sort'!M$277:M$307,$C4), PERCENTILE('Data Sort'!M$278:M$308,$C4))","v":{"$error":"#NUM!"}},{"$f":"IF('Data Sort'!$B$2=\"no\", PERCENTILE('Data Sort'!N$277:N$307,$C4), PERCENTILE('Data Sort'!N$278:N$308,$C4))","v":{"$error":"#NUM!"}},{"$f":"IF('Data Sort'!$B$2=\"no\", PERCENTILE('Data Sort'!O$277:O$307,$C4), PERCENTILE('Data Sort'!O$278:O$308,$C4))","v":{"$error":"#NUM!"}},{"$f":"IF('Data Sort'!$B$2=\"no\", PERCENTILE('Data Sort'!P$277:P$307,$C4), PERCENTILE('Data Sort'!P$278:P$308,$C4))","v":{"$error":"#NUM!"}},{"$f":"IF('Data Sort'!$B$2=\"no\", PERCENTILE('Data Sort'!Q$277:Q$307,$C4), PERCENTILE('Data Sort'!Q$278:Q$308,$C4))","v":{"$error":"#NUM!"}},{"$f":"IF('Data Sort'!$B$2=\"no\", PERCENTILE('Data Sort'!R$277:R$307,$C4), PERCENTILE('Data Sort'!R$278:R$308,$C4))","v":{"$error":"#NUM!"}},{"$f":"IF('Data Sort'!$B$2=\"no\", PERCENTILE('Data Sort'!S$277:S$307,$C4), PERCENTILE('Data Sort'!S$278:S$308,$C4))","v":{"$error":"#NUM!"}},{"$f":"IF('Data Sort'!$B$2=\"no\", PERCENTILE('Data Sort'!T$277:T$307,$C4), PERCENTILE('Data Sort'!T$278:T$308,$C4))","v":{"$error":"#NUM!"}},{"$f":"IF('Data Sort'!$B$2=\"no\", PERCENTILE('Data Sort'!U$277:U$307,$C4), PERCENTILE('Data Sort'!U$278:U$308,$C4))","v":{"$error":"#NUM!"}},{"$f":"IF('Data Sort'!$B$2=\"no\", PERCENTILE('Data Sort'!V$277:V$307,$C4), PERCENTILE('Data Sort'!V$278:V$308,$C4))","v":{"$error":"#NUM!"}},{"$f":"IF('Data Sort'!$B$2=\"no\", PERCENTILE('Data Sort'!W$277:W$307,$C4), PERCENTILE('Data Sort'!W$278:W$308,$C4))","v":{"$error":"#NUM!"}},{"$f":"IF('Data Sort'!$B$2=\"no\", PERCENTILE('Data Sort'!X$277:X$307,$C4), PERCENTILE('Data Sort'!X$278:X$308,$C4))","v":{"$error":"#NUM!"}},{"$f":"IF('Data Sort'!$B$2=\"no\", PERCENTILE('Data Sort'!Y$277:Y$307,$C4), PERCENTILE('Data Sort'!Y$278:Y$308,$C4))","v":{"$error":"#NUM!"}},{"$f":"IF('Data Sort'!$B$2=\"no\", PERCENTILE('Data Sort'!Z$277:Z$307,$C4), PERCENTILE('Data Sort'!Z$278:Z$308,$C4))","v":{"$error":"#NUM!"}},{"$f":"IF('Data Sort'!$B$2=\"no\", PERCENTILE('Data Sort'!AA$277:AA$307,$C4), PERCENTILE('Data Sort'!AA$278:AA$308,$C4))","v":{"$error":"#NUM!"}},{"$f":"IF('Data Sort'!$B$2=\"no\", PERCENTILE('Data Sort'!AB$277:AB$307,$C4), PERCENTILE('Data Sort'!AB$278:AB$308,$C4))","v":{"$error":"#NUM!"}},{"$f":"IF('Data Sort'!$B$2=\"no\", PERCENTILE('Data Sort'!AC$277:AC$307,$C4), PERCENTILE('Data Sort'!AC$278:AC$308,$C4))","v":{"$error":"#NUM!"}},{"$f":"IF('Data Sort'!$B$2=\"no\", PERCENTILE('Data Sort'!AD$277:AD$307,$C4), PERCENTILE('Data Sort'!AD$278:AD$308,$C4))","v":{"$error":"#NUM!"}},{"$f":"IF('Data Sort'!$B$2=\"no\", PERCENTILE('Data Sort'!AE$277:AE$307,$C4), PERCENTILE('Data Sort'!AE$278:AE$308,$C4))","v":{"$error":"#NUM!"}},{"$f":"IF('Data Sort'!$B$2=\"no\", PERCENTILE('Data Sort'!AF$277:AF$307,$C4), PERCENTILE('Data Sort'!AF$278:AF$308,$C4))","v":{"$error":"#NUM!"}},{"$f":"IF('Data Sort'!$B$2=\"no\", PERCENTILE('Data Sort'!AG$277:AG$307,$C4), PERCENTILE('Data Sort'!AG$278:AG$308,$C4))","v":{"$error":"#NUM!"}},{"$f":"IF('Data Sort'!$B$2=\"no\", PERCENTILE('Data Sort'!AH$277:AH$307,$C4), PERCENTILE('Data Sort'!AH$278:AH$308,$C4))","v":{"$error":"#NUM!"}},{"$f":"IF('Data Sort'!$B$2=\"no\", PERCENTILE('Data Sort'!AI$277:AI$307,$C4), PERCENTILE('Data Sort'!AI$278:AI$308,$C4))","v":{"$error":"#NUM!"}},{"$f":"IF('Data Sort'!$B$2=\"no\", PERCENTILE('Data Sort'!AJ$277:AJ$307,$C4), PERCENTILE('Data Sort'!AJ$278:AJ$308,$C4))","v":{"$error":"#NUM!"}},{"$f":"IF('Data Sort'!$B$2=\"no\", PERCENTILE('Data Sort'!AK$277:AK$307,$C4), PERCENTILE('Data Sort'!AK$278:AK$308,$C4))","v":{"$error":"#NUM!"}},{"$f":"IF('Data Sort'!$B$2=\"no\", PERCENTILE('Data Sort'!AL$277:AL$307,$C4), PERCENTILE('Data Sort'!AL$278:AL$308,$C4))","v":{"$error":"#NUM!"}},{"$f":"IF('Data Sort'!$B$2=\"no\", PERCENTILE('Data Sort'!AM$277:AM$307,$C4), PERCENTILE('Data Sort'!AM$278:AM$308,$C4))","v":{"$error":"#NUM!"}},{"$f":"IF('Data Sort'!$B$2=\"no\", PERCENTILE('Data Sort'!AN$277:AN$307,$C4), PERCENTILE('Data Sort'!AN$278:AN$308,$C4))","v":{"$error":"#NUM!"}},{"$f":"IF('Data Sort'!$B$2=\"no\", PERCENTILE('Data Sort'!AO$277:AO$307,$C4), PERCENTILE('Data Sort'!AO$278:AO$308,$C4))","v":{"$error":"#NUM!"}},{"$f":"IF('Data Sort'!$B$2=\"no\", PERCENTILE('Data Sort'!AP$277:AP$307,$C4), PERCENTILE('Data Sort'!AP$278:AP$308,$C4))","v":{"$error":"#NUM!"}},{"$f":"IF('Data Sort'!$B$2=\"no\", PERCENTILE('Data Sort'!AQ$277:AQ$307,$C4), PERCENTILE('Data Sort'!AQ$278:AQ$308,$C4))","v":{"$error":"#NUM!"}},{"$f":"IF('Data Sort'!$B$2=\"no\", PERCENTILE('Data Sort'!AR$277:AR$307,$C4), PERCENTILE('Data Sort'!AR$278:AR$308,$C4))","v":{"$error":"#NUM!"}},{"$f":"IF('Data Sort'!$B$2=\"no\", PERCENTILE('Data Sort'!AS$277:AS$307,$C4), PERCENTILE('Data Sort'!AS$278:AS$308,$C4))","v":{"$error":"#NUM!"}},{"$f":"IF('Data Sort'!$B$2=\"no\", PERCENTILE('Data Sort'!AT$277:AT$307,$C4), PERCENTILE('Data Sort'!AT$278:AT$308,$C4))","v":{"$error":"#NUM!"}},{"$f":"IF('Data Sort'!$B$2=\"no\", PERCENTILE('Data Sort'!AU$277:AU$307,$C4), PERCENTILE('Data Sort'!AU$278:AU$308,$C4))","v":{"$error":"#NUM!"}},{"$f":"IF('Data Sort'!$B$2=\"no\", PERCENTILE('Data Sort'!AV$277:AV$307,$C4), PERCENTILE('Data Sort'!AV$278:AV$308,$C4))","v":{"$error":"#NUM!"}},{"$f":"IF('Data Sort'!$B$2=\"no\", PERCENTILE('Data Sort'!AW$277:AW$307,$C4), PERCENTILE('Data Sort'!AW$278:AW$308,$C4))","v":{"$error":"#NUM!"}},{"$f":"IF('Data Sort'!$B$2=\"no\", PERCENTILE('Data Sort'!AX$277:AX$307,$C4), PERCENTILE('Data Sort'!AX$278:AX$308,$C4))","v":{"$error":"#NUM!"}},{"$f":"IF('Data Sort'!$B$2=\"no\", PERCENTILE('Data Sort'!AY$277:AY$307,$C4), PERCENTILE('Data Sort'!AY$278:AY$308,$C4))","v":{"$error":"#NUM!"}},{"$f":"IF('Data Sort'!$B$2=\"no\", PERCENTILE('Data Sort'!AZ$277:AZ$307,$C4), PERCENTILE('Data Sort'!AZ$278:AZ$308,$C4))","v":{"$error":"#NUM!"}},{"$f":"IF('Data Sort'!$B$2=\"no\", PERCENTILE('Data Sort'!BA$277:BA$307,$C4), PERCENTILE('Data Sort'!BA$278:BA$308,$C4))","v":{"$error":"#NUM!"}},{"$f":"IF('Data Sort'!$B$2=\"no\", PERCENTILE('Data Sort'!BB$277:BB$307,$C4), PERCENTILE('Data Sort'!BB$278:BB$308,$C4))","v":{"$error":"#NUM!"}},{"$f":"IF('Data Sort'!$B$2=\"no\", PERCENTILE('Data Sort'!BC$277:BC$307,$C4), PERCENTILE('Data Sort'!BC$278:BC$308,$C4))","v":{"$error":"#NUM!"}},{"$f":"IF('Data Sort'!$B$2=\"no\", PERCENTILE('Data Sort'!BD$277:BD$307,$C4), PERCENTILE('Data Sort'!BD$278:BD$308,$C4))","v":{"$error":"#NUM!"}},{"$f":"IF('Data Sort'!$B$2=\"no\", PERCENTILE('Data Sort'!BE$277:BE$307,$C4), PERCENTILE('Data Sort'!BE$278:BE$308,$C4))","v":{"$error":"#NUM!"}},{"$f":"IF('Data Sort'!$B$2=\"no\", PERCENTILE('Data Sort'!BF$277:BF$307,$C4), PERCENTILE('Data Sort'!BF$278:BF$308,$C4))","v":{"$error":"#NUM!"}},{"$f":"IF('Data Sort'!$B$2=\"no\", PERCENTILE('Data Sort'!BG$277:BG$307,$C4), PERCENTILE('Data Sort'!BG$278:BG$308,$C4))","v":{"$error":"#NUM!"}},{"$f":"IF('Data Sort'!$B$2=\"no\", PERCENTILE('Data Sort'!BH$277:BH$307,$C4), PERCENTILE('Data Sort'!BH$278:BH$308,$C4))","v":{"$error":"#NUM!"}},{"$f":"IF('Data Sort'!$B$2=\"no\", PERCENTILE('Data Sort'!BI$277:BI$307,$C4), PERCENTILE('Data Sort'!BI$278:BI$308,$C4))","v":{"$error":"#NUM!"}},{"$f":"IF('Data Sort'!$B$2=\"no\", PERCENTILE('Data Sort'!BJ$277:BJ$307,$C4), PERCENTILE('Data Sort'!BJ$278:BJ$308,$C4))","v":{"$error":"#NUM!"}},{"$f":"IF('Data Sort'!$B$2=\"no\", PERCENTILE('Data Sort'!BK$277:BK$307,$C4), PERCENTILE('Data Sort'!BK$278:BK$308,$C4))","v":{"$error":"#NUM!"}},{"$f":"IF('Data Sort'!$B$2=\"no\", PERCENTILE('Data Sort'!BL$277:BL$307,$C4), PERCENTILE('Data Sort'!BL$278:BL$308,$C4))","v":{"$error":"#NUM!"}},{"$f":"IF('Data Sort'!$B$2=\"no\", PERCENTILE('Data Sort'!BM$277:BM$307,$C4), PERCENTILE('Data Sort'!BM$278:BM$308,$C4))","v":{"$error":"#NUM!"}},{"$f":"IF('Data Sort'!$B$2=\"no\", PERCENTILE('Data Sort'!BN$277:BN$307,$C4), PERCENTILE('Data Sort'!BN$278:BN$308,$C4))","v":{"$error":"#NUM!"}},{"$f":"IF('Data Sort'!$B$2=\"no\", PERCENTILE('Data Sort'!BO$277:BO$307,$C4), PERCENTILE('Data Sort'!BO$278:BO$308,$C4))","v":{"$error":"#NUM!"}},{"$f":"IF('Data Sort'!$B$2=\"no\", PERCENTILE('Data Sort'!BP$277:BP$307,$C4), PERCENTILE('Data Sort'!BP$278:BP$308,$C4))","v":{"$error":"#NUM!"}},{"$f":"IF('Data Sort'!$B$2=\"no\", PERCENTILE('Data Sort'!BQ$277:BQ$307,$C4), PERCENTILE('Data Sort'!BQ$278:BQ$308,$C4))","v":{"$error":"#NUM!"}},{"$f":"IF('Data Sort'!$B$2=\"no\", PERCENTILE('Data Sort'!BR$277:BR$307,$C4), PERCENTILE('Data Sort'!BR$278:BR$308,$C4))","v":{"$error":"#NUM!"}},{"$f":"IF('Data Sort'!$B$2=\"no\", PERCENTILE('Data Sort'!BS$277:BS$307,$C4), PERCENTILE('Data Sort'!BS$278:BS$308,$C4))","v":{"$error":"#NUM!"}},{"$f":"IF('Data Sort'!$B$2=\"no\", PERCENTILE('Data Sort'!BT$277:BT$307,$C4), PERCENTILE('Data Sort'!BT$278:BT$308,$C4))","v":{"$error":"#NUM!"}},{"$f":"IF('Data Sort'!$B$2=\"no\", PERCENTILE('Data Sort'!BU$277:BU$307,$C4), PERCENTILE('Data Sort'!BU$278:BU$308,$C4))","v":{"$error":"#NUM!"}}]
[11,{"$f":"'Data Sort'!$D$312","v":"00:00:00"},0.95,{"$f":"IF('Data Sort'!$B$2=\"no\", PERCENTILE('Data Sort'!E$308:E$337,$C5), PERCENTILE('Data Sort'!E$309:E$338,$C5))","v":{"$error":"#NUM!"}},{"$f":"IF('Data Sort'!$B$2=\"no\", PERCENTILE('Data Sort'!F$308:F$337,$C5), PERCENTILE('Data Sort'!F$309:F$338,$C5))","v":{"$error":"#NUM!"}},{"$f":"IF('Data Sort'!$B$2=\"no\", PERCENTILE('Data Sort'!G$308:G$337,$C5), PERCENTILE('Data Sort'!G$309:G$338,$C5))","v":{"$error":"#NUM!"}},{"$f":"IF('Data Sort'!$B$2=\"no\", PERCENTILE('Data Sort'!H$308:H$337,$C5), PERCENTILE('Data Sort'!H$309:H$338,$C5))","v":{"$error":"#NUM!"}},{"$f":"IF('Data Sort'!$B$2=\"no\", PERCENTILE('Data Sort'!I$308:I$337,$C5), PERCENTILE('Data Sort'!I$309:I$338,$C5))","v":{"$error":"#NUM!"}},{"$f":"IF('Data Sort'!$B$2=\"no\", PERCENTILE('Data Sort'!J$308:J$337,$C5), PERCENTILE('Data Sort'!J$309:J$338,$C5))","v":{"$error":"#NUM!"}},{"$f":"IF('Data Sort'!$B$2=\"no\", PERCENTILE('Data Sort'!K$308:K$337,$C5), PERCENTILE('Data Sort'!K$309:K$338,$C5))","v":{"$error":"#NUM!"}},{"$f":"IF('Data Sort'!$B$2=\"no\", PERCENTILE('Data Sort'!L$308:L$337,$C5), PERCENTILE('Data Sort'!L$309:L$338,$C5))","v":{"$error":"#NUM!"}},{"$f":"IF('Data Sort'!$B$2=\"no\", PERCENTILE('Data Sort'!M$308:M$337,$C5), PERCENTILE('Data Sort'!M$309:M$338,$C5))","v":{"$error":"#NUM!"}},{"$f":"IF('Data Sort'!$B$2=\"no\", PERCENTILE('Data Sort'!N$308:N$337,$C5), PERCENTILE('Data Sort'!N$309:N$338,$C5))","v":{"$error":"#NUM!"}},{"$f":"IF('Data Sort'!$B$2=\"no\", PERCENTILE('Data Sort'!O$308:O$337,$C5), PERCENTILE('Data Sort'!O$309:O$338,$C5))","v":{"$error":"#NUM!"}},{"$f":"IF('Data Sort'!$B$2=\"no\", PERCENTILE('Data Sort'!P$308:P$337,$C5), PERCENTILE('Data Sort'!P$309:P$338,$C5))","v":{"$error":"#NUM!"}},{"$f":"IF('Data Sort'!$B$2=\"no\", PERCENTILE('Data Sort'!Q$308:Q$337,$C5), PERCENTILE('Data Sort'!Q$309:Q$338,$C5))","v":{"$error":"#NUM!"}},{"$f":"IF('Data Sort'!$B$2=\"no\", PERCENTILE('Data Sort'!R$308:R$337,$C5), PERCENTILE('Data Sort'!R$309:R$338,$C5))","v":{"$error":"#NUM!"}},{"$f":"IF('Data Sort'!$B$2=\"no\", PERCENTILE('Data Sort'!S$308:S$337,$C5), PERCENTILE('Data Sort'!S$309:S$338,$C5))","v":{"$error":"#NUM!"}},{"$f":"IF('Data Sort'!$B$2=\"no\", PERCENTILE('Data Sort'!T$308:T$337,$C5), PERCENTILE('Data Sort'!T$309:T$338,$C5))","v":{"$error":"#NUM!"}},{"$f":"IF('Data Sort'!$B$2=\"no\", PERCENTILE('Data Sort'!U$308:U$337,$C5), PERCENTILE('Data Sort'!U$309:U$338,$C5))","v":{"$error":"#NUM!"}},{"$f":"IF('Data Sort'!$B$2=\"no\", PERCENTILE('Data Sort'!V$308:V$337,$C5), PERCENTILE('Data Sort'!V$309:V$338,$C5))","v":{"$error":"#NUM!"}},{"$f":"IF('Data Sort'!$B$2=\"no\", PERCENTILE('Data Sort'!W$308:W$337,$C5), PERCENTILE('Data Sort'!W$309:W$338,$C5))","v":{"$error":"#NUM!"}},{"$f":"IF('Data Sort'!$B$2=\"no\", PERCENTILE('Data Sort'!X$308:X$337,$C5), PERCENTILE('Data Sort'!X$309:X$338,$C5))","v":{"$error":"#NUM!"}},{"$f":"IF('Data Sort'!$B$2=\"no\", PERCENTILE('Data Sort'!Y$308:Y$337,$C5), PERCENTILE('Data Sort'!Y$309:Y$338,$C5))","v":{"$error":"#NUM!"}},{"$f":"IF('Data Sort'!$B$2=\"no\", PERCENTILE('Data Sort'!Z$308:Z$337,$C5), PERCENTILE('Data Sort'!Z$309:Z$338,$C5))","v":{"$error":"#NUM!"}},{"$f":"IF('Data Sort'!$B$2=\"no\", PERCENTILE('Data Sort'!AA$308:AA$337,$C5), PERCENTILE('Data Sort'!AA$309:AA$338,$C5))","v":{"$error":"#NUM!"}},{"$f":"IF('Data Sort'!$B$2=\"no\", PERCENTILE('Data Sort'!AB$308:AB$337,$C5), PERCENTILE('Data Sort'!AB$309:AB$338,$C5))","v":{"$error":"#NUM!"}},{"$f":"IF('Data Sort'!$B$2=\"no\", PERCENTILE('Data Sort'!AC$308:AC$337,$C5), PERCENTILE('Data Sort'!AC$309:AC$338,$C5))","v":{"$error":"#NUM!"}},{"$f":"IF('Data Sort'!$B$2=\"no\", PERCENTILE('Data Sort'!AD$308:AD$337,$C5), PERCENTILE('Data Sort'!AD$309:AD$338,$C5))","v":{"$error":"#NUM!"}},{"$f":"IF('Data Sort'!$B$2=\"no\", PERCENTILE('Data Sort'!AE$308:AE$337,$C5), PERCENTILE('Data Sort'!AE$309:AE$338,$C5))","v":{"$error":"#NUM!"}},{"$f":"IF('Data Sort'!$B$2=\"no\", PERCENTILE('Data Sort'!AF$308:AF$337,$C5), PERCENTILE('Data Sort'!AF$309:AF$338,$C5))","v":{"$error":"#NUM!"}},{"$f":"IF('Data Sort'!$B$2=\"no\", PERCENTILE('Data Sort'!AG$308:AG$337,$C5), PERCENTILE('Data Sort'!AG$309:AG$338,$C5))","v":{"$error":"#NUM!"}},{"$f":"IF('Data Sort'!$B$2=\"no\", PERCENTILE('Data Sort'!AH$308:AH$337,$C5), PERCENTILE('Data Sort'!AH$309:AH$338,$C5))","v":{"$error":"#NUM!"}},{"$f":"IF('Data Sort'!$B$2=\"no\", PERCENTILE('Data Sort'!AI$308:AI$337,$C5), PERCENTILE('Data Sort'!AI$309:AI$338,$C5))","v":{"$error":"#NUM!"}},{"$f":"IF('Data Sort'!$B$2=\"no\", PERCENTILE('Data Sort'!AJ$308:AJ$337,$C5), PERCENTILE('Data Sort'!AJ$309:AJ$338,$C5))","v":{"$error":"#NUM!"}},{"$f":"IF('Data Sort'!$B$2=\"no\", PERCENTILE('Data Sort'!AK$308:AK$337,$C5), PERCENTILE('Data Sort'!AK$309:AK$338,$C5))","v":{"$error":"#NUM!"}},{"$f":"IF('Data Sort'!$B$2=\"no\", PERCENTILE('Data Sort'!AL$308:AL$337,$C5), PERCENTILE('Data Sort'!AL$309:AL$338,$C5))","v":{"$error":"#NUM!"}},{"$f":"IF('Data Sort'!$B$2=\"no\", PERCENTILE('Data Sort'!AM$308:AM$337,$C5), PERCENTILE('Data Sort'!AM$309:AM$338,$C5))","v":{"$error":"#NUM!"}},{"$f":"IF('Data Sort'!$B$2=\"no\", PERCENTILE('Data Sort'!AN$308:AN$337,$C5), PERCENTILE('Data Sort'!AN$309:AN$338,$C5))","v":{"$error":"#NUM!"}},{"$f":"IF('Data Sort'!$B$2=\"no\", PERCENTILE('Data Sort'!AO$308:AO$337,$C5), PERCENTILE('Data Sort'!AO$309:AO$338,$C5))","v":{"$error":"#NUM!"}},{"$f":"IF('Data Sort'!$B$2=\"no\", PERCENTILE('Data Sort'!AP$308:AP$337,$C5), PERCENTILE('Data Sort'!AP$309:AP$338,$C5))","v":{"$error":"#NUM!"}},{"$f":"IF('Data Sort'!$B$2=\"no\", PERCENTILE('Data Sort'!AQ$308:AQ$337,$C5), PERCENTILE('Data Sort'!AQ$309:AQ$338,$C5))","v":{"$error":"#NUM!"}},{"$f":"IF('Data Sort'!$B$2=\"no\", PERCENTILE('Data Sort'!AR$308:AR$337,$C5), PERCENTILE('Data Sort'!AR$309:AR$338,$C5))","v":{"$error":"#NUM!"}},{"$f":"IF('Data Sort'!$B$2=\"no\", PERCENTILE('Data Sort'!AS$308:AS$337,$C5), PERCENTILE('Data Sort'!AS$309:AS$338,$C5))","v":{"$error":"#NUM!"}},{"$f":"IF('Data Sort'!$B$2=\"no\", PERCENTILE('Data Sort'!AT$308:AT$337,$C5), PERCENTILE('Data Sort'!AT$309:AT$338,$C5))","v":{"$error":"#NUM!"}},{"$f":"IF('Data Sort'!$B$2=\"no\", PERCENTILE('Data Sort'!AU$308:AU$337,$C5), PERCENTILE('Data Sort'!AU$309:AU$338,$C5))","v":{"$error":"#NUM!"}},{"$f":"IF('Data Sort'!$B$2=\"no\", PERCENTILE('Data Sort'!AV$308:AV$337,$C5), PERCENTILE('Data Sort'!AV$309:AV$338,$C5))","v":{"$error":"#NUM!"}},{"$f":"IF('Data Sort'!$B$2=\"no\", PERCENTILE('Data Sort'!AW$308:AW$337,$C5), PERCENTILE('Data Sort'!AW$309:AW$338,$C5))","v":{"$error":"#NUM!"}},{"$f":"IF('Data Sort'!$B$2=\"no\", PERCENTILE('Data Sort'!AX$308:AX$337,$C5), PERCENTILE('Data Sort'!AX$309:AX$338,$C5))","v":{"$error":"#NUM!"}},{"$f":"IF('Data Sort'!$B$2=\"no\", PERCENTILE('Data Sort'!AY$308:AY$337,$C5), PERCENTILE('Data Sort'!AY$309:AY$338,$C5))","v":{"$error":"#NUM!"}},{"$f":"IF('Data Sort'!$B$2=\"no\", PERCENTILE('Data Sort'!AZ$308:AZ$337,$C5), PERCENTILE('Data Sort'!AZ$309:AZ$338,$C5))","v":{"$error":"#NUM!"}},{"$f":"IF('Data Sort'!$B$2=\"no\", PERCENTILE('Data Sort'!BA$308:BA$337,$C5), PERCENTILE('Data Sort'!BA$309:BA$338,$C5))","v":{"$error":"#NUM!"}},{"$f":"IF('Data Sort'!$B$2=\"no\", PERCENTILE('Data Sort'!BB$308:BB$337,$C5), PERCENTILE('Data Sort'!BB$309:BB$338,$C5))","v":{"$error":"#NUM!"}},{"$f":"IF('Data Sort'!$B$2=\"no\", PERCENTILE('Data Sort'!BC$308:BC$337,$C5), PERCENTILE('Data Sort'!BC$309:BC$338,$C5))","v":{"$error":"#NUM!"}},{"$f":"IF('Data Sort'!$B$2=\"no\", PERCENTILE('Data Sort'!BD$308:BD$337,$C5), PERCENTILE('Data Sort'!BD$309:BD$338,$C5))","v":{"$error":"#NUM!"}},{"$f":"IF('Data Sort'!$B$2=\"no\", PERCENTILE('Data Sort'!BE$308:BE$337,$C5), PERCENTILE('Data Sort'!BE$309:BE$338,$C5))","v":{"$error":"#NUM!"}},{"$f":"IF('Data Sort'!$B$2=\"no\", PERCENTILE('Data Sort'!BF$308:BF$337,$C5), PERCENTILE('Data Sort'!BF$309:BF$338,$C5))","v":{"$error":"#NUM!"}},{"$f":"IF('Data Sort'!$B$2=\"no\", PERCENTILE('Data Sort'!BG$308:BG$337,$C5), PERCENTILE('Data Sort'!BG$309:BG$338,$C5))","v":{"$error":"#NUM!"}},{"$f":"IF('Data Sort'!$B$2=\"no\", PERCENTILE('Data Sort'!BH$308:BH$337,$C5), PERCENTILE('Data Sort'!BH$309:BH$338,$C5))","v":{"$error":"#NUM!"}},{"$f":"IF('Data Sort'!$B$2=\"no\", PERCENTILE('Data Sort'!BI$308:BI$337,$C5), PERCENTILE('Data Sort'!BI$309:BI$338,$C5))","v":{"$error":"#NUM!"}},{"$f":"IF('Data Sort'!$B$2=\"no\", PERCENTILE('Data Sort'!BJ$308:BJ$337,$C5), PERCENTILE('Data Sort'!BJ$309:BJ$338,$C5))","v":{"$error":"#NUM!"}},{"$f":"IF('Data Sort'!$B$2=\"no\", PERCENTILE('Data Sort'!BK$308:BK$337,$C5), PERCENTILE('Data Sort'!BK$309:BK$338,$C5))","v":{"$error":"#NUM!"}},{"$f":"IF('Data Sort'!$B$2=\"no\", PERCENTILE('Data Sort'!BL$308:BL$337,$C5), PERCENTILE('Data Sort'!BL$309:BL$338,$C5))","v":{"$error":"#NUM!"}},{"$f":"IF('Data Sort'!$B$2=\"no\", PERCENTILE('Data Sort'!BM$308:BM$337,$C5), PERCENTILE('Data Sort'!BM$309:BM$338,$C5))","v":{"$error":"#NUM!"}},{"$f":"IF('Data Sort'!$B$2=\"no\", PERCENTILE('Data Sort'!BN$308:BN$337,$C5), PERCENTILE('Data Sort'!BN$309:BN$338,$C5))","v":{"$error":"#NUM!"}},{"$f":"IF('Data Sort'!$B$2=\"no\", PERCENTILE('Data Sort'!BO$308:BO$337,$C5), PERCENTILE('Data Sort'!BO$309:BO$338,$C5))","v":{"$error":"#NUM!"}},{"$f":"IF('Data Sort'!$B$2=\"no\", PERCENTILE('Data Sort'!BP$308:BP$337,$C5), PERCENTILE('Data Sort'!BP$309:BP$338,$C5))","v":{"$error":"#NUM!"}},{"$f":"IF('Data Sort'!$B$2=\"no\", PERCENTILE('Data Sort'!BQ$308:BQ$337,$C5), PERCENTILE('Data Sort'!BQ$309:BQ$338,$C5))","v":{"$error":"#NUM!"}},{"$f":"IF('Data Sort'!$B$2=\"no\", PERCENTILE('Data Sort'!BR$308:BR$337,$C5), PERCENTILE('Data Sort'!BR$309:BR$338,$C5))","v":{"$error":"#NUM!"}},{"$f":"IF('Data Sort'!$B$2=\"no\", PERCENTILE('Data Sort'!BS$308:BS$337,$C5), PERCENTILE('Data Sort'!BS$309:BS$338,$C5))","v":{"$error":"#NUM!"}},{"$f":"IF('Data Sort'!$B$2=\"no\", PERCENTILE('Data Sort'!BT$308:BT$337,$C5), PERCENTILE('Data Sort'!BT$309:BT$338,$C5))","v":{"$error":"#NUM!"}},{"$f":"IF('Data Sort'!$B$2=\"no\", PERCENTILE('Data Sort'!BU$308:BU$337,$C5), PERCENTILE('Data Sort'!BU$309:BU$338,$C5))","v":{"$error":"#NUM!"}}]
[12,{"$f":"'Data Sort'!$D$342","v":"00:00:00"},0.95,{"$f":"IF('Data Sort'!$B$2=\"no\", PERCENTILE('Data Sort'!E$338:E$368,$C6), PERCENTILE('Data Sort'!E$339:E$369,$C6))","v":{"$error":"#NUM!"}},{"$f":"IF('Data Sort'!$B$2=\"no\", PERCENTILE('Data Sort'!F$338:F$368,$C6), PERCENTILE('Data Sort'!F$339:F$369,$C6))","v":{"$error":"#NUM!"}},{"$f":"IF('Data Sort'!$B$2=\"no\", PERCENTILE('Data Sort'!G$338:G$368,$C6), PERCENTILE('Data Sort'!G$339:G$369,$C6))","v":{"$error":"#NUM!"}},{"$f":"IF('Data Sort'!$B$2=\"no\", PERCENTILE('Data Sort'!H$338:H$368,$C6), PERCENTILE('Data Sort'!H$339:H$369,$C6))","v":{"$error":"#NUM!"}},{"$f":"IF('Data Sort'!$B$2=\"no\", PERCENTILE('Data Sort'!I$338:I$368,$C6), PERCENTILE('Data Sort'!I$339:I$369,$C6))","v":{"$error":"#NUM!"}},{"$f":"IF('Data Sort'!$B$2=\"no\", PERCENTILE('Data Sort'!J$338:J$368,$C6), PERCENTILE('Data Sort'!J$339:J$369,$C6))","v":{"$error":"#NUM!"}},{"$f":"IF('Data Sort'!$B$2=\"no\", PERCENTILE('Data Sort'!K$338:K$368,$C6), PERCENTILE('Data Sort'!K$339:K$369,$C6))","v":{"$error":"#NUM!"}},{"$f":"IF('Data Sort'!$B$2=\"no\", PERCENTILE('Data Sort'!L$338:L$368,$C6), PERCENTILE('Data Sort'!L$339:L$369,$C6))","v":{"$error":"#NUM!"}},{"$f":"IF('Data Sort'!$B$2=\"no\", PERCENTILE('Data Sort'!M$338:M$368,$C6), PERCENTILE('Data Sort'!M$339:M$369,$C6))","v":{"$error":"#NUM!"}},{"$f":"IF('Data Sort'!$B$2=\"no\", PERCENTILE('Data Sort'!N$338:N$368,$C6), PERCENTILE('Data Sort'!N$339:N$369,$C6))","v":{"$error":"#NUM!"}},{"$f":"IF('Data Sort'!$B$2=\"no\", PERCENTILE('Data Sort'!O$338:O$368,$C6), PERCENTILE('Data Sort'!O$339:O$369,$C6))","v":{"$error":"#NUM!"}},{"$f":"IF('Data Sort'!$B$2=\"no\", PERCENTILE('Data Sort'!P$338:P$368,$C6), PERCENTILE('Data Sort'!P$339:P$369,$C6))","v":{"$error":"#NUM!"}},{"$f":"IF('Data Sort'!$B$2=\"no\", PERCENTILE('Data Sort'!Q$338:Q$368,$C6), PERCENTILE('Data Sort'!Q$339:Q$369,$C6))","v":{"$error":"#NUM!"}},{"$f":"IF('Data Sort'!$B$2=\"no\", PERCENTILE('Data Sort'!R$338:R$368,$C6), PERCENTILE('Data Sort'!R$339:R$369,$C6))","v":{"$error":"#NUM!"}},{"$f":"IF('Data Sort'!$B$2=\"no\", PERCENTILE('Data Sort'!S$338:S$368,$C6), PERCENTILE('Data Sort'!S$339:S$369,$C6))","v":{"$error":"#NUM!"}},{"$f":"IF('Data Sort'!$B$2=\"no\", PERCENTILE('Data Sort'!T$338:T$368,$C6), PERCENTILE('Data Sort'!T$339:T$369,$C6))","v":{"$error":"#NUM!"}},{"$f":"IF('Data Sort'!$B$2=\"no\", PERCENTILE('Data Sort'!U$338:U$368,$C6), PERCENTILE('Data Sort'!U$339:U$369,$C6))","v":{"$error":"#NUM!"}},{"$f":"IF('Data Sort'!$B$2=\"no\", PERCENTILE('Data Sort'!V$338:V$368,$C6), PERCENTILE('Data Sort'!V$339:V$369,$C6))","v":{"$error":"#NUM!"}},{"$f":"IF('Data Sort'!$B$2=\"no\", PERCENTILE('Data Sort'!W$338:W$368,$C6), PERCENTILE('Data Sort'!W$339:W$369,$C6))","v":{"$error":"#NUM!"}},{"$f":"IF('Data Sort'!$B$2=\"no\", PERCENTILE('Data Sort'!X$338:X$368,$C6), PERCENTILE('Data Sort'!X$339:X$369,$C6))","v":{"$error":"#NUM!"}},{"$f":"IF('Data Sort'!$B$2=\"no\", PERCENTILE('Data Sort'!Y$338:Y$368,$C6), PERCENTILE('Data Sort'!Y$339:Y$369,$C6))","v":{"$error":"#NUM!"}},{"$f":"IF('Data Sort'!$B$2=\"no\", PERCENTILE('Data Sort'!Z$338:Z$368,$C6), PERCENTILE('Data Sort'!Z$339:Z$369,$C6))","v":{"$error":"#NUM!"}},{"$f":"IF('Data Sort'!$B$2=\"no\", PERCENTILE('Data Sort'!AA$338:AA$368,$C6), PERCENTILE('Data Sort'!AA$339:AA$369,$C6))","v":{"$error":"#NUM!"}},{"$f":"IF('Data Sort'!$B$2=\"no\", PERCENTILE('Data Sort'!AB$338:AB$368,$C6), PERCENTILE('Data Sort'!AB$339:AB$369,$C6))","v":{"$error":"#NUM!"}},{"$f":"IF('Data Sort'!$B$2=\"no\", PERCENTILE('Data Sort'!AC$338:AC$368,$C6), PERCENTILE('Data Sort'!AC$339:AC$369,$C6))","v":{"$error":"#NUM!"}},{"$f":"IF('Data Sort'!$B$2=\"no\", PERCENTILE('Data Sort'!AD$338:AD$368,$C6), PERCENTILE('Data Sort'!AD$339:AD$369,$C6))","v":{"$error":"#NUM!"}},{"$f":"IF('Data Sort'!$B$2=\"no\", PERCENTILE('Data Sort'!AE$338:AE$368,$C6), PERCENTILE('Data Sort'!AE$339:AE$369,$C6))","v":{"$error":"#NUM!"}},{"$f":"IF('Data Sort'!$B$2=\"no\", PERCENTILE('Data Sort'!AF$338:AF$368,$C6), PERCENTILE('Data Sort'!AF$339:AF$369,$C6))","v":{"$error":"#NUM!"}},{"$f":"IF('Data Sort'!$B$2=\"no\", PERCENTILE('Data Sort'!AG$338:AG$368,$C6), PERCENTILE('Data Sort'!AG$339:AG$369,$C6))","v":{"$error":"#NUM!"}},{"$f":"IF('Data Sort'!$B$2=\"no\", PERCENTILE('Data Sort'!AH$338:AH$368,$C6), PERCENTILE('Data Sort'!AH$339:AH$369,$C6))","v":{"$error":"#NUM!"}},{"$f":"IF('Data Sort'!$B$2=\"no\", PERCENTILE('Data Sort'!AI$338:AI$368,$C6), PERCENTILE('Data Sort'!AI$339:AI$369,$C6))","v":{"$error":"#NUM!"}},{"$f":"IF('Data Sort'!$B$2=\"no\", PERCENTILE('Data Sort'!AJ$338:AJ$368,$C6), PERCENTILE('Data Sort'!AJ$339:AJ$369,$C6))","v":{"$error":"#NUM!"}},{"$f":"IF('Data Sort'!$B$2=\"no\", PERCENTILE('Data Sort'!AK$338:AK$368,$C6), PERCENTILE('Data Sort'!AK$339:AK$369,$C6))","v":{"$error":"#NUM!"}},{"$f":"IF('Data Sort'!$B$2=\"no\", PERCENTILE('Data Sort'!AL$338:AL$368,$C6), PERCENTILE('Data Sort'!AL$339:AL$369,$C6))","v":{"$error":"#NUM!"}},{"$f":"IF('Data Sort'!$B$2=\"no\", PERCENTILE('Data Sort'!AM$338:AM$368,$C6), PERCENTILE('Data Sort'!AM$339:AM$369,$C6))","v":{"$error":"#NUM!"}},{"$f":"IF('Data Sort'!$B$2=\"no\", PERCENTILE('Data Sort'!AN$338:AN$368,$C6), PERCENTILE('Data Sort'!AN$339:AN$369,$C6))","v":{"$error":"#NUM!"}},{"$f":"IF('Data Sort'!$B$2=\"no\", PERCENTILE('Data Sort'!AO$338:AO$368,$C6), PERCENTILE('Data Sort'!AO$339:AO$369,$C6))","v":{"$error":"#NUM!"}},{"$f":"IF('Data Sort'!$B$2=\"no\", PERCENTILE('Data Sort'!AP$338:AP$368,$C6), PERCENTILE('Data Sort'!AP$339:AP$369,$C6))","v":{"$error":"#NUM!"}},{"$f":"IF('Data Sort'!$B$2=\"no\", PERCENTILE('Data Sort'!AQ$338:AQ$368,$C6), PERCENTILE('Data Sort'!AQ$339:AQ$369,$C6))","v":{"$error":"#NUM!"}},{"$f":"IF('Data Sort'!$B$2=\"no\", PERCENTILE('Data Sort'!AR$338:AR$368,$C6), PERCENTILE('Data Sort'!AR$339:AR$369,$C6))","v":{"$error":"#NUM!"}},{"$f":"IF('Data Sort'!$B$2=\"no\", PERCENTILE('Data Sort'!AS$338:AS$368,$C6), PERCENTILE('Data Sort'!AS$339:AS$369,$C6))","v":{"$error":"#NUM!"}},{"$f":"IF('Data Sort'!$B$2=\"no\", PERCENTILE('Data Sort'!AT$338:AT$368,$C6), PERCENTILE('Data Sort'!AT$339:AT$369,$C6))","v":{"$error":"#NUM!"}},{"$f":"IF('Data Sort'!$B$2=\"no\", PERCENTILE('Data Sort'!AU$338:AU$368,$C6), PERCENTILE('Data Sort'!AU$339:AU$369,$C6))","v":{"$error":"#NUM!"}},{"$f":"IF('Data Sort'!$B$2=\"no\", PERCENTILE('Data Sort'!AV$338:AV$368,$C6), PERCENTILE('Data Sort'!AV$339:AV$369,$C6))","v":{"$error":"#NUM!"}},{"$f":"IF('Data Sort'!$B$2=\"no\", PERCENTILE('Data Sort'!AW$338:AW$368,$C6), PERCENTILE('Data Sort'!AW$339:AW$369,$C6))","v":{"$error":"#NUM!"}},{"$f":"IF('Data Sort'!$B$2=\"no\", PERCENTILE('Data Sort'!AX$338:AX$368,$C6), PERCENTILE('Data Sort'!AX$339:AX$369,$C6))","v":{"$error":"#NUM!"}},{"$f":"IF('Data Sort'!$B$2=\"no\", PERCENTILE('Data Sort'!AY$338:AY$368,$C6), PERCENTILE('Data Sort'!AY$339:AY$369,$C6))","v":{"$error":"#NUM!"}},{"$f":"IF('Data Sort'!$B$2=\"no\", PERCENTILE('Data Sort'!AZ$338:AZ$368,$C6), PERCENTILE('Data Sort'!AZ$339:AZ$369,$C6))","v":{"$error":"#NUM!"}},{"$f":"IF('Data Sort'!$B$2=\"no\", PERCENTILE('Data Sort'!BA$338:BA$368,$C6), PERCENTILE('Data Sort'!BA$339:BA$369,$C6))","v":{"$error":"#NUM!"}},{"$f":"IF('Data Sort'!$B$2=\"no\", PERCENTILE('Data Sort'!BB$338:BB$368,$C6), PERCENTILE('Data Sort'!BB$339:BB$369,$C6))","v":{"$error":"#NUM!"}},{"$f":"IF('Data Sort'!$B$2=\"no\", PERCENTILE('Data Sort'!BC$338:BC$368,$C6), PERCENTILE('Data Sort'!BC$339:BC$369,$C6))","v":{"$error":"#NUM!"}},{"$f":"IF('Data Sort'!$B$2=\"no\", PERCENTILE('Data Sort'!BD$338:BD$368,$C6), PERCENTILE('Data Sort'!BD$339:BD$369,$C6))","v":{"$error":"#NUM!"}},{"$f":"IF('Data Sort'!$B$2=\"no\", PERCENTILE('Data Sort'!BE$338:BE$368,$C6), PERCENTILE('Data Sort'!BE$339:BE$369,$C6))","v":{"$error":"#NUM!"}},{"$f":"IF('Data Sort'!$B$2=\"no\", PERCENTILE('Data Sort'!BF$338:BF$368,$C6), PERCENTILE('Data Sort'!BF$339:BF$369,$C6))","v":{"$error":"#NUM!"}},{"$f":"IF('Data Sort'!$B$2=\"no\", PERCENTILE('Data Sort'!BG$338:BG$368,$C6), PERCENTILE('Data Sort'!BG$339:BG$369,$C6))","v":{"$error":"#NUM!"}},{"$f":"IF('Data Sort'!$B$2=\"no\", PERCENTILE('Data Sort'!BH$338:BH$368,$C6), PERCENTILE('Data Sort'!BH$339:BH$369,$C6))","v":{"$error":"#NUM!"}},{"$f":"IF('Data Sort'!$B$2=\"no\", PERCENTILE('Data Sort'!BI$338:BI$368,$C6), PERCENTILE('Data Sort'!BI$339:BI$369,$C6))","v":{"$error":"#NUM!"}},{"$f":"IF('Data Sort'!$B$2=\"no\", PERCENTILE('Data Sort'!BJ$338:BJ$368,$C6), PERCENTILE('Data Sort'!BJ$339:BJ$369,$C6))","v":{"$error":"#NUM!"}},{"$f":"IF('Data Sort'!$B$2=\"no\", PERCENTILE('Data Sort'!BK$338:BK$368,$C6), PERCENTILE('Data Sort'!BK$339:BK$369,$C6))","v":{"$error":"#NUM!"}},{"$f":"IF('Data Sort'!$B$2=\"no\", PERCENTILE('Data Sort'!BL$338:BL$368,$C6), PERCENTILE('Data Sort'!BL$339:BL$369,$C6))","v":{"$error":"#NUM!"}},{"$f":"IF('Data Sort'!$B$2=\"no\", PERCENTILE('Data Sort'!BM$338:BM$368,$C6), PERCENTILE('Data Sort'!BM$339:BM$369,$C6))","v":{"$error":"#NUM!"}},{"$f":"IF('Data Sort'!$B$2=\"no\", PERCENTILE('Data Sort'!BN$338:BN$368,$C6), PERCENTILE('Data Sort'!BN$339:BN$369,$C6))","v":{"$error":"#NUM!"}},{"$f":"IF('Data Sort'!$B$2=\"no\", PERCENTILE('Data Sort'!BO$338:BO$368,$C6), PERCENTILE('Data Sort'!BO$339:BO$369,$C6))","v":{"$error":"#NUM!"}},{"$f":"IF('Data Sort'!$B$2=\"no\", PERCENTILE('Data Sort'!BP$338:BP$368,$C6), PERCENTILE('Data Sort'!BP$339:BP$369,$C6))","v":{"$error":"#NUM!"}},{"$f":"IF('Data Sort'!$B$2=\"no\", PERCENTILE('Data Sort'!BQ$338:BQ$368,$C6), PERCENTILE('Data Sort'!BQ$339:BQ$369,$C6))","v":{"$error":"#NUM!"}},{"$f":"IF('Data Sort'!$B$2=\"no\", PERCENTILE('Data Sort'!BR$338:BR$368,$C6), PERCENTILE('Data Sort'!BR$339:BR$369,$C6))","v":{"$error":"#NUM!"}},{"$f":"IF('Data Sort'!$B$2=\"no\", PERCENTILE('Data Sort'!BS$338:BS$368,$C6), PERCENTILE('Data Sort'!BS$339:BS$369,$C6))","v":{"$error":"#NUM!"}},{"$f":"IF('Data Sort'!$B$2=\"no\", PERCENTILE('Data Sort'!BT$338:BT$368,$C6), PERCENTILE('Data Sort'!BT$339:BT$369,$C6))","v":{"$error":"#NUM!"}},{"$f":"IF('Data Sort'!$B$2=\"no\", PERCENTILE('Data Sort'!BU$338:BU$368,$C6), PERCENTILE('Data Sort'!BU$339:BU$369,$C6))","v":{"$error":"#NUM!"}}]
[1,{"$f":"'Data Sort'!$D$7","v":"00:00:00"},0.95,{"$f":"PERCENTILE('Data Sort'!E$5:E$34,$C7)","v":{"$error":"#NUM!"}},{"$f":"PERCENTILE('Data Sort'!F$5:F$34,$C7)","v":{"$error":"#NUM!"}},{"$f":"PERCENTILE('Data Sort'!G$5:G$34,$C7)","v":{"$error":"#NUM!"}},{"$f":"PERCENTILE('Data Sort'!H$5:H$34,$C7)","v":{"$error":"#NUM!"}},{"$f":"PERCENTILE('Data Sort'!I$5:I$34,$C7)","v":{"$error":"#NUM!"}},{"$f":"PERCENTILE('Data Sort'!J$5:J$34,$C7)","v":{"$error":"#NUM!"}},{"$f":"PERCENTILE('Data Sort'!K$5:K$34,$C7)","v":{"$error":"#NUM!"}},{"$f":"PERCENTILE('Data Sort'!L$5:L$34,$C7)","v":{"$error":"#NUM!"}},{"$f":"PERCENTILE('Data Sort'!M$5:M$34,$C7)","v":{"$error":"#NUM!"}},{"$f":"PERCENTILE('Data Sort'!N$5:N$34,$C7)","v":{"$error":"#NUM!"}},{"$f":"PERCENTILE('Data Sort'!O$5:O$34,$C7)","v":{"$error":"#NUM!"}},{"$f":"PERCENTILE('Data Sort'!P$5:P$34,$C7)","v":{"$error":"#NUM!"}},{"$f":"PERCENTILE('Data Sort'!Q$5:Q$34,$C7)","v":{"$error":"#NUM!"}},{"$f":"PERCENTILE('Data Sort'!R$5:R$34,$C7)","v":{"$error":"#NUM!"}},{"$f":"PERCENTILE('Data Sort'!S$5:S$34,$C7)","v":{"$error":"#NUM!"}},{"$f":"PERCENTILE('Data Sort'!T$5:T$34,$C7)","v":{"$error":"#NUM!"}},{"$f":"PERCENTILE('Data Sort'!U$5:U$34,$C7)","v":{"$error":"#NUM!"}},{"$f":"PERCENTILE('Data Sort'!V$5:V$34,$C7)","v":{"$error":"#NUM!"}},{"$f":"PERCENTILE('Data Sort'!W$5:W$34,$C7)","v":{"$error":"#NUM!"}},{"$f":"PERCENTILE('Data Sort'!X$5:X$34,$C7)","v":{"$error":"#NUM!"}},{"$f":"PERCENTILE('Data Sort'!Y$5:Y$34,$C7)","v":{"$error":"#NUM!"}},{"$f":"PERCENTILE('Data Sort'!Z$5:Z$34,$C7)","v":{"$error":"#NUM!"}},{"$f":"PERCENTILE('Data Sort'!AA$5:AA$34,$C7)","v":{"$error":"#NUM!"}},{"$f":"PERCENTILE('Data Sort'!AB$5:AB$34,$C7)","v":{"$error":"#NUM!"}},{"$f":"PERCENTILE('Data Sort'!AC$5:AC$34,$C7)","v":{"$error":"#NUM!"}},{"$f":"PERCENTILE('Data Sort'!AD$5:AD$34,$C7)","v":{"$error":"#NUM!"}},{"$f":"PERCENTILE('Data Sort'!AE$5:AE$34,$C7)","v":{"$error":"#NUM!"}},{"$f":"PERCENTILE('Data Sort'!AF$5:AF$34,$C7)","v":{"$error":"#NUM!"}},{"$f":"PERCENTILE('Data Sort'!AG$5:AG$34,$C7)","v":{"$error":"#NUM!"}},{"$f":"PERCENTILE('Data Sort'!AH$5:AH$34,$C7)","v":{"$error":"#NUM!"}},{"$f":"PERCENTILE('Data Sort'!AI$5:AI$34,$C7)","v":{"$error":"#NUM!"}},{"$f":"PERCENTILE('Data Sort'!AJ$5:AJ$34,$C7)","v":{"$error":"#NUM!"}},{"$f":"PERCENTILE('Data Sort'!AK$5:AK$34,$C7)","v":{"$error":"#NUM!"}},{"$f":"PERCENTILE('Data Sort'!AL$5:AL$34,$C7)","v":{"$error":"#NUM!"}},{"$f":"PERCENTILE('Data Sort'!AM$5:AM$34,$C7)","v":{"$error":"#NUM!"}},{"$f":"PERCENTILE('Data Sort'!AN$5:AN$34,$C7)","v":{"$error":"#NUM!"}},{"$f":"PERCENTILE('Data Sort'!AO$5:AO$34,$C7)","v":{"$error":"#NUM!"}},{"$f":"PERCENTILE('Data Sort'!AP$5:AP$34,$C7)","v":{"$error":"#NUM!"}},{"$f":"PERCENTILE('Data Sort'!AQ$5:AQ$34,$C7)","v":{"$error":"#NUM!"}},{"$f":"PERCENTILE('Data Sort'!AR$5:AR$34,$C7)","v":{"$error":"#NUM!"}},{"$f":"PERCENTILE('Data Sort'!AS$5:AS$34,$C7)","v":{"$error":"#NUM!"}},{"$f":"PERCENTILE('Data Sort'!AT$5:AT$34,$C7)","v":{"$error":"#NUM!"}},{"$f":"PERCENTILE('Data Sort'!AU$5:AU$34,$C7)","v":{"$error":"#NUM!"}},{"$f":"PERCENTILE('Data Sort'!AV$5:AV$34,$C7)","v":{"$error":"#NUM!"}},{"$f":"PERCENTILE('Data Sort'!AW$5:AW$34,$C7)","v":{"$error":"#NUM!"}},{"$f":"PERCENTILE('Data Sort'!AX$5:AX$34,$C7)","v":{"$error":"#NUM!"}},{"$f":"PERCENTILE('Data Sort'!AY$5:AY$34,$C7)","v":{"$error":"#NUM!"}},{"$f":"PERCENTILE('Data Sort'!AZ$5:AZ$34,$C7)","v":{"$error":"#NUM!"}},{"$f":"PERCENTILE('Data Sort'!BA$5:BA$34,$C7)","v":{"$error":"#NUM!"}},{"$f":"PERCENTILE('Data Sort'!BB$5:BB$34,$C7)","v":{"$error":"#NUM!"}},{"$f":"PERCENTILE('Data Sort'!BC$5:BC$34,$C7)","v":{"$error":"#NUM!"}},{"$f":"PERCENTILE('Data Sort'!BD$5:BD$34,$C7)","v":{"$error":"#NUM!"}},{"$f":"PERCENTILE('Data Sort'!BE$5:BE$34,$C7)","v":{"$error":"#NUM!"}},{"$f":"PERCENTILE('Data Sort'!BF$5:BF$34,$C7)","v":{"$error":"#NUM!"}},{"$f":"PERCENTILE('Data Sort'!BG$5:BG$34,$C7)","v":{"$error":"#NUM!"}},{"$f":"PERCENTILE('Data Sort'!BH$5:BH$34,$C7)","v":{"$error":"#NUM!"}},{"$f":"PERCENTILE('Data Sort'!BI$5:BI$34,$C7)","v":{"$error":"#NUM!"}},{"$f":"PERCENTILE('Data Sort'!BJ$5:BJ$34,$C7)","v":{"$error":"#NUM!"}},{"$f":"PERCENTILE('Data Sort'!BK$5:BK$34,$C7)","v":{"$error":"#NUM!"}},{"$f":"PERCENTILE('Data Sort'!BL$5:BL$34,$C7)","v":{"$error":"#NUM!"}},{"$f":"PERCENTILE('Data Sort'!BM$5:BM$34,$C7)","v":{"$error":"#NUM!"}},{"$f":"PERCENTILE('Data Sort'!BN$5:BN$34,$C7)","v":{"$error":"#NUM!"}},{"$f":"PERCENTILE('Data Sort'!BO$5:BO$34,$C7)","v":{"$error":"#NUM!"}},{"$f":"PERCENTILE('Data Sort'!BP$5:BP$34,$C7)","v":{"$error":"#NUM!"}},{"$f":"PERCENTILE('Data Sort'!BQ$5:BQ$34,$C7)","v":{"$error":"#NUM!"}},{"$f":"PERCENTILE('Data Sort'!BR$5:BR$34,$C7)","v":{"$error":"#NUM!"}},{"$f":"PERCENTILE('Data Sort'!BS$5:BS$34,$C7)","v":{"$error":"#NUM!"}},{"$f":"PERCENTILE('Data Sort'!BT$5:BT$34,$C7)","v":{"$error":"#NUM!"}},{"$f":"PERCENTILE('Data Sort'!BU$5:BU$34,$C7)","v":{"$error":"#NUM!"}}]
[2,{"$f":"'Data Sort'!$D$38","v":"00:00:00"},0.95,{"$f":"IF('Data Sort'!$B$2=\"no\", PERCENTILE('Data Sort'!E$35:E$62,$C8), PERCENTILE('Data Sort'!E$35:E$63,$C8))","v":{"$error":"#NUM!"}},{"$f":"IF('Data Sort'!$B$2=\"no\", PERCENTILE('Data Sort'!F$35:F$62,$C8), PERCENTILE('Data Sort'!F$35:F$63,$C8))","v":{"$error":"#NUM!"}},{"$f":"IF('Data Sort'!$B$2=\"no\", PERCENTILE('Data Sort'!G$35:G$62,$C8), PERCENTILE('Data Sort'!G$35:G$63,$C8))","v":{"$error":"#NUM!"}},{"$f":"IF('Data Sort'!$B$2=\"no\", PERCENTILE('Data Sort'!H$35:H$62,$C8), PERCENTILE('Data Sort'!H$35:H$63,$C8))","v":{"$error":"#NUM!"}},{"$f":"IF('Data Sort'!$B$2=\"no\", PERCENTILE('Data Sort'!I$35:I$62,$C8), PERCENTILE('Data Sort'!I$35:I$63,$C8))","v":{"$error":"#NUM!"}},{"$f":"IF('Data Sort'!$B$2=\"no\", PERCENTILE('Data Sort'!J$35:J$62,$C8), PERCENTILE('Data Sort'!J$35:J$63,$C8))","v":{"$error":"#NUM!"}},{"$f":"IF('Data Sort'!$B$2=\"no\", PERCENTILE('Data Sort'!K$35:K$62,$C8), PERCENTILE('Data Sort'!K$35:K$63,$C8))","v":{"$error":"#NUM!"}},{"$f":"IF('Data Sort'!$B$2=\"no\", PERCENTILE('Data Sort'!L$35:L$62,$C8), PERCENTILE('Data Sort'!L$35:L$63,$C8))","v":{"$error":"#NUM!"}},{"$f":"IF('Data Sort'!$B$2=\"no\", PERCENTILE('Data Sort'!M$35:M$62,$C8), PERCENTILE('Data Sort'!M$35:M$63,$C8))","v":{"$error":"#NUM!"}},{"$f":"IF('Data Sort'!$B$2=\"no\", PERCENTILE('Data Sort'!N$35:N$62,$C8), PERCENTILE('Data Sort'!N$35:N$63,$C8))","v":{"$error":"#NUM!"}},{"$f":"IF('Data Sort'!$B$2=\"no\", PERCENTILE('Data Sort'!O$35:O$62,$C8), PERCENTILE('Data Sort'!O$35:O$63,$C8))","v":{"$error":"#NUM!"}},{"$f":"IF('Data Sort'!$B$2=\"no\", PERCENTILE('Data Sort'!P$35:P$62,$C8), PERCENTILE('Data Sort'!P$35:P$63,$C8))","v":{"$error":"#NUM!"}},{"$f":"IF('Data Sort'!$B$2=\"no\", PERCENTILE('Data Sort'!Q$35:Q$62,$C8), PERCENTILE('Data Sort'!Q$35:Q$63,$C8))","v":{"$error":"#NUM!"}},{"$f":"IF('Data Sort'!$B$2=\"no\", PERCENTILE('Data Sort'!R$35:R$62,$C8), PERCENTILE('Data Sort'!R$35:R$63,$C8))","v":{"$error":"#NUM!"}},{"$f":"IF('Data Sort'!$B$2=\"no\", PERCENTILE('Data Sort'!S$35:S$62,$C8), PERCENTILE('Data Sort'!S$35:S$63,$C8))","v":{"$error":"#NUM!"}},{"$f":"IF('Data Sort'!$B$2=\"no\", PERCENTILE('Data Sort'!T$35:T$62,$C8), PERCENTILE('Data Sort'!T$35:T$63,$C8))","v":{"$error":"#NUM!"}},{"$f":"IF('Data Sort'!$B$2=\"no\", PERCENTILE('Data Sort'!U$35:U$62,$C8), PERCENTILE('Data Sort'!U$35:U$63,$C8))","v":{"$error":"#NUM!"}},{"$f":"IF('Data Sort'!$B$2=\"no\", PERCENTILE('Data Sort'!V$35:V$62,$C8), PERCENTILE('Data Sort'!V$35:V$63,$C8))","v":{"$error":"#NUM!"}},{"$f":"IF('Data Sort'!$B$2=\"no\", PERCENTILE('Data Sort'!W$35:W$62,$C8), PERCENTILE('Data Sort'!W$35:W$63,$C8))","v":{"$error":"#NUM!"}},{"$f":"IF('Data Sort'!$B$2=\"no\", PERCENTILE('Data Sort'!X$35:X$62,$C8), PERCENTILE('Data Sort'!X$35:X$63,$C8))","v":{"$error":"#NUM!"}},{"$f":"IF('Data Sort'!$B$2=\"no\", PERCENTILE('Data Sort'!Y$35:Y$62,$C8), PERCENTILE('Data Sort'!Y$35:Y$63,$C8))","v":{"$error":"#NUM!"}},{"$f":"IF('Data Sort'!$B$2=\"no\", PERCENTILE('Data Sort'!Z$35:Z$62,$C8), PERCENTILE('Data Sort'!Z$35:Z$63,$C8))","v":{"$error":"#NUM!"}},{"$f":"IF('Data Sort'!$B$2=\"no\", PERCENTILE('Data Sort'!AA$35:AA$62,$C8), PERCENTILE('Data Sort'!AA$35:AA$63,$C8))","v":{"$error":"#NUM!"}},{"$f":"IF('Data Sort'!$B$2=\"no\", PERCENTILE('Data Sort'!AB$35:AB$62,$C8), PERCENTILE('Data Sort'!AB$35:AB$63,$C8))","v":{"$error":"#NUM!"}},{"$f":"IF('Data Sort'!$B$2=\"no\", PERCENTILE('Data Sort'!AC$35:AC$62,$C8), PERCENTILE('Data Sort'!AC$35:AC$63,$C8))","v":{"$error":"#NUM!"}},{"$f":"IF('Data Sort'!$B$2=\"no\", PERCENTILE('Data Sort'!AD$35:AD$62,$C8), PERCENTILE('Data Sort'!AD$35:AD$63,$C8))","v":{"$error":"#NUM!"}},{"$f":"IF('Data Sort'!$B$2=\"no\", PERCENTILE('Data Sort'!AE$35:AE$62,$C8), PERCENTILE('Data Sort'!AE$35:AE$63,$C8))","v":{"$error":"#NUM!"}},{"$f":"IF('Data Sort'!$B$2=\"no\", PERCENTILE('Data Sort'!AF$35:AF$62,$C8), PERCENTILE('Data Sort'!AF$35:AF$63,$C8))","v":{"$error":"#NUM!"}},{"$f":"IF('Data Sort'!$B$2=\"no\", PERCENTILE('Data Sort'!AG$35:AG$62,$C8), PERCENTILE('Data Sort'!AG$35:AG$63,$C8))","v":{"$error":"#NUM!"}},{"$f":"IF('Data Sort'!$B$2=\"no\", PERCENTILE('Data Sort'!AH$35:AH$62,$C8), PERCENTILE('Data Sort'!AH$35:AH$63,$C8))","v":{"$error":"#NUM!"}},{"$f":"IF('Data Sort'!$B$2=\"no\", PERCENTILE('Data Sort'!AI$35:AI$62,$C8), PERCENTILE('Data Sort'!AI$35:AI$63,$C8))","v":{"$error":"#NUM!"}},{"$f":"IF('Data Sort'!$B$2=\"no\", PERCENTILE('Data Sort'!AJ$35:AJ$62,$C8), PERCENTILE('Data Sort'!AJ$35:AJ$63,$C8))","v":{"$error":"#NUM!"}},{"$f":"IF('Data Sort'!$B$2=\"no\", PERCENTILE('Data Sort'!AK$35:AK$62,$C8), PERCENTILE('Data Sort'!AK$35:AK$63,$C8))","v":{"$error":"#NUM!"}},{"$f":"IF('Data Sort'!$B$2=\"no\", PERCENTILE('Data Sort'!AL$35:AL$62,$C8), PERCENTILE('Data Sort'!AL$35:AL$63,$C8))","v":{"$error":"#NUM!"}},{"$f":"IF('Data Sort'!$B$2=\"no\", PERCENTILE('Data Sort'!AM$35:AM$62,$C8), PERCENTILE('Data Sort'!AM$35:AM$63,$C8))","v":{"$error":"#NUM!"}},{"$f":"IF('Data Sort'!$B$2=\"no\", PERCENTILE('Data Sort'!AN$35:AN$62,$C8), PERCENTILE('Data Sort'!AN$35:AN$63,$C8))","v":{"$error":"#NUM!"}},{"$f":"IF('Data Sort'!$B$2=\"no\", PERCENTILE('Data Sort'!AO$35:AO$62,$C8), PERCENTILE('Data Sort'!AO$35:AO$63,$C8))","v":{"$error":"#NUM!"}},{"$f":"IF('Data Sort'!$B$2=\"no\", PERCENTILE('Data Sort'!AP$35:AP$62,$C8), PERCENTILE('Data Sort'!AP$35:AP$63,$C8))","v":{"$error":"#NUM!"}},{"$f":"IF('Data Sort'!$B$2=\"no\", PERCENTILE('Data Sort'!AQ$35:AQ$62,$C8), PERCENTILE('Data Sort'!AQ$35:AQ$63,$C8))","v":{"$error":"#NUM!"}},{"$f":"IF('Data Sort'!$B$2=\"no\", PERCENTILE('Data Sort'!AR$35:AR$62,$C8), PERCENTILE('Data Sort'!AR$35:AR$63,$C8))","v":{"$error":"#NUM!"}},{"$f":"IF('Data Sort'!$B$2=\"no\", PERCENTILE('Data Sort'!AS$35:AS$62,$C8), PERCENTILE('Data Sort'!AS$35:AS$63,$C8))","v":{"$error":"#NUM!"}},{"$f":"IF('Data Sort'!$B$2=\"no\", PERCENTILE('Data Sort'!AT$35:AT$62,$C8), PERCENTILE('Data Sort'!AT$35:AT$63,$C8))","v":{"$error":"#NUM!"}},{"$f":"IF('Data Sort'!$B$2=\"no\", PERCENTILE('Data Sort'!AU$35:AU$62,$C8), PERCENTILE('Data Sort'!AU$35:AU$63,$C8))","v":{"$error":"#NUM!"}},{"$f":"IF('Data Sort'!$B$2=\"no\", PERCENTILE('Data Sort'!AV$35:AV$62,$C8), PERCENTILE('Data Sort'!AV$35:AV$63,$C8))","v":{"$error":"#NUM!"}},{"$f":"IF('Data Sort'!$B$2=\"no\", PERCENTILE('Data Sort'!AW$35:AW$62,$C8), PERCENTILE('Data Sort'!AW$35:AW$63,$C8))","v":{"$error":"#NUM!"}},{"$f":"IF('Data Sort'!$B$2=\"no\", PERCENTILE('Data Sort'!AX$35:AX$62,$C8), PERCENTILE('Data Sort'!AX$35:AX$63,$C8))","v":{"$error":"#NUM!"}},{"$f":"IF('Data Sort'!$B$2=\"no\", PERCENTILE('Data Sort'!AY$35:AY$62,$C8), PERCENTILE('Data Sort'!AY$35:AY$63,$C8))","v":{"$error":"#NUM!"}},{"$f":"IF('Data Sort'!$B$2=\"no\", PERCENTILE('Data Sort'!AZ$35:AZ$62,$C8), PERCENTILE('Data Sort'!AZ$35:AZ$63,$C8))","v":{"$error":"#NUM!"}},{"$f":"IF('Data Sort'!$B$2=\"no\", PERCENTILE('Data Sort'!BA$35:BA$62,$C8), PERCENTILE('Data Sort'!BA$35:BA$63,$C8))","v":{"$error":"#NUM!"}},{"$f":"IF('Data Sort'!$B$2=\"no\", PERCENTILE('Data Sort'!BB$35:BB$62,$C8), PERCENTILE('Data Sort'!BB$35:BB$63,$C8))","v":{"$error":"#NUM!"}},{"$f":"IF('Data Sort'!$B$2=\"no\", PERCENTILE('Data Sort'!BC$35:BC$62,$C8), PERCENTILE('Data Sort'!BC$35:BC$63,$C8))","v":{"$error":"#NUM!"}},{"$f":"IF('Data Sort'!$B$2=\"no\", PERCENTILE('Data Sort'!BD$35:BD$62,$C8), PERCENTILE('Data Sort'!BD$35:BD$63,$C8))","v":{"$error":"#NUM!"}},{"$f":"IF('Data Sort'!$B$2=\"no\", PERCENTILE('Data Sort'!BE$35:BE$62,$C8), PERCENTILE('Data Sort'!BE$35:BE$63,$C8))","v":{"$error":"#NUM!"}},{"$f":"IF('Data Sort'!$B$2=\"no\", PERCENTILE('Data Sort'!BF$35:BF$62,$C8), PERCENTILE('Data Sort'!BF$35:BF$63,$C8))","v":{"$error":"#NUM!"}},{"$f":"IF('Data Sort'!$B$2=\"no\", PERCENTILE('Data Sort'!BG$35:BG$62,$C8), PERCENTILE('Data Sort'!BG$35:BG$63,$C8))","v":{"$error":"#NUM!"}},{"$f":"IF('Data Sort'!$B$2=\"no\", PERCENTILE('Data Sort'!BH$35:BH$62,$C8), PERCENTILE('Data Sort'!BH$35:BH$63,$C8))","v":{"$error":"#NUM!"}},{"$f":"IF('Data Sort'!$B$2=\"no\", PERCENTILE('Data Sort'!BI$35:BI$62,$C8), PERCENTILE('Data Sort'!BI$35:BI$63,$C8))","v":{"$error":"#NUM!"}},{"$f":"IF('Data Sort'!$B$2=\"no\", PERCENTILE('Data Sort'!BJ$35:BJ$62,$C8), PERCENTILE('Data Sort'!BJ$35:BJ$63,$C8))","v":{"$error":"#NUM!"}},{"$f":"IF('Data Sort'!$B$2=\"no\", PERCENTILE('Data Sort'!BK$35:BK$62,$C8), PERCENTILE('Data Sort'!BK$35:BK$63,$C8))","v":{"$error":"#NUM!"}},{"$f":"IF('Data Sort'!$B$2=\"no\", PERCENTILE('Data Sort'!BL$35:BL$62,$C8), PERCENTILE('Data Sort'!BL$35:BL$63,$C8))","v":{"$error":"#NUM!"}},{"$f":"IF('Data Sort'!$B$2=\"no\", PERCENTILE('Data Sort'!BM$35:BM$62,$C8), PERCENTILE('Data Sort'!BM$35:BM$63,$C8))","v":{"$error":"#NUM!"}},{"$f":"IF('Data Sort'!$B$2=\"no\", PERCENTILE('Data Sort'!BN$35:BN$62,$C8), PERCENTILE('Data Sort'!BN$35:BN$63,$C8))","v":{"$error":"#NUM!"}},{"$f":"IF('Data Sort'!$B$2=\"no\", PERCENTILE('Data Sort'!BO$35:BO$62,$C8), PERCENTILE('Data Sort'!BO$35:BO$63,$C8))","v":{"$error":"#NUM!"}},{"$f":"IF('Data Sort'!$B$2=\"no\", PERCENTILE('Data Sort'!BP$35:BP$62,$C8), PERCENTILE('Data Sort'!BP$35:BP$63,$C8))","v":{"$error":"#NUM!"}},{"$f":"IF('Data Sort'!$B$2=\"no\", PERCENTILE('Data Sort'!BQ$35:BQ$62,$C8), PERCENTILE('Data Sort'!BQ$35:BQ$63,$C8))","v":{"$error":"#NUM!"}},{"$f":"IF('Data Sort'!$B$2=\"no\", PERCENTILE('Data Sort'!BR$35:BR$62,$C8), PERCENTILE('Data Sort'!BR$35:BR$63,$C8))","v":{"$error":"#NUM!"}},{"$f":"IF('Data Sort'!$B$2=\"no\", PERCENTILE('Data Sort'!BS$35:BS$62,$C8), PERCENTILE('Data Sort'!BS$35:BS$63,$C8))","v":{"$error":"#NUM!"}},{"$f":"IF('Data Sort'!$B$2=\"no\", PERCENTILE('Data Sort'!BT$35:BT$62,$C8), PERCENTILE('Data Sort'!BT$35:BT$63,$C8))","v":{"$error":"#NUM!"}},{"$f":"IF('Data Sort'!$B$2=\"no\", PERCENTILE('Data Sort'!BU$35:BU$62,$C8), PERCENTILE('Data Sort'!BU$35:BU$63,$C8))","v":{"$error":"#NUM!"}}]
[3,{"$f":"'Data Sort'!$D$67","v":"00:00:00"},0.95,{"$f":"IF('Data Sort'!$B$2=\"no\", PERCENTILE('Data Sort'!E$63:E$93,$C9), PERCENTILE('Data Sort'!E$64:E$94,$C9))","v":{"$error":"#NUM!"}},{"$f":"IF('Data Sort'!$B$2=\"no\", PERCENTILE('Data Sort'!F$63:F$93,$C9), PERCENTILE('Data Sort'!F$64:F$94,$C9))","v":{"$error":"#NUM!"}},{"$f":"IF('Data Sort'!$B$2=\"no\", PERCENTILE('Data Sort'!G$63:G$93,$C9), PERCENTILE('Data Sort'!G$64:G$94,$C9))","v":{"$error":"#NUM!"}},{"$f":"IF('Data Sort'!$B$2=\"no\", PERCENTILE('Data Sort'!H$63:H$93,$C9), PERCENTILE('Data Sort'!H$64:H$94,$C9))","v":{"$error":"#NUM!"}},{"$f":"IF('Data Sort'!$B$2=\"no\", PERCENTILE('Data Sort'!I$63:I$93,$C9), PERCENTILE('Data Sort'!I$64:I$94,$C9))","v":{"$error":"#NUM!"}},{"$f":"IF('Data Sort'!$B$2=\"no\", PERCENTILE('Data Sort'!J$63:J$93,$C9), PERCENTILE('Data Sort'!J$64:J$94,$C9))","v":{"$error":"#NUM!"}},{"$f":"IF('Data Sort'!$B$2=\"no\", PERCENTILE('Data Sort'!K$63:K$93,$C9), PERCENTILE('Data Sort'!K$64:K$94,$C9))","v":{"$error":"#NUM!"}},{"$f":"IF('Data Sort'!$B$2=\"no\", PERCENTILE('Data Sort'!L$63:L$93,$C9), PERCENTILE('Data Sort'!L$64:L$94,$C9))","v":{"$error":"#NUM!"}},{"$f":"IF('Data Sort'!$B$2=\"no\", PERCENTILE('Data Sort'!M$63:M$93,$C9), PERCENTILE('Data Sort'!M$64:M$94,$C9))","v":{"$error":"#NUM!"}},{"$f":"IF('Data Sort'!$B$2=\"no\", PERCENTILE('Data Sort'!N$63:N$93,$C9), PERCENTILE('Data Sort'!N$64:N$94,$C9))","v":{"$error":"#NUM!"}},{"$f":"IF('Data Sort'!$B$2=\"no\", PERCENTILE('Data Sort'!O$63:O$93,$C9), PERCENTILE('Data Sort'!O$64:O$94,$C9))","v":{"$error":"#NUM!"}},{"$f":"IF('Data Sort'!$B$2=\"no\", PERCENTILE('Data Sort'!P$63:P$93,$C9), PERCENTILE('Data Sort'!P$64:P$94,$C9))","v":{"$error":"#NUM!"}},{"$f":"IF('Data Sort'!$B$2=\"no\", PERCENTILE('Data Sort'!Q$63:Q$93,$C9), PERCENTILE('Data Sort'!Q$64:Q$94,$C9))","v":{"$error":"#NUM!"}},{"$f":"IF('Data Sort'!$B$2=\"no\", PERCENTILE('Data Sort'!R$63:R$93,$C9), PERCENTILE('Data Sort'!R$64:R$94,$C9))","v":{"$error":"#NUM!"}},{"$f":"IF('Data Sort'!$B$2=\"no\", PERCENTILE('Data Sort'!S$63:S$93,$C9), PERCENTILE('Data Sort'!S$64:S$94,$C9))","v":{"$error":"#NUM!"}},{"$f":"IF('Data Sort'!$B$2=\"no\", PERCENTILE('Data Sort'!T$63:T$93,$C9), PERCENTILE('Data Sort'!T$64:T$94,$C9))","v":{"$error":"#NUM!"}},{"$f":"IF('Data Sort'!$B$2=\"no\", PERCENTILE('Data Sort'!U$63:U$93,$C9), PERCENTILE('Data Sort'!U$64:U$94,$C9))","v":{"$error":"#NUM!"}},{"$f":"IF('Data Sort'!$B$2=\"no\", PERCENTILE('Data Sort'!V$63:V$93,$C9), PERCENTILE('Data Sort'!V$64:V$94,$C9))","v":{"$error":"#NUM!"}},{"$f":"IF('Data Sort'!$B$2=\"no\", PERCENTILE('Data Sort'!W$63:W$93,$C9), PERCENTILE('Data Sort'!W$64:W$94,$C9))","v":{"$error":"#NUM!"}},{"$f":"IF('Data Sort'!$B$2=\"no\", PERCENTILE('Data Sort'!X$63:X$93,$C9), PERCENTILE('Data Sort'!X$64:X$94,$C9))","v":{"$error":"#NUM!"}},{"$f":"IF('Data Sort'!$B$2=\"no\", PERCENTILE('Data Sort'!Y$63:Y$93,$C9), PERCENTILE('Data Sort'!Y$64:Y$94,$C9))","v":{"$error":"#NUM!"}},{"$f":"IF('Data Sort'!$B$2=\"no\", PERCENTILE('Data Sort'!Z$63:Z$93,$C9), PERCENTILE('Data Sort'!Z$64:Z$94,$C9))","v":{"$error":"#NUM!"}},{"$f":"IF('Data Sort'!$B$2=\"no\", PERCENTILE('Data Sort'!AA$63:AA$93,$C9), PERCENTILE('Data Sort'!AA$64:AA$94,$C9))","v":{"$error":"#NUM!"}},{"$f":"IF('Data Sort'!$B$2=\"no\", PERCENTILE('Data Sort'!AB$63:AB$93,$C9), PERCENTILE('Data Sort'!AB$64:AB$94,$C9))","v":{"$error":"#NUM!"}},{"$f":"IF('Data Sort'!$B$2=\"no\", PERCENTILE('Data Sort'!AC$63:AC$93,$C9), PERCENTILE('Data Sort'!AC$64:AC$94,$C9))","v":{"$error":"#NUM!"}},{"$f":"IF('Data Sort'!$B$2=\"no\", PERCENTILE('Data Sort'!AD$63:AD$93,$C9), PERCENTILE('Data Sort'!AD$64:AD$94,$C9))","v":{"$error":"#NUM!"}},{"$f":"IF('Data Sort'!$B$2=\"no\", PERCENTILE('Data Sort'!AE$63:AE$93,$C9), PERCENTILE('Data Sort'!AE$64:AE$94,$C9))","v":{"$error":"#NUM!"}},{"$f":"IF('Data Sort'!$B$2=\"no\", PERCENTILE('Data Sort'!AF$63:AF$93,$C9), PERCENTILE('Data Sort'!AF$64:AF$94,$C9))","v":{"$error":"#NUM!"}},{"$f":"IF('Data Sort'!$B$2=\"no\", PERCENTILE('Data Sort'!AG$63:AG$93,$C9), PERCENTILE('Data Sort'!AG$64:AG$94,$C9))","v":{"$error":"#NUM!"}},{"$f":"IF('Data Sort'!$B$2=\"no\", PERCENTILE('Data Sort'!AH$63:AH$93,$C9), PERCENTILE('Data Sort'!AH$64:AH$94,$C9))","v":{"$error":"#NUM!"}},{"$f":"IF('Data Sort'!$B$2=\"no\", PERCENTILE('Data Sort'!AI$63:AI$93,$C9), PERCENTILE('Data Sort'!AI$64:AI$94,$C9))","v":{"$error":"#NUM!"}},{"$f":"IF('Data Sort'!$B$2=\"no\", PERCENTILE('Data Sort'!AJ$63:AJ$93,$C9), PERCENTILE('Data Sort'!AJ$64:AJ$94,$C9))","v":{"$error":"#NUM!"}},{"$f":"IF('Data Sort'!$B$2=\"no\", PERCENTILE('Data Sort'!AK$63:AK$93,$C9), PERCENTILE('Data Sort'!AK$64:AK$94,$C9))","v":{"$error":"#NUM!"}},{"$f":"IF('Data Sort'!$B$2=\"no\", PERCENTILE('Data Sort'!AL$63:AL$93,$C9), PERCENTILE('Data Sort'!AL$64:AL$94,$C9))","v":{"$error":"#NUM!"}},{"$f":"IF('Data Sort'!$B$2=\"no\", PERCENTILE('Data Sort'!AM$63:AM$93,$C9), PERCENTILE('Data Sort'!AM$64:AM$94,$C9))","v":{"$error":"#NUM!"}},{"$f":"IF('Data Sort'!$B$2=\"no\", PERCENTILE('Data Sort'!AN$63:AN$93,$C9), PERCENTILE('Data Sort'!AN$64:AN$94,$C9))","v":{"$error":"#NUM!"}},{"$f":"IF('Data Sort'!$B$2=\"no\", PERCENTILE('Data Sort'!AO$63:AO$93,$C9), PERCENTILE('Data Sort'!AO$64:AO$94,$C9))","v":{"$error":"#NUM!"}},{"$f":"IF('Data Sort'!$B$2=\"no\", PERCENTILE('Data Sort'!AP$63:AP$93,$C9), PERCENTILE('Data Sort'!AP$64:AP$94,$C9))","v":{"$error":"#NUM!"}},{"$f":"IF('Data Sort'!$B$2=\"no\", PERCENTILE('Data Sort'!AQ$63:AQ$93,$C9), PERCENTILE('Data Sort'!AQ$64:AQ$94,$C9))","v":{"$error":"#NUM!"}},{"$f":"IF('Data Sort'!$B$2=\"no\", PERCENTILE('Data Sort'!AR$63:AR$93,$C9), PERCENTILE('Data Sort'!AR$64:AR$94,$C9))","v":{"$error":"#NUM!"}},{"$f":"IF('Data Sort'!$B$2=\"no\", PERCENTILE('Data Sort'!AS$63:AS$93,$C9), PERCENTILE('Data Sort'!AS$64:AS$94,$C9))","v":{"$error":"#NUM!"}},{"$f":"IF('Data Sort'!$B$2=\"no\", PERCENTILE('Data Sort'!AT$63:AT$93,$C9), PERCENTILE('Data Sort'!AT$64:AT$94,$C9))","v":{"$error":"#NUM!"}},{"$f":"IF('Data Sort'!$B$2=\"no\", PERCENTILE('Data Sort'!AU$63:AU$93,$C9), PERCENTILE('Data Sort'!AU$64:AU$94,$C9))","v":{"$error":"#NUM!"}},{"$f":"IF('Data Sort'!$B$2=\"no\", PERCENTILE('Data Sort'!AV$63:AV$93,$C9), PERCENTILE('Data Sort'!AV$64:AV$94,$C9))","v":{"$error":"#NUM!"}},{"$f":"IF('Data Sort'!$B$2=\"no\", PERCENTILE('Data Sort'!AW$63:AW$93,$C9), PERCENTILE('Data Sort'!AW$64:AW$94,$C9))","v":{"$error":"#NUM!"}},{"$f":"IF('Data Sort'!$B$2=\"no\", PERCENTILE('Data Sort'!AX$63:AX$93,$C9), PERCENTILE('Data Sort'!AX$64:AX$94,$C9))","v":{"$error":"#NUM!"}},{"$f":"IF('Data Sort'!$B$2=\"no\", PERCENTILE('Data Sort'!AY$63:AY$93,$C9), PERCENTILE('Data Sort'!AY$64:AY$94,$C9))","v":{"$error":"#NUM!"}},{"$f":"IF('Data Sort'!$B$2=\"no\", PERCENTILE('Data Sort'!AZ$63:AZ$93,$C9), PERCENTILE('Data Sort'!AZ$64:AZ$94,$C9))","v":{"$error":"#NUM!"}},{"$f":"IF('Data Sort'!$B$2=\"no\", PERCENTILE('Data Sort'!BA$63:BA$93,$C9), PERCENTILE('Data Sort'!BA$64:BA$94,$C9))","v":{"$error":"#NUM!"}},{"$f":"IF('Data Sort'!$B$2=\"no\", PERCENTILE('Data Sort'!BB$63:BB$93,$C9), PERCENTILE('Data Sort'!BB$64:BB$94,$C9))","v":{"$error":"#NUM!"}},{"$f":"IF('Data Sort'!$B$2=\"no\", PERCENTILE('Data Sort'!BC$63:BC$93,$C9), PERCENTILE('Data Sort'!BC$64:BC$94,$C9))","v":{"$error":"#NUM!"}},{"$f":"IF('Data Sort'!$B$2=\"no\", PERCENTILE('Data Sort'!BD$63:BD$93,$C9), PERCENTILE('Data Sort'!BD$64:BD$94,$C9))","v":{"$error":"#NUM!"}},{"$f":"IF('Data Sort'!$B$2=\"no\", PERCENTILE('Data Sort'!BE$63:BE$93,$C9), PERCENTILE('Data Sort'!BE$64:BE$94,$C9))","v":{"$error":"#NUM!"}},{"$f":"IF('Data Sort'!$B$2=\"no\", PERCENTILE('Data Sort'!BF$63:BF$93,$C9), PERCENTILE('Data Sort'!BF$64:BF$94,$C9))","v":{"$error":"#NUM!"}},{"$f":"IF('Data Sort'!$B$2=\"no\", PERCENTILE('Data Sort'!BG$63:BG$93,$C9), PERCENTILE('Data Sort'!BG$64:BG$94,$C9))","v":{"$error":"#NUM!"}},{"$f":"IF('Data Sort'!$B$2=\"no\", PERCENTILE('Data Sort'!BH$63:BH$93,$C9), PERCENTILE('Data Sort'!BH$64:BH$94,$C9))","v":{"$error":"#NUM!"}},{"$f":"IF('Data Sort'!$B$2=\"no\", PERCENTILE('Data Sort'!BI$63:BI$93,$C9), PERCENTILE('Data Sort'!BI$64:BI$94,$C9))","v":{"$error":"#NUM!"}},{"$f":"IF('Data Sort'!$B$2=\"no\", PERCENTILE('Data Sort'!BJ$63:BJ$93,$C9), PERCENTILE('Data Sort'!BJ$64:BJ$94,$C9))","v":{"$error":"#NUM!"}},{"$f":"IF('Data Sort'!$B$2=\"no\", PERCENTILE('Data Sort'!BK$63:BK$93,$C9), PERCENTILE('Data Sort'!BK$64:BK$94,$C9))","v":{"$error":"#NUM!"}},{"$f":"IF('Data Sort'!$B$2=\"no\", PERCENTILE('Data Sort'!BL$63:BL$93,$C9), PERCENTILE('Data Sort'!BL$64:BL$94,$C9))","v":{"$error":"#NUM!"}},{"$f":"IF('Data Sort'!$B$2=\"no\", PERCENTILE('Data Sort'!BM$63:BM$93,$C9), PERCENTILE('Data Sort'!BM$64:BM$94,$C9))","v":{"$error":"#NUM!"}},{"$f":"IF('Data Sort'!$B$2=\"no\", PERCENTILE('Data Sort'!BN$63:BN$93,$C9), PERCENTILE('Data Sort'!BN$64:BN$94,$C9))","v":{"$error":"#NUM!"}},{"$f":"IF('Data Sort'!$B$2=\"no\", PERCENTILE('Data Sort'!BO$63:BO$93,$C9), PERCENTILE('Data Sort'!BO$64:BO$94,$C9))","v":{"$error":"#NUM!"}},{"$f":"IF('Data Sort'!$B$2=\"no\", PERCENTILE('Data Sort'!BP$63:BP$93,$C9), PERCENTILE('Data Sort'!BP$64:BP$94,$C9))","v":{"$error":"#NUM!"}},{"$f":"IF('Data Sort'!$B$2=\"no\", PERCENTILE('Data Sort'!BQ$63:BQ$93,$C9), PERCENTILE('Data Sort'!BQ$64:BQ$94,$C9))","v":{"$error":"#NUM!"}},{"$f":"IF('Data Sort'!$B$2=\"no\", PERCENTILE('Data Sort'!BR$63:BR$93,$C9), PERCENTILE('Data Sort'!BR$64:BR$94,$C9))","v":{"$error":"#NUM!"}},{"$f":"IF('Data Sort'!$B$2=\"no\", PERCENTILE('Data Sort'!BS$63:BS$93,$C9), PERCENTILE('Data Sort'!BS$64:BS$94,$C9))","v":{"$error":"#NUM!"}},{"$f":"IF('Data Sort'!$B$2=\"no\", PERCENTILE('Data Sort'!BT$63:BT$93,$C9), PERCENTILE('Data Sort'!BT$64:BT$94,$C9))","v":{"$error":"#NUM!"}},{"$f":"IF('Data Sort'!$B$2=\"no\", PERCENTILE('Data Sort'!BU$63:BU$93,$C9), PERCENTILE('Data Sort'!BU$64:BU$94,$C9))","v":{"$error":"#NUM!"}}]
[4,{"$f":"'Data Sort'!$D$98","v":"00:00:00"},0.95,{"$f":"IF('Data Sort'!$B$2=\"no\", PERCENTILE('Data Sort'!E$94:E$123,$C10), PERCENTILE('Data Sort'!E$95:E$124,$C10))","v":{"$error":"#NUM!"}},{"$f":"IF('Data Sort'!$B$2=\"no\", PERCENTILE('Data Sort'!F$94:F$123,$C10), PERCENTILE('Data Sort'!F$95:F$124,$C10))","v":{"$error":"#NUM!"}},{"$f":"IF('Data Sort'!$B$2=\"no\", PERCENTILE('Data Sort'!G$94:G$123,$C10), PERCENTILE('Data Sort'!G$95:G$124,$C10))","v":{"$error":"#NUM!"}},{"$f":"IF('Data Sort'!$B$2=\"no\", PERCENTILE('Data Sort'!H$94:H$123,$C10), PERCENTILE('Data Sort'!H$95:H$124,$C10))","v":{"$error":"#NUM!"}},{"$f":"IF('Data Sort'!$B$2=\"no\", PERCENTILE('Data Sort'!I$94:I$123,$C10), PERCENTILE('Data Sort'!I$95:I$124,$C10))","v":{"$error":"#NUM!"}},{"$f":"IF('Data Sort'!$B$2=\"no\", PERCENTILE('Data Sort'!J$94:J$123,$C10), PERCENTILE('Data Sort'!J$95:J$124,$C10))","v":{"$error":"#NUM!"}},{"$f":"IF('Data Sort'!$B$2=\"no\", PERCENTILE('Data Sort'!K$94:K$123,$C10), PERCENTILE('Data Sort'!K$95:K$124,$C10))","v":{"$error":"#NUM!"}},{"$f":"IF('Data Sort'!$B$2=\"no\", PERCENTILE('Data Sort'!L$94:L$123,$C10), PERCENTILE('Data Sort'!L$95:L$124,$C10))","v":{"$error":"#NUM!"}},{"$f":"IF('Data Sort'!$B$2=\"no\", PERCENTILE('Data Sort'!M$94:M$123,$C10), PERCENTILE('Data Sort'!M$95:M$124,$C10))","v":{"$error":"#NUM!"}},{"$f":"IF('Data Sort'!$B$2=\"no\", PERCENTILE('Data Sort'!N$94:N$123,$C10), PERCENTILE('Data Sort'!N$95:N$124,$C10))","v":{"$error":"#NUM!"}},{"$f":"IF('Data Sort'!$B$2=\"no\", PERCENTILE('Data Sort'!O$94:O$123,$C10), PERCENTILE('Data Sort'!O$95:O$124,$C10))","v":{"$error":"#NUM!"}},{"$f":"IF('Data Sort'!$B$2=\"no\", PERCENTILE('Data Sort'!P$94:P$123,$C10), PERCENTILE('Data Sort'!P$95:P$124,$C10))","v":{"$error":"#NUM!"}},{"$f":"IF('Data Sort'!$B$2=\"no\", PERCENTILE('Data Sort'!Q$94:Q$123,$C10), PERCENTILE('Data Sort'!Q$95:Q$124,$C10))","v":{"$error":"#NUM!"}},{"$f":"IF('Data Sort'!$B$2=\"no\", PERCENTILE('Data Sort'!R$94:R$123,$C10), PERCENTILE('Data Sort'!R$95:R$124,$C10))","v":{"$error":"#NUM!"}},{"$f":"IF('Data Sort'!$B$2=\"no\", PERCENTILE('Data Sort'!S$94:S$123,$C10), PERCENTILE('Data Sort'!S$95:S$124,$C10))","v":{"$error":"#NUM!"}},{"$f":"IF('Data Sort'!$B$2=\"no\", PERCENTILE('Data Sort'!T$94:T$123,$C10), PERCENTILE('Data Sort'!T$95:T$124,$C10))","v":{"$error":"#NUM!"}},{"$f":"IF('Data Sort'!$B$2=\"no\", PERCENTILE('Data Sort'!U$94:U$123,$C10), PERCENTILE('Data Sort'!U$95:U$124,$C10))","v":{"$error":"#NUM!"}},{"$f":"IF('Data Sort'!$B$2=\"no\", PERCENTILE('Data Sort'!V$94:V$123,$C10), PERCENTILE('Data Sort'!V$95:V$124,$C10))","v":{"$error":"#NUM!"}},{"$f":"IF('Data Sort'!$B$2=\"no\", PERCENTILE('Data Sort'!W$94:W$123,$C10), PERCENTILE('Data Sort'!W$95:W$124,$C10))","v":{"$error":"#NUM!"}},{"$f":"IF('Data Sort'!$B$2=\"no\", PERCENTILE('Data Sort'!X$94:X$123,$C10), PERCENTILE('Data Sort'!X$95:X$124,$C10))","v":{"$error":"#NUM!"}},{"$f":"IF('Data Sort'!$B$2=\"no\", PERCENTILE('Data Sort'!Y$94:Y$123,$C10), PERCENTILE('Data Sort'!Y$95:Y$124,$C10))","v":{"$error":"#NUM!"}},{"$f":"IF('Data Sort'!$B$2=\"no\", PERCENTILE('Data Sort'!Z$94:Z$123,$C10), PERCENTILE('Data Sort'!Z$95:Z$124,$C10))","v":{"$error":"#NUM!"}},{"$f":"IF('Data Sort'!$B$2=\"no\", PERCENTILE('Data Sort'!AA$94:AA$123,$C10), PERCENTILE('Data Sort'!AA$95:AA$124,$C10))","v":{"$error":"#NUM!"}},{"$f":"IF('Data Sort'!$B$2=\"no\", PERCENTILE('Data Sort'!AB$94:AB$123,$C10), PERCENTILE('Data Sort'!AB$95:AB$124,$C10))","v":{"$error":"#NUM!"}},{"$f":"IF('Data Sort'!$B$2=\"no\", PERCENTILE('Data Sort'!AC$94:AC$123,$C10), PERCENTILE('Data Sort'!AC$95:AC$124,$C10))","v":{"$error":"#NUM!"}},{"$f":"IF('Data Sort'!$B$2=\"no\", PERCENTILE('Data Sort'!AD$94:AD$123,$C10), PERCENTILE('Data Sort'!AD$95:AD$124,$C10))","v":{"$error":"#NUM!"}},{"$f":"IF('Data Sort'!$B$2=\"no\", PERCENTILE('Data Sort'!AE$94:AE$123,$C10), PERCENTILE('Data Sort'!AE$95:AE$124,$C10))","v":{"$error":"#NUM!"}},{"$f":"IF('Data Sort'!$B$2=\"no\", PERCENTILE('Data Sort'!AF$94:AF$123,$C10), PERCENTILE('Data Sort'!AF$95:AF$124,$C10))","v":{"$error":"#NUM!"}},{"$f":"IF('Data Sort'!$B$2=\"no\", PERCENTILE('Data Sort'!AG$94:AG$123,$C10), PERCENTILE('Data Sort'!AG$95:AG$124,$C10))","v":{"$error":"#NUM!"}},{"$f":"IF('Data Sort'!$B$2=\"no\", PERCENTILE('Data Sort'!AH$94:AH$123,$C10), PERCENTILE('Data Sort'!AH$95:AH$124,$C10))","v":{"$error":"#NUM!"}},{"$f":"IF('Data Sort'!$B$2=\"no\", PERCENTILE('Data Sort'!AI$94:AI$123,$C10), PERCENTILE('Data Sort'!AI$95:AI$124,$C10))","v":{"$error":"#NUM!"}},{"$f":"IF('Data Sort'!$B$2=\"no\", PERCENTILE('Data Sort'!AJ$94:AJ$123,$C10), PERCENTILE('Data Sort'!AJ$95:AJ$124,$C10))","v":{"$error":"#NUM!"}},{"$f":"IF('Data Sort'!$B$2=\"no\", PERCENTILE('Data Sort'!AK$94:AK$123,$C10), PERCENTILE('Data Sort'!AK$95:AK$124,$C10))","v":{"$error":"#NUM!"}},{"$f":"IF('Data Sort'!$B$2=\"no\", PERCENTILE('Data Sort'!AL$94:AL$123,$C10), PERCENTILE('Data Sort'!AL$95:AL$124,$C10))","v":{"$error":"#NUM!"}},{"$f":"IF('Data Sort'!$B$2=\"no\", PERCENTILE('Data Sort'!AM$94:AM$123,$C10), PERCENTILE('Data Sort'!AM$95:AM$124,$C10))","v":{"$error":"#NUM!"}},{"$f":"IF('Data Sort'!$B$2=\"no\", PERCENTILE('Data Sort'!AN$94:AN$123,$C10), PERCENTILE('Data Sort'!AN$95:AN$124,$C10))","v":{"$error":"#NUM!"}},{"$f":"IF('Data Sort'!$B$2=\"no\", PERCENTILE('Data Sort'!AO$94:AO$123,$C10), PERCENTILE('Data Sort'!AO$95:AO$124,$C10))","v":{"$error":"#NUM!"}},{"$f":"IF('Data Sort'!$B$2=\"no\", PERCENTILE('Data Sort'!AP$94:AP$123,$C10), PERCENTILE('Data Sort'!AP$95:AP$124,$C10))","v":{"$error":"#NUM!"}},{"$f":"IF('Data Sort'!$B$2=\"no\", PERCENTILE('Data Sort'!AQ$94:AQ$123,$C10), PERCENTILE('Data Sort'!AQ$95:AQ$124,$C10))","v":{"$error":"#NUM!"}},{"$f":"IF('Data Sort'!$B$2=\"no\", PERCENTILE('Data Sort'!AR$94:AR$123,$C10), PERCENTILE('Data Sort'!AR$95:AR$124,$C10))","v":{"$error":"#NUM!"}},{"$f":"IF('Data Sort'!$B$2=\"no\", PERCENTILE('Data Sort'!AS$94:AS$123,$C10), PERCENTILE('Data Sort'!AS$95:AS$124,$C10))","v":{"$error":"#NUM!"}},{"$f":"IF('Data Sort'!$B$2=\"no\", PERCENTILE('Data Sort'!AT$94:AT$123,$C10), PERCENTILE('Data Sort'!AT$95:AT$124,$C10))","v":{"$error":"#NUM!"}},{"$f":"IF('Data Sort'!$B$2=\"no\", PERCENTILE('Data Sort'!AU$94:AU$123,$C10), PERCENTILE('Data Sort'!AU$95:AU$124,$C10))","v":{"$error":"#NUM!"}},{"$f":"IF('Data Sort'!$B$2=\"no\", PERCENTILE('Data Sort'!AV$94:AV$123,$C10), PERCENTILE('Data Sort'!AV$95:AV$124,$C10))","v":{"$error":"#NUM!"}},{"$f":"IF('Data Sort'!$B$2=\"no\", PERCENTILE('Data Sort'!AW$94:AW$123,$C10), PERCENTILE('Data Sort'!AW$95:AW$124,$C10))","v":{"$error":"#NUM!"}},{"$f":"IF('Data Sort'!$B$2=\"no\", PERCENTILE('Data Sort'!AX$94:AX$123,$C10), PERCENTILE('Data Sort'!AX$95:AX$124,$C10))","v":{"$error":"#NUM!"}},{"$f":"IF('Data Sort'!$B$2=\"no\", PERCENTILE('Data Sort'!AY$94:AY$123,$C10), PERCENTILE('Data Sort'!AY$95:AY$124,$C10))","v":{"$error":"#NUM!"}},{"$f":"IF('Data Sort'!$B$2=\"no\", PERCENTILE('Data Sort'!AZ$94:AZ$123,$C10), PERCENTILE('Data Sort'!AZ$95:AZ$124,$C10))","v":{"$error":"#NUM!"}},{"$f":"IF('Data Sort'!$B$2=\"no\", PERCENTILE('Data Sort'!BA$94:BA$123,$C10), PERCENTILE('Data Sort'!BA$95:BA$124,$C10))","v":{"$error":"#NUM!"}},{"$f":"IF('Data Sort'!$B$2=\"no\", PERCENTILE('Data Sort'!BB$94:BB$123,$C10), PERCENTILE('Data Sort'!BB$95:BB$124,$C10))","v":{"$error":"#NUM!"}},{"$f":"IF('Data Sort'!$B$2=\"no\", PERCENTILE('Data Sort'!BC$94:BC$123,$C10), PERCENTILE('Data Sort'!BC$95:BC$124,$C10))","v":{"$error":"#NUM!"}},{"$f":"IF('Data Sort'!$B$2=\"no\", PERCENTILE('Data Sort'!BD$94:BD$123,$C10), PERCENTILE('Data Sort'!BD$95:BD$124,$C10))","v":{"$error":"#NUM!"}},{"$f":"IF('Data Sort'!$B$2=\"no\", PERCENTILE('Data Sort'!BE$94:BE$123,$C10), PERCENTILE('Data Sort'!BE$95:BE$124,$C10))","v":{"$error":"#NUM!"}},{"$f":"IF('Data Sort'!$B$2=\"no\", PERCENTILE('Data Sort'!BF$94:BF$123,$C10), PERCENTILE('Data Sort'!BF$95:BF$124,$C10))","v":{"$error":"#NUM!"}},{"$f":"IF('Data Sort'!$B$2=\"no\", PERCENTILE('Data Sort'!BG$94:BG$123,$C10), PERCENTILE('Data Sort'!BG$95:BG$124,$C10))","v":{"$error":"#NUM!"}},{"$f":"IF('Data Sort'!$B$2=\"no\", PERCENTILE('Data Sort'!BH$94:BH$123,$C10), PERCENTILE('Data Sort'!BH$95:BH$124,$C10))","v":{"$error":"#NUM!"}},{"$f":"IF('Data Sort'!$B$2=\"no\", PERCENTILE('Data Sort'!BI$94:BI$123,$C10), PERCENTILE('Data Sort'!BI$95:BI$124,$C10))","v":{"$error":"#NUM!"}},{"$f":"IF('Data Sort'!$B$2=\"no\", PERCENTILE('Data Sort'!BJ$94:BJ$123,$C10), PERCENTILE('Data Sort'!BJ$95:BJ$124,$C10))","v":{"$error":"#NUM!"}},{"$f":"IF('Data Sort'!$B$2=\"no\", PERCENTILE('Data Sort'!BK$94:BK$123,$C10), PERCENTILE('Data Sort'!BK$95:BK$124,$C10))","v":{"$error":"#NUM!"}},{"$f":"IF('Data Sort'!$B$2=\"no\", PERCENTILE('Data Sort'!BL$94:BL$123,$C10), PERCENTILE('Data Sort'!BL$95:BL$124,$C10))","v":{"$error":"#NUM!"}},{"$f":"IF('Data Sort'!$B$2=\"no\", PERCENTILE('Data Sort'!BM$94:BM$123,$C10), PERCENTILE('Data Sort'!BM$95:BM$124,$C10))","v":{"$error":"#NUM!"}},{"$f":"IF('Data Sort'!$B$2=\"no\", PERCENTILE('Data Sort'!BN$94:BN$123,$C10), PERCENTILE('Data Sort'!BN$95:BN$124,$C10))","v":{"$error":"#NUM!"}},{"$f":"IF('Data Sort'!$B$2=\"no\", PERCENTILE('Data Sort'!BO$94:BO$123,$C10), PERCENTILE('Data Sort'!BO$95:BO$124,$C10))","v":{"$error":"#NUM!"}},{"$f":"IF('Data Sort'!$B$2=\"no\", PERCENTILE('Data Sort'!BP$94:BP$123,$C10), PERCENTILE('Data Sort'!BP$95:BP$124,$C10))","v":{"$error":"#NUM!"}},{"$f":"IF('Data Sort'!$B$2=\"no\", PERCENTILE('Data Sort'!BQ$94:BQ$123,$C10), PERCENTILE('Data Sort'!BQ$95:BQ$124,$C10))","v":{"$error":"#NUM!"}},{"$f":"IF('Data Sort'!$B$2=\"no\", PERCENTILE('Data Sort'!BR$94:BR$123,$C10), PERCENTILE('Data Sort'!BR$95:BR$124,$C10))","v":{"$error":"#NUM!"}},{"$f":"IF('Data Sort'!$B$2=\"no\", PERCENTILE('Data Sort'!BS$94:BS$123,$C10), PERCENTILE('Data Sort'!BS$95:BS$124,$C10))","v":{"$error":"#NUM!"}},{"$f":"IF('Data Sort'!$B$2=\"no\", PERCENTILE('Data Sort'!BT$94:BT$123,$C10), PERCENTILE('Data Sort'!BT$95:BT$124,$C10))","v":{"$error":"#NUM!"}},{"$f":"IF('Data Sort'!$B$2=\"no\", PERCENTILE('Data Sort'!BU$94:BU$123,$C10), PERCENTILE('Data Sort'!BU$95:BU$124,$C10))","v":{"$error":"#NUM!"}}]
[5,{"$f":"'Data Sort'!$D$128","v":"00:00:00"},0.95,{"$f":"IF('Data Sort'!$B$2=\"no\", PERCENTILE('Data Sort'!E$124:E$154,$C11), PERCENTILE('Data Sort'!E$125:E$155,$C11))","v":{"$error":"#NUM!"}},{"$f":"IF('Data Sort'!$B$2=\"no\", PERCENTILE('Data Sort'!F$124:F$154,$C11), PERCENTILE('Data Sort'!F$125:F$155,$C11))","v":{"$error":"#NUM!"}},{"$f":"IF('Data Sort'!$B$2=\"no\", PERCENTILE('Data Sort'!G$124:G$154,$C11), PERCENTILE('Data Sort'!G$125:G$155,$C11))","v":{"$error":"#NUM!"}},{"$f":"IF('Data Sort'!$B$2=\"no\", PERCENTILE('Data Sort'!H$124:H$154,$C11), PERCENTILE('Data Sort'!H$125:H$155,$C11))","v":{"$error":"#NUM!"}},{"$f":"IF('Data Sort'!$B$2=\"no\", PERCENTILE('Data Sort'!I$124:I$154,$C11), PERCENTILE('Data Sort'!I$125:I$155,$C11))","v":{"$error":"#NUM!"}},{"$f":"IF('Data Sort'!$B$2=\"no\", PERCENTILE('Data Sort'!J$124:J$154,$C11), PERCENTILE('Data Sort'!J$125:J$155,$C11))","v":{"$error":"#NUM!"}},{"$f":"IF('Data Sort'!$B$2=\"no\", PERCENTILE('Data Sort'!K$124:K$154,$C11), PERCENTILE('Data Sort'!K$125:K$155,$C11))","v":{"$error":"#NUM!"}},{"$f":"IF('Data Sort'!$B$2=\"no\", PERCENTILE('Data Sort'!L$124:L$154,$C11), PERCENTILE('Data Sort'!L$125:L$155,$C11))","v":{"$error":"#NUM!"}},{"$f":"IF('Data Sort'!$B$2=\"no\", PERCENTILE('Data Sort'!M$124:M$154,$C11), PERCENTILE('Data Sort'!M$125:M$155,$C11))","v":{"$error":"#NUM!"}},{"$f":"IF('Data Sort'!$B$2=\"no\", PERCENTILE('Data Sort'!N$124:N$154,$C11), PERCENTILE('Data Sort'!N$125:N$155,$C11))","v":{"$error":"#NUM!"}},{"$f":"IF('Data Sort'!$B$2=\"no\", PERCENTILE('Data Sort'!O$124:O$154,$C11), PERCENTILE('Data Sort'!O$125:O$155,$C11))","v":{"$error":"#NUM!"}},{"$f":"IF('Data Sort'!$B$2=\"no\", PERCENTILE('Data Sort'!P$124:P$154,$C11), PERCENTILE('Data Sort'!P$125:P$155,$C11))","v":{"$error":"#NUM!"}},{"$f":"IF('Data Sort'!$B$2=\"no\", PERCENTILE('Data Sort'!Q$124:Q$154,$C11), PERCENTILE('Data Sort'!Q$125:Q$155,$C11))","v":{"$error":"#NUM!"}},{"$f":"IF('Data Sort'!$B$2=\"no\", PERCENTILE('Data Sort'!R$124:R$154,$C11), PERCENTILE('Data Sort'!R$125:R$155,$C11))","v":{"$error":"#NUM!"}},{"$f":"IF('Data Sort'!$B$2=\"no\", PERCENTILE('Data Sort'!S$124:S$154,$C11), PERCENTILE('Data Sort'!S$125:S$155,$C11))","v":{"$error":"#NUM!"}},{"$f":"IF('Data Sort'!$B$2=\"no\", PERCENTILE('Data Sort'!T$124:T$154,$C11), PERCENTILE('Data Sort'!T$125:T$155,$C11))","v":{"$error":"#NUM!"}},{"$f":"IF('Data Sort'!$B$2=\"no\", PERCENTILE('Data Sort'!U$124:U$154,$C11), PERCENTILE('Data Sort'!U$125:U$155,$C11))","v":{"$error":"#NUM!"}},{"$f":"IF('Data Sort'!$B$2=\"no\", PERCENTILE('Data Sort'!V$124:V$154,$C11), PERCENTILE('Data Sort'!V$125:V$155,$C11))","v":{"$error":"#NUM!"}},{"$f":"IF('Data Sort'!$B$2=\"no\", PERCENTILE('Data Sort'!W$124:W$154,$C11), PERCENTILE('Data Sort'!W$125:W$155,$C11))","v":{"$error":"#NUM!"}},{"$f":"IF('Data Sort'!$B$2=\"no\", PERCENTILE('Data Sort'!X$124:X$154,$C11), PERCENTILE('Data Sort'!X$125:X$155,$C11))","v":{"$error":"#NUM!"}},{"$f":"IF('Data Sort'!$B$2=\"no\", PERCENTILE('Data Sort'!Y$124:Y$154,$C11), PERCENTILE('Data Sort'!Y$125:Y$155,$C11))","v":{"$error":"#NUM!"}},{"$f":"IF('Data Sort'!$B$2=\"no\", PERCENTILE('Data Sort'!Z$124:Z$154,$C11), PERCENTILE('Data Sort'!Z$125:Z$155,$C11))","v":{"$error":"#NUM!"}},{"$f":"IF('Data Sort'!$B$2=\"no\", PERCENTILE('Data Sort'!AA$124:AA$154,$C11), PERCENTILE('Data Sort'!AA$125:AA$155,$C11))","v":{"$error":"#NUM!"}},{"$f":"IF('Data Sort'!$B$2=\"no\", PERCENTILE('Data Sort'!AB$124:AB$154,$C11), PERCENTILE('Data Sort'!AB$125:AB$155,$C11))","v":{"$error":"#NUM!"}},{"$f":"IF('Data Sort'!$B$2=\"no\", PERCENTILE('Data Sort'!AC$124:AC$154,$C11), PERCENTILE('Data Sort'!AC$125:AC$155,$C11))","v":{"$error":"#NUM!"}},{"$f":"IF('Data Sort'!$B$2=\"no\", PERCENTILE('Data Sort'!AD$124:AD$154,$C11), PERCENTILE('Data Sort'!AD$125:AD$155,$C11))","v":{"$error":"#NUM!"}},{"$f":"IF('Data Sort'!$B$2=\"no\", PERCENTILE('Data Sort'!AE$124:AE$154,$C11), PERCENTILE('Data Sort'!AE$125:AE$155,$C11))","v":{"$error":"#NUM!"}},{"$f":"IF('Data Sort'!$B$2=\"no\", PERCENTILE('Data Sort'!AF$124:AF$154,$C11), PERCENTILE('Data Sort'!AF$125:AF$155,$C11))","v":{"$error":"#NUM!"}},{"$f":"IF('Data Sort'!$B$2=\"no\", PERCENTILE('Data Sort'!AG$124:AG$154,$C11), PERCENTILE('Data Sort'!AG$125:AG$155,$C11))","v":{"$error":"#NUM!"}},{"$f":"IF('Data Sort'!$B$2=\"no\", PERCENTILE('Data Sort'!AH$124:AH$154,$C11), PERCENTILE('Data Sort'!AH$125:AH$155,$C11))","v":{"$error":"#NUM!"}},{"$f":"IF('Data Sort'!$B$2=\"no\", PERCENTILE('Data Sort'!AI$124:AI$154,$C11), PERCENTILE('Data Sort'!AI$125:AI$155,$C11))","v":{"$error":"#NUM!"}},{"$f":"IF('Data Sort'!$B$2=\"no\", PERCENTILE('Data Sort'!AJ$124:AJ$154,$C11), PERCENTILE('Data Sort'!AJ$125:AJ$155,$C11))","v":{"$error":"#NUM!"}},{"$f":"IF('Data Sort'!$B$2=\"no\", PERCENTILE('Data Sort'!AK$124:AK$154,$C11), PERCENTILE('Data Sort'!AK$125:AK$155,$C11))","v":{"$error":"#NUM!"}},{"$f":"IF('Data Sort'!$B$2=\"no\", PERCENTILE('Data Sort'!AL$124:AL$154,$C11), PERCENTILE('Data Sort'!AL$125:AL$155,$C11))","v":{"$error":"#NUM!"}},{"$f":"IF('Data Sort'!$B$2=\"no\", PERCENTILE('Data Sort'!AM$124:AM$154,$C11), PERCENTILE('Data Sort'!AM$125:AM$155,$C11))","v":{"$error":"#NUM!"}},{"$f":"IF('Data Sort'!$B$2=\"no\", PERCENTILE('Data Sort'!AN$124:AN$154,$C11), PERCENTILE('Data Sort'!AN$125:AN$155,$C11))","v":{"$error":"#NUM!"}},{"$f":"IF('Data Sort'!$B$2=\"no\", PERCENTILE('Data Sort'!AO$124:AO$154,$C11), PERCENTILE('Data Sort'!AO$125:AO$155,$C11))","v":{"$error":"#NUM!"}},{"$f":"IF('Data Sort'!$B$2=\"no\", PERCENTILE('Data Sort'!AP$124:AP$154,$C11), PERCENTILE('Data Sort'!AP$125:AP$155,$C11))","v":{"$error":"#NUM!"}},{"$f":"IF('Data Sort'!$B$2=\"no\", PERCENTILE('Data Sort'!AQ$124:AQ$154,$C11), PERCENTILE('Data Sort'!AQ$125:AQ$155,$C11))","v":{"$error":"#NUM!"}},{"$f":"IF('Data Sort'!$B$2=\"no\", PERCENTILE('Data Sort'!AR$124:AR$154,$C11), PERCENTILE('Data Sort'!AR$125:AR$155,$C11))","v":{"$error":"#NUM!"}},{"$f":"IF('Data Sort'!$B$2=\"no\", PERCENTILE('Data Sort'!AS$124:AS$154,$C11), PERCENTILE('Data Sort'!AS$125:AS$155,$C11))","v":{"$error":"#NUM!"}},{"$f":"IF('Data Sort'!$B$2=\"no\", PERCENTILE('Data Sort'!AT$124:AT$154,$C11), PERCENTILE('Data Sort'!AT$125:AT$155,$C11))","v":{"$error":"#NUM!"}},{"$f":"IF('Data Sort'!$B$2=\"no\", PERCENTILE('Data Sort'!AU$124:AU$154,$C11), PERCENTILE('Data Sort'!AU$125:AU$155,$C11))","v":{"$error":"#NUM!"}},{"$f":"IF('Data Sort'!$B$2=\"no\", PERCENTILE('Data Sort'!AV$124:AV$154,$C11), PERCENTILE('Data Sort'!AV$125:AV$155,$C11))","v":{"$error":"#NUM!"}},{"$f":"IF('Data Sort'!$B$2=\"no\", PERCENTILE('Data Sort'!AW$124:AW$154,$C11), PERCENTILE('Data Sort'!AW$125:AW$155,$C11))","v":{"$error":"#NUM!"}},{"$f":"IF('Data Sort'!$B$2=\"no\", PERCENTILE('Data Sort'!AX$124:AX$154,$C11), PERCENTILE('Data Sort'!AX$125:AX$155,$C11))","v":{"$error":"#NUM!"}},{"$f":"IF('Data Sort'!$B$2=\"no\", PERCENTILE('Data Sort'!AY$124:AY$154,$C11), PERCENTILE('Data Sort'!AY$125:AY$155,$C11))","v":{"$error":"#NUM!"}},{"$f":"IF('Data Sort'!$B$2=\"no\", PERCENTILE('Data Sort'!AZ$124:AZ$154,$C11), PERCENTILE('Data Sort'!AZ$125:AZ$155,$C11))","v":{"$error":"#NUM!"}},{"$f":"IF('Data Sort'!$B$2=\"no\", PERCENTILE('Data Sort'!BA$124:BA$154,$C11), PERCENTILE('Data Sort'!BA$125:BA$155,$C11))","v":{"$error":"#NUM!"}},{"$f":"IF('Data Sort'!$B$2=\"no\", PERCENTILE('Data Sort'!BB$124:BB$154,$C11), PERCENTILE('Data Sort'!BB$125:BB$155,$C11))","v":{"$error":"#NUM!"}},{"$f":"IF('Data Sort'!$B$2=\"no\", PERCENTILE('Data Sort'!BC$124:BC$154,$C11), PERCENTILE('Data Sort'!BC$125:BC$155,$C11))","v":{"$error":"#NUM!"}},{"$f":"IF('Data Sort'!$B$2=\"no\", PERCENTILE('Data Sort'!BD$124:BD$154,$C11), PERCENTILE('Data Sort'!BD$125:BD$155,$C11))","v":{"$error":"#NUM!"}},{"$f":"IF('Data Sort'!$B$2=\"no\", PERCENTILE('Data Sort'!BE$124:BE$154,$C11), PERCENTILE('Data Sort'!BE$125:BE$155,$C11))","v":{"$error":"#NUM!"}},{"$f":"IF('Data Sort'!$B$2=\"no\", PERCENTILE('Data Sort'!BF$124:BF$154,$C11), PERCENTILE('Data Sort'!BF$125:BF$155,$C11))","v":{"$error":"#NUM!"}},{"$f":"IF('Data Sort'!$B$2=\"no\", PERCENTILE('Data Sort'!BG$124:BG$154,$C11), PERCENTILE('Data Sort'!BG$125:BG$155,$C11))","v":{"$error":"#NUM!"}},{"$f":"IF('Data Sort'!$B$2=\"no\", PERCENTILE('Data Sort'!BH$124:BH$154,$C11), PERCENTILE('Data Sort'!BH$125:BH$155,$C11))","v":{"$error":"#NUM!"}},{"$f":"IF('Data Sort'!$B$2=\"no\", PERCENTILE('Data Sort'!BI$124:BI$154,$C11), PERCENTILE('Data Sort'!BI$125:BI$155,$C11))","v":{"$error":"#NUM!"}},{"$f":"IF('Data Sort'!$B$2=\"no\", PERCENTILE('Data Sort'!BJ$124:BJ$154,$C11), PERCENTILE('Data Sort'!BJ$125:BJ$155,$C11))","v":{"$error":"#NUM!"}},{"$f":"IF('Data Sort'!$B$2=\"no\", PERCENTILE('Data Sort'!BK$124:BK$154,$C11), PERCENTILE('Data Sort'!BK$125:BK$155,$C11))","v":{"$error":"#NUM!"}},{"$f":"IF('Data Sort'!$B$2=\"no\", PERCENTILE('Data Sort'!BL$124:BL$154,$C11), PERCENTILE('Data Sort'!BL$125:BL$155,$C11))","v":{"$error":"#NUM!"}},{"$f":"IF('Data Sort'!$B$2=\"no\", PERCENTILE('Data Sort'!BM$124:BM$154,$C11), PERCENTILE('Data Sort'!BM$125:BM$155,$C11))","v":{"$error":"#NUM!"}},{"$f":"IF('Data Sort'!$B$2=\"no\", PERCENTILE('Data Sort'!BN$124:BN$154,$C11), PERCENTILE('Data Sort'!BN$125:BN$155,$C11))","v":{"$error":"#NUM!"}},{"$f":"IF('Data Sort'!$B$2=\"no\", PERCENTILE('Data Sort'!BO$124:BO$154,$C11), PERCENTILE('Data Sort'!BO$125:BO$155,$C11))","v":{"$error":"#NUM!"}},{"$f":"IF('Data Sort'!$B$2=\"no\", PERCENTILE('Data Sort'!BP$124:BP$154,$C11), PERCENTILE('Data Sort'!BP$125:BP$155,$C11))","v":{"$error":"#NUM!"}},{"$f":"IF('Data Sort'!$B$2=\"no\", PERCENTILE('Data Sort'!BQ$124:BQ$154,$C11), PERCENTILE('Data Sort'!BQ$125:BQ$155,$C11))","v":{"$error":"#NUM!"}},{"$f":"IF('Data Sort'!$B$2=\"no\", PERCENTILE('Data Sort'!BR$124:BR$154,$C11), PERCENTILE('Data Sort'!BR$125:BR$155,$C11))","v":{"$error":"#NUM!"}},{"$f":"IF('Data Sort'!$B$2=\"no\", PERCENTILE('Data Sort'!BS$124:BS$154,$C11), PERCENTILE('Data Sort'!BS$125:BS$155,$C11))","v":{"$error":"#NUM!"}},{"$f":"IF('Data Sort'!$B$2=\"no\", PERCENTILE('Data Sort'!BT$124:BT$154,$C11), PERCENTILE('Data Sort'!BT$125:BT$155,$C11))","v":{"$error":"#NUM!"}},{"$f":"IF('Data Sort'!$B$2=\"no\", PERCENTILE('Data Sort'!BU$124:BU$154,$C11), PERCENTILE('Data Sort'!BU$125:BU$155,$C11))","v":{"$error":"#NUM!"}}]
[6,{"$f":"'Data Sort'!$D$159","v":"00:00:00"},0.95,{"$f":"IF('Data Sort'!$B$2=\"no\", PERCENTILE('Data Sort'!E$155:E$184,$C12), PERCENTILE('Data Sort'!E$156:E$185,$C12))","v":{"$error":"#NUM!"}},{"$f":"IF('Data Sort'!$B$2=\"no\", PERCENTILE('Data Sort'!F$155:F$184,$C12), PERCENTILE('Data Sort'!F$156:F$185,$C12))","v":{"$error":"#NUM!"}},{"$f":"IF('Data Sort'!$B$2=\"no\", PERCENTILE('Data Sort'!G$155:G$184,$C12), PERCENTILE('Data Sort'!G$156:G$185,$C12))","v":{"$error":"#NUM!"}},{"$f":"IF('Data Sort'!$B$2=\"no\", PERCENTILE('Data Sort'!H$155:H$184,$C12), PERCENTILE('Data Sort'!H$156:H$185,$C12))","v":{"$error":"#NUM!"}},{"$f":"IF('Data Sort'!$B$2=\"no\", PERCENTILE('Data Sort'!I$155:I$184,$C12), PERCENTILE('Data Sort'!I$156:I$185,$C12))","v":{"$error":"#NUM!"}},{"$f":"IF('Data Sort'!$B$2=\"no\", PERCENTILE('Data Sort'!J$155:J$184,$C12), PERCENTILE('Data Sort'!J$156:J$185,$C12))","v":{"$error":"#NUM!"}},{"$f":"IF('Data Sort'!$B$2=\"no\", PERCENTILE('Data Sort'!K$155:K$184,$C12), PERCENTILE('Data Sort'!K$156:K$185,$C12))","v":{"$error":"#NUM!"}},{"$f":"IF('Data Sort'!$B$2=\"no\", PERCENTILE('Data Sort'!L$155:L$184,$C12), PERCENTILE('Data Sort'!L$156:L$185,$C12))","v":{"$error":"#NUM!"}},{"$f":"IF('Data Sort'!$B$2=\"no\", PERCENTILE('Data Sort'!M$155:M$184,$C12), PERCENTILE('Data Sort'!M$156:M$185,$C12))","v":{"$error":"#NUM!"}},{"$f":"IF('Data Sort'!$B$2=\"no\", PERCENTILE('Data Sort'!N$155:N$184,$C12), PERCENTILE('Data Sort'!N$156:N$185,$C12))","v":{"$error":"#NUM!"}},{"$f":"IF('Data Sort'!$B$2=\"no\", PERCENTILE('Data Sort'!O$155:O$184,$C12), PERCENTILE('Data Sort'!O$156:O$185,$C12))","v":{"$error":"#NUM!"}},{"$f":"IF('Data Sort'!$B$2=\"no\", PERCENTILE('Data Sort'!P$155:P$184,$C12), PERCENTILE('Data Sort'!P$156:P$185,$C12))","v":{"$error":"#NUM!"}},{"$f":"IF('Data Sort'!$B$2=\"no\", PERCENTILE('Data Sort'!Q$155:Q$184,$C12), PERCENTILE('Data Sort'!Q$156:Q$185,$C12))","v":{"$error":"#NUM!"}},{"$f":"IF('Data Sort'!$B$2=\"no\", PERCENTILE('Data Sort'!R$155:R$184,$C12), PERCENTILE('Data Sort'!R$156:R$185,$C12))","v":{"$error":"#NUM!"}},{"$f":"IF('Data Sort'!$B$2=\"no\", PERCENTILE('Data Sort'!S$155:S$184,$C12), PERCENTILE('Data Sort'!S$156:S$185,$C12))","v":{"$error":"#NUM!"}},{"$f":"IF('Data Sort'!$B$2=\"no\", PERCENTILE('Data Sort'!T$155:T$184,$C12), PERCENTILE('Data Sort'!T$156:T$185,$C12))","v":{"$error":"#NUM!"}},{"$f":"IF('Data Sort'!$B$2=\"no\", PERCENTILE('Data Sort'!U$155:U$184,$C12), PERCENTILE('Data Sort'!U$156:U$185,$C12))","v":{"$error":"#NUM!"}},{"$f":"IF('Data Sort'!$B$2=\"no\", PERCENTILE('Data Sort'!V$155:V$184,$C12), PERCENTILE('Data Sort'!V$156:V$185,$C12))","v":{"$error":"#NUM!"}},{"$f":"IF('Data Sort'!$B$2=\"no\", PERCENTILE('Data Sort'!W$155:W$184,$C12), PERCENTILE('Data Sort'!W$156:W$185,$C12))","v":{"$error":"#NUM!"}},{"$f":"IF('Data Sort'!$B$2=\"no\", PERCENTILE('Data Sort'!X$155:X$184,$C12), PERCENTILE('Data Sort'!X$156:X$185,$C12))","v":{"$error":"#NUM!"}},{"$f":"IF('Data Sort'!$B$2=\"no\", PERCENTILE('Data Sort'!Y$155:Y$184,$C12), PERCENTILE('Data Sort'!Y$156:Y$185,$C12))","v":{"$error":"#NUM!"}},{"$f":"IF('Data Sort'!$B$2=\"no\", PERCENTILE('Data Sort'!Z$155:Z$184,$C12), PERCENTILE('Data Sort'!Z$156:Z$185,$C12))","v":{"$error":"#NUM!"}},{"$f":"IF('Data Sort'!$B$2=\"no\", PERCENTILE('Data Sort'!AA$155:AA$184,$C12), PERCENTILE('Data Sort'!AA$156:AA$185,$C12))","v":{"$error":"#NUM!"}},{"$f":"IF('Data Sort'!$B$2=\"no\", PERCENTILE('Data Sort'!AB$155:AB$184,$C12), PERCENTILE('Data Sort'!AB$156:AB$185,$C12))","v":{"$error":"#NUM!"}},{"$f":"IF('Data Sort'!$B$2=\"no\", PERCENTILE('Data Sort'!AC$155:AC$184,$C12), PERCENTILE('Data Sort'!AC$156:AC$185,$C12))","v":{"$error":"#NUM!"}},{"$f":"IF('Data Sort'!$B$2=\"no\", PERCENTILE('Data Sort'!AD$155:AD$184,$C12), PERCENTILE('Data Sort'!AD$156:AD$185,$C12))","v":{"$error":"#NUM!"}},{"$f":"IF('Data Sort'!$B$2=\"no\", PERCENTILE('Data Sort'!AE$155:AE$184,$C12), PERCENTILE('Data Sort'!AE$156:AE$185,$C12))","v":{"$error":"#NUM!"}},{"$f":"IF('Data Sort'!$B$2=\"no\", PERCENTILE('Data Sort'!AF$155:AF$184,$C12), PERCENTILE('Data Sort'!AF$156:AF$185,$C12))","v":{"$error":"#NUM!"}},{"$f":"IF('Data Sort'!$B$2=\"no\", PERCENTILE('Data Sort'!AG$155:AG$184,$C12), PERCENTILE('Data Sort'!AG$156:AG$185,$C12))","v":{"$error":"#NUM!"}},{"$f":"IF('Data Sort'!$B$2=\"no\", PERCENTILE('Data Sort'!AH$155:AH$184,$C12), PERCENTILE('Data Sort'!AH$156:AH$185,$C12))","v":{"$error":"#NUM!"}},{"$f":"IF('Data Sort'!$B$2=\"no\", PERCENTILE('Data Sort'!AI$155:AI$184,$C12), PERCENTILE('Data Sort'!AI$156:AI$185,$C12))","v":{"$error":"#NUM!"}},{"$f":"IF('Data Sort'!$B$2=\"no\", PERCENTILE('Data Sort'!AJ$155:AJ$184,$C12), PERCENTILE('Data Sort'!AJ$156:AJ$185,$C12))","v":{"$error":"#NUM!"}},{"$f":"IF('Data Sort'!$B$2=\"no\", PERCENTILE('Data Sort'!AK$155:AK$184,$C12), PERCENTILE('Data Sort'!AK$156:AK$185,$C12))","v":{"$error":"#NUM!"}},{"$f":"IF('Data Sort'!$B$2=\"no\", PERCENTILE('Data Sort'!AL$155:AL$184,$C12), PERCENTILE('Data Sort'!AL$156:AL$185,$C12))","v":{"$error":"#NUM!"}},{"$f":"IF('Data Sort'!$B$2=\"no\", PERCENTILE('Data Sort'!AM$155:AM$184,$C12), PERCENTILE('Data Sort'!AM$156:AM$185,$C12))","v":{"$error":"#NUM!"}},{"$f":"IF('Data Sort'!$B$2=\"no\", PERCENTILE('Data Sort'!AN$155:AN$184,$C12), PERCENTILE('Data Sort'!AN$156:AN$185,$C12))","v":{"$error":"#NUM!"}},{"$f":"IF('Data Sort'!$B$2=\"no\", PERCENTILE('Data Sort'!AO$155:AO$184,$C12), PERCENTILE('Data Sort'!AO$156:AO$185,$C12))","v":{"$error":"#NUM!"}},{"$f":"IF('Data Sort'!$B$2=\"no\", PERCENTILE('Data Sort'!AP$155:AP$184,$C12), PERCENTILE('Data Sort'!AP$156:AP$185,$C12))","v":{"$error":"#NUM!"}},{"$f":"IF('Data Sort'!$B$2=\"no\", PERCENTILE('Data Sort'!AQ$155:AQ$184,$C12), PERCENTILE('Data Sort'!AQ$156:AQ$185,$C12))","v":{"$error":"#NUM!"}},{"$f":"IF('Data Sort'!$B$2=\"no\", PERCENTILE('Data Sort'!AR$155:AR$184,$C12), PERCENTILE('Data Sort'!AR$156:AR$185,$C12))","v":{"$error":"#NUM!"}},{"$f":"IF('Data Sort'!$B$2=\"no\", PERCENTILE('Data Sort'!AS$155:AS$184,$C12), PERCENTILE('Data Sort'!AS$156:AS$185,$C12))","v":{"$error":"#NUM!"}},{"$f":"IF('Data Sort'!$B$2=\"no\", PERCENTILE('Data Sort'!AT$155:AT$184,$C12), PERCENTILE('Data Sort'!AT$156:AT$185,$C12))","v":{"$error":"#NUM!"}},{"$f":"IF('Data Sort'!$B$2=\"no\", PERCENTILE('Data Sort'!AU$155:AU$184,$C12), PERCENTILE('Data Sort'!AU$156:AU$185,$C12))","v":{"$error":"#NUM!"}},{"$f":"IF('Data Sort'!$B$2=\"no\", PERCENTILE('Data Sort'!AV$155:AV$184,$C12), PERCENTILE('Data Sort'!AV$156:AV$185,$C12))","v":{"$error":"#NUM!"}},{"$f":"IF('Data Sort'!$B$2=\"no\", PERCENTILE('Data Sort'!AW$155:AW$184,$C12), PERCENTILE('Data Sort'!AW$156:AW$185,$C12))","v":{"$error":"#NUM!"}},{"$f":"IF('Data Sort'!$B$2=\"no\", PERCENTILE('Data Sort'!AX$155:AX$184,$C12), PERCENTILE('Data Sort'!AX$156:AX$185,$C12))","v":{"$error":"#NUM!"}},{"$f":"IF('Data Sort'!$B$2=\"no\", PERCENTILE('Data Sort'!AY$155:AY$184,$C12), PERCENTILE('Data Sort'!AY$156:AY$185,$C12))","v":{"$error":"#NUM!"}},{"$f":"IF('Data Sort'!$B$2=\"no\", PERCENTILE('Data Sort'!AZ$155:AZ$184,$C12), PERCENTILE('Data Sort'!AZ$156:AZ$185,$C12))","v":{"$error":"#NUM!"}},{"$f":"IF('Data Sort'!$B$2=\"no\", PERCENTILE('Data Sort'!BA$155:BA$184,$C12), PERCENTILE('Data Sort'!BA$156:BA$185,$C12))","v":{"$error":"#NUM!"}},{"$f":"IF('Data Sort'!$B$2=\"no\", PERCENTILE('Data Sort'!BB$155:BB$184,$C12), PERCENTILE('Data Sort'!BB$156:BB$185,$C12))","v":{"$error":"#NUM!"}},{"$f":"IF('Data Sort'!$B$2=\"no\", PERCENTILE('Data Sort'!BC$155:BC$184,$C12), PERCENTILE('Data Sort'!BC$156:BC$185,$C12))","v":{"$error":"#NUM!"}},{"$f":"IF('Data Sort'!$B$2=\"no\", PERCENTILE('Data Sort'!BD$155:BD$184,$C12), PERCENTILE('Data Sort'!BD$156:BD$185,$C12))","v":{"$error":"#NUM!"}},{"$f":"IF('Data Sort'!$B$2=\"no\", PERCENTILE('Data Sort'!BE$155:BE$184,$C12), PERCENTILE('Data Sort'!BE$156:BE$185,$C12))","v":{"$error":"#NUM!"}},{"$f":"IF('Data Sort'!$B$2=\"no\", PERCENTILE('Data Sort'!BF$155:BF$184,$C12), PERCENTILE('Data Sort'!BF$156:BF$185,$C12))","v":{"$error":"#NUM!"}},{"$f":"IF('Data Sort'!$B$2=\"no\", PERCENTILE('Data Sort'!BG$155:BG$184,$C12), PERCENTILE('Data Sort'!BG$156:BG$185,$C12))","v":{"$error":"#NUM!"}},{"$f":"IF('Data Sort'!$B$2=\"no\", PERCENTILE('Data Sort'!BH$155:BH$184,$C12), PERCENTILE('Data Sort'!BH$156:BH$185,$C12))","v":{"$error":"#NUM!"}},{"$f":"IF('Data Sort'!$B$2=\"no\", PERCENTILE('Data Sort'!BI$155:BI$184,$C12), PERCENTILE('Data Sort'!BI$156:BI$185,$C12))","v":{"$error":"#NUM!"}},{"$f":"IF('Data Sort'!$B$2=\"no\", PERCENTILE('Data Sort'!BJ$155:BJ$184,$C12), PERCENTILE('Data Sort'!BJ$156:BJ$185,$C12))","v":{"$error":"#NUM!"}},{"$f":"IF('Data Sort'!$B$2=\"no\", PERCENTILE('Data Sort'!BK$155:BK$184,$C12), PERCENTILE('Data Sort'!BK$156:BK$185,$C12))","v":{"$error":"#NUM!"}},{"$f":"IF('Data Sort'!$B$2=\"no\", PERCENTILE('Data Sort'!BL$155:BL$184,$C12), PERCENTILE('Data Sort'!BL$156:BL$185,$C12))","v":{"$error":"#NUM!"}},{"$f":"IF('Data Sort'!$B$2=\"no\", PERCENTILE('Data Sort'!BM$155:BM$184,$C12), PERCENTILE('Data Sort'!BM$156:BM$185,$C12))","v":{"$error":"#NUM!"}},{"$f":"IF('Data Sort'!$B$2=\"no\", PERCENTILE('Data Sort'!BN$155:BN$184,$C12), PERCENTILE('Data Sort'!BN$156:BN$185,$C12))","v":{"$error":"#NUM!"}},{"$f":"IF('Data Sort'!$B$2=\"no\", PERCENTILE('Data Sort'!BO$155:BO$184,$C12), PERCENTILE('Data Sort'!BO$156:BO$185,$C12))","v":{"$error":"#NUM!"}},{"$f":"IF('Data Sort'!$B$2=\"no\", PERCENTILE('Data Sort'!BP$155:BP$184,$C12), PERCENTILE('Data Sort'!BP$156:BP$185,$C12))","v":{"$error":"#NUM!"}},{"$f":"IF('Data Sort'!$B$2=\"no\", PERCENTILE('Data Sort'!BQ$155:BQ$184,$C12), PERCENTILE('Data Sort'!BQ$156:BQ$185,$C12))","v":{"$error":"#NUM!"}},{"$f":"IF('Data Sort'!$B$2=\"no\", PERCENTILE('Data Sort'!BR$155:BR$184,$C12), PERCENTILE('Data Sort'!BR$156:BR$185,$C12))","v":{"$error":"#NUM!"}},{"$f":"IF('Data Sort'!$B$2=\"no\", PERCENTILE('Data Sort'!BS$155:BS$184,$C12), PERCENTILE('Data Sort'!BS$156:BS$185,$C12))","v":{"$error":"#NUM!"}},{"$f":"IF('Data Sort'!$B$2=\"no\", PERCENTILE('Data Sort'!BT$155:BT$184,$C12), PERCENTILE('Data Sort'!BT$156:BT$185,$C12))","v":{"$error":"#NUM!"}},{"$f":"IF('Data Sort'!$B$2=\"no\", PERCENTILE('Data Sort'!BU$155:BU$184,$C12), PERCENTILE('Data Sort'!BU$156:BU$185,$C12))","v":{"$error":"#NUM!"}}]
[7,{"$f":"'Data Sort'!$D$189","v":"00:00:00"},0.95,{"$f":"IF('Data Sort'!$B$2=\"no\", PERCENTILE('Data Sort'!E$185:E$215,$C13), PERCENTILE('Data Sort'!E$186:E$216,$C13))","v":{"$error":"#NUM!"}},{"$f":"IF('Data Sort'!$B$2=\"no\", PERCENTILE('Data Sort'!F$185:F$215,$C13), PERCENTILE('Data Sort'!F$186:F$216,$C13))","v":{"$error":"#NUM!"}},{"$f":"IF('Data Sort'!$B$2=\"no\", PERCENTILE('Data Sort'!G$185:G$215,$C13), PERCENTILE('Data Sort'!G$186:G$216,$C13))","v":{"$error":"#NUM!"}},{"$f":"IF('Data Sort'!$B$2=\"no\", PERCENTILE('Data Sort'!H$185:H$215,$C13), PERCENTILE('Data Sort'!H$186:H$216,$C13))","v":{"$error":"#NUM!"}},{"$f":"IF('Data Sort'!$B$2=\"no\", PERCENTILE('Data Sort'!I$185:I$215,$C13), PERCENTILE('Data Sort'!I$186:I$216,$C13))","v":{"$error":"#NUM!"}},{"$f":"IF('Data Sort'!$B$2=\"no\", PERCENTILE('Data Sort'!J$185:J$215,$C13), PERCENTILE('Data Sort'!J$186:J$216,$C13))","v":{"$error":"#NUM!"}},{"$f":"IF('Data Sort'!$B$2=\"no\", PERCENTILE('Data Sort'!K$185:K$215,$C13), PERCENTILE('Data Sort'!K$186:K$216,$C13))","v":{"$error":"#NUM!"}},{"$f":"IF('Data Sort'!$B$2=\"no\", PERCENTILE('Data Sort'!L$185:L$215,$C13), PERCENTILE('Data Sort'!L$186:L$216,$C13))","v":{"$error":"#NUM!"}},{"$f":"IF('Data Sort'!$B$2=\"no\", PERCENTILE('Data Sort'!M$185:M$215,$C13), PERCENTILE('Data Sort'!M$186:M$216,$C13))","v":{"$error":"#NUM!"}},{"$f":"IF('Data Sort'!$B$2=\"no\", PERCENTILE('Data Sort'!N$185:N$215,$C13), PERCENTILE('Data Sort'!N$186:N$216,$C13))","v":{"$error":"#NUM!"}},{"$f":"IF('Data Sort'!$B$2=\"no\", PERCENTILE('Data Sort'!O$185:O$215,$C13), PERCENTILE('Data Sort'!O$186:O$216,$C13))","v":{"$error":"#NUM!"}},{"$f":"IF('Data Sort'!$B$2=\"no\", PERCENTILE('Data Sort'!P$185:P$215,$C13), PERCENTILE('Data Sort'!P$186:P$216,$C13))","v":{"$error":"#NUM!"}},{"$f":"IF('Data Sort'!$B$2=\"no\", PERCENTILE('Data Sort'!Q$185:Q$215,$C13), PERCENTILE('Data Sort'!Q$186:Q$216,$C13))","v":{"$error":"#NUM!"}},{"$f":"IF('Data Sort'!$B$2=\"no\", PERCENTILE('Data Sort'!R$185:R$215,$C13), PERCENTILE('Data Sort'!R$186:R$216,$C13))","v":{"$error":"#NUM!"}},{"$f":"IF('Data Sort'!$B$2=\"no\", PERCENTILE('Data Sort'!S$185:S$215,$C13), PERCENTILE('Data Sort'!S$186:S$216,$C13))","v":{"$error":"#NUM!"}},{"$f":"IF('Data Sort'!$B$2=\"no\", PERCENTILE('Data Sort'!T$185:T$215,$C13), PERCENTILE('Data Sort'!T$186:T$216,$C13))","v":{"$error":"#NUM!"}},{"$f":"IF('Data Sort'!$B$2=\"no\", PERCENTILE('Data Sort'!U$185:U$215,$C13), PERCENTILE('Data Sort'!U$186:U$216,$C13))","v":{"$error":"#NUM!"}},{"$f":"IF('Data Sort'!$B$2=\"no\", PERCENTILE('Data Sort'!V$185:V$215,$C13), PERCENTILE('Data Sort'!V$186:V$216,$C13))","v":{"$error":"#NUM!"}},{"$f":"IF('Data Sort'!$B$2=\"no\", PERCENTILE('Data Sort'!W$185:W$215,$C13), PERCENTILE('Data Sort'!W$186:W$216,$C13))","v":{"$error":"#NUM!"}},{"$f":"IF('Data Sort'!$B$2=\"no\", PERCENTILE('Data Sort'!X$185:X$215,$C13), PERCENTILE('Data Sort'!X$186:X$216,$C13))","v":{"$error":"#NUM!"}},{"$f":"IF('Data Sort'!$B$2=\"no\", PERCENTILE('Data Sort'!Y$185:Y$215,$C13), PERCENTILE('Data Sort'!Y$186:Y$216,$C13))","v":{"$error":"#NUM!"}},{"$f":"IF('Data Sort'!$B$2=\"no\", PERCENTILE('Data Sort'!Z$185:Z$215,$C13), PERCENTILE('Data Sort'!Z$186:Z$216,$C13))","v":{"$error":"#NUM!"}},{"$f":"IF('Data Sort'!$B$2=\"no\", PERCENTILE('Data Sort'!AA$185:AA$215,$C13), PERCENTILE('Data Sort'!AA$186:AA$216,$C13))","v":{"$error":"#NUM!"}},{"$f":"IF('Data Sort'!$B$2=\"no\", PERCENTILE('Data Sort'!AB$185:AB$215,$C13), PERCENTILE('Data Sort'!AB$186:AB$216,$C13))","v":{"$error":"#NUM!"}},{"$f":"IF('Data Sort'!$B$2=\"no\", PERCENTILE('Data Sort'!AC$185:AC$215,$C13), PERCENTILE('Data Sort'!AC$186:AC$216,$C13))","v":{"$error":"#NUM!"}},{"$f":"IF('Data Sort'!$B$2=\"no\", PERCENTILE('Data Sort'!AD$185:AD$215,$C13), PERCENTILE('Data Sort'!AD$186:AD$216,$C13))","v":{"$error":"#NUM!"}},{"$f":"IF('Data Sort'!$B$2=\"no\", PERCENTILE('Data Sort'!AE$185:AE$215,$C13), PERCENTILE('Data Sort'!AE$186:AE$216,$C13))","v":{"$error":"#NUM!"}},{"$f":"IF('Data Sort'!$B$2=\"no\", PERCENTILE('Data Sort'!AF$185:AF$215,$C13), PERCENTILE('Data Sort'!AF$186:AF$216,$C13))","v":{"$error":"#NUM!"}},{"$f":"IF('Data Sort'!$B$2=\"no\", PERCENTILE('Data Sort'!AG$185:AG$215,$C13), PERCENTILE('Data Sort'!AG$186:AG$216,$C13))","v":{"$error":"#NUM!"}},{"$f":"IF('Data Sort'!$B$2=\"no\", PERCENTILE('Data Sort'!AH$185:AH$215,$C13), PERCENTILE('Data Sort'!AH$186:AH$216,$C13))","v":{"$error":"#NUM!"}},{"$f":"IF('Data Sort'!$B$2=\"no\", PERCENTILE('Data Sort'!AI$185:AI$215,$C13), PERCENTILE('Data Sort'!AI$186:AI$216,$C13))","v":{"$error":"#NUM!"}},{"$f":"IF('Data Sort'!$B$2=\"no\", PERCENTILE('Data Sort'!AJ$185:AJ$215,$C13), PERCENTILE('Data Sort'!AJ$186:AJ$216,$C13))","v":{"$error":"#NUM!"}},{"$f":"IF('Data Sort'!$B$2=\"no\", PERCENTILE('Data Sort'!AK$185:AK$215,$C13), PERCENTILE('Data Sort'!AK$186:AK$216,$C13))","v":{"$error":"#NUM!"}},{"$f":"IF('Data Sort'!$B$2=\"no\", PERCENTILE('Data Sort'!AL$185:AL$215,$C13), PERCENTILE('Data Sort'!AL$186:AL$216,$C13))","v":{"$error":"#NUM!"}},{"$f":"IF('Data Sort'!$B$2=\"no\", PERCENTILE('Data Sort'!AM$185:AM$215,$C13), PERCENTILE('Data Sort'!AM$186:AM$216,$C13))","v":{"$error":"#NUM!"}},{"$f":"IF('Data Sort'!$B$2=\"no\", PERCENTILE('Data Sort'!AN$185:AN$215,$C13), PERCENTILE('Data Sort'!AN$186:AN$216,$C13))","v":{"$error":"#NUM!"}},{"$f":"IF('Data Sort'!$B$2=\"no\", PERCENTILE('Data Sort'!AO$185:AO$215,$C13), PERCENTILE('Data Sort'!AO$186:AO$216,$C13))","v":{"$error":"#NUM!"}},{"$f":"IF('Data Sort'!$B$2=\"no\", PERCENTILE('Data Sort'!AP$185:AP$215,$C13), PERCENTILE('Data Sort'!AP$186:AP$216,$C13))","v":{"$error":"#NUM!"}},{"$f":"IF('Data Sort'!$B$2=\"no\", PERCENTILE('Data Sort'!AQ$185:AQ$215,$C13), PERCENTILE('Data Sort'!AQ$186:AQ$216,$C13))","v":{"$error":"#NUM!"}},{"$f":"IF('Data Sort'!$B$2=\"no\", PERCENTILE('Data Sort'!AR$185:AR$215,$C13), PERCENTILE('Data Sort'!AR$186:AR$216,$C13))","v":{"$error":"#NUM!"}},{"$f":"IF('Data Sort'!$B$2=\"no\", PERCENTILE('Data Sort'!AS$185:AS$215,$C13), PERCENTILE('Data Sort'!AS$186:AS$216,$C13))","v":{"$error":"#NUM!"}},{"$f":"IF('Data Sort'!$B$2=\"no\", PERCENTILE('Data Sort'!AT$185:AT$215,$C13), PERCENTILE('Data Sort'!AT$186:AT$216,$C13))","v":{"$error":"#NUM!"}},{"$f":"IF('Data Sort'!$B$2=\"no\", PERCENTILE('Data Sort'!AU$185:AU$215,$C13), PERCENTILE('Data Sort'!AU$186:AU$216,$C13))","v":{"$error":"#NUM!"}},{"$f":"IF('Data Sort'!$B$2=\"no\", PERCENTILE('Data Sort'!AV$185:AV$215,$C13), PERCENTILE('Data Sort'!AV$186:AV$216,$C13))","v":{"$error":"#NUM!"}},{"$f":"IF('Data Sort'!$B$2=\"no\", PERCENTILE('Data Sort'!AW$185:AW$215,$C13), PERCENTILE('Data Sort'!AW$186:AW$216,$C13))","v":{"$error":"#NUM!"}},{"$f":"IF('Data Sort'!$B$2=\"no\", PERCENTILE('Data Sort'!AX$185:AX$215,$C13), PERCENTILE('Data Sort'!AX$186:AX$216,$C13))","v":{"$error":"#NUM!"}},{"$f":"IF('Data Sort'!$B$2=\"no\", PERCENTILE('Data Sort'!AY$185:AY$215,$C13), PERCENTILE('Data Sort'!AY$186:AY$216,$C13))","v":{"$error":"#NUM!"}},{"$f":"IF('Data Sort'!$B$2=\"no\", PERCENTILE('Data Sort'!AZ$185:AZ$215,$C13), PERCENTILE('Data Sort'!AZ$186:AZ$216,$C13))","v":{"$error":"#NUM!"}},{"$f":"IF('Data Sort'!$B$2=\"no\", PERCENTILE('Data Sort'!BA$185:BA$215,$C13), PERCENTILE('Data Sort'!BA$186:BA$216,$C13))","v":{"$error":"#NUM!"}},{"$f":"IF('Data Sort'!$B$2=\"no\", PERCENTILE('Data Sort'!BB$185:BB$215,$C13), PERCENTILE('Data Sort'!BB$186:BB$216,$C13))","v":{"$error":"#NUM!"}},{"$f":"IF('Data Sort'!$B$2=\"no\", PERCENTILE('Data Sort'!BC$185:BC$215,$C13), PERCENTILE('Data Sort'!BC$186:BC$216,$C13))","v":{"$error":"#NUM!"}},{"$f":"IF('Data Sort'!$B$2=\"no\", PERCENTILE('Data Sort'!BD$185:BD$215,$C13), PERCENTILE('Data Sort'!BD$186:BD$216,$C13))","v":{"$error":"#NUM!"}},{"$f":"IF('Data Sort'!$B$2=\"no\", PERCENTILE('Data Sort'!BE$185:BE$215,$C13), PERCENTILE('Data Sort'!BE$186:BE$216,$C13))","v":{"$error":"#NUM!"}},{"$f":"IF('Data Sort'!$B$2=\"no\", PERCENTILE('Data Sort'!BF$185:BF$215,$C13), PERCENTILE('Data Sort'!BF$186:BF$216,$C13))","v":{"$error":"#NUM!"}},{"$f":"IF('Data Sort'!$B$2=\"no\", PERCENTILE('Data Sort'!BG$185:BG$215,$C13), PERCENTILE('Data Sort'!BG$186:BG$216,$C13))","v":{"$error":"#NUM!"}},{"$f":"IF('Data Sort'!$B$2=\"no\", PERCENTILE('Data Sort'!BH$185:BH$215,$C13), PERCENTILE('Data Sort'!BH$186:BH$216,$C13))","v":{"$error":"#NUM!"}},{"$f":"IF('Data Sort'!$B$2=\"no\", PERCENTILE('Data Sort'!BI$185:BI$215,$C13), PERCENTILE('Data Sort'!BI$186:BI$216,$C13))","v":{"$error":"#NUM!"}},{"$f":"IF('Data Sort'!$B$2=\"no\", PERCENTILE('Data Sort'!BJ$185:BJ$215,$C13), PERCENTILE('Data Sort'!BJ$186:BJ$216,$C13))","v":{"$error":"#NUM!"}},{"$f":"IF('Data Sort'!$B$2=\"no\", PERCENTILE('Data Sort'!BK$185:BK$215,$C13), PERCENTILE('Data Sort'!BK$186:BK$216,$C13))","v":{"$error":"#NUM!"}},{"$f":"IF('Data Sort'!$B$2=\"no\", PERCENTILE('Data Sort'!BL$185:BL$215,$C13), PERCENTILE('Data Sort'!BL$186:BL$216,$C13))","v":{"$error":"#NUM!"}},{"$f":"IF('Data Sort'!$B$2=\"no\", PERCENTILE('Data Sort'!BM$185:BM$215,$C13), PERCENTILE('Data Sort'!BM$186:BM$216,$C13))","v":{"$error":"#NUM!"}},{"$f":"IF('Data Sort'!$B$2=\"no\", PERCENTILE('Data Sort'!BN$185:BN$215,$C13), PERCENTILE('Data Sort'!BN$186:BN$216,$C13))","v":{"$error":"#NUM!"}},{"$f":"IF('Data Sort'!$B$2=\"no\", PERCENTILE('Data Sort'!BO$185:BO$215,$C13), PERCENTILE('Data Sort'!BO$186:BO$216,$C13))","v":{"$error":"#NUM!"}},{"$f":"IF('Data Sort'!$B$2=\"no\", PERCENTILE('Data Sort'!BP$185:BP$215,$C13), PERCENTILE('Data Sort'!BP$186:BP$216,$C13))","v":{"$error":"#NUM!"}},{"$f":"IF('Data Sort'!$B$2=\"no\", PERCENTILE('Data Sort'!BQ$185:BQ$215,$C13), PERCENTILE('Data Sort'!BQ$186:BQ$216,$C13))","v":{"$error":"#NUM!"}},{"$f":"IF('Data Sort'!$B$2=\"no\", PERCENTILE('Data Sort'!BR$185:BR$215,$C13), PERCENTILE('Data Sort'!BR$186:BR$216,$C13))","v":{"$error":"#NUM!"}},{"$f":"IF('Data Sort'!$B$2=\"no\", PERCENTILE('Data Sort'!BS$185:BS$215,$C13), PERCENTILE('Data Sort'!BS$186:BS$216,$C13))","v":{"$error":"#NUM!"}},{"$f":"IF('Data Sort'!$B$2=\"no\", PERCENTILE('Data Sort'!BT$185:BT$215,$C13), PERCENTILE('Data Sort'!BT$186:BT$216,$C13))","v":{"$error":"#NUM!"}},{"$f":"IF('Data Sort'!$B$2=\"no\", PERCENTILE('Data Sort'!BU$185:BU$215,$C13), PERCENTILE('Data Sort'!BU$186:BU$216,$C13))","v":{"$error":"#NUM!"}}]
[8,{"$f":"'Data Sort'!$D$220","v":"00:00:00"},0.95,{"$f":"IF('Data Sort'!$B$2=\"no\", PERCENTILE('Data Sort'!E$216:E$246,$C14), PERCENTILE('Data Sort'!E$217:E$247,$C14))","v":{"$error":"#NUM!"}},{"$f":"IF('Data Sort'!$B$2=\"no\", PERCENTILE('Data Sort'!F$216:F$246,$C14), PERCENTILE('Data Sort'!F$217:F$247,$C14))","v":{"$error":"#NUM!"}},{"$f":"IF('Data Sort'!$B$2=\"no\", PERCENTILE('Data Sort'!G$216:G$246,$C14), PERCENTILE('Data Sort'!G$217:G$247,$C14))","v":{"$error":"#NUM!"}},{"$f":"IF('Data Sort'!$B$2=\"no\", PERCENTILE('Data Sort'!H$216:H$246,$C14), PERCENTILE('Data Sort'!H$217:H$247,$C14))","v":{"$error":"#NUM!"}},{"$f":"IF('Data Sort'!$B$2=\"no\", PERCENTILE('Data Sort'!I$216:I$246,$C14), PERCENTILE('Data Sort'!I$217:I$247,$C14))","v":{"$error":"#NUM!"}},{"$f":"IF('Data Sort'!$B$2=\"no\", PERCENTILE('Data Sort'!J$216:J$246,$C14), PERCENTILE('Data Sort'!J$217:J$247,$C14))","v":{"$error":"#NUM!"}},{"$f":"IF('Data Sort'!$B$2=\"no\", PERCENTILE('Data Sort'!K$216:K$246,$C14), PERCENTILE('Data Sort'!K$217:K$247,$C14))","v":{"$error":"#NUM!"}},{"$f":"IF('Data Sort'!$B$2=\"no\", PERCENTILE('Data Sort'!L$216:L$246,$C14), PERCENTILE('Data Sort'!L$217:L$247,$C14))","v":{"$error":"#NUM!"}},{"$f":"IF('Data Sort'!$B$2=\"no\", PERCENTILE('Data Sort'!M$216:M$246,$C14), PERCENTILE('Data Sort'!M$217:M$247,$C14))","v":{"$error":"#NUM!"}},{"$f":"IF('Data Sort'!$B$2=\"no\", PERCENTILE('Data Sort'!N$216:N$246,$C14), PERCENTILE('Data Sort'!N$217:N$247,$C14))","v":{"$error":"#NUM!"}},{"$f":"IF('Data Sort'!$B$2=\"no\", PERCENTILE('Data Sort'!O$216:O$246,$C14), PERCENTILE('Data Sort'!O$217:O$247,$C14))","v":{"$error":"#NUM!"}},{"$f":"IF('Data Sort'!$B$2=\"no\", PERCENTILE('Data Sort'!P$216:P$246,$C14), PERCENTILE('Data Sort'!P$217:P$247,$C14))","v":{"$error":"#NUM!"}},{"$f":"IF('Data Sort'!$B$2=\"no\", PERCENTILE('Data Sort'!Q$216:Q$246,$C14), PERCENTILE('Data Sort'!Q$217:Q$247,$C14))","v":{"$error":"#NUM!"}},{"$f":"IF('Data Sort'!$B$2=\"no\", PERCENTILE('Data Sort'!R$216:R$246,$C14), PERCENTILE('Data Sort'!R$217:R$247,$C14))","v":{"$error":"#NUM!"}},{"$f":"IF('Data Sort'!$B$2=\"no\", PERCENTILE('Data Sort'!S$216:S$246,$C14), PERCENTILE('Data Sort'!S$217:S$247,$C14))","v":{"$error":"#NUM!"}},{"$f":"IF('Data Sort'!$B$2=\"no\", PERCENTILE('Data Sort'!T$216:T$246,$C14), PERCENTILE('Data Sort'!T$217:T$247,$C14))","v":{"$error":"#NUM!"}},{"$f":"IF('Data Sort'!$B$2=\"no\", PERCENTILE('Data Sort'!U$216:U$246,$C14), PERCENTILE('Data Sort'!U$217:U$247,$C14))","v":{"$error":"#NUM!"}},{"$f":"IF('Data Sort'!$B$2=\"no\", PERCENTILE('Data Sort'!V$216:V$246,$C14), PERCENTILE('Data Sort'!V$217:V$247,$C14))","v":{"$error":"#NUM!"}},{"$f":"IF('Data Sort'!$B$2=\"no\", PERCENTILE('Data Sort'!W$216:W$246,$C14), PERCENTILE('Data Sort'!W$217:W$247,$C14))","v":{"$error":"#NUM!"}},{"$f":"IF('Data Sort'!$B$2=\"no\", PERCENTILE('Data Sort'!X$216:X$246,$C14), PERCENTILE('Data Sort'!X$217:X$247,$C14))","v":{"$error":"#NUM!"}},{"$f":"IF('Data Sort'!$B$2=\"no\", PERCENTILE('Data Sort'!Y$216:Y$246,$C14), PERCENTILE('Data Sort'!Y$217:Y$247,$C14))","v":{"$error":"#NUM!"}},{"$f":"IF('Data Sort'!$B$2=\"no\", PERCENTILE('Data Sort'!Z$216:Z$246,$C14), PERCENTILE('Data Sort'!Z$217:Z$247,$C14))","v":{"$error":"#NUM!"}},{"$f":"IF('Data Sort'!$B$2=\"no\", PERCENTILE('Data Sort'!AA$216:AA$246,$C14), PERCENTILE('Data Sort'!AA$217:AA$247,$C14))","v":{"$error":"#NUM!"}},{"$f":"IF('Data Sort'!$B$2=\"no\", PERCENTILE('Data Sort'!AB$216:AB$246,$C14), PERCENTILE('Data Sort'!AB$217:AB$247,$C14))","v":{"$error":"#NUM!"}},{"$f":"IF('Data Sort'!$B$2=\"no\", PERCENTILE('Data Sort'!AC$216:AC$246,$C14), PERCENTILE('Data Sort'!AC$217:AC$247,$C14))","v":{"$error":"#NUM!"}},{"$f":"IF('Data Sort'!$B$2=\"no\", PERCENTILE('Data Sort'!AD$216:AD$246,$C14), PERCENTILE('Data Sort'!AD$217:AD$247,$C14))","v":{"$error":"#NUM!"}},{"$f":"IF('Data Sort'!$B$2=\"no\", PERCENTILE('Data Sort'!AE$216:AE$246,$C14), PERCENTILE('Data Sort'!AE$217:AE$247,$C14))","v":{"$error":"#NUM!"}},{"$f":"IF('Data Sort'!$B$2=\"no\", PERCENTILE('Data Sort'!AF$216:AF$246,$C14), PERCENTILE('Data Sort'!AF$217:AF$247,$C14))","v":{"$error":"#NUM!"}},{"$f":"IF('Data Sort'!$B$2=\"no\", PERCENTILE('Data Sort'!AG$216:AG$246,$C14), PERCENTILE('Data Sort'!AG$217:AG$247,$C14))","v":{"$error":"#NUM!"}},{"$f":"IF('Data Sort'!$B$2=\"no\", PERCENTILE('Data Sort'!AH$216:AH$246,$C14), PERCENTILE('Data Sort'!AH$217:AH$247,$C14))","v":{"$error":"#NUM!"}},{"$f":"IF('Data Sort'!$B$2=\"no\", PERCENTILE('Data Sort'!AI$216:AI$246,$C14), PERCENTILE('Data Sort'!AI$217:AI$247,$C14))","v":{"$error":"#NUM!"}},{"$f":"IF('Data Sort'!$B$2=\"no\", PERCENTILE('Data Sort'!AJ$216:AJ$246,$C14), PERCENTILE('Data Sort'!AJ$217:AJ$247,$C14))","v":{"$error":"#NUM!"}},{"$f":"IF('Data Sort'!$B$2=\"no\", PERCENTILE('Data Sort'!AK$216:AK$246,$C14), PERCENTILE('Data Sort'!AK$217:AK$247,$C14))","v":{"$error":"#NUM!"}},{"$f":"IF('Data Sort'!$B$2=\"no\", PERCENTILE('Data Sort'!AL$216:AL$246,$C14), PERCENTILE('Data Sort'!AL$217:AL$247,$C14))","v":{"$error":"#NUM!"}},{"$f":"IF('Data Sort'!$B$2=\"no\", PERCENTILE('Data Sort'!AM$216:AM$246,$C14), PERCENTILE('Data Sort'!AM$217:AM$247,$C14))","v":{"$error":"#NUM!"}},{"$f":"IF('Data Sort'!$B$2=\"no\", PERCENTILE('Data Sort'!AN$216:AN$246,$C14), PERCENTILE('Data Sort'!AN$217:AN$247,$C14))","v":{"$error":"#NUM!"}},{"$f":"IF('Data Sort'!$B$2=\"no\", PERCENTILE('Data Sort'!AO$216:AO$246,$C14), PERCENTILE('Data Sort'!AO$217:AO$247,$C14))","v":{"$error":"#NUM!"}},{"$f":"IF('Data Sort'!$B$2=\"no\", PERCENTILE('Data Sort'!AP$216:AP$246,$C14), PERCENTILE('Data Sort'!AP$217:AP$247,$C14))","v":{"$error":"#NUM!"}},{"$f":"IF('Data Sort'!$B$2=\"no\", PERCENTILE('Data Sort'!AQ$216:AQ$246,$C14), PERCENTILE('Data Sort'!AQ$217:AQ$247,$C14))","v":{"$error":"#NUM!"}},{"$f":"IF('Data Sort'!$B$2=\"no\", PERCENTILE('Data Sort'!AR$216:AR$246,$C14), PERCENTILE('Data Sort'!AR$217:AR$247,$C14))","v":{"$error":"#NUM!"}},{"$f":"IF('Data Sort'!$B$2=\"no\", PERCENTILE('Data Sort'!AS$216:AS$246,$C14), PERCENTILE('Data Sort'!AS$217:AS$247,$C14))","v":{"$error":"#NUM!"}},{"$f":"IF('Data Sort'!$B$2=\"no\", PERCENTILE('Data Sort'!AT$216:AT$246,$C14), PERCENTILE('Data Sort'!AT$217:AT$247,$C14))","v":{"$error":"#NUM!"}},{"$f":"IF('Data Sort'!$B$2=\"no\", PERCENTILE('Data Sort'!AU$216:AU$246,$C14), PERCENTILE('Data Sort'!AU$217:AU$247,$C14))","v":{"$error":"#NUM!"}},{"$f":"IF('Data Sort'!$B$2=\"no\", PERCENTILE('Data Sort'!AV$216:AV$246,$C14), PERCENTILE('Data Sort'!AV$217:AV$247,$C14))","v":{"$error":"#NUM!"}},{"$f":"IF('Data Sort'!$B$2=\"no\", PERCENTILE('Data Sort'!AW$216:AW$246,$C14), PERCENTILE('Data Sort'!AW$217:AW$247,$C14))","v":{"$error":"#NUM!"}},{"$f":"IF('Data Sort'!$B$2=\"no\", PERCENTILE('Data Sort'!AX$216:AX$246,$C14), PERCENTILE('Data Sort'!AX$217:AX$247,$C14))","v":{"$error":"#NUM!"}},{"$f":"IF('Data Sort'!$B$2=\"no\", PERCENTILE('Data Sort'!AY$216:AY$246,$C14), PERCENTILE('Data Sort'!AY$217:AY$247,$C14))","v":{"$error":"#NUM!"}},{"$f":"IF('Data Sort'!$B$2=\"no\", PERCENTILE('Data Sort'!AZ$216:AZ$246,$C14), PERCENTILE('Data Sort'!AZ$217:AZ$247,$C14))","v":{"$error":"#NUM!"}},{"$f":"IF('Data Sort'!$B$2=\"no\", PERCENTILE('Data Sort'!BA$216:BA$246,$C14), PERCENTILE('Data Sort'!BA$217:BA$247,$C14))","v":{"$error":"#NUM!"}},{"$f":"IF('Data Sort'!$B$2=\"no\", PERCENTILE('Data Sort'!BB$216:BB$246,$C14), PERCENTILE('Data Sort'!BB$217:BB$247,$C14))","v":{"$error":"#NUM!"}},{"$f":"IF('Data Sort'!$B$2=\"no\", PERCENTILE('Data Sort'!BC$216:BC$246,$C14), PERCENTILE('Data Sort'!BC$217:BC$247,$C14))","v":{"$error":"#NUM!"}},{"$f":"IF('Data Sort'!$B$2=\"no\", PERCENTILE('Data Sort'!BD$216:BD$246,$C14), PERCENTILE('Data Sort'!BD$217:BD$247,$C14))","v":{"$error":"#NUM!"}},{"$f":"IF('Data Sort'!$B$2=\"no\", PERCENTILE('Data Sort'!BE$216:BE$246,$C14), PERCENTILE('Data Sort'!BE$217:BE$247,$C14))","v":{"$error":"#NUM!"}},{"$f":"IF('Data Sort'!$B$2=\"no\", PERCENTILE('Data Sort'!BF$216:BF$246,$C14), PERCENTILE('Data Sort'!BF$217:BF$247,$C14))","v":{"$error":"#NUM!"}},{"$f":"IF('Data Sort'!$B$2=\"no\", PERCENTILE('Data Sort'!BG$216:BG$246,$C14), PERCENTILE('Data Sort'!BG$217:BG$247,$C14))","v":{"$error":"#NUM!"}},{"$f":"IF('Data Sort'!$B$2=\"no\", PERCENTILE('Data Sort'!BH$216:BH$246,$C14), PERCENTILE('Data Sort'!BH$217:BH$247,$C14))","v":{"$error":"#NUM!"}},{"$f":"IF('Data Sort'!$B$2=\"no\", PERCENTILE('Data Sort'!BI$216:BI$246,$C14), PERCENTILE('Data Sort'!BI$217:BI$247,$C14))","v":{"$error":"#NUM!"}},{"$f":"IF('Data Sort'!$B$2=\"no\", PERCENTILE('Data Sort'!BJ$216:BJ$246,$C14), PERCENTILE('Data Sort'!BJ$217:BJ$247,$C14))","v":{"$error":"#NUM!"}},{"$f":"IF('Data Sort'!$B$2=\"no\", PERCENTILE('Data Sort'!BK$216:BK$246,$C14), PERCENTILE('Data Sort'!BK$217:BK$247,$C14))","v":{"$error":"#NUM!"}},{"$f":"IF('Data Sort'!$B$2=\"no\", PERCENTILE('Data Sort'!BL$216:BL$246,$C14), PERCENTILE('Data Sort'!BL$217:BL$247,$C14))","v":{"$error":"#NUM!"}},{"$f":"IF('Data Sort'!$B$2=\"no\", PERCENTILE('Data Sort'!BM$216:BM$246,$C14), PERCENTILE('Data Sort'!BM$217:BM$247,$C14))","v":{"$error":"#NUM!"}},{"$f":"IF('Data Sort'!$B$2=\"no\", PERCENTILE('Data Sort'!BN$216:BN$246,$C14), PERCENTILE('Data Sort'!BN$217:BN$247,$C14))","v":{"$error":"#NUM!"}},{"$f":"IF('Data Sort'!$B$2=\"no\", PERCENTILE('Data Sort'!BO$216:BO$246,$C14), PERCENTILE('Data Sort'!BO$217:BO$247,$C14))","v":{"$error":"#NUM!"}},{"$f":"IF('Data Sort'!$B$2=\"no\", PERCENTILE('Data Sort'!BP$216:BP$246,$C14), PERCENTILE('Data Sort'!BP$217:BP$247,$C14))","v":{"$error":"#NUM!"}},{"$f":"IF('Data Sort'!$B$2=\"no\", PERCENTILE('Data Sort'!BQ$216:BQ$246,$C14), PERCENTILE('Data Sort'!BQ$217:BQ$247,$C14))","v":{"$error":"#NUM!"}},{"$f":"IF('Data Sort'!$B$2=\"no\", PERCENTILE('Data Sort'!BR$216:BR$246,$C14), PERCENTILE('Data Sort'!BR$217:BR$247,$C14))","v":{"$error":"#NUM!"}},{"$f":"IF('Data Sort'!$B$2=\"no\", PERCENTILE('Data Sort'!BS$216:BS$246,$C14), PERCENTILE('Data Sort'!BS$217:BS$247,$C14))","v":{"$error":"#NUM!"}},{"$f":"IF('Data Sort'!$B$2=\"no\", PERCENTILE('Data Sort'!BT$216:BT$246,$C14), PERCENTILE('Data Sort'!BT$217:BT$247,$C14))","v":{"$error":"#NUM!"}},{"$f":"IF('Data Sort'!$B$2=\"no\", PERCENTILE('Data Sort'!BU$216:BU$246,$C14), PERCENTILE('Data Sort'!BU$217:BU$247,$C14))","v":{"$error":"#NUM!"}}]
[9,{"$f":"'Data Sort'!$D$251","v":"00:00:00"},0.95,{"$f":"IF('Data Sort'!$B$2=\"no\", PERCENTILE('Data Sort'!E$247:E$276,$C15), PERCENTILE('Data Sort'!E$248:E$277,$C15))","v":{"$error":"#NUM!"}},{"$f":"IF('Data Sort'!$B$2=\"no\", PERCENTILE('Data Sort'!F$247:F$276,$C15), PERCENTILE('Data Sort'!F$248:F$277,$C15))","v":{"$error":"#NUM!"}},{"$f":"IF('Data Sort'!$B$2=\"no\", PERCENTILE('Data Sort'!G$247:G$276,$C15), PERCENTILE('Data Sort'!G$248:G$277,$C15))","v":{"$error":"#NUM!"}},{"$f":"IF('Data Sort'!$B$2=\"no\", PERCENTILE('Data Sort'!H$247:H$276,$C15), PERCENTILE('Data Sort'!H$248:H$277,$C15))","v":{"$error":"#NUM!"}},{"$f":"IF('Data Sort'!$B$2=\"no\", PERCENTILE('Data Sort'!I$247:I$276,$C15), PERCENTILE('Data Sort'!I$248:I$277,$C15))","v":{"$error":"#NUM!"}},{"$f":"IF('Data Sort'!$B$2=\"no\", PERCENTILE('Data Sort'!J$247:J$276,$C15), PERCENTILE('Data Sort'!J$248:J$277,$C15))","v":{"$error":"#NUM!"}},{"$f":"IF('Data Sort'!$B$2=\"no\", PERCENTILE('Data Sort'!K$247:K$276,$C15), PERCENTILE('Data Sort'!K$248:K$277,$C15))","v":{"$error":"#NUM!"}},{"$f":"IF('Data Sort'!$B$2=\"no\", PERCENTILE('Data Sort'!L$247:L$276,$C15), PERCENTILE('Data Sort'!L$248:L$277,$C15))","v":{"$error":"#NUM!"}},{"$f":"IF('Data Sort'!$B$2=\"no\", PERCENTILE('Data Sort'!M$247:M$276,$C15), PERCENTILE('Data Sort'!M$248:M$277,$C15))","v":{"$error":"#NUM!"}},{"$f":"IF('Data Sort'!$B$2=\"no\", PERCENTILE('Data Sort'!N$247:N$276,$C15), PERCENTILE('Data Sort'!N$248:N$277,$C15))","v":{"$error":"#NUM!"}},{"$f":"IF('Data Sort'!$B$2=\"no\", PERCENTILE('Data Sort'!O$247:O$276,$C15), PERCENTILE('Data Sort'!O$248:O$277,$C15))","v":{"$error":"#NUM!"}},{"$f":"IF('Data Sort'!$B$2=\"no\", PERCENTILE('Data Sort'!P$247:P$276,$C15), PERCENTILE('Data Sort'!P$248:P$277,$C15))","v":{"$error":"#NUM!"}},{"$f":"IF('Data Sort'!$B$2=\"no\", PERCENTILE('Data Sort'!Q$247:Q$276,$C15), PERCENTILE('Data Sort'!Q$248:Q$277,$C15))","v":{"$error":"#NUM!"}},{"$f":"IF('Data Sort'!$B$2=\"no\", PERCENTILE('Data Sort'!R$247:R$276,$C15), PERCENTILE('Data Sort'!R$248:R$277,$C15))","v":{"$error":"#NUM!"}},{"$f":"IF('Data Sort'!$B$2=\"no\", PERCENTILE('Data Sort'!S$247:S$276,$C15), PERCENTILE('Data Sort'!S$248:S$277,$C15))","v":{"$error":"#NUM!"}},{"$f":"IF('Data Sort'!$B$2=\"no\", PERCENTILE('Data Sort'!T$247:T$276,$C15), PERCENTILE('Data Sort'!T$248:T$277,$C15))","v":{"$error":"#NUM!"}},{"$f":"IF('Data Sort'!$B$2=\"no\", PERCENTILE('Data Sort'!U$247:U$276,$C15), PERCENTILE('Data Sort'!U$248:U$277,$C15))","v":{"$error":"#NUM!"}},{"$f":"IF('Data Sort'!$B$2=\"no\", PERCENTILE('Data Sort'!V$247:V$276,$C15), PERCENTILE('Data Sort'!V$248:V$277,$C15))","v":{"$error":"#NUM!"}},{"$f":"IF('Data Sort'!$B$2=\"no\", PERCENTILE('Data Sort'!W$247:W$276,$C15), PERCENTILE('Data Sort'!W$248:W$277,$C15))","v":{"$error":"#NUM!"}},{"$f":"IF('Data Sort'!$B$2=\"no\", PERCENTILE('Data Sort'!X$247:X$276,$C15), PERCENTILE('Data Sort'!X$248:X$277,$C15))","v":{"$error":"#NUM!"}},{"$f":"IF('Data Sort'!$B$2=\"no\", PERCENTILE('Data Sort'!Y$247:Y$276,$C15), PERCENTILE('Data Sort'!Y$248:Y$277,$C15))","v":{"$error":"#NUM!"}},{"$f":"IF('Data Sort'!$B$2=\"no\", PERCENTILE('Data Sort'!Z$247:Z$276,$C15), PERCENTILE('Data Sort'!Z$248:Z$277,$C15))","v":{"$error":"#NUM!"}},{"$f":"IF('Data Sort'!$B$2=\"no\", PERCENTILE('Data Sort'!AA$247:AA$276,$C15), PERCENTILE('Data Sort'!AA$248:AA$277,$C15))","v":{"$error":"#NUM!"}},{"$f":"IF('Data Sort'!$B$2=\"no\", PERCENTILE('Data Sort'!AB$247:AB$276,$C15), PERCENTILE('Data Sort'!AB$248:AB$277,$C15))","v":{"$error":"#NUM!"}},{"$f":"IF('Data Sort'!$B$2=\"no\", PERCENTILE('Data Sort'!AC$247:AC$276,$C15), PERCENTILE('Data Sort'!AC$248:AC$277,$C15))","v":{"$error":"#NUM!"}},{"$f":"IF('Data Sort'!$B$2=\"no\", PERCENTILE('Data Sort'!AD$247:AD$276,$C15), PERCENTILE('Data Sort'!AD$248:AD$277,$C15))","v":{"$error":"#NUM!"}},{"$f":"IF('Data Sort'!$B$2=\"no\", PERCENTILE('Data Sort'!AE$247:AE$276,$C15), PERCENTILE('Data Sort'!AE$248:AE$277,$C15))","v":{"$error":"#NUM!"}},{"$f":"IF('Data Sort'!$B$2=\"no\", PERCENTILE('Data Sort'!AF$247:AF$276,$C15), PERCENTILE('Data Sort'!AF$248:AF$277,$C15))","v":{"$error":"#NUM!"}},{"$f":"IF('Data Sort'!$B$2=\"no\", PERCENTILE('Data Sort'!AG$247:AG$276,$C15), PERCENTILE('Data Sort'!AG$248:AG$277,$C15))","v":{"$error":"#NUM!"}},{"$f":"IF('Data Sort'!$B$2=\"no\", PERCENTILE('Data Sort'!AH$247:AH$276,$C15), PERCENTILE('Data Sort'!AH$248:AH$277,$C15))","v":{"$error":"#NUM!"}},{"$f":"IF('Data Sort'!$B$2=\"no\", PERCENTILE('Data Sort'!AI$247:AI$276,$C15), PERCENTILE('Data Sort'!AI$248:AI$277,$C15))","v":{"$error":"#NUM!"}},{"$f":"IF('Data Sort'!$B$2=\"no\", PERCENTILE('Data Sort'!AJ$247:AJ$276,$C15), PERCENTILE('Data Sort'!AJ$248:AJ$277,$C15))","v":{"$error":"#NUM!"}},{"$f":"IF('Data Sort'!$B$2=\"no\", PERCENTILE('Data Sort'!AK$247:AK$276,$C15), PERCENTILE('Data Sort'!AK$248:AK$277,$C15))","v":{"$error":"#NUM!"}},{"$f":"IF('Data Sort'!$B$2=\"no\", PERCENTILE('Data Sort'!AL$247:AL$276,$C15), PERCENTILE('Data Sort'!AL$248:AL$277,$C15))","v":{"$error":"#NUM!"}},{"$f":"IF('Data Sort'!$B$2=\"no\", PERCENTILE('Data Sort'!AM$247:AM$276,$C15), PERCENTILE('Data Sort'!AM$248:AM$277,$C15))","v":{"$error":"#NUM!"}},{"$f":"IF('Data Sort'!$B$2=\"no\", PERCENTILE('Data Sort'!AN$247:AN$276,$C15), PERCENTILE('Data Sort'!AN$248:AN$277,$C15))","v":{"$error":"#NUM!"}},{"$f":"IF('Data Sort'!$B$2=\"no\", PERCENTILE('Data Sort'!AO$247:AO$276,$C15), PERCENTILE('Data Sort'!AO$248:AO$277,$C15))","v":{"$error":"#NUM!"}},{"$f":"IF('Data Sort'!$B$2=\"no\", PERCENTILE('Data Sort'!AP$247:AP$276,$C15), PERCENTILE('Data Sort'!AP$248:AP$277,$C15))","v":{"$error":"#NUM!"}},{"$f":"IF('Data Sort'!$B$2=\"no\", PERCENTILE('Data Sort'!AQ$247:AQ$276,$C15), PERCENTILE('Data Sort'!AQ$248:AQ$277,$C15))","v":{"$error":"#NUM!"}},{"$f":"IF('Data Sort'!$B$2=\"no\", PERCENTILE('Data Sort'!AR$247:AR$276,$C15), PERCENTILE('Data Sort'!AR$248:AR$277,$C15))","v":{"$error":"#NUM!"}},{"$f":"IF('Data Sort'!$B$2=\"no\", PERCENTILE('Data Sort'!AS$247:AS$276,$C15), PERCENTILE('Data Sort'!AS$248:AS$277,$C15))","v":{"$error":"#NUM!"}},{"$f":"IF('Data Sort'!$B$2=\"no\", PERCENTILE('Data Sort'!AT$247:AT$276,$C15), PERCENTILE('Data Sort'!AT$248:AT$277,$C15))","v":{"$error":"#NUM!"}},{"$f":"IF('Data Sort'!$B$2=\"no\", PERCENTILE('Data Sort'!AU$247:AU$276,$C15), PERCENTILE('Data Sort'!AU$248:AU$277,$C15))","v":{"$error":"#NUM!"}},{"$f":"IF('Data Sort'!$B$2=\"no\", PERCENTILE('Data Sort'!AV$247:AV$276,$C15), PERCENTILE('Data Sort'!AV$248:AV$277,$C15))","v":{"$error":"#NUM!"}},{"$f":"IF('Data Sort'!$B$2=\"no\", PERCENTILE('Data Sort'!AW$247:AW$276,$C15), PERCENTILE('Data Sort'!AW$248:AW$277,$C15))","v":{"$error":"#NUM!"}},{"$f":"IF('Data Sort'!$B$2=\"no\", PERCENTILE('Data Sort'!AX$247:AX$276,$C15), PERCENTILE('Data Sort'!AX$248:AX$277,$C15))","v":{"$error":"#NUM!"}},{"$f":"IF('Data Sort'!$B$2=\"no\", PERCENTILE('Data Sort'!AY$247:AY$276,$C15), PERCENTILE('Data Sort'!AY$248:AY$277,$C15))","v":{"$error":"#NUM!"}},{"$f":"IF('Data Sort'!$B$2=\"no\", PERCENTILE('Data Sort'!AZ$247:AZ$276,$C15), PERCENTILE('Data Sort'!AZ$248:AZ$277,$C15))","v":{"$error":"#NUM!"}},{"$f":"IF('Data Sort'!$B$2=\"no\", PERCENTILE('Data Sort'!BA$247:BA$276,$C15), PERCENTILE('Data Sort'!BA$248:BA$277,$C15))","v":{"$error":"#NUM!"}},{"$f":"IF('Data Sort'!$B$2=\"no\", PERCENTILE('Data Sort'!BB$247:BB$276,$C15), PERCENTILE('Data Sort'!BB$248:BB$277,$C15))","v":{"$error":"#NUM!"}},{"$f":"IF('Data Sort'!$B$2=\"no\", PERCENTILE('Data Sort'!BC$247:BC$276,$C15), PERCENTILE('Data Sort'!BC$248:BC$277,$C15))","v":{"$error":"#NUM!"}},{"$f":"IF('Data Sort'!$B$2=\"no\", PERCENTILE('Data Sort'!BD$247:BD$276,$C15), PERCENTILE('Data Sort'!BD$248:BD$277,$C15))","v":{"$error":"#NUM!"}},{"$f":"IF('Data Sort'!$B$2=\"no\", PERCENTILE('Data Sort'!BE$247:BE$276,$C15), PERCENTILE('Data Sort'!BE$248:BE$277,$C15))","v":{"$error":"#NUM!"}},{"$f":"IF('Data Sort'!$B$2=\"no\", PERCENTILE('Data Sort'!BF$247:BF$276,$C15), PERCENTILE('Data Sort'!BF$248:BF$277,$C15))","v":{"$error":"#NUM!"}},{"$f":"IF('Data Sort'!$B$2=\"no\", PERCENTILE('Data Sort'!BG$247:BG$276,$C15), PERCENTILE('Data Sort'!BG$248:BG$277,$C15))","v":{"$error":"#NUM!"}},{"$f":"IF('Data Sort'!$B$2=\"no\", PERCENTILE('Data Sort'!BH$247:BH$276,$C15), PERCENTILE('Data Sort'!BH$248:BH$277,$C15))","v":{"$error":"#NUM!"}},{"$f":"IF('Data Sort'!$B$2=\"no\", PERCENTILE('Data Sort'!BI$247:BI$276,$C15), PERCENTILE('Data Sort'!BI$248:BI$277,$C15))","v":{"$error":"#NUM!"}},{"$f":"IF('Data Sort'!$B$2=\"no\", PERCENTILE('Data Sort'!BJ$247:BJ$276,$C15), PERCENTILE('Data Sort'!BJ$248:BJ$277,$C15))","v":{"$error":"#NUM!"}},{"$f":"IF('Data Sort'!$B$2=\"no\", PERCENTILE('Data Sort'!BK$247:BK$276,$C15), PERCENTILE('Data Sort'!BK$248:BK$277,$C15))","v":{"$error":"#NUM!"}},{"$f":"IF('Data Sort'!$B$2=\"no\", PERCENTILE('Data Sort'!BL$247:BL$276,$C15), PERCENTILE('Data Sort'!BL$248:BL$277,$C15))","v":{"$error":"#NUM!"}},{"$f":"IF('Data Sort'!$B$2=\"no\", PERCENTILE('Data Sort'!BM$247:BM$276,$C15), PERCENTILE('Data Sort'!BM$248:BM$277,$C15))","v":{"$error":"#NUM!"}},{"$f":"IF('Data Sort'!$B$2=\"no\", PERCENTILE('Data Sort'!BN$247:BN$276,$C15), PERCENTILE('Data Sort'!BN$248:BN$277,$C15))","v":{"$error":"#NUM!"}},{"$f":"IF('Data Sort'!$B$2=\"no\", PERCENTILE('Data Sort'!BO$247:BO$276,$C15), PERCENTILE('Data Sort'!BO$248:BO$277,$C15))","v":{"$error":"#NUM!"}},{"$f":"IF('Data Sort'!$B$2=\"no\", PERCENTILE('Data Sort'!BP$247:BP$276,$C15), PERCENTILE('Data Sort'!BP$248:BP$277,$C15))","v":{"$error":"#NUM!"}},{"$f":"IF('Data Sort'!$B$2=\"no\", PERCENTILE('Data Sort'!BQ$247:BQ$276,$C15), PERCENTILE('Data Sort'!BQ$248:BQ$277,$C15))","v":{"$error":"#NUM!"}},{"$f":"IF('Data Sort'!$B$2=\"no\", PERCENTILE('Data Sort'!BR$247:BR$276,$C15), PERCENTILE('Data Sort'!BR$248:BR$277,$C15))","v":{"$error":"#NUM!"}},{"$f":"IF('Data Sort'!$B$2=\"no\", PERCENTILE('Data Sort'!BS$247:BS$276,$C15), PERCENTILE('Data Sort'!BS$248:BS$277,$C15))","v":{"$error":"#NUM!"}},{"$f":"IF('Data Sort'!$B$2=\"no\", PERCENTILE('Data Sort'!BT$247:BT$276,$C15), PERCENTILE('Data Sort'!BT$248:BT$277,$C15))","v":{"$error":"#NUM!"}},{"$f":"IF('Data Sort'!$B$2=\"no\", PERCENTILE('Data Sort'!BU$247:BU$276,$C15), PERCENTILE('Data Sort'!BU$248:BU$277,$C15))","v":{"$error":"#NUM!"}}]
[]
[]
[null,null,null,"Filters",null,null,"Basins",null,null,null,null,null,"Non Leap",null,"Leap"]
[null,null,null,"0.3 NTU","0.2 NTU","0.1 NTU","3 NTU","2 NTU","1 NTU",null,null,null,"Start","End","Start","End"]
[null,null,{"$f":"'Data Sort'!$D$7","v":"00:00:00"},{"$f":"FREQUENCY('Data Sort'!$Z5:$BU34,0.3)/COUNT('Data Sort'!$Z5:$BU34)","v":{"$error":"#DIV/0!"}},{"$f":"FREQUENCY('Data Sort'!$Z5:$BU34,0.2)/COUNT('Data Sort'!$Z5:$BU34)","v":{"$error":"#DIV/0!"}},{"$f":"FREQUENCY('Data Sort'!$Z5:$BU34,0.1)/COUNT('Data Sort'!$Z5:$BU34)","v":{"$error":"#DIV/0!"}},{"$f":"FREQUENCY('Data Sort'!$F5:$BU34,3)/COUNT('Data Sort'!$F5:$BU34)","v":{"$error":"#DIV/0!"}},{"$f":"FREQUENCY('Data Sort'!$F5:$BU34,2)/COUNT('Data Sort'!$F5:$BU34)","v":{"$error":"#DIV/0!"}},{"$f":"FREQUENCY('Data Sort'!$F5:$BU34,1)/COUNT('Data Sort'!$F5:$BU34)","v":{"$error":"#DIV/0!"}},null,null,"Jan",5,34,5,34]
[null,null,{"$f":"'Data Sort'!$D$38","v":"00:00:00"},{"$f":"IF('Data Sort'!B2=\"no\",FREQUENCY('Data Sort'!$Z35:$BU62,0.3)/COUNT('Data Sort'!$Z35:$BU62),FREQUENCY('Data Sort'!$Z35:$BU63,0.3)/COUNT('Data Sort'!$Z35:$BU63))","v":{"$error":"#DIV/0!"}},{"$f":"IF('Data Sort'!C2=\"no\",FREQUENCY('Data Sort'!$Z35:$BU62,0.2)/COUNT('Data Sort'!$Z35:$BU62),FREQUENCY('Data Sort'!$Z35:$BU63,0.2)/COUNT('Data Sort'!$Z35:$BU63))","v":{"$error":"#DIV/0!"}},{"$f":"IF('Data Sort'!D2=\"no\",FREQUENCY('Data Sort'!$Z35:$BU62,0.1)/COUNT('Data Sort'!$Z35:$BU62),FREQUENCY('Data Sort'!$Z35:$BU63,0.1)/COUNT('Data Sort'!$Z35:$BU63))","v":{"$error":"#DIV/0!"}},{"$f":"IF('Data Sort'!E2=\"no\",FREQUENCY('Data Sort'!$F35:$BU62,3)/COUNT('Data Sort'!$F35:$BU62),FREQUENCY('Data Sort'!$F35:$BU63,3)/COUNT('Data Sort'!$F35:$BU63))","v":{"$error":"#DIV/0!"}},{"$f":"IF('Data Sort'!F2=\"no\",FREQUENCY('Data Sort'!$F35:$BU62,2)/COUNT('Data Sort'!$F35:$BU62),FREQUENCY('Data Sort'!$F35:$BU63,2)/COUNT('Data Sort'!$F35:$BU63))","v":{"$error":"#DIV/0!"}},{"$f":"IF('Data Sort'!G2=\"no\",FREQUENCY('Data Sort'!$F35:$BU62,1)/COUNT('Data Sort'!$F35:$BU62),FREQUENCY('Data Sort'!$F35:$BU63,1)/COUNT('Data Sort'!$F35:$BU63))","v":{"$error":"#DIV/0!"}},null,null,"Feb",35,62,35,63]
[null,null,{"$f":"'Data Sort'!$D$67","v":"00:00:00"},{"$f":"IF('Data Sort'!B3=\"no\",FREQUENCY('Data Sort'!$Z63:$BU93,0.3)/COUNT('Data Sort'!$Z63:$BU93),FREQUENCY('Data Sort'!$Z64:$BU94,0.3)/COUNT('Data Sort'!$Z64:$BU94))","v":{"$error":"#DIV/0!"}},{"$f":"IF('Data Sort'!C3=\"no\",FREQUENCY('Data Sort'!$Z63:$BU93,0.2)/COUNT('Data Sort'!$Z63:$BU93),FREQUENCY('Data Sort'!$Z64:$BU94,0.2)/COUNT('Data Sort'!$Z64:$BU94))","v":{"$error":"#DIV/0!"}},{"$f":"IF('Data Sort'!D3=\"no\",FREQUENCY('Data Sort'!$Z63:$BU93,0.1)/COUNT('Data Sort'!$Z63:$BU93),FREQUENCY('Data Sort'!$Z64:$BU94,0.1)/COUNT('Data Sort'!$Z64:$BU94))","v":{"$error":"#DIV/0!"}},{"$f":"IF('Data Sort'!E3=\"no\",FREQUENCY('Data Sort'!$F63:$BU93,3)/COUNT('Data Sort'!$F63:$BU93),FREQUENCY('Data Sort'!$F64:$BU94,3)/COUNT('Data Sort'!$F64:$BU94))","v":{"$error":"#DIV/0!"}},{"$f":"IF('Data Sort'!F3=\"no\",FREQUENCY('Data Sort'!$F63:$BU93,2)/COUNT('Data Sort'!$F63:$BU93),FREQUENCY('Data Sort'!$F64:$BU94,2)/COUNT('Data Sort'!$F64:$BU94))","v":{"$error":"#DIV/0!"}},{"$f":"IF('Data Sort'!G3=\"no\",FREQUENCY('Data Sort'!$F63:$BU93,1)/COUNT('Data Sort'!$F63:$BU93),FREQUENCY('Data Sort'!$F64:$BU94,1)/COUNT('Data Sort'!$F64:$BU94))","v":{"$error":"#DIV/0!"}},null,null,"March",63,93,64,94]
[null,null,{"$f":"'Data Sort'!$D$98","v":"00:00:00"},{"$f":"IF('Data Sort'!B4=\"no\",FREQUENCY('Data Sort'!$Z94:$BU123,0.3)/COUNT('Data Sort'!$Z94:$BU123),FREQUENCY('Data Sort'!$Z95:$BU124,0.3)/COUNT('Data Sort'!$Z95:$BU124))","v":{"$error":"#DIV/0!"}},{"$f":"IF('Data Sort'!C4=\"no\",FREQUENCY('Data Sort'!$Z94:$BU123,0.2)/COUNT('Data Sort'!$Z94:$BU123),FREQUENCY('Data Sort'!$Z95:$BU124,0.2)/COUNT('Data Sort'!$Z95:$BU124))","v":{"$error":"#DIV/0!"}},{"$f":"IF('Data Sort'!D4=\"no\",FREQUENCY('Data Sort'!$Z94:$BU123,0.1)/COUNT('Data Sort'!$Z94:$BU123),FREQUENCY('Data Sort'!$Z95:$BU124,0.1)/COUNT('Data Sort'!$Z95:$BU124))","v":{"$error":"#DIV/0!"}},{"$f":"IF('Data Sort'!E4=\"no\",FREQUENCY('Data Sort'!$F94:$BU123,3)/COUNT('Data Sort'!$F94:$BU123),FREQUENCY('Data Sort'!$F95:$BU124,3)/COUNT('Data Sort'!$F95:$BU124))","v":{"$error":"#DIV/0!"}},{"$f":"IF('Data Sort'!F4=\"no\",FREQUENCY('Data Sort'!$F94:$BU123,2)/COUNT('Data Sort'!$F94:$BU123),FREQUENCY('Data Sort'!$F95:$BU124,2)/COUNT('Data Sort'!$F95:$BU124))","v":{"$error":"#DIV/0!"}},{"$f":"IF('Data Sort'!G4=\"no\",FREQUENCY('Data Sort'!$F94:$BU123,1)/COUNT('Data Sort'!$F94:$BU123),FREQUENCY('Data Sort'!$F95:$BU124,1)/COUNT('Data Sort'!$F95:$BU124))","v":{"$error":"#DIV/0!"}},null,null,"April",94,123,95,124]
[null,null,{"$f":"'Data Sort'!$D$128","v":"00:00:00"},{"$f":"IF('Data Sort'!B5=\"no\",FREQUENCY('Data Sort'!$Z124:$BU154,0.3)/COUNT('Data Sort'!$Z124:$BU154),FREQUENCY('Data Sort'!$Z125:$BU155,0.3)/COUNT('Data Sort'!$Z125:$BU155))","v":{"$error":"#DIV/0!"}},{"$f":"IF('Data Sort'!C5=\"no\",FREQUENCY('Data Sort'!$Z124:$BU154,0.2)/COUNT('Data Sort'!$Z124:$BU154),FREQUENCY('Data Sort'!$Z125:$BU155,0.2)/COUNT('Data Sort'!$Z125:$BU155))","v":{"$error":"#DIV/0!"}},{"$f":"IF('Data Sort'!D5=\"no\",FREQUENCY('Data Sort'!$Z124:$BU154,0.1)/COUNT('Data Sort'!$Z124:$BU154),FREQUENCY('Data Sort'!$Z125:$BU155,0.1)/COUNT('Data Sort'!$Z125:$BU155))","v":{"$error":"#DIV/0!"}},{"$f":"IF('Data Sort'!E5=\"no\",FREQUENCY('Data Sort'!$F124:$BU154,3)/COUNT('Data Sort'!$F124:$BU154),FREQUENCY('Data Sort'!$F125:$BU155,3)/COUNT('Data Sort'!$F125:$BU155))","v":{"$error":"#DIV/0!"}},{"$f":"IF('Data Sort'!F5=\"no\",FREQUENCY('Data Sort'!$F124:$BU154,2)/COUNT('Data Sort'!$F124:$BU154),FREQUENCY('Data Sort'!$F125:$BU155,2)/COUNT('Data Sort'!$F125:$BU155))","v":{"$error":"#DIV/0!"}},{"$f":"IF('Data Sort'!G5=\"no\",FREQUENCY('Data Sort'!$F124:$BU154,1)/COUNT('Data Sort'!$F124:$BU154),FREQUENCY('Data Sort'!$F125:$BU155,1)/COUNT('Data Sort'!$F125:$BU155))","v":{"$error":"#DIV/0!"}},null,null,"May",124,154,125,155]
[null,null,{"$f":"'Data Sort'!$D$159","v":"00:00:00"},{"$f":"IF('Data Sort'!B6=\"no\",FREQUENCY('Data Sort'!$Z155:$BU184,0.3)/COUNT('Data Sort'!$Z155:$BU184),FREQUENCY('Data Sort'!$Z155:$BU184,0.3)/COUNT('Data Sort'!$Z155:$BU184))","v":{"$error":"#DIV/0!"}},{"$f":"IF('Data Sort'!C6=\"no\",FREQUENCY('Data Sort'!$Z155:$BU184,0.2)/COUNT('Data Sort'!$Z155:$BU184),FREQUENCY('Data Sort'!$Z155:$BU184,0.2)/COUNT('Data Sort'!$Z155:$BU184))","v":{"$error":"#DIV/0!"}},{"$f":"IF('Data Sort'!D6=\"no\",FREQUENCY('Data Sort'!$Z155:$BU184,0.1)/COUNT('Data Sort'!$Z155:$BU184),FREQUENCY('Data Sort'!$Z155:$BU184,0.1)/COUNT('Data Sort'!$Z155:$BU184))","v":{"$error":"#DIV/0!"}},{"$f":"IF('Data Sort'!E6=\"no\",FREQUENCY('Data Sort'!$F155:$BU184,3)/COUNT('Data Sort'!$F155:$BU184),FREQUENCY('Data Sort'!$F155:$BU184,3)/COUNT('Data Sort'!$F155:$BU184))","v":{"$error":"#DIV/0!"}},{"$f":"IF('Data Sort'!F6=\"no\",FREQUENCY('Data Sort'!$F155:$BU184,2)/COUNT('Data Sort'!$F155:$BU184),FREQUENCY('Data Sort'!$F155:$BU184,2)/COUNT('Data Sort'!$F155:$BU184))","v":{"$error":"#DIV/0!"}},{"$f":"IF('Data Sort'!G6=\"no\",FREQUENCY('Data Sort'!$F155:$BU184,1)/COUNT('Data Sort'!$F155:$BU184),FREQUENCY('Data Sort'!$F155:$BU184,1)/COUNT('Data Sort'!$F155:$BU184))","v":{"$error":"#DIV/0!"}},null,null,"June",155,184,156,185]
[null,null,{"$f":"'Data Sort'!$D$189","v":"00:00:00"},{"$f":"IF('Data Sort'!B7=\"no\",FREQUENCY('Data Sort'!$Z185:$BU215,0.3)/COUNT('Data Sort'!$Z185:$BU215),FREQUENCY('Data Sort'!$Z186:$BU216,0.3)/COUNT('Data Sort'!$Z186:$BU216))","v":{"$error":"#DIV/0!"}},{"$f":"IF('Data Sort'!C7=\"no\",FREQUENCY('Data Sort'!$Z185:$BU215,0.2)/COUNT('Data Sort'!$Z185:$BU215),FREQUENCY('Data Sort'!$Z186:$BU216,0.2)/COUNT('Data Sort'!$Z186:$BU216))","v":{"$error":"#DIV/0!"}},{"$f":"IF('Data Sort'!D7=\"no\",FREQUENCY('Data Sort'!$Z185:$BU215,0.1)/COUNT('Data Sort'!$Z185:$BU215),FREQUENCY('Data Sort'!$Z186:$BU216,0.1)/COUNT('Data Sort'!$Z186:$BU216))","v":{"$error":"#DIV/0!"}},{"$f":"IF('Data Sort'!E7=\"no\",FREQUENCY('Data Sort'!$F185:$BU215,3)/COUNT('Data Sort'!$F185:$BU215),FREQUENCY('Data Sort'!$F186:$BU216,3)/COUNT('Data Sort'!$F186:$BU216))","v":{"$error":"#DIV/0!"}},{"$f":"IF('Data Sort'!F7=\"no\",FREQUENCY('Data Sort'!$F185:$BU215,2)/COUNT('Data Sort'!$F185:$BU215),FREQUENCY('Data Sort'!$F186:$BU216,2)/COUNT('Data Sort'!$F186:$BU216))","v":{"$error":"#DIV/0!"}},{"$f":"IF('Data Sort'!G7=\"no\",FREQUENCY('Data Sort'!$F185:$BU215,1)/COUNT('Data Sort'!$F185:$BU215),FREQUENCY('Data Sort'!$F186:$BU216,1)/COUNT('Data Sort'!$F186:$BU216))","v":{"$error":"#DIV/0!"}},null,null,"July",185,215,186,216]
[null,null,{"$f":"'Data Sort'!$D$220","v":"00:00:00"},{"$f":"IF('Data Sort'!B8=\"no\",FREQUENCY('Data Sort'!$Z216:$BU246,0.3)/COUNT('Data Sort'!$Z216:$BU246),FREQUENCY('Data Sort'!$Z217:$BU247,0.3)/COUNT('Data Sort'!$Z217:$BU247))","v":{"$error":"#DIV/0!"}},{"$f":"IF('Data Sort'!C8=\"no\",FREQUENCY('Data Sort'!$Z216:$BU246,0.2)/COUNT('Data Sort'!$Z216:$BU246),FREQUENCY('Data Sort'!$Z217:$BU247,0.2)/COUNT('Data Sort'!$Z217:$BU247))","v":{"$error":"#DIV/0!"}},{"$f":"IF('Data Sort'!D8=\"no\",FREQUENCY('Data Sort'!$Z216:$BU246,0.1)/COUNT('Data Sort'!$Z216:$BU246),FREQUENCY('Data Sort'!$Z217:$BU247,0.1)/COUNT('Data Sort'!$Z217:$BU247))","v":{"$error":"#DIV/0!"}},{"$f":"IF('Data Sort'!E8=\"no\",FREQUENCY('Data Sort'!$F216:$BU246,3)/COUNT('Data Sort'!$F216:$BU246),FREQUENCY('Data Sort'!$F217:$BU247,3)/COUNT('Data Sort'!$F217:$BU247))","v":{"$error":"#DIV/0!"}},{"$f":"IF('Data Sort'!F8=\"no\",FREQUENCY('Data Sort'!$F216:$BU246,2)/COUNT('Data Sort'!$F216:$BU246),FREQUENCY('Data Sort'!$F217:$BU247,2)/COUNT('Data Sort'!$F217:$BU247))","v":{"$error":"#DIV/0!"}},{"$f":"IF('Data Sort'!G8=\"no\",FREQUENCY('Data Sort'!$F216:$BU246,1)/COUNT('Data Sort'!$F216:$BU246),FREQUENCY('Data Sort'!$F217:$BU247,1)/COUNT('Data Sort'!$F217:$BU247))","v":{"$error":"#DIV/0!"}},null,null,"Aug",216,246,217,247]
[null,null,{"$f":"'Data Sort'!$D$251","v":"00:00:00"},{"$f":"IF('Data Sort'!B9=\"no\",FREQUENCY('Data Sort'!$Z247:$BU276,0.3)/COUNT('Data Sort'!$Z247:$BU276),FREQUENCY('Data Sort'!$Z248:$BU277,0.3)/COUNT('Data Sort'!$Z248:$BU277))","v":{"$error":"#DIV/0!"}},{"$f":"IF('Data Sort'!C9=\"no\",FREQUENCY('Data Sort'!$Z247:$BU276,0.2)/COUNT('Data Sort'!$Z247:$BU276),FREQUENCY('Data Sort'!$Z248:$BU277,0.2)/COUNT('Data Sort'!$Z248:$BU277))","v":{"$error":"#DIV/0!"}},{"$f":"IF('Data Sort'!D9=\"no\",FREQUENCY('Data Sort'!$Z247:$BU276,0.1)/COUNT('Data Sort'!$Z247:$BU276),FREQUENCY('Data Sort'!$Z248:$BU277,0.1)/COUNT('Data Sort'!$Z248:$BU277))","v":{"$error":"#DIV/0!"}},{"$f":"IF('Data Sort'!E9=\"no\",FREQUENCY('Data Sort'!$F247:$BU276,3)/COUNT('Data Sort'!$F247:$BU276),FREQUENCY('Data Sort'!$F248:$BU277,3)/COUNT('Data Sort'!$F248:$BU277))","v":{"$error":"#DIV/0!"}},{"$f":"IF('Data Sort'!F9=\"no\",FREQUENCY('Data Sort'!$F247:$BU276,2)/COUNT('Data Sort'!$F247:$BU276),FREQUENCY('Data Sort'!$F248:$BU277,2)/COUNT('Data Sort'!$F248:$BU277))","v":{"$error":"#DIV/0!"}},{"$f":"IF('Data Sort'!G9=\"no\",FREQUENCY('Data Sort'!$F247:$BU276,1)/COUNT('Data Sort'!$F247:$BU276),FREQUENCY('Data Sort'!$F248:$BU277,1)/COUNT('Data Sort'!$F248:$BU277))","v":{"$error":"#DIV/0!"}},null,null,"Sept",247,276,248,277]
[null,null,{"$f":"'Data Sort'!$D$281","v":"00:00:00"},{"$f":"IF('Data Sort'!B10=\"no\",FREQUENCY('Data Sort'!$Z277:$BU307,0.3)/COUNT('Data Sort'!$Z277:$BU307),FREQUENCY('Data Sort'!$Z278:$BU308,0.3)/COUNT('Data Sort'!$Z278:$BU308))","v":{"$error":"#DIV/0!"}},{"$f":"IF('Data Sort'!C10=\"no\",FREQUENCY('Data Sort'!$Z277:$BU307,0.2)/COUNT('Data Sort'!$Z277:$BU307),FREQUENCY('Data Sort'!$Z278:$BU308,0.2)/COUNT('Data Sort'!$Z278:$BU308))","v":{"$error":"#DIV/0!"}},{"$f":"IF('Data Sort'!D10=\"no\",FREQUENCY('Data Sort'!$Z277:$BU307,0.1)/COUNT('Data Sort'!$Z277:$BU307),FREQUENCY('Data Sort'!$Z278:$BU308,0.1)/COUNT('Data Sort'!$Z278:$BU308))","v":{"$error":"#DIV/0!"}},{"$f":"IF('Data Sort'!E10=\"no\",FREQUENCY('Data Sort'!$F277:$BU307,3)/COUNT('Data Sort'!$F277:$BU307),FREQUENCY('Data Sort'!$F278:$BU308,3)/COUNT('Data Sort'!$F278:$BU308))","v":{"$error":"#DIV/0!"}},{"$f":"IF('Data Sort'!F10=\"no\",FREQUENCY('Data Sort'!$F277:$BU307,2)/COUNT('Data Sort'!$F277:$BU307),FREQUENCY('Data Sort'!$F278:$BU308,2)/COUNT('Data Sort'!$F278:$BU308))","v":{"$error":"#DIV/0!"}},{"$f":"IF('Data Sort'!G10=\"no\",FREQUENCY('Data Sort'!$F277:$BU307,1)/COUNT('Data Sort'!$F277:$BU307),FREQUENCY('Data Sort'!$F278:$BU308,1)/COUNT('Data Sort'!$F278:$BU308))","v":{"$error":"#DIV/0!"}},null,null,"Oct",277,307,278,308]
[null,null,{"$f":"'Data Sort'!$D$312","v":"00:00:00"},{"$f":"IF('Data Sort'!B11=\"no\",FREQUENCY('Data Sort'!$Z308:$BU337,0.3)/COUNT('Data Sort'!$Z308:$BU337),FREQUENCY('Data Sort'!$Z309:$BU338,0.3)/COUNT('Data Sort'!$Z309:$BU338))","v":{"$error":"#DIV/0!"}},{"$f":"IF('Data Sort'!C11=\"no\",FREQUENCY('Data Sort'!$Z308:$BU337,0.2)/COUNT('Data Sort'!$Z308:$BU337),FREQUENCY('Data Sort'!$Z309:$BU338,0.2)/COUNT('Data Sort'!$Z309:$BU338))","v":{"$error":"#DIV/0!"}},{"$f":"IF('Data Sort'!D11=\"no\",FREQUENCY('Data Sort'!$Z308:$BU337,0.1)/COUNT('Data Sort'!$Z308:$BU337),FREQUENCY('Data Sort'!$Z309:$BU338,0.1)/COUNT('Data Sort'!$Z309:$BU338))","v":{"$error":"#DIV/0!"}},{"$f":"IF('Data Sort'!E11=\"no\",FREQUENCY('Data Sort'!$F308:$BU337,3)/COUNT('Data Sort'!$F308:$BU337),FREQUENCY('Data Sort'!$F309:$BU338,3)/COUNT('Data Sort'!$F309:$BU338))","v":{"$error":"#DIV/0!"}},{"$f":"IF('Data Sort'!F11=\"no\",FREQUENCY('Data Sort'!$F308:$BU337,2)/COUNT('Data Sort'!$F308:$BU337),FREQUENCY('Data Sort'!$F309:$BU338,2)/COUNT('Data Sort'!$F309:$BU338))","v":{"$error":"#DIV/0!"}},{"$f":"IF('Data Sort'!G11=\"no\",FREQUENCY('Data Sort'!$F308:$BU337,1)/COUNT('Data Sort'!$F308:$BU337),FREQUENCY('Data Sort'!$F309:$BU338,1)/COUNT('Data Sort'!$F309:$BU338))","v":{"$error":"#DIV/0!"}},null,null,"Nov",308,337,309,338]
[null,null,{"$f":"'Data Sort'!$D$342","v":"00:00:00"},{"$f":"IF('Data Sort'!B12=\"no\",FREQUENCY('Data Sort'!$Z338:$BU368,0.3)/COUNT('Data Sort'!$Z338:$BU368),FREQUENCY('Data Sort'!$Z339:$BU369,0.3)/COUNT('Data Sort'!$Z339:$BU369))","v":{"$error":"#DIV/0!"}},{"$f":"IF('Data Sort'!C12=\"no\",FREQUENCY('Data Sort'!$Z338:$BU368,0.2)/COUNT('Data Sort'!$Z338:$BU368),FREQUENCY('Data Sort'!$Z339:$BU369,0.2)/COUNT('Data Sort'!$Z339:$BU369))","v":{"$error":"#DIV/0!"}},{"$f":"IF('Data Sort'!D12=\"no\",FREQUENCY('Data Sort'!$Z338:$BU368,0.1)/COUNT('Data Sort'!$Z338:$BU368),FREQUENCY('Data Sort'!$Z339:$BU369,0.1)/COUNT('Data Sort'!$Z339:$BU369))","v":{"$error":"#DIV/0!"}},{"$f":"IF('Data Sort'!E12=\"no\",FREQUENCY('Data Sort'!$F338:$BU368,3)/COUNT('Data Sort'!$F338:$BU368),FREQUENCY('Data Sort'!$F339:$BU369,3)/COUNT('Data Sort'!$F339:$BU369))","v":{"$error":"#DIV/0!"}},{"$f":"IF('Data Sort'!F12=\"no\",FREQUENCY('Data Sort'!$F338:$BU368,2)/COUNT('Data Sort'!$F338:$BU368),FREQUENCY('Data Sort'!$F339:$BU369,2)/COUNT('Data Sort'!$F339:$BU369))","v":{"$error":"#DIV/0!"}},{"$f":"IF('Data Sort'!G12=\"no\",FREQUENCY('Data Sort'!$F338:$BU368,1)/COUNT('Data Sort'!$F338:$BU368),FREQUENCY('Data Sort'!$F339:$BU369,1)/COUNT('Data Sort'!$F339:$BU369))","v":{"$error":"#DIV/0!"}},null,null,"Dec",338,368,339,369]